Workbook

Sheet IMP-RESUMEN
B1: EDEMET
B3: INGRESO MÁXIMO PERMITIDO = IMP
B5: En miles de Balboas
B7: INGRESO MÁXIMO PERMITIDO | C7: JUL22/ JUN23 | D7: JUL23 / JUN24 | E7: JUL24 / JUN25 | F7: JUL25/ JUN26
B9: IPSD - Ingreso Máximo Permitido por Distribución | C9: =+IMPD!D15 -> 163636.8601 | D9: =+IMPD!E15 -> 178268.8919 | E9: =+IMPD!F15 -> 191531.4275 | F9: =+IMPD!G15 -> 196965.1108
B10: IMPCO - Ingreso Máximo Permitido por Comercialización | C10: =+IMPCO!D14 -> 51800.05405 | D10: =+IMPCO!E14 -> 53461.72954 | E10: =+IMPCO!F14 -> 55067.32783 | F10: =+IMPCO!G14 -> 56483.45291
B11: ALUMPU - Ingreso Máximo Permitido por Alumbrado Público | C11: =+ALUMPU!D13 -> 5430.358831 | D11: =+ALUMPU!E13 -> 5834.845514 | E11: =+ALUMPU!F13 -> 6260.719673 | F11: =+ALUMPU!G13 -> 6653.538653
B12: IPPD - Ingreso Máximo Permitido por Pérdidas en Distribución | C12: =+IMPD!D20 -> 58678.80721 | D12: =+IMPD!E20 -> 58884.54466 | E12: =+IMPD!F20 -> 66057.84499 | F12: =+IMPD!G20 -> 70068.0693
B13: INVNE - Descuento por Inversiones no Ejecutadas en periodo anterior | C13: -8624.093103
B15: IMP - Ingreso Máximo Permitido | C15: =+C9+C12+C10+C11+C13 -> 270921.987 | D15: =+D9+D12+D10+D11+D13 -> 296450.0116 | E15: =+E9+E12+E10+E11+E13 -> 318917.32 | F15: =+F9+F12+F10+F11+F13 -> 330170.1717
B17: Factor de Descuento | C17: =1/(1+RETORNO!D40) -> 0.9191176471 | D17: =1/(1+RETORNO!D40)*1/(1+RETORNO!D40) -> 0.8447772491 | E17: =1/(1+RETORNO!D40)*1/(1+RETORNO!D40)*1/(1+RETORNO!D40) -> 0.7764496775 | F17: =1/(1+RETORNO!D40)*1/(1+RETORNO!D40)*1/(1+RETORNO!D40)*1/(1+RETORNO!D40) -> 0.7136486007
B18: Factor de Descuento Aplicado | C18: =+(1+C17)/2 -> 0.9595588235 | D18: =+(C17+D17)/2 -> 0.8819474481 | E18: =+(D17+E17)/2 -> 0.8106134633 | F18: =+(E17+F17)/2 -> 0.7450491391
B20: VPN DEL INGRESO MÁXIMO PERMITIDO | C20: =C7 -> JUL22/ JUN23 | D20: =D7 -> JUL23 / JUN24 | E20: JUL24 / JUN25 | F20: JUL25/ JUN26
B22: IPSD | C22: =+(C9+$C$13/SUM($C$9:$C$12)*C9)*C$18 -> 152175.0966 | D22: =+D9*D$18 -> 157223.7943 | E22: 155257.9538 | F22: 146748.6863
B23: IMPCO | C23: =+(C10+$C$13/SUM($C$9:$C$12)*C10)*C$18 -> 48171.77638 | D23: 47150.43594 | E23: 44638.31733 | F23: 42082.94796
B24: ALUMPU | C24: =+(C11+$C$13/SUM($C$9:$C$12)*C11)*C$18 -> 5049.995333 | D24: 5146.027111 | E24: 5075.023657 | F24: 4957.213245
B25: IPPD | C25: =+(C12+$C$13/SUM($C$9:$C$12)*C12)*C$18 -> 54568.71485 | D25: 51933.0739 | E25: 53547.3785 | F25: 52204.15471
B27: IMP | C27: =SUM(C22:C26) -> 259965.5832 | D27: =SUM(D22:D26) -> 261453.3312 | E27: =SUM(E22:E26) -> 258518.6733 | F27: =SUM(F22:F26) -> 245993.0022
B29: Energía Facturada (MWh) sin incluir AP | C29: =C18*DEMANDA!E11 -> 4044275.304 | D29: =D18*DEMANDA!F11 -> 3850252.955 | E29: =E18*DEMANDA!G11 -> 3665538.76 | F29: =F18*DEMANDA!H11 -> 3489686.105
B32: VALOR PRESENTE NETO - INGRESO MÁXIMO PERMITIDO
B33: DETALLE | C33: UNIDADES | D33: JULIO/22-JUNIO/26
B35: VP-IPSD - DISTRIBUCIÓN | C35: Miles de B/. | D35: =+C22+D22+E22+F22 -> 611405.5309
B36: VP-IMPCO - COMERCIALIZACIÓN | C36: Miles de B/. | D36: =+C23+D23+E23+F23 -> 182043.4776
B37: VP-ALUMPU - ALUMBRADO PÚBLICO | C37: Miles de B/. | D37: =+C24+D24+E24+F24 -> 20228.25935
B38: SUB-TOTAL | C38: Miles de B/. | D38: =SUM(D35:D37) -> 813677.2679
B39: VP-IPPD - PÉRDIDAS DE DISTRIBUCIÓN | C39: Miles de B/. | D39: =+C25+D25+E25+F25 -> 212253.322
B40: IMP TOTAL | C40: Miles de B/. | D40: =SUM(D35:D37)+D39 -> 1025930.59
B41: ENERGIA FACTURADA (sin AP) | C41: MWh | D41: =+C29+D29+E29+F29 -> 15049753.12
B42: IMP | C42: B/./MWh | D42: =+D40/D41*1000 -> 68.16926374
B43: IMP S/Pérdidas | C43: B/./MWh | D43: =D42-(D39*1000/D41) -> 54.06582163
B45: (1) Las pérdidas estándar de energía se han fijado conforme a las ecuaciones de eficiencia, no obstante, el monto (en B/.) es un valor de referencia.
B46: El mismo se revisa semestralmente, según varía el costo real de la energía.
C48: Considerando Inversiones para Soterramiento
C49: SI

Sheet IMPD
B2: EDEMET
B4: INGRESO MÁXIMO PERMITIDO POR DISTRIBUCIÓN = IMPD
B5: En miles de Balboas
B7: DISTRIBUCIÓN | D7: ='IMP-RESUMEN'!C7:C8 -> JUL22/ JUN23 | E7: ='IMP-RESUMEN'!D7:D8 -> JUL23 / JUN24 | F7: ='IMP-RESUMEN'!E7:E8 -> JUL24 / JUN25 | G7: ='IMP-RESUMEN'!F7:F8 -> JUL25/ JUN26
B10: Rentabilidad sobre Activos | C10: BCDN * RR | D10: =+ACTIVOS!G14*RETORNO!$D$40 -> 58231.67636 | E10: =+ACTIVOS!H14*RETORNO!$D$40 -> 68347.65466 | F10: =+ACTIVOS!I14*RETORNO!$D$40 -> 74948.29252 | G10: =+ACTIVOS!J14*RETORNO!$D$40 -> 76040.98615
B11: Depreciación | C11: DEP BCD + ID * DEP% | D11: ='BC y Dep'!D80/1000+((ACTIVOS!G9-ACTIVOS!F9)/2)*'PERDIDAS y OTROS'!E$11 -> 33432.02097 | E11: ='BC y Dep'!E80/1000+(ACTIVOS!G9-ACTIVOS!F9)*'PERDIDAS y OTROS'!E$11+((ACTIVOS!H9-ACTIVOS!G9)/2)*'PERDIDAS y OTROS'!F$11 -> 35710.60494 | F11: ='BC y Dep'!F80/1000+(ACTIVOS!G9-ACTIVOS!F9)*'PERDIDAS y OTROS'!E$11+(ACTIVOS!H9-ACTIVOS!G9)*'PERDIDAS y OTROS'!F$11+((ACTIVOS!I9-ACTIVOS!H9)/2)*'PERDIDAS y OTROS'!G$11 -> 40354.95878 | G11: ='BC y Dep'!G80/1000+(ACTIVOS!G9-ACTIVOS!F9)*'PERDIDAS y OTROS'!E$11+(ACTIVOS!H9-ACTIVOS!G9)*'PERDIDAS y OTROS'!F$11+(ACTIVOS!I9-ACTIVOS!H9)*'PERDIDAS y OTROS'!G$11+((ACTIVOS!J9-ACTIVOS!I9))/2*'PERDIDAS y OTROS'!H$11 -> 42786.9657
B12: Operación y Mantenimiento | C12: OM | D12: ='Costos y Pérdidas Eficientes'!N66/1000 -> 47582.39739 | E12: ='Costos y Pérdidas Eficientes'!O66/1000 -> 49098.70979 | F12: ='Costos y Pérdidas Eficientes'!P66/1000 -> 50467.31053 | G12: ='Costos y Pérdidas Eficientes'!Q66/1000 -> 51763.13559
B13: Administración | C13: ADM | D13: ='Costos y Pérdidas Eficientes'!N68/1000 -> 24390.76534 | E13: ='Costos y Pérdidas Eficientes'!O68/1000 -> 25111.92249 | F13: ='Costos y Pérdidas Eficientes'!P68/1000 -> 25760.86569 | G13: ='Costos y Pérdidas Eficientes'!Q68/1000 -> 26374.0234
B15: IPSD | D15: =+D13+D12+D11+D10 -> 163636.8601 | E15: =+E13+E12+E11+E10 -> 178268.8919 | F15: =+F13+F12+F11+F10 -> 191531.4275 | G15: =+G13+G12+G11+G10 -> 196965.1108
B17: Pérdidas Ecuaciones de Eficiencia | C17: (PDEcEf%) * MWhD * CMM | D17: =+('PERDIDAS y OTROS'!E9)*'PERDIDAS y OTROS'!E8*DEMANDA!E6/1000 -> 49647.86669 | E17: =+('PERDIDAS y OTROS'!F9)*'PERDIDAS y OTROS'!F8*DEMANDA!F6/1000 -> 49821.44427 | F17: =+('PERDIDAS y OTROS'!G9)*'PERDIDAS y OTROS'!G8*DEMANDA!G6/1000 -> 55890.12363 | G17: =+('PERDIDAS y OTROS'!H9)*'PERDIDAS y OTROS'!H8*DEMANDA!H6/1000 -> 59282.49811
B19: Pérdidas No Técnicas en Zonas Rojas (PNT) | C19: (PDNT%) * MWhD * CMM | D19: =+('PERDIDAS y OTROS'!E10)*'PERDIDAS y OTROS'!E8*DEMANDA!E6/1000 -> 9030.940523 | E19: =+('PERDIDAS y OTROS'!F10)*'PERDIDAS y OTROS'!F8*DEMANDA!F6/1000 -> 9063.100396 | F19: =+('PERDIDAS y OTROS'!G10)*'PERDIDAS y OTROS'!G8*DEMANDA!G6/1000 -> 10167.72136 | G19: =+('PERDIDAS y OTROS'!H10)*'PERDIDAS y OTROS'!H8*DEMANDA!H6/1000 -> 10785.57119
B20: IPPD | D20: =+D17+D18+D19 -> 58678.80721 | E20: =+E17+E18+E19 -> 58884.54466 | F20: 66057.84499 | G20: 70068.0693
B22: IMPD | D22: =+D15+D20 -> 222315.6673 | E22: =+E15+E20 -> 237153.4365 | F22: =+F15+F20 -> 257589.2725 | G22: =+G15+G20 -> 267033.1801

Sheet IMPCO
B2: EDEMET
B4: INGRESO MÁXIMO PERMITIDO POR COMERCIALIZACIÓN = IMPCO
B5: En miles de Balboas
B7: COMERCIALIZACION | D7: =IMPD!D7 -> JUL22/ JUN23 | E7: =IMPD!E7 -> JUL23 / JUN24 | F7: =IMPD!F7 -> JUL24 / JUN25 | G7: =IMPD!G7 -> JUL25/ JUN26
B10: Rentabilidad sobre Activos | C10: BCNC * RR | D10: =+ACTIVOS!G15*RETORNO!$D$40 -> 3691.435401 | E10: =+ACTIVOS!H15*RETORNO!$D$40 -> 3828.606586 | F10: =+ACTIVOS!I15*RETORNO!$D$40 -> 3925.319443 | G10: =+ACTIVOS!J15*RETORNO!$D$40 -> 4006.362767
B11: Depreciación | C11: DEP BCC + IC * DEP% | D11: ='BC y Dep'!D82/1000+((ACTIVOS!G10-ACTIVOS!F10)/2)*'PERDIDAS y OTROS'!E$12 -> 3317.934577 | E11: ='BC y Dep'!E82/1000+(ACTIVOS!G10-ACTIVOS!F10)*'PERDIDAS y OTROS'!E$12+((ACTIVOS!H10-ACTIVOS!G10)/2)*'PERDIDAS y OTROS'!F$12 -> 3294.06649 | F11: ='BC y Dep'!F82/1000+(ACTIVOS!G10-ACTIVOS!F10)*'PERDIDAS y OTROS'!E$12+(ACTIVOS!H10-ACTIVOS!G10)*'PERDIDAS y OTROS'!F$12+((ACTIVOS!I10-ACTIVOS!H10)/2)*'PERDIDAS y OTROS'!G$12 -> 3404.444621 | G11: ='BC y Dep'!G82/1000+(ACTIVOS!G10-ACTIVOS!F10)*'PERDIDAS y OTROS'!E$12+(ACTIVOS!H10-ACTIVOS!G10)*'PERDIDAS y OTROS'!F$12+(ACTIVOS!I10-ACTIVOS!H10)*'PERDIDAS y OTROS'!G$12+((ACTIVOS!J10-ACTIVOS!I10)/2)*'PERDIDAS y OTROS'!H$12 -> 3412.985584
B12: Comercialización | C12: COM | D12: ='Costos y Pérdidas Eficientes'!N67/1000 -> 44790.68407 | E12: ='Costos y Pérdidas Eficientes'!O67/1000 -> 46339.05646 | F12: ='Costos y Pérdidas Eficientes'!P67/1000 -> 47737.56377 | G12: ='Costos y Pérdidas Eficientes'!Q67/1000 -> 49064.10456
B14: IMPCO | D14: =+D10+D11+D12 -> 51800.05405 | E14: =+E10+E11+E12 -> 53461.72954 | F14: =+F10+F11+F12 -> 55067.32783 | G14: =+G10+G11+G12 -> 56483.45291

Sheet ALUMPU
B1: EDEMET
B3: INGRESO MÁXIMO PERMITIDO POR ALUMBRADO PÚBLICO = ALUMPU
B4: En miles de Balboas
B6: ALUMBRADO PÚBLICO | D6: =IMPCO!D7 -> JUL22/ JUN23 | E6: =IMPCO!E7 -> JUL23 / JUN24 | F6: =IMPCO!F7 -> JUL24 / JUN25 | G6: =IMPCO!G7 -> JUL25/ JUN26
B9: Rentabilidad sobre Activos | C9: ACTNalum * RR | D9: =+ACTIVOS!G16*RETORNO!$D$40 -> 2257.864535 | E9: =+ACTIVOS!H16*RETORNO!$D$40 -> 2451.039579 | F9: =+ACTIVOS!I16*RETORNO!$D$40 -> 2630.375729 | G9: =+ACTIVOS!J16*RETORNO!$D$40 -> 2797.726425
B10: Depreciación | C10: DEP ACT ALUM + IALUMPUB * DEP% | D10: ='BC y Dep'!D81/1000+((ACTIVOS!G11-ACTIVOS!F11)/2)*'PERDIDAS y OTROS'!E$13 -> 1894.76439 | E10: ='BC y Dep'!E81/1000+(ACTIVOS!G11-ACTIVOS!F11)*'PERDIDAS y OTROS'!E$13+((ACTIVOS!H11-ACTIVOS!G11)/2)*'PERDIDAS y OTROS'!F$13 -> 2039.115049 | F10: ='BC y Dep'!F81/1000+(ACTIVOS!G11-ACTIVOS!F11)*'PERDIDAS y OTROS'!E$13+(ACTIVOS!H11-ACTIVOS!G11)*'PERDIDAS y OTROS'!F$13+((ACTIVOS!I11-ACTIVOS!H11)/2)*'PERDIDAS y OTROS'!G$13 -> 2196.375205 | G10: ='BC y Dep'!G81/1000+(ACTIVOS!G11-ACTIVOS!F11)*'PERDIDAS y OTROS'!E$13+(ACTIVOS!H11-ACTIVOS!G11)*'PERDIDAS y OTROS'!F$13+(ACTIVOS!I11-ACTIVOS!H11)*'PERDIDAS y OTROS'!G$13+((ACTIVOS!J11-ACTIVOS!I11)/2)*'PERDIDAS y OTROS'!H$13 -> 2332.572544
B11: Operación y Mantenimiento | C11: OMalum | D11: =$D$17*(D16+E16)/2/1000 -> 1277.729906 | E11: =$D$17*(E16+F16)/2/1000 -> 1344.690886 | F11: =$D$17*(F16+G16)/2/1000 -> 1433.968739 | G11: =$D$17*(G16+H16)/2/1000 -> 1523.239684
B13: ALUMPU | D13: =+D9+D10+D11 -> 5430.358831 | E13: =+E9+E10+E11 -> 5834.845514 | F13: 6260.719673 | G13: 6653.538653
D15: 2022-06-01 | E15: 2023-06-01 | F15: 2024-06-01 | G15: 2025-06-01 | H15: 2026-06-01
B16: Cantidad de luminarias al 30/6 | D16: 181728 | E16: =+D16+INVERSIONES!D31 -> 188190 | F16: =+E16+INVERSIONES!E31 -> 201114 | G16: =+F16+INVERSIONES!F31 -> 214037 | H16: =+G16+INVERSIONES!G31 -> 226959
B17: Costo O&M por luminaria [B/. /año] | D17: =D29 -> 6.908179141
E19: =+(E16+D16)/2 -> 184959 | F19: =+(F16+E16)/2 -> 194652 | G19: =+(G16+F16)/2 -> 207575.5 | H19: 220498
B21: Detalle | C21: Unidad | D21: 2018 | E21: 2019 | F21: 2020 | G21: 2021 | H21: PROMEDIO
B22: Costo AP | C22: B/. | D22: 1213237.675 | E22: 1130678.207 | F22: 1025723.473 | G22: 1508440.604 | H22: =AVERAGE(D22:G22) -> 1219519.99
B23: Luminarias | C23: Cant. | D23: 162676.25 | E23: 170128.9167 | F23: 177426.3333 | G23: 180582 | H23: =AVERAGE(D23:G23) -> 172703.375
B25: Costo Mant./lum Cont. | D25: =D22/D23 -> 7.457988953 | E25: =E22/E23 -> 6.646008386 | F25: 5.781123093 | G25: 8.353216845 | H25: 7.061355865
B27: Costo Mant./lum RT-1 | D27: =6.9*C40 -> 6.908179141
B29: Costo Mant./lum | D29: =MIN(H25,D27) -> 6.908179141
B31: Actualización
B32: Detalle | C32: Jul-Dic/2018 | D32: Ene-Jun/2019 | E32: Jul-Dic/2019 | F32: Ene-Jun/2020 | G32: Jul-Dic/2020 | H32: Ene-Jun/2021 | I32: Jul-Dic/2021 | J32: Ene-Jun/2022
B33: FAC de Comercialización | C33: 1.001660786 | D33: 1.008424791 | E33: 0.9928873977 | F33: 1.002367675 | G33: 0.9970764817 | H33: 0.9839923733 | I33: 1.002157091 | J33: 1.016353722
B34: FAC de redes de Distribución, conexión | C34: 1.000853116 | D34: 1.004327664 | E34: 0.996973172 | F34: 1.001007584 | G34: 0.9987558721 | H34: 0.9931878191 | I34: 1.000917968 | J34: 1.006959465
B35: FAC por Servicio de Alumbrado Público | C35: 1.000401534 | D35: 1.002036891 | E35: 0.9982998792 | F35: 1.000565944 | G35: 0.9993011933 | H35: 0.9961737071 | I35: 1.000515608 | J35: 1.00390902
C38: 2018 | D38: 2019 | E38: 2020 | F38: 2021
B39: Actualización | C39: =PRODUCT(C35:$J$35) -> 1.001185383 | D39: =PRODUCT(E35:$J$35) -> 0.9987491909 | E39: =PRODUCT(G35:$J$35) -> 0.9998841986 | F39: =J35 -> 1.00390902
B40: Act Jun 18 - Jun 22 | C40: =C39 -> 1.001185383

Sheet DEMANDA
B2: EDEMET
B4: IMPULSORES DE COSTOS | C4: Unidades | D4: BASE | E4: =ALUMPU!D6 -> JUL22/ JUN23 | F4: =ALUMPU!E6 -> JUL23 / JUN24 | G4: =ALUMPU!F6 -> JUL24 / JUN25 | H4: =ALUMPU!G6 -> JUL25/ JUN26 | I4: CREC.a.a.
B5: Demanda Máxima | C5: MW | D5: =+D6/8760/D14 -> 850.3526002 | E5: =+E6/8760/E14 -> 881.6618983 | F5: =+F6/8760/F14 -> 919.2508987 | G5: =+G6/8760/G14 -> 959.4755994 | H5: =+H6/8760/H14 -> 1000.809855 | I5: =(H5/D5)^(1/4)-1 -> 0.04156920785
B6: Energía ingresada al sist. Propio (eficiente) | C6: MWh | D6: =+(D11+D12)/(1-D13) -> 4606974.601 | E6: =+(E11+E12)/(1-E13) -> 4771895.329 | F6: 4942719.858 | G6: 5119659.596 | H6: 5302933.368 | I6: =(H6/D6)^(1/4)-1 -> 0.0357980476
B7: Clientes | C7: Nº clientes | D7: 586413.7349 | E7: 604532.3488 | F7: 625655.1177 | G7: 644739.8589 | H7: 662847.9726 | I7: =(H7/D7)^(1/4)-1 -> 0.03110394781
B8: DEM/CLIENTE | C8: kW/C | D8: =D5/D7*1000 -> 1.450089842 | E8: 1.836935005 | F8: 1.814307922 | G8: 1.784533004 | H8: 1.806068282
B9: ENERGIA-AÑO/CLIENTE | C9: MWh/C | D9: =+D11/D7 -> 6.938850393 | E9: 9.060038081 | F9: 9.32608498 | G9: 8.982732672 | H9: 9.039666561
B11: Energia facturada sin AP | C11: MWh | D11: 4069037.175 | E11: 4214723.688 | F11: 4365626.277 | G11: 4521931.754 | H11: 4683833.484 | I11: =(H11/D11)^(1/4)-1 -> 0.03580367453
B12: Energía facturada AP | C12: MWh | D12: 121832.6717 | E12: 126194.73 | F12: 130712.9648 | G12: 135392.9697 | H12: 140240.5343 | I12: =(H12/D12)^(1/4)-1 -> 0.03580367453
B13: Perdidas eficientes | D13: =7.06%*D16 -> 0.09032060967 | E13: =7.06%*E16 -> 0.09031566736 | F13: 0.09031072536 | G13: 0.09030578369 | H13: 0.09030084233
B14: Factor de carga | D14: 0.6184614976 | E14: 0.6178523886 | F14: 0.6138013327 | G14: 0.6091202604 | H14: 0.6048678353
C16: Factor de Ajuste | D16: 1.279328749 | E16: 1.279258744 | F16: 1.279188745 | G16: 1.279118749 | H16: 1.279048758
D18: =D13*1000000000-('Costos y Pérdidas Eficientes'!M85+'PERDIDAS y OTROS'!E10)*1000000000 -> 0 | E18: =E13*1000000000-('Costos y Pérdidas Eficientes'!N85+'PERDIDAS y OTROS'!E10)*1000000000 -> 0 | F18: =F13*1000000000-('Costos y Pérdidas Eficientes'!O85+'PERDIDAS y OTROS'!F10)*1000000000 -> -1.937150955e-07 | G18: =G13*1000000000-('Costos y Pérdidas Eficientes'!P85+'PERDIDAS y OTROS'!G10)*1000000000 -> 0 | H18: =H13*1000000000-('Costos y Pérdidas Eficientes'!Q85+'PERDIDAS y OTROS'!H10)*1000000000 -> 2.086162567e-07

Sheet Costos y Pérdidas Eficientes
A1: EDEMET | K1: Estimaciones de los costos a partir de parametros estimados y las variables reales, actualizados U$S junio 2022
K3: ALTERNATIVA 2: UTILIZANDO NUEVOS MODELOS ESTADISTICOS PROPUESTO PARA EL PRESENTE ESTUDIO | S3: Variables | T3: AD | U3: AC | V3: OM | W3: COM | X3: ADM
K4: Tabla de parametos estimados CAPEX y OPEX | S4: Constante | T4: 9.694333 | U4: 6.288137 | V4: 5.872265 | W4: 4.666887 | X4: 1.482066
K5: Variable | L5: AD | M5: AC | N5: OMD | O5: COM | P5: ADM | S5: ln Clientes Totales | U5: 0.9362113 | W5: 0.9895434
K6: Ln(Mom_elec) | M6: 0 | O6: 0 | P6: 0 | S6: ln Demanda máxima | T6: 0.9654499
K7: Ln(Cl) | M7: =U5 -> 0.9362113 | N7: 0 | O7: =W5 -> 0.9895434 | P7: 0 | S7: ln Demanda máxima por cliente | T7: -0.8242876
K8: Ln(km red aerea) | L8: 0 | M8: 0 | N8: 0 | O8: 0 | P8: 0 | S8: ln Longitud total de red | V8: 0.9140084
K9: Ln(km red subt) | L9: 0 | M9: 0 | N9: 0 | O9: 0 | P9: 0 | S9: ln (Clientes/Longitud total de red) | V9: 0.9011067
K10: Ln(km red total) | L10: 0 | M10: 0 | N10: =$V$8 -> 0.9140084 | O10: 0 | P10: 0 | S10: ln (OM Distribución) | X10: 0.4379561
K11: Ln(cl_km) | L11: 0 | M11: 0 | N11: =V9 -> 0.9011067 | O11: 0 | P11: 0 | S11: ln (OM Comercialización) | X11: 0.4531271
K12: Ln(dem_max) | L12: =T6 -> 0.9654499 | M12: 0 | O12: 0 | P12: 0 | S12: R cuadrado total | T12: 0.9504 | U12: 0.9198 | V12: 0.8982 | W12: 0.882 | X12: 0.8327
K13: Ln(km_cuad) | L13: 0 | M13: 0 | N13: 0 | O13: 0 | P13: 0
K14: Ln(dem_max_cliente) | L14: =T7 -> -0.8242876 | M14: 0 | N14: 0 | O14: 0 | P14: 0
K15: Ln(energ_vend) | L15: 0 | M15: 0 | N15: 0 | O15: 0 | P15: 0
K16: Ln(oym_dist) | L16: 0 | M16: 0 | N16: 0 | O16: 0 | P16: =X10 -> 0.4379561
K17: Ln(oym_com) | L17: 0 | M17: 0 | N17: 0 | O17: 0 | P17: =X11 -> 0.4531271
K18: Ln(opexdiscom) | L18: 0 | M18: 0 | N18: 0 | O18: 0 | P18: 0
K19: Constante | L19: =T4 -> 9.694333 | M19: =U4 -> 6.288137 | N19: =V4 -> 5.872265 | O19: =W4 -> 4.666887 | P19: =X4 -> 1.482066
K21: Tabla de Datos Proyectados | M21: Base
K22: Variable | L22: Unidad | M22: 2021 | N22: =+M22+1 -> 2022 | O22: =+N22+1 -> 2023 | P22: =+O22+1 -> 2024 | Q22: =+P22+1 -> 2025 | R22: =+Q22+1 -> 2026
K23: Demanda Máxima | N23: =DEMANDA!D5 -> 850.3526002 | O23: =DEMANDA!E5 -> 881.6618983 | P23: =DEMANDA!F5 -> 919.2508987 | Q23: =DEMANDA!G5 -> 959.4755994 | R23: =DEMANDA!H5 -> 1000.809855
K24: Longitud de red áerea | L24: km | M24: 18604.10251 | N24: 19224.21729 | O24: 19938.90763 | P24: 20602.1287 | Q24: 21278.78832 | R24: 21936.75319
K25: Longitud de red subterranea | L25: km | M25: 1995.527487 | N25: 2062.042712 | O25: 2138.702374 | P25: 2209.841301 | Q25: 2282.421683 | R25: 2352.996814
K26: Ventas de Energía | N26: =DEMANDA!D11+DEMANDA!D12 -> 4190869.846 | O26: =DEMANDA!E11+DEMANDA!E12 -> 4340918.418 | P26: =DEMANDA!F11+DEMANDA!F12 -> 4496339.242 | Q26: =DEMANDA!G11+DEMANDA!G12 -> 4657324.724 | R26: =DEMANDA!H11+DEMANDA!H12 -> 4824074.018
K27: Costos OyM (D) | L27: USD | M27: =+L35 -> 0 | N27: =+M35 -> 63664820.24 | O27: 65465507.61 | P27: 67551702.63 | Q27: 69434670.86 | R27: 71217511.79
K28: Costos OyM (C) | L28: USD | M28: =+L36 -> 0 | N28: 54286469.97 | O28: 55945972.21 | P28: 57879972.56 | Q28: 59626783.37 | R28: 61283704.12
K29: Clientes | L29: Cant. | N29: =DEMANDA!D7 -> 586413.7349 | O29: =DEMANDA!E7 -> 604532.3488 | P29: =DEMANDA!F7 -> 625655.1177 | Q29: =DEMANDA!G7 -> 644739.8589 | R29: =DEMANDA!H7 -> 662847.9726
N30: =N24+N25 -> 21286.26 | O30: =O24+O25 -> 22077.61 | P30: 22811.97 | Q30: 23561.21 | R30: 24289.75
K31: Tabla de Costos sin Ajuste en USD (EEUU) a junio 2020
K32: COSTO | L32: =+M22 -> 2021 | M32: =+L32+1 -> 2022 | N32: =+M32+1 -> 2023 | O32: =+N32+1 -> 2024 | P32: =+O32+1 -> 2025 | Q32: =+P32+1 -> 2026
K33: AD | M33: =EXP($L$19+$L$6*LN(N23*SUM(AVERAGE(M24:N24),AVERAGE(M25:N25)))+$L$7*LN(N29)+$L$8*LN(N24)+$L$9*LN(N25)+$L$10*LN(SUM(N24:N25))+$L$11*LN(N29/SUM(N24:N25))+$L$12*LN(N23)+$L$13*LN(SUM(N24:N25)*SUM(N24:N25))+$L$14*LN(N23/N29)+$L$15*LN(N26)+$L$16*LN(N27)+$L$17*LN(N28)+$L$18*LN(N27+N28)) -> 2390030309 | N33: =EXP($L$19+$L$6*LN(O23*SUM(AVERAGE(N24:O24),AVERAGE(N25:O25)))+$L$7*LN(O29)+$L$8*LN(O24)+$L$9*LN(O25)+$L$10*LN(SUM(O24:O25))+$L$11*LN(O29/SUM(O24:O25))+$L$12*LN(O23)+$L$13*LN(SUM(O24:O25)*SUM(O24:O25))+$L$14*LN(O23/O29)+$L$15*LN(O26)+$L$16*LN(O27)+$L$17*LN(O28)+$L$18*LN(O27+O28)) -> 2463277749 | O33: =EXP($L$19+$L$6*LN(P23*SUM(AVERAGE(O24:P24),AVERAGE(O25:P25)))+$L$7*LN(P29)+$L$8*LN(P24)+$L$9*LN(P25)+$L$10*LN(SUM(P24:P25))+$L$11*LN(P29/SUM(P24:P25))+$L$12*LN(P23)+$L$13*LN(SUM(P24:P25)*SUM(P24:P25))+$L$14*LN(P23/P29)+$L$15*LN(P26)+$L$16*LN(P27)+$L$17*LN(P28)+$L$18*LN(P27+P28)) -> 2548986662 | P33: 2628752628 | Q33: =EXP($L$19+$L$6*LN(R23*SUM(AVERAGE(Q24:R24),AVERAGE(Q25:R25)))+$L$7*LN(R29)+$L$8*LN(R24)+$L$9*LN(R25)+$L$10*LN(SUM(R24:R25))+$L$11*LN(R29/SUM(R24:R25))+$L$12*LN(R23)+$L$13*LN(SUM(R24:R25)*SUM(R24:R25))+$L$14*LN(R23/R29)+$L$15*LN(R26)+$L$16*LN(R27)+$L$17*LN(R28)+$L$18*LN(R27+R28)) -> 2705522658
K34: AC | M34: =EXP($M$19+$M$6*LN(N23*SUM(AVERAGE(M24:N24),AVERAGE(M25:N25)))+$M$7*LN(N29)+$M$8*LN(N24)+$M$9*LN(N25)+$M$10*LN(SUM(N24:N25))+$M$11*LN(N29/SUM(N24:N25))+$M$12*LN(N23)+$M$13*LN(SUM(N24:N25)*SUM(N24:N25))+$M$14*LN(N23/N29)+$M$15*LN(N26)+$M$16*LN(N27)+$M$17*LN(N28)+$M$18*LN(N27+N28)) -> 135257417.5 | N34: =EXP($M$19+$M$6*LN(O23*SUM(AVERAGE(N24:O24),AVERAGE(N25:O25)))+$M$7*LN(O29)+$M$8*LN(O24)+$M$9*LN(O25)+$M$10*LN(SUM(O24:O25))+$M$11*LN(O29/SUM(O24:O25))+$M$12*LN(O23)+$M$13*LN(SUM(O24:O25)*SUM(O24:O25))+$M$14*LN(O23/O29)+$M$15*LN(O26)+$M$16*LN(O27)+$M$17*LN(O28)+$M$18*LN(O27+O28)) -> 139166116.7 | O34: 143713487.1 | P34: 147813681.6 | Q34: =EXP($M$19+$M$6*LN(R23*SUM(AVERAGE(Q24:R24),AVERAGE(Q25:R25)))+$M$7*LN(R29)+$M$8*LN(R24)+$M$9*LN(R25)+$M$10*LN(SUM(R24:R25))+$M$11*LN(R29/SUM(R24:R25))+$M$12*LN(R23)+$M$13*LN(SUM(R24:R25)*SUM(R24:R25))+$M$14*LN(R23/R29)+$M$15*LN(R26)+$M$16*LN(R27)+$M$17*LN(R28)+$M$18*LN(R27+R28)) -> 151696900
K35: OMD | M35: =EXP($N$19+$N$6*LN(N23*SUM(AVERAGE(M24:N24),AVERAGE(M25:N25)))+$N$7*LN(N29)+$N$8*LN(N24)+$N$9*LN(N25)+$N$10*LN(SUM(N24:N25))+$N$11*LN(N29/SUM(N24:N25))+$N$12*LN(N23)+$N$13*(LN(SUM(N24:N25)))^2+$N$14*LN(N23/N29)+$N$15*LN(N26)) -> 63664820.24 | N35: =EXP($N$19+$N$6*LN(O23*SUM(AVERAGE(N24:O24),AVERAGE(N25:O25)))+$N$7*LN(O29)+$N$8*LN(O24)+$N$9*LN(O25)+$N$10*LN(SUM(O24:O25))+$N$11*LN(O29/SUM(O24:O25))+$N$12*LN(O23)+$N$13*(LN(SUM(O24:O25)))^2+$N$14*LN(O23/O29)+$N$15*LN(O26)) -> 65465507.61 | O35: 67551702.63 | P35: 69434670.86 | Q35: =EXP($N$19+$N$6*LN(R23*SUM(AVERAGE(Q24:R24),AVERAGE(Q25:R25)))+$N$7*LN(R29)+$N$8*LN(R24)+$N$9*LN(R25)+$N$10*LN(SUM(R24:R25))+$N$11*LN(R29/SUM(R24:R25))+$N$12*LN(R23)+$N$13*(LN(SUM(R24:R25)))^2+$N$14*LN(R23/R29)+$N$15*LN(R26)) -> 71217511.79
K36: COM | M36: =EXP($O$19+$O$6*LN(N23*SUM(AVERAGE(M24:N24),AVERAGE(M25:N25)))+$O$7*LN(N29)+$O$8*LN(N24)+$O$9*LN(N25)+$O$10*LN(SUM(N24:N25))+$O$11*LN(N29/SUM(N24:N25))+$O$12*LN(N23)+$O$13*LN(SUM(N24:N25)*SUM(N24:N25))+$O$14*LN(N23/N29)+$O$15*LN(N26)) -> 54286469.97 | N36: =EXP($O$19+$O$6*LN(O23*SUM(AVERAGE(N24:O24),AVERAGE(N25:O25)))+$O$7*LN(O29)+$O$8*LN(O24)+$O$9*LN(O25)+$O$10*LN(SUM(O24:O25))+$O$11*LN(O29/SUM(O24:O25))+$O$12*LN(O23)+$O$13*LN(SUM(O24:O25)*SUM(O24:O25))+$O$14*LN(O23/O29)+$O$15*LN(O26)) -> 55945972.21 | O36: 57879972.56 | P36: 59626783.37 | Q36: =EXP($O$19+$O$6*LN(R23*SUM(AVERAGE(Q24:R24),AVERAGE(Q25:R25)))+$O$7*LN(R29)+$O$8*LN(R24)+$O$9*LN(R25)+$O$10*LN(SUM(R24:R25))+$O$11*LN(R29/SUM(R24:R25))+$O$12*LN(R23)+$O$13*LN(SUM(R24:R25)*SUM(R24:R25))+$O$14*LN(R23/R29)+$O$15*LN(R26)) -> 61283704.12
K37: ADM | M37: =EXP($P$19+$P$6*LN(N23*SUM(AVERAGE(M24:N24),AVERAGE(M25:N25)))+$P$7*LN(N29)+$P$8*LN(N24)+$P$9*LN(N25)+$P$10*LN(SUM(N24:N25))+$P$11*LN(N29/SUM(N24:N25))+$P$12*LN(N23)+$P$13*LN(SUM(N24:N25)*SUM(N24:N25))+$P$14*LN(N23/N29)+$P$15*LN(N26)+$P$16*LN(N27)+$P$17*LN(N28)+$P$18*LN(N27+N28)) -> 36831283.89 | N37: =EXP($P$19+$P$6*LN(O23*SUM(AVERAGE(N24:O24),AVERAGE(N25:O25)))+$P$7*LN(O29)+$P$8*LN(O24)+$P$9*LN(O25)+$P$10*LN(SUM(O24:O25))+$P$11*LN(O29/SUM(O24:O25))+$P$12*LN(O23)+$P$13*LN(SUM(O24:O25)*SUM(O24:O25))+$P$14*LN(O23/O29)+$P$15*LN(O26)+$P$16*LN(O27)+$P$17*LN(O28)+$P$18*LN(O27+O28)) -> 37796142.2 | O37: 38913653.61 | P37: 39919261.63 | Q37: =EXP($P$19+$P$6*LN(R23*SUM(AVERAGE(Q24:R24),AVERAGE(Q25:R25)))+$P$7*LN(R29)+$P$8*LN(R24)+$P$9*LN(R25)+$P$10*LN(SUM(R24:R25))+$P$11*LN(R29/SUM(R24:R25))+$P$12*LN(R23)+$P$13*LN(SUM(R24:R25)*SUM(R24:R25))+$P$14*LN(R23/R29)+$P$15*LN(R26)+$P$16*LN(R27)+$P$17*LN(R28)+$P$18*LN(R27+R28)) -> 40869416.15 | S37: 25624837.93 | T37: 26335136.29 | U37: 27155124.3 | V37: 27895883.5 | W37: 28597089.35
B40: Tabla de factores de ajuste del Componente Mano de Obra
C41: 2016 | D41: =+C41+1 -> 2017 | E41: =+D41+1 -> 2018 | F41: =+E41+1 -> 2019 | G41: =+F41+1 -> 2020 | H41: =+G41+1 -> 2021 | K41: Costos resultantes de las ecuaciones de eficiencia dados en Balboas a junio 2020 (utilizando Parametros del estudio actual)
B42: Costo laboral relativo 2020 | C42: 0.3857969036 | D42: =+$C$42/$C$55*D55 -> 0.3857969036 | E42: =+$C$42/$C$55*E55 -> 0.3857969036 | F42: 0.3857969036 | G42: 0.3857969036 | H42: 0.3857969036 | K42: COSTO | L42: =+$L$32 -> 2021 | M42: =+L42+1 -> 2022 | N42: =+M42+1 -> 2023 | O42: =+N42+1 -> 2024 | P42: =+O42+1 -> 2025 | Q42: =+P42+1 -> 2026
B43: Costo laboral relativo de cada año | C43: =+$C$42/$C$55*C56 -> 0.4338109288 | D43: =+$C$42/$C$55*D56 -> 0.418648605 | E43: 0.4127521458 | F43: 0.4043286326 | G43: 0.3857969036 | H43: 0.3782157418 | K43: AD | L43: =L33/($D46/$C42+(1-$D46)*$D59/$C$55+(1-$D46)*(1-$D59)) -> 0 | M43: =M33*($D46*$C42+(1-$D46)*$D59*$C$55+(1-$D46)*(1-$D59)) -> 1331979567 | N43: =N33*($D46*$C42+(1-$D46)*$D59*$C$55+(1-$D46)*(1-$D59)) -> 1372800846 | O43: 1420566985 | P43: 1465021081 | Q43: 1507805522
K44: AC | L44: =L34*($D47*$C42+(1-$D47)*$D60*$C$55+(1-$D47)*(1-$D60)) -> 0 | M44: =M34*($D47*$C42+(1-$D47)*$D60*$C$55+(1-$D47)*(1-$D60)) -> 104288914.5 | N44: =N34*($D47*$C42+(1-$D47)*$D60*$C$55+(1-$D47)*(1-$D60)) -> 107302678.9 | O44: 110808884.6 | P44: 113970299.6 | Q44: 116964417.3
B45: Participación de la mano de obra en los costos totales | C45: En Panama | D45: En EEUU | K45: OMD | L45: 0 | M45: =M35*($C48*$C42+(1-$C48)*$C61*$C$55+(1-$C48)*(1-$C61)) -> 44764513.62 | N45: =N35*($C48*$C42+(1-$C48)*$C61*$C$55+(1-$C48)*(1-$C61)) -> 46030627.21 | O45: =O35*($C48*$C42+(1-$C48)*$C61*$C$55+(1-$C48)*(1-$C61)) -> 47497489.21 | P45: 48821456.77 | Q45: 50075022.04
B46: AD | C46: 0.4197043015 | D46: 0.6059682657 | K46: COM | L46: 0 | M46: =M36*($C49*$C42+(1-$C49)*$C62*$C$55+(1-$C49)*(1-$C62)) -> 42382996.51 | N46: =N36*($C49*$C42+(1-$C49)*$C62*$C$55+(1-$C49)*(1-$C62)) -> 43678617.28 | O46: 45188546.55 | P46: 46552331.6 | Q46: 47845936.93
B47: AC | C47: 0.1675096761 | D47: 0.3344783372 | K47: ADM | L47: 0 | M47: =M37*($C50*$C42+(1-$C50)*$C63*$C$55+(1-$C50)*(1-$C63)) -> 22772084.77 | N47: =N37*($C50*$C42+(1-$C50)*$C63*$C$55+(1-$C50)*(1-$C63)) -> 23368638.38 | O47: 24059574.5 | P47: 24681322.88 | Q47: 25268785.41
B48: OMD | C48: 0.4333405763 | M48: =M43+M44 -> 1436268481 | N48: =N43+N44 -> 1480103525 | O48: =O43+O44 -> 1531375869 | P48: 1578991381 | Q48: 1624769939
B49: COM | C49: 0.2589053425
B50: ADM | C50: 0.5143458539
K51: Activos proyectados con ecuaciones de eficiencia y mercado Proy Dda a precios de junio 2022
K52: Actividad | M52: 2022 | N52: =+M52+1 -> 2023 | O52: =+N52+1 -> 2024 | P52: =+O52+1 -> 2025 | Q52: =+P52+1 -> 2026
B53: Tabla de factores de ajuste del Componente Materiables a PPP de cada año | K53: AD (Ecuación de eficiencia) | M53: =M43*$E68 -> 1380233307 | N53: 1422533422 | O53: 1472029989 | P53: 1518094528 | Q53: 1562428925
C54: 2016 | D54: =+C54+1 -> 2017 | E54: =+D54+1 -> 2018 | F54: =+E54+1 -> 2019 | G54: =+F54+1 -> 2020 | H54: =+G54+1 -> 2021 | K54: AC (Ecuación de eficiencia) | M54: 105675710.7 | N54: 108729551.1 | O54: 112282381 | P54: 115485835.4 | Q54: 118519767.8
B55: PPP 2020 | C55: 0.458 | D55: =C55 -> 0.458 | E55: =D55 -> 0.458 | F55: =E55 -> 0.458 | G55: =F55 -> 0.458 | H55: =G55 -> 0.458 | K55: Total | M55: =SUM(M53:M54) -> 1485909018 | N55: =SUM(N53:N54) -> 1531262973 | O55: 1584312370 | P55: 1633580363 | Q55: 1680948693
B56: PPP de cada año | C56: 0.515 | D56: 0.497 | E56: 0.49 | F56: 0.48 | G56: 0.458 | H56: 0.449
K57: Inversiones proyectadas con ecuaciones de eficiencia y mercado Proy Dda a precios de junio 2022
B58: % Nacional | C58: En Panama | D58: En EEUU | K58: Actividad | M58: 2022 | N58: =+M58+1 -> 2023 | O58: =+N58+1 -> 2024 | P58: =+O58+1 -> 2025 | Q58: =+P58+1 -> 2026
B59: AD | C59: 0.1841545092 | D59: 0.3301373827 | K59: AD (Ecuación de eficiencia) | N59: =(N53-M53) -> 42300114.89 | O59: =(O53-N53) -> 49496567.37 | P59: =(P53-O53) -> 46064538.52 | Q59: 44334396.83
B60: AC | C60: 0.03096048266 | D60: 0.06521008622 | K60: AC (Ecuación de eficiencia) | N60: =(N54-M54) -> 3053840.344 | O60: 3552829.952 | P60: 3203454.367 | Q60: 3033932.45
B61: OMD | C61: 0.1 | K61: Total | N61: =+SUM(N59:N60) -> 45353955.23 | O61: =+SUM(O59:O60) -> 53049397.32 | P61: =+SUM(P59:P60) -> 49267992.88 | Q61: =+SUM(Q59:Q60) -> 47368329.28
B62: COM | C62: 0.15
B63: ADM | C63: 0.25
K64: Costos proyectados con ecuaciones de eficiencia y mercado Proy Dda a precios de junio 2022
K65: Actividad | L65: 2021 | M65: 2022 | N65: =+M65+1 -> 2023 | O65: =+N65+1 -> 2024 | P65: =+O65+1 -> 2025 | Q65: =+P65+1 -> 2026
A66: Factor de Ajuste Jun 2022/Jun 2020 | K66: OMD | N66: =N45*$E70 -> 47582397.39 | O66: 49098709.79 | P66: 50467310.53 | Q66: 51763135.59
A67: Costo | B67: % Total costos locales | C67: IPC 22/20 | D67: TC US$ 22/20 | E67: FA | K67: COM | N67: 44790684.07 | O67: 46339056.46 | P67: 47737563.77 | Q67: 49064104.56
A68: AD | B68: =C46+(1-C46)*C59 -> 0.526568371 | C68: =C76/C75 -> 1.06879845 | D68: =C78/C77 -> 1 | E68: =B68*C68+(1-B68)*D68 -> 1.036227088 | K68: ADM | N68: 24390765.34 | O68: 25111922.49 | P68: 25760865.69 | Q68: 26374023.4 | S68: 16994700.83 | T68: 17523858.95 | U68: 18001888.78 | V68: 18454393.89
A69: AC | B69: =C47+(1-C47)*C60 -> 0.1932839783 | C69: =C68 -> 1.06879845 | D69: =D68 -> 1 | E69: =B69*C69+(1-B69)*D69 -> 1.013297638 | N69: =SUM(N66:N68) -> 116763846.8 | O69: =SUM(O66:O68) -> 120549688.7 | P69: =SUM(P66:P68) -> 123965740 | Q69: =SUM(Q66:Q68) -> 127201263.6 | S69: Variable explicada: lnPE | T69: Modelo 1
A70: OMD | B70: 0.4900065187 | C70: =C69 -> 1.06879845 | D70: 1 | E70: =B70*C70+(1-B70)*D70 -> 1.033711689 | S70: Constante | T70: -2.54329
A71: COM | B71: 0.3700695411 | C71: 1.06879845 | D71: 1 | E71: =B71*C71+(1-B71)*D71 -> 1.025460211 | S71: ln Energia Inyectada | T71: 0.9981612
A72: ADM | B72: 0.6357593904 | C72: 1.06879845 | D72: 1 | E72: =B72*C72+(1-B72)*D72 -> 1.04373926 | S72: ln Long Red Total
K73: 2 - PÉRDIDAS | S73: ln Long Red Total por cliente
K74: Variable | L74: EP | S74: R cuadrado total | T74: 0.9975
B75: IPC jun 2020 | C75: 103.2 | K75: Ln(EF)(β) | L75: =T71 -> 0.9981612
B76: IPC jun 2022 | C76: 110.3 | K76: Constante (α) | L76: =T70 -> -2.54329
B77: TC US$ 2020 | C77: 1
B78: TC US$ 2022 | C78: 1
K79: RESULTADOS PÉRDIDAS
K82: Porcentaje
K83: COSTO | M83: JUL21/ JUN22 | N83: JUL22/ JUN23 | O83: JUL23 / JUN24 | P83: JUL24 / JUN25 | Q83: JUL25/ JUN26
K84: PE_MWH | M84: =EXP($L$76+$L$75*LN(DEMANDA!D6)) -> 352067.8078 | N84: =EXP($L$76+$L$75*LN(DEMANDA!E6)) -> 364647.5662 | O84: =EXP($L$76+$L$75*LN(DEMANDA!F6)) -> 377676.8096 | P84: =EXP($L$76+$L$75*LN(DEMANDA!G6)) -> 391171.6036 | Q84: =EXP($L$76+$L$75*LN(DEMANDA!H6)) -> 405148.5762
K85: PE_% | M85: =M84/DEMANDA!D6 -> 0.07642060967 | N85: =N84/DEMANDA!E6 -> 0.07641566736 | O85: =O84/DEMANDA!F6 -> 0.07641072536 | P85: =P84/DEMANDA!G6 -> 0.07640578369 | Q85: =Q84/DEMANDA!H6 -> 0.07640084233

Sheet INVERSIONES
B1: EDEMET | J1: EDEMET | U1: EDEMET
J2: INVERSIONES | U2: INVERSIONES
B3: INVERSIONES | J3: En Balboas | U3: En Miles de Balboas
B4: En miles de Balboas
J5: INVERSION EN SUBESTACIONES, ARQUITECTURA ASOCIADA Y LÍNEAS EN AT NO CONTEMPLADAS EN LAS ECUACIONES DE EFICIENCIA | U5: INVERSION EN SUBESTACIONES, ARQUITECTURA ASOCIADA Y LÍNEAS EN AT NO CONTEMPLADAS EN LAS ECUACIONES DE EFICIENCIA
B6: INVERSIONES TOTALES | D6: =DEMANDA!E4 -> JUL22/ JUN23 | E6: =DEMANDA!F4 -> JUL23 / JUN24 | F6: =DEMANDA!G4 -> JUL24 / JUN25 | G6: =DEMANDA!H4 -> JUL25/ JUN26 | H6: TOTALES | J6: Concepto | K6: 2022 | L6: 2023 | N6: 2024 | P6: 2025 | R6: 2026 | S6: Total | U6: Concepto | V6: =D6 -> JUL22/ JUN23 | W6: =E6 -> JUL23 / JUN24 | X6: =F6 -> JUL24 / JUN25 | Y6: =G6 -> JUL25/ JUN26 | Z6: Total
H7: Miles de Balboas | K7: 2do Sem | L7: 1er Sem | M7: 2do Sem | N7: 1er Sem | O7: 2do Sem | P7: 1er Sem | Q7: 2do Sem | R7: 1er Sem
B8: Distribución | C8: ID | D8: ='Costos y Pérdidas Eficientes'!N59/1000+D36 -> 92009.08975 | E8: ='Costos y Pérdidas Eficientes'!O59/1000+E36 -> 150664.9038 | F8: ='Costos y Pérdidas Eficientes'!P59/1000+F36 -> 115362.2071 | G8: ='Costos y Pérdidas Eficientes'!Q59/1000+G36 -> 55203.93883 | H8: =SUM(D8:G8) -> 413240.1395 | J8: Nueva Subestación Bella Vista y LATS (230/115/13.8 kV) | K8: 3600000 | L8: 1000000 | S8: 4600000 | U8: =J8 -> Nueva Subestación Bella Vista y LATS (230/115/13.8 kV) | V8: =(K8+L8)/1000 -> 4600 | W8: =(M8+N8)/1000 -> 0 | X8: =(O8+P8)/1000 -> 0 | Y8: =(Q8+R8)/1000 -> 0 | Z8: =SUM(V8:Y8) -> 4600
B9: Comercialización | C9: IC | D9: ='Costos y Pérdidas Eficientes'!N60/1000+D37 -> 4353.840344 | E9: ='Costos y Pérdidas Eficientes'!O60/1000+E37 -> 4852.829952 | F9: ='Costos y Pérdidas Eficientes'!P60/1000+F37 -> 4503.454367 | G9: ='Costos y Pérdidas Eficientes'!Q60/1000+G37 -> 4333.93245 | H9: =SUM(D9:G9) -> 18044.05711 | J9: Arquitectura de red MT de subestación Bella Vista | K9: =1500*1000 -> 1500000 | L9: =2000*1000 -> 2000000 | M9: =1500*1000 -> 1500000 | N9: 0 | O9: 0 | P9: 0 | Q9: 0 | R9: 0 | S9: =SUM(K9:R9) -> 5000000 | U9: =J9 -> Arquitectura de red MT de subestación Bella Vista | V9: =(K9+L9)/1000 -> 3500 | W9: =(M9+N9)/1000 -> 1500 | X9: =(O9+P9)/1000 -> 0 | Y9: =(Q9+R9)/1000 -> 0 | Z9: =SUM(V9:Y9) -> 5000 | AA9: =S9/1000-Z9 -> 0
B10: Alumbrado Público | C10: IAP | D10: =+D25 -> 2117.143 | E10: =+E25 -> 4234.286 | F10: =+F25 -> 4234.286 | G10: =+G25 -> 4234.285 | H10: 14820 | J10: LAT Bella Vista – Segunda Línea 115 kV | K10: 0 | L10: 0 | M10: 0 | N10: =1300*1000 -> 1300000 | O10: =1300*1000 -> 1300000 | P10: 0 | Q10: 0 | R10: 0 | S10: =SUM(K10:R10) -> 2600000 | U10: =J10 -> LAT Bella Vista – Segunda Línea 115 kV | V10: =(K10+L10)/1000 -> 0 | W10: =(M10+N10)/1000 -> 1300 | X10: =(O10+P10)/1000 -> 1300 | Y10: =(Q10+R10)/1000 -> 0 | Z10: 2600 | AA10: 0
B11: TOTAL INVERSIONES | D11: =+D8+D9+D10 -> 98480.07309 | E11: =+E8+E9+E10 -> 159752.0198 | F11: =+F8+F9+F10 -> 124099.9475 | G11: =+G8+G9+G10 -> 63772.15628 | H11: =SUM(D11:G11) -> 446104.1966 | J11: Nueva Línea AT Divisa – La Arena en 115kV | K11: =4558.22567*1000 -> 4558225.67 | L11: =4605.22055*1000 -> 4605220.55 | M11: =879.67874*1000 -> 879678.74 | N11: 0 | O11: 0 | P11: 0 | Q11: 0 | R11: 0 | S11: =SUM(K11:R11) -> 10043124.96 | U11: Nueva Línea AT Divisa – La Arena en 115kV | V11: 9163.44622 | W11: 879.67874 | X11: 0 | Y11: 0 | Z11: 10043.12496 | AA11: 0
J12: Conexión al T2 de SE Chorrera | K12: =434.77302*1000 -> 434773.02 | L12: 0 | M12: 0 | N12: 0 | O12: 0 | P12: 0 | Q12: 0 | R12: 0 | S12: =SUM(K12:R12) -> 434773.02 | U12: Conexión al T2 de SE Chorrera | V12: 434.77302 | W12: 0 | X12: 0 | Y12: 0 | Z12: 434.77302 | AA12: 0
B13: INVERSIONES NO CONTEMPLADAS EN LAS ECUACIONES DE EFICIENCIA | D13: =D6 -> JUL22/ JUN23 | E13: =E6 -> JUL23 / JUN24 | F13: JUL24 / JUN25 | G13: JUL25/ JUN26 | H13: TOTALES | J13: LAT SE Chorrera - SE El Torno 115 (Segunda Línea) | K13: 0 | L13: 0 | M13: 0 | N13: =1650*1000 -> 1650000 | O13: =1650*1000 -> 1650000 | P13: 0 | Q13: 0 | R13: 0 | S13: =SUM(K13:R13) -> 3300000 | U13: LAT SE Chorrera - SE El Torno 115 (Segunda Línea) | V13: 0 | W13: 1650 | X13: 1650 | Y13: 0 | Z13: 3300 | AA13: 0
J14: Ampliación SE Burunga 230/115/34,5 kV | K14: =480.662453975*1000 -> 480662.454 | L14: =1672.54581169225*1000 -> 1672545.812 | M14: =2453.4934012435*1000 -> 2453493.401 | N14: =6308.983031769*1000 -> 6308983.032 | O14: =5029.66147254917*1000 -> 5029661.473 | P14: =2155.56920252108*1000 -> 2155569.203 | Q14: 0 | R14: 0 | S14: =SUM(K14:R14) -> 18100915.37 | U14: Ampliación SE Burunga 230/115/34,5 kV | V14: 2153.208266 | W14: 8762.476433 | X14: 7185.230675 | Y14: 0 | Z14: 18100.91537 | AA14: 0
B15: Distribución (Subestaciones, Arquitectura asociada y líneas en AT) | C15: ID | D15: =(K36+L36)/1000 -> 32652.15314 | E15: =(M36+N36)/1000 -> 77663.23879 | F15: =(O36+P36)/1000 -> 53077.00161 | G15: =(Q36+R36)/1000 -> 1100 | H15: =SUM(D15:G15) -> 164492.3935 | J15: Arquitectura de Red Subestación El Torno y JDA | K15: 0 | L15: =200*1000 -> 200000 | M15: =1300*1000 -> 1300000 | N15: =1300*1000 -> 1300000 | O15: =380*1000 -> 380000 | P15: =300*1000 -> 300000 | Q15: =100*1000 -> 100000 | R15: 0 | S15: 3580000 | U15: Arquitectura de Red Subestación El Torno y JDA | V15: 200 | W15: 2600 | X15: 680 | Y15: 100 | Z15: 3580 | AA15: 0
B16: Distribución (Circuitos en MT) | C16: ID | D16: =(K58+L58)/1000 -> 15628.24972 | E16: =(M58+N58)/1000 -> 20647.95364 | F16: =(O58+P58)/1000 -> 13363.525 | G16: =(Q58+R58)/1000 -> 6912.4 | H16: =SUM(D16:G16) -> 56552.12836 | J16: LAT Burunga - Howard en 115 kV | K16: =100*1000 -> 100000 | L16: =150*1000 -> 150000 | M16: =1578.98577*1000 -> 1578985.77 | N16: =6136.55284*1000 -> 6136552.84 | O16: =5714.603334*1000 -> 5714603.334 | P16: =3809.735556*1000 -> 3809735.556 | Q16: 0 | R16: 0 | S16: 17489877.5 | U16: LAT Burunga - Howard en 115 kV | V16: 250 | W16: 7715.53861 | X16: 9524.33889 | Y16: 0 | Z16: 17489.8775 | AA16: 0
B17: Otras Inversiones | C17: IC | D17: =(K63+L63)/1000 -> 1300 | E17: =(M63+N63)/1000 -> 1300 | F17: =(O63+P63)/1000 -> 1300 | G17: =(Q63+R63)/1000 -> 1300 | H17: =SUM(D17:G17) -> 5200 | J17: Nueva Subestación Howard 115/12 kV | K17: =750*1000 -> 750000 | L17: =500*1000 -> 500000 | M17: =401.97335*1000 -> 401973.35 | N17: =8226.13621*1000 -> 8226136.21 | O17: =1956.58253*1000 -> 1956582.53 | P17: =55.52307*1000 -> 55523.07 | Q17: 0 | R17: 0 | S17: 11890215.16 | U17: Nueva Subestación Howard 115/12 kV | V17: 1250 | W17: 8628.10956 | X17: 2012.1056 | Y17: 0 | Z17: 11890.21516 | AA17: 0
B18: Electrificación Rural | C18: ID | D18: =(K64+L64)/1000 -> 1428.572 | E18: =(M64+N64)/1000 -> 2857.144 | F18: =(O64+P64)/1000 -> 2857.142 | G18: =(Q64+R64)/1000 -> 2857.142 | H18: 10000 | J18: Arquitectura Howard | K18: 0 | L18: 0 | M18: 0 | N18: 0 | O18: 0 | P18: =500*1000 -> 500000 | Q18: =500*1000 -> 500000 | R18: 0 | S18: 1000000 | U18: Arquitectura Howard | V18: 0 | W18: 0 | X18: 500 | Y18: 500 | Z18: 1000 | AA18: 0
B19: Estas inversiones se agregan a las que resultan de las ecuaciones de eficiencia | J19: Nueva Subestación Santiago 2 230/115/34,5 kV. | K19: =1500*1000 -> 1500000 | L19: =125*1000 -> 125000 | M19: =3272.44066*1000 -> 3272440.66 | N19: =13089.76264*1000 -> 13089762.64 | O19: =4914.68818*1000 -> 4914688.18 | P19: =1398.94867*1000 -> 1398948.67 | Q19: 0 | R19: 0 | S19: 24300840.15 | U19: Nueva Subestación Santiago 2 230/115/34,5 kV. | V19: 1625 | W19: 16362.2033 | X19: 6313.63685 | Y19: 0 | Z19: 24300.84015 | AA19: 0
J20: Arquitectura de red de subestación Santiago 2 | K20: 0 | L20: 0 | M20: 0 | N20: =2000*1000 -> 2000000 | O20: =2000*1000 -> 2000000 | P20: =2000*1000 -> 2000000 | Q20: 0 | R20: 0 | S20: 6000000 | U20: Arquitectura de red de subestación Santiago 2 | V20: 0 | W20: 2000 | X20: 4000 | Y20: 0 | Z20: 6000 | AA20: 0
B21: INVERSIONES EN ALUMBRADO PÚBLICO | D21: =D13 -> JUL22/ JUN23 | E21: =E13 -> JUL23 / JUN24 | F21: JUL24 / JUN25 | G21: JUL25/ JUN26 | H21: TOTALES | J21: Nueva SE La Floresta 115/12 KV | K21: =100*1000 -> 100000 | L21: =1500*1000 -> 1500000 | M21: =3000*1000 -> 3000000 | N21: =3000*1000 -> 3000000 | O21: =6400*1000 -> 6400000 | P21: =4000*1000 -> 4000000 | Q21: 0 | R21: 0 | S21: 18000000 | U21: Nueva SE La Floresta 115/12 KV | V21: 1600 | W21: 6000 | X21: 10400 | Y21: 0 | Z21: 18000 | AA21: 0
B22: Crecimiento Vegetativo - Sodio | C22: IAP | H22: =SUM(D22:G22) -> 0 | J22: Arquitectura de red de la subestación La Floresta | K22: 0 | L22: 0 | M22: 0 | N22: =1500*1000 -> 1500000 | O22: =1500*1000 -> 1500000 | P22: 0 | Q22: 0 | R22: 0 | S22: =SUM(K22:R22) -> 3000000 | U22: Arquitectura de red de la subestación La Floresta | V22: 0 | W22: 1500 | X22: 1500 | Y22: 0 | Z22: 3000 | AA22: 0
B23: Crecimiento Vegetativo - LED | C23: IAP | D23: =(K70+L70)/1000 -> 2117.143 | E23: =(M70+N70)/1000 -> 4234.286 | F23: =(O70+P70)/1000 -> 4234.286 | G23: =(Q70+R70)/1000 -> 4234.285 | H23: =SUM(D23:G23) -> 14820 | J23: Ampliación de subestación Pocrí | K23: =500*1000 -> 500000 | L23: =750*1000 -> 750000 | M23: =1297.13976*1000 -> 1297139.76 | N23: =2626.304618*1000 -> 2626304.618 | O23: =1125.559122*1000 -> 1125559.122 | P23: 0 | Q23: 0 | R23: 0 | S23: 6299003.5 | U23: Ampliación de subestación Pocrí | V23: 1250 | W23: 3923.444378 | X23: 1125.559122 | Y23: 0 | Z23: 6299.0035 | AA23: 0
B24: Proyectos especiales | C24: IAP | H24: =SUM(D24:G24) -> 0 | J24: Nueva LAT Llano Sánchez – Pocrí en 115kV | K24: 0 | L24: 0 | M24: =800*1000 -> 800000 | N24: =4005.85814*1000 -> 4005858.14 | O24: =1105.60522*1000 -> 1105605.22 | P24: =1133.02525*1000 -> 1133025.25 | Q24: 0 | R24: 0 | S24: 7044488.61 | U24: Nueva LAT Llano Sánchez – Pocrí en 115kV | V24: 0 | W24: 4805.85814 | X24: 2238.63047 | Y24: 0 | Z24: 7044.48861 | AA24: 0
B25: TOTAL | D25: =SUM(D22:D24) -> 2117.143 | E25: =SUM(E22:E24) -> 4234.286 | F25: =SUM(F22:F24) -> 4234.286 | G25: =SUM(G22:G24) -> 4234.285 | H25: =SUM(D25:G25) -> 14820 | J25: Ampliación de SE El Higo (T4) | K25: =650*1000 -> 650000 | L25: =750*1000 -> 750000 | M25: =1500*1000 -> 1500000 | N25: =1100*1000 -> 1100000 | O25: =600*1000 -> 600000 | P25: 0 | Q25: 0 | R25: 0 | S25: 4600000 | U25: Ampliación de SE El Higo (T4) | V25: 1400 | W25: 2600 | X25: 600 | Y25: 0 | Z25: 4600 | AA25: 0
J26: Ampliación de SE JDA (Segundo Transformador de Potencia) | K26: 0 | L26: 0 | M26: =1427*1000 -> 1427000 | N26: 0 | O26: 0 | P26: 0 | Q26: 0 | R26: 0 | S26: 1427000 | U26: Ampliación de SE JDA (Segundo Transformador de Potencia) | V26: 0 | W26: 1427 | X26: 0 | Y26: 0 | Z26: 1427 | AA26: 0
B27: LUMINARIAS QUE SE INCORPORAN | D27: =D21 -> JUL22/ JUN23 | E27: JUL19 / JUN20 | F27: JUL20 / JUN21 | G27: JUL21 / JUN22 | H27: TOTALES | J27: Nueva SE El Coco 230/ 34.5 kV | K27: 0 | L27: 0 | M27: 0 | N27: =4047.5*1000 -> 4047500 | O27: =4047.5*1000 -> 4047500 | P27: 0 | Q27: 0 | R27: 0 | S27: 8095000 | U27: Nueva SE El Coco 230/ 34.5 kV | V27: 0 | W27: 4047.5 | X27: 4047.5 | Y27: 0 | Z27: 8095 | AA27: 0
B28: Crecimiento Vegetativo - Sodio | H28: =SUM(D28:G28) -> 0 | J28: Transformador para la subestación Santiago en 4.16kV | K28: =100*1000 -> 100000 | L28: =485*1000 -> 485000 | M28: 0 | N28: 0 | O28: 0 | P28: 0 | Q28: 0 | R28: 0 | S28: =SUM(K28:R28) -> 585000
B29: Crecimiento Vegetativo - LED | D29: =(K75+L75) -> 6462 | E29: =(L75+M75) -> 12924 | F29: =(M75+N75) -> 12923 | G29: =(N75+O75) -> 12922 | H29: =SUM(D29:G29) -> 45231 | J29: Transformador para la subestación Ocú | K29: =515*1000 -> 515000 | L29: 0 | M29: 0 | N29: 0 | O29: 0 | P29: 0 | Q29: 0 | R29: 0 | S29: 515000 | U29: =J28 -> Transformador para la subestación Santiago en 4.16kV | V29: =(K28+L28)/1000 -> 585 | W29: =(M28+N28)/1000 -> 0 | X29: =(O28+P28)/1000 -> 0 | Y29: =(Q28+R28)/1000 -> 0 | Z29: 585 | AA29: =S28/1000-Z29 -> 0
B30: Proyectos especiales | H30: 0 | J30: Transformador para subestación Arraiján | K30: =630*1000 -> 630000 | L30: 0 | M30: 0 | N30: 0 | O30: 0 | P30: 0 | Q30: 0 | R30: 0 | S30: 630000 | U30: Transformador para la subestación Ocú | V30: 515 | W30: 0 | X30: 0 | Y30: 0 | Z30: 515 | AA30: 0
B31: TOTAL LUMINARIAS ADICIONALES | D31: =SUM(D28:D30) -> 6462 | E31: =SUM(E28:E30) -> 12924 | F31: =SUM(F28:F30) -> 12923 | G31: =SUM(G28:G30) -> 12922 | H31: =SUM(D31:G31) -> 45231 | J31: Nuevos Transformadores Zig-Zag SE El Torno | K31: =410*1000 -> 410000 | L31: 0 | M31: 0 | N31: 0 | O31: 0 | P31: 0 | Q31: 0 | R31: 0 | S31: 410000 | U31: Transformador para subestación Arraiján | V31: 630 | W31: 0 | X31: 0 | Y31: 0 | Z31: 630 | AA31: 0
J32: Transformador para subestación Farallón | K32: 0 | L32: 0 | M32: 0 | N32: =1000*1000 -> 1000000 | O32: 0 | P32: 0 | Q32: 0 | R32: 0 | S32: 1000000 | U32: Nuevos Transformadores Zig-Zag SE El Torno | V32: 410 | W32: 0 | X32: 0 | Y32: 0 | Z32: 410 | AA32: 0
J33: Transformador para subestación Pesé | K33: 0 | L33: 0 | M33: 0 | N33: =500*1000 -> 500000 | O33: 0 | P33: 0 | Q33: 0 | R33: 0 | S33: 500000 | U33: Transformador para subestación Farallón | V33: 0 | W33: 1000 | X33: 0 | Y33: 0 | Z33: 1000 | AA33: 0
B34: INVERSIONES NO CONTEMPLADAS EN LAS ECUACIONES DE EFICIENCIA | D34: =D13 -> JUL22/ JUN23 | E34: =E13 -> JUL23 / JUN24 | F34: JUL24 / JUN25 | G34: JUL25/ JUN26 | H34: TOTALES | J34: Transformador para subestación Sabanagrande | K34: 0 | L34: 0 | M34: 0 | N34: 0 | O34: 0 | P34: 0 | Q34: =500*1000 -> 500000 | R34: 0 | S34: 500000 | U34: Transformador para subestación Pesé | V34: 0 | W34: 500 | X34: 0 | Y34: 0 | Z34: 500 | AA34: 0
D35: Miles de Balboas | E35: Miles de Balboas | F35: Miles de Balboas | G35: Miles de Balboas | H35: Miles de Balboas | J35: Ampliación de SE Las Tablas | K35: =699.82276*1000 -> 699822.76 | L35: =2385.90287*1000 -> 2385902.87 | M35: =461.42963*1000 -> 461429.63 | N35: 0 | O35: 0 | P35: 0 | Q35: 0 | R35: 0 | S35: 3547155.26 | U35: Transformador para subestación Sabanagrande | V35: 0 | W35: 0 | X35: 0 | Y35: 500 | Z35: 500 | AA35: 0
B36: Inverisones adicionales Distribucion | C36: ID | D36: =+D15+D16+D18 -> 49708.97486 | E36: =+E15+E16+E18 -> 101168.3364 | F36: =+F15+F16+F18 -> 69297.66861 | G36: =+G15+G16+G18 -> 10869.542 | H36: =+H15+H16+H18 -> 231044.5219 | J36: TOTAL | K36: =SUM(K8:K35) -> 16528483.9 | L36: 16123669.23 | M36: 19872141.31 | N36: 57791097.48 | O36: 37724199.86 | P36: 15352801.75 | Q36: 1100000 | R36: 0 | S36: =SUM(S8:S35) -> 164492393.5 | U36: Ampliación de SE Las Tablas | V36: 3085.72563 | W36: 461.42963 | X36: 0 | Y36: 0 | Z36: 3547.15526 | AA36: 0
B37: Inverisones adicionales Comercialización | C37: IC | D37: =+D17 -> 1300 | E37: =+E17 -> 1300 | F37: =+F17 -> 1300 | G37: =+G17 -> 1300 | H37: =+H17 -> 5200 | U37: TOTAL | V37: =SUM(V8:V36) -> 32652.15314 | W37: =SUM(W9:W36) -> 77663.23879 | X37: 53077.00161 | Y37: 1100 | Z37: 164492.3935
B38: Inversiones adicionales en alumbrado | C38: IAP | D38: =+D25 -> 2117.143 | E38: =+E25 -> 4234.286 | F38: 4234.286 | G38: 4234.285 | H38: 14820 | Z38: =Z37-S36/1000 -> 0
D39: =(K77+L77)/1000-SUM(D36:D38) -> 0 | E39: =(M77+N77)/1000-SUM(E36:E38) -> 0 | F39: =(O77+P77)/1000-SUM(F36:F38) -> 0 | G39: =(Q77+R77)/1000-SUM(G36:G38) -> 0 | H39: =S77/1000-SUM(H36:H38) -> 0
J41: INVERSION EN CIRCUITOS EN MT NO CONTEMPLADAS EN LAS ECUACIONES DE EFICIENCIA | U41: INVERSION EN CIRCUITOS EN MT Y REFUERZOS PLANTAS POTABILIZADORAS NO CONTEMPLADAS EN LAS ECUACIONES DE EFICIENCIA
J42: Concepto | K42: 2022 | L42: 2023 | N42: 2024 | P42: 2025 | R42: 2026 | S42: Total | U42: Concepto | V42: =V6 -> JUL22/ JUN23 | W42: JUL23 / JUN24 | X42: JUL24 / JUN25 | Y42: JUL25/ JUN26 | Z42: Total
K43: 2do Sem | L43: 1er Sem | M43: 2do Sem | N43: 1er Sem | O43: 2do Sem | P43: 1er Sem | Q43: 2do Sem | R43: 1er Sem
J44: Soterrado Obrarrio/Eléctrico Etapa I y II | K44: 0 | L44: =2000*1000 -> 2000000 | M44: =2000*1000 -> 2000000 | N44: 2000000 | O44: 2000000 | P44: =3500*1000 -> 3500000 | Q44: 0 | R44: 0 | S44: =SUM(K44:R44) -> 11500000 | U44: Soterrado Obrarrio/Eléctrico Etapa I y II | V44: =(K44+L44)/1000 -> 2000 | W44: =(M44+N44)/1000 -> 4000 | X44: =(O44+P44)/1000 -> 5500 | Y44: =(Q44+R44)/1000 -> 0 | Z44: =SUM(V44:Y44) -> 11500
J45: Soterrado Santiago/Eléctrico | K45: 0 | L45: =845*1000 -> 845000 | M45: =1208*1000 -> 1208000 | N45: =1194*1000 -> 1194000 | O45: =253*1000 -> 253000 | P45: 0 | Q45: 0 | R45: 0 | S45: =SUM(K45:R45) -> 3500000 | U45: Soterrado Santiago/Eléctrico | V45: 845 | W45: 2402 | X45: 253 | Y45: 0 | Z45: 3500
J46: Nueva Línea El Higo - Coronado (34.5 kV) Forrada | K46: =100*1000 -> 100000 | L46: =656.092*1000 -> 656092 | M46: =656.092*1000 -> 656092 | N46: 0 | O46: 0 | P46: 0 | Q46: 0 | R46: 0 | S46: =SUM(K46:R46) -> 1412184 | U46: Nueva Línea El Higo - Coronado (34.5 kV) Forrada | V46: 756.092 | W46: 656.092 | X46: 0 | Y46: 0 | Z46: 1412.184
J47: Circuito la Arena Pesé | K47: 100000 | L47: 1000000 | M47: 1000000 | N47: 1000000 | O47: 0 | P47: 0 | Q47: 0 | R47: 0 | S47: =SUM(K47:R47) -> 3100000 | U47: Circuito la Arena Pesé | V47: 1100 | W47: 2000 | X47: 0 | Y47: 0 | Z47: 3100
J48: Plan de Calidad | U48: Plan de Calidad | V48: 0 | W48: 0 | X48: 0 | Y48: 0 | Z48: 0
J49: Circuito 34-6B La Arenosa | K49: =1949.98361*1000 -> 1949983.61 | L49: =2195.88661*1000 -> 2195886.61 | M49: =1127.23332*1000 -> 1127233.32 | N49: =21.21582*1000 -> 21215.82 | O49: 0 | P49: 0 | Q49: 0 | R49: 0 | S49: =SUM(K49:R49) -> 5294319.36 | U49: Circuito 34-6B La Arenosa | V49: 4145.87022 | W49: 1148.44914 | X49: 0 | Y49: 0 | Z49: 5294.31936
J50: Circuito 16-16 | K50: =350*1000 -> 350000 | L50: 0 | M50: 0 | N50: 0 | O50: 0 | P50: 0 | Q50: 0 | R50: 0 | S50: 350000 | U50: Circuito 16-16 | V50: 350 | W50: 0 | X50: 0 | Y50: 0 | Z50: 350
J51: Circuito 16-19 | K51: =350*1000 -> 350000 | L51: 0 | M51: 0 | N51: 0 | O51: 0 | P51: 0 | Q51: 0 | R51: 0 | S51: 350000 | U51: Circuito 16-19 | V51: 350 | W51: 0 | X51: 0 | Y51: 0 | Z51: 350
J52: Circuito 34-7C Las uvas - El Valle | K52: =100*1000 -> 100000 | L52: =994*1000 -> 994000 | M52: =994*1000 -> 994000 | N52: 994000 | O52: 994000 | P52: 994000 | Q52: 0 | R52: 0 | S52: 5070000 | U52: Circuito 34-7C Las uvas - El Valle | V52: 1094 | W52: 1988 | X52: 1988 | Y52: 0 | Z52: 5070
J53: Circuito 34,5 kV (Respaldo SE Penonomé - SE Antón) | K53: 100000 | L53: 1430000 | M53: 1430000 | N53: 0 | O53: 0 | P53: 0 | Q53: 0 | R53: 0 | S53: 2960000 | U53: Circuito 34,5 kV (Respaldo SE Penonomé - SE Antón) | V53: 1530 | W53: 1430 | X53: 0 | Y53: 0 | Z53: 2960
J54: Circuito 34,5 kV SE Santiago 2 - San Francisco | K54: 100000 | L54: 1225000 | M54: 1225000 | N54: 879000 | O54: 0 | P54: 0 | Q54: 0 | R54: 0 | S54: 3429000 | U54: Circuito 34,5 kV SE Santiago 2 - San Francisco | V54: 1325 | W54: 2104 | X54: 0 | Y54: 0 | Z54: 3429
J55: Circuito EHI-01B Respaldo Santa Clara- Las Guías de Oriente | K55: 100000 | L55: 514787.5 | M55: 514787.5 | N55: 1950212.5 | O55: 1950212.5 | P55: 0 | Q55: 0 | R55: 0 | S55: 5030000 | U55: Circuito EHI-01B Respaldo Santa Clara- Las Guías de Oriente | V55: 614.7875 | W55: 2465 | X55: 1950.2125 | Y55: 0 | Z55: 5030
J56: Circuito 34-33B SE Santiago- SE Soná | K56: =100*1000 -> 100000 | L56: =1417.5*1000 -> 1417500 | M56: =1417.5*1000 -> 1417500 | N56: =986.9125*1000 -> 986912.5 | O56: =986.9125*1000 -> 986912.5 | P56: =1511.9415*1000 -> 1511941.5 | Q56: =1511.9415*1000 -> 1511941.5 | R56: =2114*1000 -> 2114000 | S56: 10046708 | U56: Circuito 34-33B SE Santiago- SE Soná | V56: 1517.5 | W56: 2404.4125 | X56: 2498.854 | Y56: 3625.9415 | Z56: 10046.708
J57: Circuito 34,5 kV (Respaldo Santiago - Montijo) | K57: 0 | L57: 0 | M57: 0 | N57: =50*1000 -> 50000 | O57: =50*1000 -> 50000 | P57: =1123.4585*1000 -> 1123458.5 | Q57: =1123.4585*1000 -> 1123458.5 | R57: =2163*1000 -> 2163000 | S57: 4509917 | U57: Circuito 34,5 kV (Respaldo Santiago - Montijo) | V57: 0 | W57: 50 | X57: 1173.4585 | Y57: 3286.4585 | Z57: 4509.917
J58: TOTAL | K58: =SUM(K44:K57) -> 3349983.61 | L58: =SUM(L44:L57) -> 12278266.11 | M58: 11572612.82 | N58: 9075340.82 | O58: 6234125 | P58: 7129400 | Q58: 2635400 | R58: 4277000 | S58: =SUM(S44:S57) -> 56552128.36 | U58: TOTAL | V58: =SUM(V44:V57) -> 15628.24972 | W58: =SUM(W44:W57) -> 20647.95364 | X58: =SUM(X44:X57) -> 13363.525 | Y58: =SUM(Y44:Y57) -> 6912.4 | Z58: =SUM(Z44:Z57) -> 56552.12836
S59: 0
J60: OTRAS INVERSIONES NO CONTEMPLADAS EN LAS ECUACIONES DE EFICIENCIA | U60: OTRAS INVERSIONES NO CONTEMPLADAS EN LAS ECUACIONES DE EFICIENCIA
J61: Concepto | K61: 2022 | L61: 2023 | N61: 2024 | P61: 2025 | R61: 2026 | S61: Total | U61: Concepto | V61: JUL22/ JUN23 | W61: JUL23 / JUN24 | X61: JUL24 / JUN25 | Y61: JUL25/ JUN26 | Z61: Total
K62: 2do Sem | L62: 1er Sem | M62: 2do Sem | N62: 1er Sem | O62: 2do Sem | P62: 1er Sem | Q62: 2do Sem | R62: 1er Sem
J63: Plan de Implantación de 28,300 Medidores inteligentes en Panamá y Panamá Oeste | K63: =650*1000 -> 650000 | L63: =650*1000 -> 650000 | M63: 650000 | N63: 650000 | O63: 650000 | P63: 650000 | Q63: 650000 | R63: 650000 | S63: =+SUM(K63:R63) -> 5200000 | U63: Plan de Implantación de 28,300 Medidores inteligentes en Panamá y Panamá Oeste | V63: =(K63+L63)/1000 -> 1300 | W63: =(M63+N63)/1000 -> 1300 | X63: =(O63+P63)/1000 -> 1300 | Y63: =(Q63+R63)/1000 -> 1300 | Z63: =SUM(V63:Y63) -> 5200
J64: Electrificación Rural | K64: 0 | L64: 1428572 | M64: 1428572 | N64: 1428572 | O64: 1428571 | P64: 1428571 | Q64: 1428571 | R64: 1428571 | S64: =+SUM(K64:R64) -> 10000000 | U64: Electrificación Rural | V64: 1428.572 | W64: 2857.144 | X64: 2857.142 | Y64: 2857.142 | Z64: 10000
J67: INVERSIONES EN ALUMBRADO PÚBLICO | U67: INVERSIONES EN ALUMBRADO PÚBLICO
J68: DETALLE | K68: 2022 | L68: 2023 | N68: 2024 | P68: 2025 | R68: 2026 | S68: Total | U68: Concepto | V68: JUL22/ JUN23 | W68: JUL23 / JUN24 | X68: JUL24 / JUN25 | Y68: JUL25/ JUN26 | Z68: Total
K69: II Sem | L69: I Sem | M69: II Sem | N69: I Sem | O69: II Sem | P69: I Sem | Q69: II Sem | R69: I Sem
J70: Crecimiento Vegetativo LED | K70: 0 | L70: 2117143 | M70: 2117143 | N70: 2117143 | O70: 2117143 | P70: 2117143 | Q70: 2117143 | R70: 2117142 | S70: =SUM(K70:R70) -> 14820000 | U70: Crecimiento Vegetativo LED miles de Balboas | V70: =(K70+L70)/1000 -> 2117.143 | W70: =(M70+N70)/1000 -> 4234.286 | X70: =(O70+P70)/1000 -> 4234.286 | Y70: =(Q70+R70)/1000 -> 4234.285 | Z70: =SUM(V70:Y70) -> 14820
U71: Cantidad de Luminarias LED | V71: =K75+L75 -> 6462 | W71: =M75+N75 -> 12923 | X71: =O75+P75 -> 12922 | Y71: =Q75+R75 -> 12922 | Z71: =SUM(V71:Y71) -> 45229
J72: CANTIDAD DE LUMINARIAS ADICIONALES (ALUMBRADO PÚBLICO)
J73: DETALLE | K73: 2022 | L73: 2023 | N73: 2024 | P73: 2025 | R73: 2026 | S73: Total
K74: II Sem | L74: I Sem | M74: II Sem | N74: I Sem | O74: II Sem | P74: I Sem | Q74: II Sem | R74: I Sem
J75: Crecimiento Vegetativo LED | K75: 0 | L75: 6462 | M75: 6462 | N75: 6461 | O75: 6461 | P75: 6461 | Q75: 6461 | R75: 6461 | S75: =SUM(K75:R75) -> 45229
J77: TOTAL General | K77: =K36+K58+K63+K64+K70 -> 20528467.51 | L77: 32597650.34 | M77: 35640469.13 | N77: 71062153.3 | O77: 48154038.86 | P77: 26677915.75 | Q77: 7931114 | R77: 8472713 | S77: 251064521.9 | U77: TOTAL General | V77: =V37+V58+V63+V64+V70 -> 53126.11786 | W77: =W37+W58+W63+W64+W70 -> 106702.6224 | X77: 74831.95461 | Y77: 16403.827 | Z77: 251064.5219
Z78: =Z77-S77/1000 -> 0
U79: Proyectos Electrificación Rural
U80: PROVINCIA | V80: DISTRITO | W80: CORREGIMIENTO | X80: COMUNIDAD | Y80: KM | Z80: VIVIENDAS
U81: COCLÉ | V81: ANTÓN | W81: ANTÓN | X81: CALLE LARGA | Y81: 1.7 | Z81: 21
U82: COCLÉ | V82: ANTÓN | W82: CABALLERO | X82: POBLADO CERRO LINO | Y82: 1.72 | Z82: 10
U83: COCLÉ | V83: ANTÓN | W83: CABALLERO | X83: TRANQUILLA (LOS GONZÁLEZ) | Y83: 0.96 | Z83: 12
U84: COCLÉ | V84: ANTÓN | W84: CABUYA | X84: EL NANCITO | Y84: 0.77 | Z84: 7
U85: COCLÉ | V85: ANTÓN | W85: CABUYA | X85: MATA PALO | Y85: 5.38 | Z85: 62
U86: COCLÉ | V86: ANTÓN | W86: EL RETIRO | X86: PANAMACITO (SECTOR LOS SANTANA) | Y86: 0.44 | Z86: 4
U87: COCLÉ | V87: ANTÓN | W87: EL RETIRO | X87: LLANO GRANDE | Y87: 0.9 | Z87: 8
U88: COCLÉ | V88: ANTÓN | W88: EL RETIRO | X88: SECTOR 2 | Y88: 0.97 | Z88: 15
U89: COCLÉ | V89: ANTÓN | W89: EL RETIRO | X89: SECTOR LOS SAMANIEGOS | Y89: 0.75 | Z89: 10
U90: COCLÉ | V90: ANTÓN | W90: EL VALLE | X90: COQUILLO | Y90: 1.47 | Z90: 29
U91: COCLÉ | V91: ANTÓN | W91: JUAN DÍAZ | X91: DON EUFEMIO | Y91: 0.87 | Z91: 6
U92: COCLÉ | V92: ANTÓN | W92: JUAN DÍAZ | X92: EL BAJITO | Y92: 0.74 | Z92: 13
U93: COCLÉ | V93: ANTÓN | W93: JUAN DÍAZ | X93: FAMILIA OJO | Y93: 0.63 | Z93: 9
U94: COCLÉ | V94: ANTÓN | W94: JUAN DÍAZ | X94: LOS SEGUNDOS | Y94: 1.38 | Z94: 20
U95: COCLÉ | V95: ANTÓN | W95: SAN JUAN DE DIOS | X95: EL PALMAR | Y95: 0.69 | Z95: 10
U96: COCLÉ | V96: ANTÓN | W96: SAN JUAN DE DIOS | X96: EL SALADO | Y96: 2.8 | Z96: 19
U97: COCLÉ | V97: ANTÓN | W97: SAN JUAN DE DIOS | X97: LA CHAPA | Y97: 1.08 | Z97: 10
U98: COCLÉ | V98: ANTÓN | W98: SAN JUAN DE DIOS | X98: LA ESTANCIA CENTRO | Y98: 3.34 | Z98: 47
U99: COCLÉ | V99: ANTÓN | W99: SAN JUAN DE DIOS | X99: SANTA ELENA | Y99: 4.67 | Z99: 22
U100: COCLÉ | V100: ANTÓN | W100: SAN JUAN DE DIOS | X100: NUEVO MÉXICO | Y100: 0.93 | Z100: 19
U101: COCLÉ | V101: LA PINTADA | W101: EL POTRERO | X101: LA ISLETA | Y101: 1.27 | Z101: 12
U102: COCLÉ | V102: LA PINTADA | W102: LA PINTADA | X102: LAS BOQUILLAS | Y102: 2.24 | Z102: 23
U103: COCLÉ | V103: LA PINTADA | W103: LA PINTADA | X103: LAS MALVINAS | Y103: 2.17 | Z103: 18
U104: COCLÉ | V104: LA PINTADA | W104: LA PINTADA | X104: HATO DE LA VIRGEN | Y104: 1.79 | Z104: 12
U105: COCLÉ | V105: LA PINTADA | W105: LLANO GRANDE | X105: COMUNIDAD LA LUISA | Y105: 3.93 | Z105: 23
U106: COCLÉ | V106: LA PINTADA | W106: LLANO GRANDE | X106: EL CHORRO | Y106: 0.9 | Z106: 15
U107: COCLÉ | V107: LA PINTADA | W107: LLANO GRANDE | X107: SECTOR 1 LA VENTA | Y107: 1.24 | Z107: 8
U108: COCLÉ | V108: LA PINTADA | W108: PIEDRAS GORDAS | X108: CERRO CORRAL | Y108: 3.64 | Z108: 46
U109: COCLÉ | V109: NATÁ | W109: NATÁ | X109: EL ARADO | Y109: 0.71 | Z109: 9
U110: COCLÉ | V110: NATÁ | W110: VILLAREAL | X110: LOS CERRITOS ETAPA II | Y110: 1.54 | Z110: 15
U111: COCLÉ | V111: OLÁ | W111: EL COPÉ | X111: LA MESA | Y111: 2.55 | Z111: 44
U112: COCLÉ | V112: OLÁ | W112: EL PALMAR | X112: EL PALMAR | Y112: 4.82 | Z112: 100
U113: COCLÉ | V113: OLÁ | W113: LA PAVA | X113: CUMBRILLA | Y113: 1.48 | Z113: 12
U114: COCLÉ | V114: OLÁ | W114: LA PAVA | X114: GUIRI | Y114: 1.67 | Z114: 17
U115: COCLÉ | V115: PENONOMÉ | W115: CHIGUIRÍ ARRIBA | X115: CRISTO PEREGRINO | Y115: 3.6 | Z115: 37
U116: COCLÉ | V116: PENONOMÉ | W116: CHIGUIRÍ ARRIBA | X116: LA VIEJA | Y116: 3.54 | Z116: 31
U117: COCLÉ | V117: PENONOMÉ | W117: CHIGUIRÍ ARRIBA | X117: PALMILLA ETAPA 2 | Y117: 2.57 | Z117: 23
U118: COCLÉ | V118: PENONOMÉ | W118: PAJONAL | X118: CERRO PIÑA-CERRO LLORÓN DE CAIMITO | Y118: 1.85 | Z118: 56
U119: COCLÉ | V119: PENONOMÉ | W119: PAJONAL | X119: CONTINUACIÓN CHORRERITA 3 | Y119: 1.19 | Z119: 26
U120: COCLÉ | V120: PENONOMÉ | W120: PAJONAL | X120: GETSEMANI | Y120: 1.19 | Z120: 20
U121: COCLÉ | V121: PENONOMÉ | W121: PAJONAL | X121: GETSEMANI SECTOR 3 | Y121: 1.19 | Z121: 20
U122: COCLÉ | V122: PENONOMÉ | W122: PAJONAL | X122: GUABAL ARRIBA SECTOR VILLA REINA | Y122: 2.08 | Z122: 19
U123: COCLÉ | V123: PENONOMÉ | W123: PAJONAL | X123: LOS ALVEOS DE SOFRE | Y123: 1.46 | Z123: 21
U124: COCLÉ | V124: PENONOMÉ | W124: PAJONAL | X124: MEMBRILLO ARRIBA 3 | Y124: 1.71 | Z124: 32
U125: COCLÉ | V125: PENONOMÉ | W125: PAJONAL | X125: PAJONAL CENTRO | Y125: 1.28 | Z125: 15
U126: COCLÉ | V126: PENONOMÉ | W126: PAJONAL | X126: PALMILLA ETAPA 1 | Y126: 1.2 | Z126: 18
U127: COCLÉ | V127: PENONOMÉ | W127: PENONOMÉ | X127: EL ENCANTO ARRIBA | Y127: 0.56 | Z127: 8
U128: COCLÉ | V128: PENONOMÉ | W128: PENONOMÉ | X128: SARDINA - VIA LAS CUESTAS | Y128: 3.99 | Z128: 24
U129: COCLÉ | V129: PENONOMÉ | W129: TOABRÉ | X129: GUADALUPE | Y129: 1.85 | Z129: 26
U130: COCLÉ | V130: PENONOMÉ | W130: TOABRÉ | X130: BOCA DE TUCUE | Y130: 4.46 | Z130: 55
U131: COCLÉ | V131: PENONOMÉ | W131: TULÚ | X131: AGUA CLARA | Y131: 1.8 | Z131: 23
U132: COCLÉ | V132: PENONOMÉ | W132: TULÚ | X132: LAS POZAS | Y132: 3.6 | Z132: 35
U133: HERRERA | V133: LAS MINAS | W133: LEONES | X133: LEONES ABAJO | Y133: 0.48 | Z133: 8
U134: HERRERA | V134: LAS MINAS | W134: LEONES | X134: COMUNIDAD RIO PARITA | Y134: 2.4 | Z134: 9
U135: HERRERA | V135: LAS MINAS | W135: LEONES | X135: COMUNDAD LOS HELECHALES ABAJO | Y135: 1.09 | Z135: 8
U136: HERRERA | V136: LAS MINAS | W136: LEONES | X136: LA TORRE | Y136: 1.93 | Z136: 8
U137: HERRERA | V137: LOS POZOS | W137: EL CALABACITO | X137: LA PALMA | Y137: 0.44 | Z137: 4
U138: HERRERA | V138: LOS POZOS | W138: LOS CERROS DE PAJA | X138: LOS TORNOS | Y138: 0.74 | Z138: 6
U139: HERRERA | V139: LOS POZOS | W139: EL CAPURÍ | X139: QUEBRADA DEL JUNQUITO | Y139: 0.48 | Z139: 3
U140: HERRERA | V140: PARITA | W140: PARITA | X140: EL MANGAL | Y140: 0.88 | Z140: 3
U141: HERRERA | V141: OCÚ | W141: CERRO LARGO | X141: GUSANILLO | Y141: 0.73 | Z141: 1
U142: HERRERA | V142: OCÚ | W142: ENTRADERO DEL CASTILLO | X142: EL AVE MARÍA (CERRO PRIETO) | Y142: 0.92 | Z142: 8
U143: HERRERA | V143: OCÚ | W143: ENTRADERO DEL CASTILLO | X143: RASCADOR | Y143: 3.46 | Z143: 26
U144: HERRERA | V144: OCÚ | W144: ENTRADERO DEL CASTILLO | X144: ZAPOTAL | Y144: 2.48 | Z144: 15
U145: HERRERA | V145: OCÚ | W145: LOS LLANOS | X145: SAN JOSÉ | Y145: 0.69 | Z145: 4
U146: HERRERA | V146: OCÚ | W146: MENCHACA | X146: SECTOR ALTO DE LOS GRINGOS | Y146: 0.98 | Z146: 9
U147: HERRERA | V147: OCÚ | W147: MENCHACA | X147: ALTO DEL JAGUA | Y147: 0.79 | Z147: 5
U148: HERRERA | V148: OCÚ | W148: MENCHACA | X148: BAJO CENTRO-SECTOR PUEBLO NUEVO | Y148: 1 | Z148: 8
U149: LOS SANTOS | V149: GUARARÉ | W149: EL ESPINAL | X149: HABRÁ | Y149: 1.61 | Z149: 4
U150: LOS SANTOS | V150: GUARARÉ | W150: EL MACANO | X150: LOS TORETOS | Y150: 1.08 | Z150: 5
U151: LOS SANTOS | V151: GUARARÉ | X151: DIVINO NIÑO | Y151: 1.4 | Z151: 2
U152: LOS SANTOS | V152: LAS TABLAS | W152: BAYANO | X152: QUEBRADA GRANDE | Y152: 5.2 | Z152: 27
U153: LOS SANTOS | V153: LAS TABLAS | W153: BAYANO | X153: ORIA | Y153: 4.7 | Z153: 15
U154: LOS SANTOS | V154: LAS TABLAS | W154: BAYANO | X154: LA CANOA | Y154: 3.51 | Z154: 23
U155: LOS SANTOS | V155: LAS TABLAS | W155: EL MANANTIAL | X155: EL MANANTIAL | Y155: 0.72 | Z155: 2
U156: LOS SANTOS | V156: LAS TABLAS | W156: LAS TABLAS ABAJO | X156: PLAYA LA COLORADA | Y156: 4.84 | Z156: 24
U157: LOS SANTOS | V157: LAS TABLAS | W157: SAN MIGUEL | X157: EL GUABO- BAJO DE SAN MIGUEL | Y157: 2.81 | Z157: 12
U158: LOS SANTOS | V158: LAS TABLAS | W158: SAN JOSÉ | X158: VÍA LA MINA | Y158: 0.46 | Z158: 2
U159: LOS SANTOS | V159: LOS SANTOS DIST | W159: LOS OLIVOS | X159: VIA EL BALNEARIO | Y159: 1.34 | Z159: 1
U160: LOS SANTOS | V160: MACARACAS | W160: BAJOS DE GÜERA | X160: LOS BAJOS A MONTILLA | Y160: 0.85 | Z160: 5
U161: LOS SANTOS | V161: MACARACAS | W161: COROZAL | X161: LA SABANETA DEL PONTON | Y161: 3.3 | Z161: 10
U162: LOS SANTOS | V162: MACARACAS | W162: EL CEDRO | X162: COMUNIDAD LA MECA | Y162: 1.14 | Z162: 3
U163: LOS SANTOS | V163: TONOSÍ | W163: ALTOS DE GÜERA | X163: ALTOS DE GÜERA | Y163: 3.95 | Z163: 14
U164: LOS SANTOS | V164: TONOSÍ | W164: ALTOS DE GÜERA | X164: VÍA EL ZUMBÓN | Y164: 1.51 | Z164: 5
U165: LOS SANTOS | V165: TONOSÍ | W165: EL BEBEDERO | X165: PASO REAL | Y165: 0.67 | Z165: 5
U166: LOS SANTOS | V166: TONOSÍ | W166: EL CORTEZO | X166: LA PINTADITA - EL CORTEZO | Y166: 0.59 | Z166: 2
U167: LOS SANTOS | V167: TONOSÍ | W167: GUÁNICO | X167: EL JOBERO (FALTANTE) | Y167: 0.9 | Z167: 4
U168: LOS SANTOS | V168: TONOSÍ | W168: LA TRONOSA | X168: SECTOR EL UREÑA | Y168: 1.08 | Z168: 1
U169: LOS SANTOS | V169: TONOSÍ | W169: LA TRONOSA | X169: PLAN BONITO | Y169: 0.38 | Z169: 4
U170: PANAMÁ OESTE | V170: CAPIRA | W170: CAIMITO | X170: LA VALDEZA - EL ALMORZADERO | Y170: 2.38 | Z170: 16
U171: PANAMÁ OESTE | V171: CAPIRA | W171: CAIMITO | X171: SECTOR EL SIGUAL | Y171: 0.3 | Z171: 5
U172: PANAMÁ OESTE | V172: CAPIRA | W172: CIRÍ GRANDE | X172: GASPARILLAL | Y172: 2.68 | Z172: 32
U173: PANAMÁ OESTE | V173: CAPIRA | W173: CIRÍ GRANDE | X173: JORDANAL | Y173: 5.72 | Z173: 45
U174: PANAMÁ OESTE | V174: CAPIRA | W174: CIRÍ GRANDE | X174: RÍO INDIO NACIMIENTO | Y174: 4.45 | Z174: 51
U175: PANAMÁ OESTE | V175: CAPIRA | W175: CIRÍ DE LOS SOTOS | X175: DOS AGUAS | Y175: 1 | Z175: 32
U176: PANAMÁ OESTE | V176: CAPIRA | W176: CIRÍ DE LOS SOTOS | X176: EL PROGRESO | Y176: 5.2 | Z176: 32
U177: PANAMÁ OESTE | V177: CAPIRA | W177: CIRÍ DE LOS SOTOS | X177: LAS LAJITAS | Y177: 3.4 | Z177: 43
U178: PANAMÁ OESTE | V178: CAPIRA | W178: CIRÍ DE LOS SOTOS | X178: NUEVO PARAISO | Y178: 5.97 | Z178: 53
U179: PANAMÁ OESTE | V179: CAPIRA | W179: LA TRINIDAD | X179: EL CARAÑO/CONGAL | Y179: 4.99 | Z179: 35
U180: PANAMÁ OESTE | V180: CAPIRA | W180: LA TRINIDAD | X180: LOS CHIRÚ DL CERRO | Y180: 0.58 | Z180: 7
U181: PANAMÁ OESTE | V181: CAPIRA | W181: LA TRINIDAD | X181: LOS GÓMEZ | Y181: 0.2 | Z181: 2
U182: PANAMÁ OESTE | V182: CAPIRA | W182: LA TRINIDAD | X182: PUEBLECILLO | Y182: 1.1 | Z182: 14
U183: PANAMÁ OESTE | V183: CHAME | W183: BUENOS AIRES | X183: EL SALAO EN LLANO GRANDE | Y183: 3.8 | Z183: 21
U184: PANAMÁ OESTE | V184: CHAME | W184: CHAME | X184: CHICHIVALI A (MANGLARITO ARRIBA) | Y184: 1.43 | Z184: 6
U185: PANAMÁ OESTE | V185: CHAME | W185: SAJALICES | X185: EL CELAJE | Y185: 0.77 | Z185: 5
U186: PANAMÁ OESTE | V186: CHAME | W186: SAJALICES | X186: BDA. LA REINA (LA LOMA) | Y186: 0.5 | Z186: 5
U187: PANAMÁ OESTE | V187: CHAME | W187: SORÁ | X187: MANGLARITO 1 Y 2 | Y187: 3.14 | Z187: 10
U188: PANAMÁ OESTE | V188: LA CHORRERA | W188: EL ARADO | X188: MOSCÚ | Y188: 0.54 | Z188: 4
U189: PANAMÁ OESTE | V189: LA CHORRERA | W189: EL COCO | X189: RAUDAL 3 | Y189: 2.55 | Z189: 12
U190: PANAMÁ OESTE | V190: LA CHORRERA | W190: HURTADO | X190: Llanito Verde | Y190: 0.78 | Z190: 16
U191: PANAMÁ OESTE | V191: SAN CARLOS | W191: LA LAGUNA | X191: EL CAIMITO | Y191: 0.74 | Z191: 3
U192: PANAMÁ OESTE | V192: SAN CARLOS | W192: LOS LLANITOS | X192: AGUACATE | Y192: 0.23 | Z192: 2
U193: PANAMÁ OESTE | V193: SAN CARLOS | W193: LOS LLANITOS | X193: LOS YERBOS #2 | Y193: 0.64 | Z193: 4
U194: PANAMÁ OESTE | V194: SAN CARLOS | W194: GUAYABITO | X194: ASIENTO VIEJO - BAJO DEL TIGRE | Y194: 3.35 | Z194: 11
U195: PANAMÁ OESTE | V195: SAN CARLOS | W195: LAS UVAS | X195: EL ARCABUZ | Y195: 0.45 | Z195: 2
U196: VERAGUAS | V196: ATALAYA | W196: LA MONTAÑUELA | X196: LOS PLANES | Y196: 2.87 | Z196: 16
U197: VERAGUAS | V197: CALOBRE | W197: BARNIZAL | X197: BARNIZAL | Y197: 5.43 | Z197: 29
U198: VERAGUAS | V198: CALOBRE | W198: EL COCLA | X198: CARRIZAL | Y198: 1.72 | Z198: 12
U199: VERAGUAS | V199: CALOBRE | W199: EL COCLA | X199: ESQUINADO | Y199: 3.67 | Z199: 26
U200: VERAGUAS | V200: CALOBRE | W200: LA LAGUNA | X200: AGUAS BLANCAS | Y200: 1.24 | Z200: 6
U201: VERAGUAS | V201: CALOBRE | W201: LAS GUÍAS | X201: LOS CORRALILLOS | Y201: 4.15 | Z201: 15
U202: VERAGUAS | V202: CAÑAZAS | W202: CAÑAZAS | X202: CAÑAZAS HASTA RÍO CAÑAZAS | Y202: 4.14 | Z202: 42
U203: VERAGUAS | V203: CAÑAZAS | W203: SAN JOSÉ | X203: EL BAJO, SAN JOSÉ | Y203: 1.28 | Z203: 8
U204: VERAGUAS | V204: CAÑAZAS | W204: SAN MARCELO | X204: CANCHA LARGA | Y204: 3.01 | Z204: 17
... 62 more rows

Sheet ACTIVOS
B2: EDEMET
B4: ACTIVOS TARIFARIOS PERMITIDOS
B5: En miles de Balboas
B7: BASE DE CAPITAL | D7: ACT.JUN22 | E7: AJUSTE ACTNOREG | F7: BASE | G7: =INVERSIONES!D21 -> JUL22/ JUN23 | H7: =INVERSIONES!E21 -> JUL23 / JUN24 | I7: =INVERSIONES!F21 -> JUL24 / JUN25 | J7: =INVERSIONES!G21 -> JUL25/ JUN26
B9: Valor Bruto Base de Capital Distribución | C9: BCD | D9: ='BC y Dep'!C68/1000 -> 1149370.615 | E9: 0.9598211005 | F9: =D9*E9 -> 1103190.169 | G9: =+F9+INVERSIONES!D8 -> 1195199.259 | H9: =+G9+INVERSIONES!E8 -> 1345864.162 | I9: =+H9+INVERSIONES!F8 -> 1461226.37 | J9: =+I9+INVERSIONES!G8 -> 1516430.308
B10: Valor Bruto Base de Capital Comercialización | C10: BCC | D10: ='BC y Dep'!C70/1000 -> 98923.59691 | E10: =+E9 -> 0.9598211005 | F10: =D10*E10 -> 94948.95565 | G10: =+F10+INVERSIONES!D9 -> 99302.796 | H10: =+G10+INVERSIONES!E9 -> 104155.6259 | I10: =+H10+INVERSIONES!F9 -> 108659.0803 | J10: =+I10+INVERSIONES!G9 -> 112993.0128
B11: Valor Bruto Activos Fijos Alumbrado Público | C11: ACTalum | D11: ='BC y Dep'!C69/1000 -> 47831.3437 | E11: =+E9 -> 0.9598211005 | F11: =D11*E11 -> 45909.53295 | G11: =+F11+INVERSIONES!D10 -> 48026.67595 | H11: =+G11+INVERSIONES!E10 -> 52260.96195 | I11: =+H11+INVERSIONES!F10 -> 56495.24795 | J11: =+I11+INVERSIONES!G10 -> 60729.53295
D12: =SUM(D9:D11) -> 1296125.556 | F12: =SUM(F9:F11) -> 1244048.657 | G12: =SUM(G9:G11) -> 1342528.731 | H12: 1502280.75 | I12: 1626380.698 | J12: 1690152.854
B14: Valor Neto Base Capital Distribución | C14: BCND | D14: ='BC y Dep'!C76/1000 -> 628394.7352 | E14: =+E9 -> 0.9598211005 | F14: =D14*E14 -> 603146.5263 | G14: =F14+(G9-F9)-'BC y Dep'!D80/1000-((G9-F9)/2)*'PERDIDAS y OTROS'!E$11 -> 661723.595 | H14: =G14+(H9-G9)-'BC y Dep'!E80/1000-(G9-F9)*'PERDIDAS y OTROS'!E$11-((H9-G9)/2)*'PERDIDAS y OTROS'!F$11 -> 776677.8939 | I14: =H14+(I9-H9)-'BC y Dep'!F80/1000-(G9-F9)*'PERDIDAS y OTROS'!E$11-(H9-G9)*'PERDIDAS y OTROS'!F$11-((I9-H9)/2)*'PERDIDAS y OTROS'!G$11 -> 851685.1422 | J14: =I14+(J9-I9)-'BC y Dep'!G80/1000-(G9-F9)*'PERDIDAS y OTROS'!E$11-(H9-G9)*'PERDIDAS y OTROS'!F$11-(I9-H9)*'PERDIDAS y OTROS'!G$11-((J9-I9)/2)*'PERDIDAS y OTROS'!H$11 -> 864102.1154
B15: Valor Neto Base Capital Comercialización | C15: BCNC | D15: ='BC y Dep'!C78/1000 -> 42624.84308 | E15: =+E9 -> 0.9598211005 | F15: =D15*E15 -> 40912.22379 | G15: =F15+(G10-F10)-'BC y Dep'!D82/1000-((G10-F10)/2)*'PERDIDAS y OTROS'!E$12 -> 41948.12956 | H15: =G15+(H10-G10)-'BC y Dep'!E82/1000-(G10-F10)*'PERDIDAS y OTROS'!E$12-((H10-G10)/2)*'PERDIDAS y OTROS'!F$12 -> 43506.89302 | I15: =H15+(I10-H10)-'BC y Dep'!F82/1000-(G10-F10)*'PERDIDAS y OTROS'!E$12-(H10-G10)*'PERDIDAS y OTROS'!F$12-((I10-H10)/2)*'PERDIDAS y OTROS'!G$12 -> 44605.90276 | J15: =I15+(J10-I10)-'BC y Dep'!G82/1000-(G10-F10)*'PERDIDAS y OTROS'!E$12-(H10-G10)*'PERDIDAS y OTROS'!F$12-(I10-H10)*'PERDIDAS y OTROS'!G$12-((J10-I10)/2)*'PERDIDAS y OTROS'!H$12 -> 45526.84963
B16: Valor Neto Activos Fijos Alumbrado Público | C16: ACTN alum | D16: ='BC y Dep'!C77/1000 -> 26499.91015 | E16: =+E9 -> 0.9598211005 | F16: =D16*E16 -> 25435.17292 | G16: =F16+(G11-F11)-'BC y Dep'!D81/1000-((G11-F11)/2)*'PERDIDAS y OTROS'!E$13 -> 25657.55153 | H16: =G16+(H11-G11)-'BC y Dep'!E81/1000-(G11-F11)*'PERDIDAS y OTROS'!E$13-((H11-G11)/2)*'PERDIDAS y OTROS'!F$13 -> 27852.72248 | I16: =H16+(I11-H11)-'BC y Dep'!F81/1000-(G11-F11)*'PERDIDAS y OTROS'!E$13-(H11-G11)*'PERDIDAS y OTROS'!F$13-((I11-H11)/2)*'PERDIDAS y OTROS'!G$13 -> 29890.63328 | J16: =I16+(J11-I11)-'BC y Dep'!G81/1000-(G11-F11)*'PERDIDAS y OTROS'!E$13-(H11-G11)*'PERDIDAS y OTROS'!F$13-(I11-H11)*'PERDIDAS y OTROS'!G$13-((J11-I11)/2)*'PERDIDAS y OTROS'!H$13 -> 31792.34574
D17: =SUM(D14:D16) -> 697519.4884 | F17: =SUM(F14:F16) -> 669493.923 | G17: =SUM(G14:G16) -> 729329.2761 | H17: 848037.5094 | I17: 926181.6783 | J17: 941421.3107
B18: Check | D18: =D12-'BC y Dep'!C71/1000 -> 0 | G18: =F17+INVERSIONES!D11-(IMPD!D11+IMPCO!D11+ALUMPU!D10)-G17 -> 0 | H18: =G17+INVERSIONES!E11-(IMPD!E11+IMPCO!E11+ALUMPU!E10)-H17 -> 0 | I18: =H17+INVERSIONES!F11-(IMPD!F11+IMPCO!F11+ALUMPU!F10)-I17 -> 0 | J18: =I17+INVERSIONES!G11-(IMPD!G11+IMPCO!G11+ALUMPU!G10)-J17 -> 0
D19: =D17-'BC y Dep'!C79/1000 -> 0

Sheet BC y Dep
A1: PLANILLA AA-01
A2: LÍNEA DE NEGOCIO | B2: CUENTAS | C2: Vida útil estándar | D2: t<2001 | G2: 2002 | K2: 2003 | O2: 2004 | S2: 2005 | W2: 2006 | AA2: 2007 | AE2: 2008 | AI2: 2009 | AM2: 2010 | AQ2: 2011 | AU2: 2012 | AY2: 2013 | BC2: 2014 | BG2: 2015 | BK2: 2016 | BO2: 2017 | BS2: 2018 | BW2: 2019 | CA2: 2020 | CE2: 2021 | CI2: 2021.5 | DJ2: =CI2 -> 2021.5 | DP2: 2002 | DQ2: =DP2+1 -> 2003 | DR2: =DQ2+1 -> 2004 | DS2: 2005 | DT2: 2006 | DU2: 2007 | DV2: 2008 | DW2: 2009 | DX2: 2010 | DY2: 2011 | DZ2: 2012 | EA2: 2013 | EB2: 2014 | EC2: 2015 | ED2: 2016 | EE2: 2017 | EF2: 2018 | EG2: 2019 | EH2: 2020 | EI2: 2021 | EJ2: =EI2+0.5 -> 2021.5 | EK2: 2022.5 | EM2: 2002 | EN2: =EM2+1 -> 2003 | EO2: =EN2+1 -> 2004 | EP2: 2005 | EQ2: 2006 | ER2: 2007 | ES2: 2008 | ET2: 2009 | EU2: 2010 | EV2: 2011 | EW2: 2012 | EX2: 2013 | EY2: 2014 | EZ2: 2015 | FA2: 2016 | FB2: 2017 | FC2: 2018 | FD2: 2019 | FE2: 2020 | FF2: 2021 | FG2: =FF2+0.5 -> 2021.5 | FH2: 2023.5 | FJ2: 2002 | FK2: =FJ2+1 -> 2003 | FL2: =FK2+1 -> 2004 | FM2: 2005 | FN2: 2006 | FO2: 2007 | FP2: 2008 | FQ2: 2009 | FR2: 2010 | FS2: 2011 | FT2: 2012 | FU2: 2013 | FV2: 2014 | FW2: 2015 | FX2: 2016 | FY2: 2017 | FZ2: 2018 | GA2: 2019 | GB2: 2020 | GC2: 2021 | GD2: =GC2+0.5 -> 2021.5 | GE2: 2024.5 | GG2: 2002 | GH2: =GG2+1 -> 2003 | GI2: =GH2+1 -> 2004 | GJ2: 2005 | GK2: 2006 | GL2: 2007 | GM2: 2008 | GN2: 2009 | GO2: 2010 | GP2: 2011 | GQ2: 2012 | GR2: 2013 | GS2: 2014 | GT2: 2015 | GU2: 2016 | GV2: 2017 | GW2: 2018 | GX2: 2019 | GY2: 2020 | GZ2: 2021 | HA2: =GZ2+0.5 -> 2021.5 | HB2: 2025.5
D3: BC BRUTA 31/12/01 | E3: RETIROS ACUMUL | F3: BC NETA 31/12/01 | G3: ADICIONES | H3: ATR | I3: RETIROS ACUMUL | J3: ATR Retiros acumul | K3: ADICIONES | L3: ATR | M3: RETIROS ACUMUL | N3: ATR Retiros acumul | O3: ADICIONES | P3: ATR | Q3: RETIROS ACUMUL | R3: ATR Retiros acumul | S3: ADICIONES | T3: ATR | U3: RETIROS ACUMUL | V3: ATR Retiros acumul | W3: ADICIONES | X3: ATR | Y3: RETIROS ACUMUL | Z3: ATR Retiros acumul | AA3: ADICIONES | AB3: ATR | AC3: RETIROS ACUMUL | AD3: ATR Retiros acumul | AE3: ADICIONES | AF3: ATR | AG3: RETIROS ACUMUL | AH3: ATR Retiros acumul | AI3: ADICIONES | AJ3: ATR | AK3: RETIROS ACUMUL | AL3: ATR Retiros acumul | AM3: ADICIONES | AN3: ATR | AO3: RETIROS ACUMUL | AP3: Depr RETIROS ACUMUL | AQ3: ADICIONES | AR3: ATR | AS3: RETIROS ACUMUL | AT3: Depr RETIROS ACUMUL | AU3: ADICIONES | AV3: ATR | AW3: RETIROS ACUMUL | AX3: Depr RETIROS ACUMUL | AY3: ADICIONES | AZ3: ATR | BA3: RETIROS ACUMUL | BB3: Depr RETIROS ACUMUL | BC3: ADICIONES | BD3: ATR | BE3: RETIROS ACUMUL | BF3: Depr RETIROS ACUMUL | BG3: ADICIONES | BH3: ATR | BI3: RETIROS ACUMUL | BJ3: Depr RETIROS ACUMUL | BK3: ADICIONES | BL3: ATR | BM3: RETIROS ACUMUL | BN3: Depr RETIROS ACUMUL | BO3: ADICIONES | BP3: ATR | BQ3: RETIROS ACUMUL | BR3: Depr RETIROS ACUMUL | BS3: ADICIONES | BT3: ATR y AE | BU3: RETIROS ACUMUL | BV3: Depr RETIROS ACUMUL | BW3: ADICIONES | BX3: ATR y AE | BY3: RETIROS ACUMUL | BZ3: Depr RETIROS ACUMUL | CA3: ADICIONES | CB3: ATR y AE | CC3: RETIROS ACUMUL | CD3: Depr RETIROS ACUMUL | CE3: ADICIONES | CF3: ATR y AE | CG3: RETIROS ACUMUL | CH3: Depr RETIROS ACUMUL | CI3: ADICIONES | CJ3: ATR y AE | CK3: RETIROS ACUMUL | CL3: Depr RETIROS ACUMUL | CM3: Año de alta activos < 2005 | CN3: Vida activos < 2001 | CO3: Vida activos 2002 | CP3: Vida activos 2003 | CQ3: Vida activos 2004 | CR3: Vida activos 2005 | CS3: Vida activos 2006 | CT3: Vida activos 2007 | CU3: Vida activos 2008 | CV3: Vida activos 2009 | CW3: Vida activos 2010 | CX3: Vida activos 2011 | CY3: Vida activos 2012 | CZ3: Vida activos 2013 | DA3: Vida activos 2014 | DB3: Vida activos 2015 | DC3: Vida activos 2016 | DD3: Vida activos 2017 | DE3: Vida activos 2018 | DF3: Vida activos 2019 | DG3: Vida activos 2020 | DH3: Vida activos 2021 | DI3: Vida activos 2021.5 | DJ3: Depreciación | DK3: BC BRUTA 30/06 | DL3: BC BRUTA tdep 30/06 | DM3: BC NETA 30/06 | DN3: Depreciación | DO3: Vida activos < 2001 | DP3: Vida activos 2002 | DQ3: Vida activos 2003 | DR3: Vida activos 2004 | DS3: Vida activos 2005 | DT3: Vida activos 2006 | DU3: Vida activos 2007 | DV3: Vida activos 2008 | DW3: Vida activos 2009 | DX3: Vida activos 2010 | DY3: Vida activos 2011 | DZ3: Vida activos 2012 | EA3: Vida activos 2013 | EB3: Vida activos 2014 | EC3: Vida activos 2015 | ED3: Vida activos 2016 | EE3: Vida activos 2017 | EF3: Vida activos 2018 | EG3: Vida activos 2019 | EH3: Vida activos 2020 | EI3: Vida activos 2021 | EJ3: Vida activos 2021.5 | EK3: Depreciación | EL3: Vida activos < 2001 | EM3: Vida activos 2002 | EN3: Vida activos 2003 | EO3: Vida activos 2004 | EP3: Vida activos 2005 | EQ3: Vida activos 2006 | ER3: Vida activos 2007 | ES3: Vida activos 2008 | ET3: Vida activos 2009 | EU3: Vida activos 2010 | EV3: Vida activos 2011 | EW3: Vida activos 2012 | EX3: Vida activos 2013 | EY3: Vida activos 2014 | EZ3: Vida activos 2015 | FA3: Vida activos 2016 | FB3: Vida activos 2017 | FC3: Vida activos 2018 | FD3: Vida activos 2019 | FE3: Vida activos 2020 | FF3: Vida activos 2021 | FG3: Vida activos 2021.5 | FH3: Depreciación | FI3: Vida activos < 2001 | FJ3: Vida activos 2002 | FK3: Vida activos 2003 | FL3: Vida activos 2004 | FM3: Vida activos 2005 | FN3: Vida activos 2006 | FO3: Vida activos 2007 | FP3: Vida activos 2008 | FQ3: Vida activos 2009 | FR3: Vida activos 2010 | FS3: Vida activos 2011 | FT3: Vida activos 2012 | FU3: Vida activos 2013 | FV3: Vida activos 2014 | FW3: Vida activos 2015 | FX3: Vida activos 2016 | FY3: Vida activos 2017 | FZ3: Vida activos 2018 | GA3: Vida activos 2019 | GB3: Vida activos 2020 | GC3: Vida activos 2021 | GD3: Vida activos 2021.5 | GE3: Depreciación | GF3: Vida activos < 2001 | GG3: Vida activos 2002 | GH3: Vida activos 2003 | GI3: Vida activos 2004 | GJ3: Vida activos 2005 | GK3: Vida activos 2006 | GL3: Vida activos 2007 | GM3: Vida activos 2008 | GN3: Vida activos 2009 | GO3: Vida activos 2010 | GP3: Vida activos 2011 | GQ3: Vida activos 2012 | GR3: Vida activos 2013 | GS3: Vida activos 2014 | GT3: Vida activos 2015 | GU3: Vida activos 2016 | GV3: Vida activos 2017 | GW3: Vida activos 2018 | GX3: Vida activos 2019 | GY3: Vida activos 2020 | GZ3: Vida activos 2021 | HA3: Vida activos 2021.5 | HB3: Depreciación
A5: PROPIEDADES Y PLANTA | B5: Planta Intangible | C5: 4 | D5: 16828362.29 | F5: 9367054.958 | G5: 724231.49 | K5: 275238.236 | L5: 0 | O5: 550652.571 | S5: 328758 | W5: 722469.45 | X5: 0 | AA5: 244601.91 | AB5: 0 | AE5: 568283.63 | AF5: 0 | AI5: 1730965.996 | AJ5: 0 | AM5: 355982.86 | AN5: 0 | AQ5: 759508.43 | AR5: 0 | AU5: 0 | AV5: 0 | AY5: 237791.62 | AZ5: 0 | BC5: 689668.14 | BD5: 0 | BG5: 2684060.79 | BH5: 0 | BK5: 4142248 | BL5: 0 | BO5: 2535228 | BS5: 3814577.8 | BT5: 0 | BW5: 9457276.18 | BX5: 0 | CA5: 1851055.6 | CB5: 0 | CE5: 1807673.39 | CF5: 0 | CI5: 147465.21 | CJ5: 0 | CM5: =IF(D5=0,0,2001-(D5-F5)*C5/D5) -> 1999.226492 | CN5: =IF((1-($DJ$2-$CM5)/$C5)>0,(1-($DJ$2-$CM5)/$C5),0) -> 0 | CO5: =IF((1-($DJ$2-G$2)/$C5)>0,(1-($DJ$2-G$2)/$C5),0) -> 0 | CP5: =IF((1-($DJ$2-K$2)/$C5)>0,(1-($DJ$2-K$2)/$C5),0) -> 0 | CQ5: =IF((1-($DJ$2-O$2)/$C5)>0,(1-($DJ$2-O$2)/$C5),0) -> 0 | CR5: =IF((1-($DJ$2-S$2)/$C5)>0,(1-($DJ$2-S$2)/$C5),0) -> 0 | CS5: =IF((1-($DJ$2-W$2)/$C5)>0,(1-($DJ$2-W$2)/$C5),0) -> 0 | CT5: =IF((1-($DJ$2-AA$2)/$C5)>0,(1-($DJ$2-AA$2)/$C5),0) -> 0 | CU5: =IF((1-($DJ$2-AE$2)/$C5)>0,(1-($DJ$2-AE$2)/$C5),0) -> 0 | CV5: =IF((1-($DJ$2-AI$2)/$C5)>0,(1-($DJ$2-AI$2)/$C5),0) -> 0 | CW5: =IF((1-($DJ$2-AM$2)/$C5)>0,(1-($DJ$2-AM$2)/$C5),0) -> 0 | CX5: =IF((1-($DJ$2-AQ$2)/$C5)>0,(1-($DJ$2-AQ$2)/$C5),0) -> 0 | CY5: =IF((1-($DJ$2-AU$2)/$C5)>0,(1-($DJ$2-AU$2)/$C5),0) -> 0 | CZ5: =IF((1-($DJ$2-AY$2)/$C5)>0,(1-($DJ$2-AY$2)/$C5),0) -> 0 | DA5: =IF((1-($DJ$2-BC$2)/$C5)>0,(1-($DJ$2-BC$2)/$C5),0) -> 0 | DB5: =IF((1-($DJ$2-BG$2)/$C5)>0,(1-($DJ$2-BG$2)/$C5),0) -> 0 | DC5: =IF((1-($DJ$2-BK$2)/$C5)>0,(1-($DJ$2-BK$2)/$C5),0) -> 0 | DD5: =IF((1-($DJ$2-BO$2)/$C5)>0,(1-($DJ$2-BO$2)/$C5),0) -> 0 | DE5: =IF((1-($DJ$2-BS$2)/$C5)>0,(1-($DJ$2-BS$2)/$C5),0) -> 0.125 | DF5: =IF((1-($DJ$2-BW$2)/$C5)>0,(1-($DJ$2-BW$2)/$C5),0) -> 0.375 | DG5: =IF((1-($DJ$2-CA$2)/$C5)>0,(1-($DJ$2-CA$2)/$C5),0) -> 0.625 | DH5: =IF((1-($DJ$2-CE$2)/$C5)>0,(1-($DJ$2-CE$2)/$C5),0) -> 0.875 | DI5: =IF((1-($DJ$2-CI$2)/$C5)>0,(1-($DJ$2-CI$2)/$C5),0) -> 1 | DJ5: =IF(CN5=0,0,($D5-$E5)*1/$C5)+IF(CO5=0,0,($G5-$H5-$I5)*$G$60*1/$C5)+IF(CP5=0,0,($K5-$L5-$M5)*$K$60*1/$C5)+IF(CQ5=0,0,($O5-$P5-$Q5)*$O$60*1/$C5)+IF(CR5=0,0,($S5-$T5-$U5)*$S$60*1/$C5)+IF(CS5=0,0,($W5-$X5-$Y5)*$W$60*1/$C5)+IF(CT5=0,0,($AA5-$AB5-$AC5)*$AA$60*1/$C5)+IF(CU5=0,0,($AE5-$AF5-$AG5)*$AE$60*1/$C5)+IF(CV5=0,0,($AI5-$AJ5-$AK5)*$AI$60*1/$C5)+IF(CW5=0,0,($AM5-$AN5-$AO5)*$AM$60*1/$C5)+IF(CX5=0,0,($AQ5-$AR5-$AS5)*$AQ$60*1/$C5)+IF(CY5=0,0,($AU5-$AV5-$AW5)*$AU$60*1/$C5)+IF(CZ5=0,0,($AY5-$AZ5-$BA5)*$AY$60*1/$C5)+IF(DA5=0,0,($BC5-$BD5-$BE5)*$BC$60*1/$C5)+IF(DB5=0,0,($BG5-$BH5-$BI5)*$BG$60*1/$C5)+IF(DC5=0,0,($BK5-$BL5-$BM5)*$BK$60*1/$C5)+IF(DD5=0,0,($BO5-$BP5-$BQ5)*$BO$60*1/$C5)+IF(DE5=0,0,($BS5-$BT5-$BU5)*$BS$60*1/$C5)+IF(DF5=0,0,($BW5-$BX5-$BY5)*$BW$60*1/$C5)+IF(DG5=0,0,($CA5-$CB5-$CC5)*$CA$60*1/$C5)+IF(DH5=0,0,($CE5-$CF5-$CG5)*$CE$60*1/$C5)+IF(DI5=0,0,($CI5-$CJ5-$CK5)*$CI$60*1/$C5) -> 3841955.804 | DK5: =D5-E5+(G5-H5-I5)*G$60+(K5-L5-M5)*K$60+(O5-P5-Q5)*O$60+(S5-T5-U5)*S$60+(W5-X5-Y5)*W$60+(AA5-AB5-AC5)*AA$60+(AE5-AF5-AG5)*AE$60+(AI5-AJ5-AK5)*AI$60+(AM5-AN5-AO5)*AM$60+(AQ5-AR5-AS5)*$AQ$60+(AU5-AV5-AW5)*$AU$60+(AY5-AZ5-BA5)*$AY$60+(BC5-BD5-BE5)*$BC$60+(BG5-BH5-BI5)*$BG$60+(BK5-BL5-BM5)*$BK$60+(BO5-BP5-BQ5)*$BO$60+(BS5-BT5-BU5)*$BS$60+(BW5-BX5-BY5)*$BW$60+(CA5-CB5-CC5)*$CA$60+(CE5-CF5-CG5)*$CE$60+(CI5-CJ5-CK5)*$CI$60 -> 46859763.26 | DL5: =IF(CN5=0,D5-E5,0)+IF(CO5=0,(G5-H5-I5)*G$60,0)+IF(CP5=0,(K5-L5-M5)*K$60,0)+IF(CQ5=0,(O5-P5-Q5)*O$60,0)+IF(CR5=0,(S5-T5-U5)*S$60,0)+IF(CS5=0,(W5-X5-Y5)*W$60,0)+IF(CT5=0,(AA5-AB5-AC5)*AA$60,0)+IF(CU5=0,(AE5-AF5-AG5)*AE$60,0)+IF(CV5=0,(AI5-AJ5-AK5)*AI$60,0)+IF(CW5=0,(AM5-AN5-AO5)*AM$60,0)+IF(CX5=0,(AQ5-AR5-AS5)*$AQ$60,0)+IF(CY5=0,(AU5-AV5-AW5)*$AU$60,0)+IF(CZ5=0,(AY5-AZ5-BA5)*$AY$60,0)++IF(DA5=0,(BC5-BD5-BE5)*$BC$60,0)+IF(DB5=0,(BG5-BH5-BI5)*$BG$60,0)+IF(DC5=0,(BK5-BL5-BM5)*$BK$60,0)+IF(DD5=0,(BO5-BP5-BQ5)*$BO$60,0)+IF(DE5=0,(BS5-BT5-BU5)*$BS$60,0)+IF(DF5=0,(BW5-BX5-BY5)*$BW$60,0)+IF(DG5=0,(CA5-CB5-CC5)*$CA$60,0)+IF(DH5=0,(CE5-CF5-CG5)*$CE$60,0)+IF(DI5=0,(CI5-CJ5-CK5)*$CI$60,0) -> 31491940.04 | DM5: =(D5-E5)*CN5+((G5-H5-(I5-J5))*G$60)*CO5+((K5-L5-(M5-N5))*K$60)*CP5+((O5-P5-(Q5-R5))*O$60)*CQ5+((S5-T5-(U5-V5))*S$60)*CR5+((W5-X5-(Y5-Z5))*W$60)*CS5+((AA5-AB5-(AC5-AD5))*AA$60)*CT5+((AE5-AF5-(AG5-AH5))*AE$60)*CU5+((AI5-AJ5-(AK5-AL5))*AI$60)*CV5+((AM5-AN5-(AO5-AP5))*$AM$60)*CW5+((AQ5-AR5-(AS5-AT5))*$AQ$60)*CX5+((AU5-AV5-(AW5-AX5))*$AU$60)*CY5+((AY5-AZ5-(BA5-BB5))*$AY$60)*CZ5+((BC5-BD5-(BE5-BF5))*$BC$60)*DA5+((BG5-BH5-(BI5-BJ5))*$BG$60)*DB5+((BK5-BL5-(BM5-BN5))*$BK$60)*DC5+((BO5-BP5-(BQ5-BR5))*$BO$60)*DD5+((BS5-BT5-(BU5-BV5))*$BS$60)*DE5+((BW5-BX5-(BY5-BZ5))*$BW$60)*DF5+((CA5-CB5-(CC5-CD5))*$CA$60)*DG5+((CE5-CF5-(CG5-CH5))*$CE$60)*DH5+((CI5-CJ5-(CK5-CL5))*$CI$60)*DI5 -> 6217543.418 | DN5: =(DK5-DL5)*1/C5 -> 3841955.804 | DO5: =IF((1-($EK$2-$CM5)/$C5)>0,(1-($EK$2-$CM5)/$C5),0) -> 0 | DP5: =IF((1-($EK$2-DP$2)/$C5)>0,(1-($EK$2-DP$2)/$C5),0) -> 0 | DQ5: 0 | DR5: 0 | DS5: 0 | DT5: 0 | DU5: 0 | DV5: 0 | DW5: 0 | DX5: 0 | DY5: 0 | DZ5: =IF((1-($EK$2-DZ$2)/$C5)>0,(1-($EK$2-DZ$2)/$C5),0) -> 0 | EA5: 0 | EB5: 0 | EC5: 0 | ED5: 0 | EE5: 0 | EF5: 0 | EG5: 0.125 | EH5: 0.375 | EI5: 0.625 | EJ5: 0.75 | EK5: =IF(DO5=0,0,($D5-$E5)*1/$C5)+IF(DP5=0,0,($G5-$H5-$I5)*$G$60*1/$C5)+IF(DQ5=0,0,($K5-$L5-$M5)*$K$60*1/$C5)+IF(DR5=0,0,($O5-$P5-$Q5)*$O$60*1/$C5)+IF(DS5=0,0,($S5-$T5-$U5)*$S$60*1/$C5)+IF(DT5=0,0,($W5-$X5-$Y5)*$W$60*1/$C5)+IF(DU5=0,0,($AA5-$AB5-$AC5)*$AA$60*1/$C5)+IF(DV5=0,0,($AE5-$AF5-$AG5)*$AE$60*1/$C5)+IF(DW5=0,0,($AI5-$AJ5-$AK5)*$AI$60*1/$C5)+IF(DX5=0,0,($AM5-$AN5-$AO5)*$AM$60*1/$C5)+IF(DY5=0,0,($AQ5-$AR5-$AS5)*$AQ$60*1/$C5)+IF(DZ5=0,0,($AU5-$AV5-$AW5)*$AU$60*1/$C5)+IF(EA5=0,0,($AY5-$AZ5-$BA5)*$AY$60*1/$C5)+IF(EB5=0,0,($BC5-$BD5-$BE5)*$BC$60*1/$C5)+IF(EC5=0,0,($BG5-$BH5-$BI5)*$BG$60*1/$C5)+IF(ED5=0,0,($BK5-$BL5-$BM5)*$BK$60*1/$C5)+IF(EE5=0,0,($BO5-$BP5-$BQ5)*$BO$60*1/$C5)+IF(EF5=0,0,($BS5-$BT5-$BU5)*$BS$60*1/$C5)+IF(EG5=0,0,($BW5-$BX5-$BY5)*$BW$60*1/$C5)+IF(EH5=0,0,($CA5-$CB5-$CC5)*$CA$60*1/$C5)+IF(EI5=0,0,($CE5-$CF5-$CG5)*$CE$60*1/$C5)+IF(EJ5=0,0,($CI5-$CJ5-$CK5)*$CI$60*1/$C5) -> 2983675.799 | EL5: =IF((1-($FH$2-$CM5)/$C5)>0,(1-($FH$2-$CM5)/$C5),0) -> 0 | EM5: =IF((1-($FH$2-EM$2)/$C5)>0,(1-($FH$2-EM$2)/$C5),0) -> 0 | EN5: 0 | EO5: 0 | EP5: 0 | EQ5: 0 | ER5: 0 | ES5: 0 | ET5: 0 | EU5: 0 | EV5: 0 | EW5: =IF((1-($FH$2-EW$2)/$C5)>0,(1-($FH$2-EW$2)/$C5),0) -> 0 | EX5: 0 | EY5: 0 | EZ5: 0 | FA5: 0 | FB5: 0 | FC5: 0 | FD5: 0 | FE5: 0.125 | FF5: 0.375 | FG5: 0.5 | FH5: =IF(EL5=0,0,($D5-$E5)*1/$C5)+IF(EM5=0,0,($G5-$H5-$I5)*$G$60*1/$C5)+IF(EN5=0,0,($K5-$L5-$M5)*$K$60*1/$C5)+IF(EO5=0,0,($O5-$P5-$Q5)*$O$60*1/$C5)+IF(EP5=0,0,($S5-$T5-$U5)*$S$60*1/$C5)+IF(EQ5=0,0,($W5-$X5-$Y5)*$W$60*1/$C5)+IF(ER5=0,0,($AA5-$AB5-$AC5)*$AA$60*1/$C5)+IF(ES5=0,0,($AE5-$AF5-$AG5)*$AE$60*1/$C5)+IF(ET5=0,0,($AI5-$AJ5-$AK5)*$AI$60*1/$C5)+IF(EU5=0,0,($AM5-$AN5-$AO5)*$AM$60*1/$C5)+IF(EV5=0,0,($AQ5-$AR5-$AS5)*$AQ$60*1/$C5)+IF(EW5=0,0,($AU5-$AV5-$AW5)*$AU$60*1/$C5)+IF(EX5=0,0,($AY5-$AZ5-$BA5)*$AY$60*1/$C5)+IF(EY5=0,0,($BC5-$BD5-$BE5)*$BC$60*1/$C5)+IF(EZ5=0,0,($BG5-$BH5-$BI5)*$BG$60*1/$C5)+IF(FA5=0,0,($BK5-$BL5-$BM5)*$BK$60*1/$C5)+IF(FB5=0,0,($BO5-$BP5-$BQ5)*$BO$60*1/$C5)+IF(FC5=0,0,($BS5-$BT5-$BU5)*$BS$60*1/$C5)+IF(FD5=0,0,($BW5-$BX5-$BY5)*$BW$60*1/$C5)+IF(FE5=0,0,($CA5-$CB5-$CC5)*$CA$60*1/$C5)+IF(FF5=0,0,($CE5-$CF5-$CG5)*$CE$60*1/$C5)+IF(FG5=0,0,($CI5-$CJ5-$CK5)*$CI$60*1/$C5) -> 856393.695 | FI5: =IF((1-($GE$2-$CM5)/$C5)>0,(1-($GE$2-$CM5)/$C5),0) -> 0 | FJ5: =IF((1-($GE$2-FJ$2)/$C5)>0,(1-($GE$2-FJ$2)/$C5),0) -> 0 | FK5: 0 | FL5: 0 | FM5: 0 | FN5: 0 | FO5: 0 | FP5: 0 | FQ5: 0 | FR5: 0 | FS5: 0 | FT5: =IF((1-($GE$2-FT$2)/$C5)>0,(1-($GE$2-FT$2)/$C5),0) -> 0 | FU5: 0 | FV5: 0 | FW5: 0 | FX5: 0 | FY5: 0 | FZ5: 0 | GA5: 0 | GB5: 0 | GC5: 0.125 | GD5: 0.25 | GE5: =IF(FI5=0,0,($D5-$E5)*1/$C5)+IF(FJ5=0,0,($G5-$H5-$I5)*$G$60*1/$C5)+IF(FK5=0,0,($K5-$L5-$M5)*$K$60*1/$C5)+IF(FL5=0,0,($O5-$P5-$Q5)*$O$60*1/$C5)+IF(FM5=0,0,($S5-$T5-$U5)*$S$60*1/$C5)+IF(FN5=0,0,($W5-$X5-$Y5)*$W$60*1/$C5)+IF(FO5=0,0,($AA5-$AB5-$AC5)*$AA$60*1/$C5)+IF(FP5=0,0,($AE5-$AF5-$AG5)*$AE$60*1/$C5)+IF(FQ5=0,0,($AI5-$AJ5-$AK5)*$AI$60*1/$C5)+IF(FR5=0,0,($AM5-$AN5-$AO5)*$AM$60*1/$C5)+IF(FS5=0,0,($AQ5-$AR5-$AS5)*$AQ$60*1/$C5)+IF(FT5=0,0,($AU5-$AV5-$AW5)*$AU$60*1/$C5)+IF(FU5=0,0,($AY5-$AZ5-$BA5)*$AY$60*1/$C5)+IF(FV5=0,0,($BC5-$BD5-$BE5)*$BC$60*1/$C5)+IF(FW5=0,0,($BG5-$BH5-$BI5)*$BG$60*1/$C5)+IF(FX5=0,0,($BK5-$BL5-$BM5)*$BK$60*1/$C5)+IF(FY5=0,0,($BO5-$BP5-$BQ5)*$BO$60*1/$C5)+IF(FZ5=0,0,($BS5-$BT5-$BU5)*$BS$60*1/$C5)+IF(GA5=0,0,($BW5-$BX5-$BY5)*$BW$60*1/$C5)+IF(GB5=0,0,($CA5-$CB5-$CC5)*$CA$60*1/$C5)+IF(GC5=0,0,($CE5-$CF5-$CG5)*$CE$60*1/$C5)+IF(GD5=0,0,($CI5-$CJ5-$CK5)*$CI$60*1/$C5) -> 439906.185 | GF5: =IF((1-($HB$2-$CM5)/$C5)>0,(1-($HB$2-$CM5)/$C5),0) -> 0 | GG5: =IF((1-($HB$2-GG$2)/$C5)>0,(1-($HB$2-GG$2)/$C5),0) -> 0 | GH5: 0 | GI5: 0 | GJ5: 0 | GK5: 0 | GL5: 0 | GM5: 0 | GN5: 0 | GO5: 0 | GP5: 0 | GQ5: =IF((1-($HB$2-GQ$2)/$C5)>0,(1-($HB$2-GQ$2)/$C5),0) -> 0 | GR5: 0 | GS5: 0 | GT5: 0 | GU5: 0 | GV5: 0 | GW5: 0 | GX5: 0 | GY5: 0 | GZ5: 0 | HA5: 0 | HB5: =IF(GF5=0,0,($D5-$E5)*1/$C5)+IF(GG5=0,0,($G5-$H5-$I5)*$G$60*1/$C5)+IF(GH5=0,0,($K5-$L5-$M5)*$K$60*1/$C5)+IF(GI5=0,0,($O5-$P5-$Q5)*$O$60*1/$C5)+IF(GJ5=0,0,($S5-$T5-$U5)*$S$60*1/$C5)+IF(GK5=0,0,($W5-$X5-$Y5)*$W$60*1/$C5)+IF(GL5=0,0,($AA5-$AB5-$AC5)*$AA$60*1/$C5)+IF(GM5=0,0,($AE5-$AF5-$AG5)*$AE$60*1/$C5)+IF(GN5=0,0,($AI5-$AJ5-$AK5)*$AI$60*1/$C5)+IF(GO5=0,0,($AM5-$AN5-$AO5)*$AM$60*1/$C5)+IF(GP5=0,0,($AQ5-$AR5-$AS5)*$AQ$60*1/$C5)+IF(GQ5=0,0,($AU5-$AV5-$AW5)*$AU$60*1/$C5)+IF(GR5=0,0,($AY5-$AZ5-$BA5)*$AY$60*1/$C5)+IF(GS5=0,0,($BC5-$BD5-$BE5)*$BC$60*1/$C5)+IF(GT5=0,0,($BG5-$BH5-$BI5)*$BG$60*1/$C5)+IF(GU5=0,0,($BK5-$BL5-$BM5)*$BK$60*1/$C5)+IF(GV5=0,0,($BO5-$BP5-$BQ5)*$BO$60*1/$C5)+IF(GW5=0,0,($BS5-$BT5-$BU5)*$BS$60*1/$C5)+IF(GX5=0,0,($BW5-$BX5-$BY5)*$BW$60*1/$C5)+IF(GY5=0,0,($CA5-$CB5-$CC5)*$CA$60*1/$C5)+IF(GZ5=0,0,($CE5-$CF5-$CG5)*$CE$60*1/$C5)+IF(HA5=0,0,($CI5-$CJ5-$CK5)*$CI$60*1/$C5) -> 0
B6: Terrenos | C6: 1000 | D6: 1566646.764 | F6: 1566646.764 | G6: 0 | K6: 0 | L6: 0 | O6: 0 | S6: 0 | W6: 0 | X6: 0 | AA6: 0 | AB6: 0 | AE6: 0 | AF6: 0 | AI6: 0 | AJ6: 0 | AM6: 0 | AN6: 0 | AQ6: 0 | AR6: 0 | AU6: 0 | AV6: 0 | AY6: 200000 | AZ6: 0 | BC6: 0 | BD6: 0 | BG6: 5006825 | BH6: 0 | BK6: 0 | BL6: 0 | BO6: 2800000 | BS6: 0 | BT6: 0 | BW6: 14980 | BX6: 0 | CA6: 0 | CB6: 0 | CE6: 0 | CF6: 0 | CI6: 0 | CJ6: 0 | CM6: 2001 | CN6: 0.9795 | CO6: 0.9805 | CP6: 0.9815 | CQ6: 0.9825 | CR6: 0.9835 | CS6: 0.9845 | CT6: 0.9855 | CU6: 0.9865 | CV6: 0.9875 | CW6: 0.9885 | CX6: 0.9895 | CY6: 0.9905 | CZ6: 0.9915 | DA6: 0.9925 | DB6: 0.9935 | DC6: 0.9945 | DD6: 0.9955 | DE6: 0.9965 | DF6: 0.9975 | DG6: 0.9985 | DH6: 0.9995 | DI6: 1 | DJ6: =IF(CN6=0,0,($D6-$E6)*1/$C6)+IF(CO6=0,0,($G6-$H6-$I6)*$G$60*1/$C6)+IF(CP6=0,0,($K6-$L6-$M6)*$K$60*1/$C6)+IF(CQ6=0,0,($O6-$P6-$Q6)*$O$60*1/$C6)+IF(CR6=0,0,($S6-$T6-$U6)*$S$60*1/$C6)+IF(CS6=0,0,($W6-$X6-$Y6)*$W$60*1/$C6)+IF(CT6=0,0,($AA6-$AB6-$AC6)*$AA$60*1/$C6)+IF(CU6=0,0,($AE6-$AF6-$AG6)*$AE$60*1/$C6)+IF(CV6=0,0,($AI6-$AJ6-$AK6)*$AI$60*1/$C6)+IF(CW6=0,0,($AM6-$AN6-$AO6)*$AM$60*1/$C6)+IF(CX6=0,0,($AQ6-$AR6-$AS6)*$AQ$60*1/$C6)+IF(CY6=0,0,($AU6-$AV6-$AW6)*$AU$60*1/$C6)+IF(CZ6=0,0,($AY6-$AZ6-$BA6)*$AY$60*1/$C6)+IF(DA6=0,0,($BC6-$BD6-$BE6)*$BC$60*1/$C6)+IF(DB6=0,0,($BG6-$BH6-$BI6)*$BG$60*1/$C6)+IF(DC6=0,0,($BK6-$BL6-$BM6)*$BK$60*1/$C6)+IF(DD6=0,0,($BO6-$BP6-$BQ6)*$BO$60*1/$C6)+IF(DE6=0,0,($BS6-$BT6-$BU6)*$BS$60*1/$C6)+IF(DF6=0,0,($BW6-$BX6-$BY6)*$BW$60*1/$C6)+IF(DG6=0,0,($CA6-$CB6-$CC6)*$CA$60*1/$C6)+IF(DH6=0,0,($CE6-$CF6-$CG6)*$CE$60*1/$C6)+IF(DI6=0,0,($CI6-$CJ6-$CK6)*$CI$60*1/$C6) -> 8984.661324 | DK6: =D6-E6+(G6-H6-I6)*G$60+(K6-L6-M6)*K$60+(O6-P6-Q6)*O$60+(S6-T6-U6)*S$60+(W6-X6-Y6)*W$60+(AA6-AB6-AC6)*AA$60+(AE6-AF6-AG6)*AE$60+(AI6-AJ6-AK6)*AI$60+(AM6-AN6-AO6)*AM$60+(AQ6-AR6-AS6)*$AQ$60+(AU6-AV6-AW6)*$AU$60+(AY6-AZ6-BA6)*$AY$60+(BC6-BD6-BE6)*$BC$60+(BG6-BH6-BI6)*$BG$60+(BK6-BL6-BM6)*$BK$60+(BO6-BP6-BQ6)*$BO$60+(BS6-BT6-BU6)*$BS$60+(BW6-BX6-BY6)*$BW$60+(CA6-CB6-CC6)*$CA$60+(CE6-CF6-CG6)*$CE$60+(CI6-CJ6-CK6)*$CI$60 -> 8984661.324 | DL6: =IF(CN6=0,D6-E6,0)+IF(CO6=0,(G6-H6-I6)*G$60,0)+IF(CP6=0,(K6-L6-M6)*K$60,0)+IF(CQ6=0,(O6-P6-Q6)*O$60,0)+IF(CR6=0,(S6-T6-U6)*S$60,0)+IF(CS6=0,(W6-X6-Y6)*W$60,0)+IF(CT6=0,(AA6-AB6-AC6)*AA$60,0)+IF(CU6=0,(AE6-AF6-AG6)*AE$60,0)+IF(CV6=0,(AI6-AJ6-AK6)*AI$60,0)+IF(CW6=0,(AM6-AN6-AO6)*AM$60,0)+IF(CX6=0,(AQ6-AR6-AS6)*$AQ$60,0)+IF(CY6=0,(AU6-AV6-AW6)*$AU$60,0)+IF(CZ6=0,(AY6-AZ6-BA6)*$AY$60,0)++IF(DA6=0,(BC6-BD6-BE6)*$BC$60,0)+IF(DB6=0,(BG6-BH6-BI6)*$BG$60,0)+IF(DC6=0,(BK6-BL6-BM6)*$BK$60,0)+IF(DD6=0,(BO6-BP6-BQ6)*$BO$60,0)+IF(DE6=0,(BS6-BT6-BU6)*$BS$60,0)+IF(DF6=0,(BW6-BX6-BY6)*$BW$60,0)+IF(DG6=0,(CA6-CB6-CC6)*$CA$60,0)+IF(DH6=0,(CE6-CF6-CG6)*$CE$60,0)+IF(DI6=0,(CI6-CJ6-CK6)*$CI$60,0) -> 0 | DM6: =(D6-E6)*CN6+((G6-H6-(I6-J6))*G$60)*CO6+((K6-L6-(M6-N6))*K$60)*CP6+((O6-P6-(Q6-R6))*O$60)*CQ6+((S6-T6-(U6-V6))*S$60)*CR6+((W6-X6-(Y6-Z6))*W$60)*CS6+((AA6-AB6-(AC6-AD6))*AA$60)*CT6+((AE6-AF6-(AG6-AH6))*AE$60)*CU6+((AI6-AJ6-(AK6-AL6))*AI$60)*CV6+((AM6-AN6-(AO6-AP6))*$AM$60)*CW6+((AQ6-AR6-(AS6-AT6))*$AQ$60)*CX6+((AU6-AV6-(AW6-AX6))*$AU$60)*CY6+((AY6-AZ6-(BA6-BB6))*$AY$60)*CZ6+((BC6-BD6-(BE6-BF6))*$BC$60)*DA6+((BG6-BH6-(BI6-BJ6))*$BG$60)*DB6+((BK6-BL6-(BM6-BN6))*$BK$60)*DC6+((BO6-BP6-(BQ6-BR6))*$BO$60)*DD6+((BS6-BT6-(BU6-BV6))*$BS$60)*DE6+((BW6-BX6-(BY6-BZ6))*$BW$60)*DF6+((CA6-CB6-(CC6-CD6))*$CA$60)*DG6+((CE6-CF6-(CG6-CH6))*$CE$60)*DH6+((CI6-CJ6-(CK6-CL6))*$CI$60)*DI6 -> 8909022.71 | DN6: 8984.661324 | DO6: 0.9785 | DP6: 0.9795 | DQ6: 0.9805 | DR6: 0.9815 | DS6: 0.9825 | DT6: 0.9835 | DU6: 0.9845 | DV6: 0.9855 | DW6: 0.9865 | DX6: 0.9875 | DY6: 0.9885 | DZ6: 0.9895 | EA6: 0.9905 | EB6: 0.9915 | EC6: 0.9925 | ED6: 0.9935 | EE6: 0.9945 | EF6: 0.9955 | EG6: 0.9965 | EH6: 0.9975 | EI6: 0.9985 | EJ6: 0.999 | EK6: =IF(DO6=0,0,($D6-$E6)*1/$C6)+IF(DP6=0,0,($G6-$H6-$I6)*$G$60*1/$C6)+IF(DQ6=0,0,($K6-$L6-$M6)*$K$60*1/$C6)+IF(DR6=0,0,($O6-$P6-$Q6)*$O$60*1/$C6)+IF(DS6=0,0,($S6-$T6-$U6)*$S$60*1/$C6)+IF(DT6=0,0,($W6-$X6-$Y6)*$W$60*1/$C6)+IF(DU6=0,0,($AA6-$AB6-$AC6)*$AA$60*1/$C6)+IF(DV6=0,0,($AE6-$AF6-$AG6)*$AE$60*1/$C6)+IF(DW6=0,0,($AI6-$AJ6-$AK6)*$AI$60*1/$C6)+IF(DX6=0,0,($AM6-$AN6-$AO6)*$AM$60*1/$C6)+IF(DY6=0,0,($AQ6-$AR6-$AS6)*$AQ$60*1/$C6)+IF(DZ6=0,0,($AU6-$AV6-$AW6)*$AU$60*1/$C6)+IF(EA6=0,0,($AY6-$AZ6-$BA6)*$AY$60*1/$C6)+IF(EB6=0,0,($BC6-$BD6-$BE6)*$BC$60*1/$C6)+IF(EC6=0,0,($BG6-$BH6-$BI6)*$BG$60*1/$C6)+IF(ED6=0,0,($BK6-$BL6-$BM6)*$BK$60*1/$C6)+IF(EE6=0,0,($BO6-$BP6-$BQ6)*$BO$60*1/$C6)+IF(EF6=0,0,($BS6-$BT6-$BU6)*$BS$60*1/$C6)+IF(EG6=0,0,($BW6-$BX6-$BY6)*$BW$60*1/$C6)+IF(EH6=0,0,($CA6-$CB6-$CC6)*$CA$60*1/$C6)+IF(EI6=0,0,($CE6-$CF6-$CG6)*$CE$60*1/$C6)+IF(EJ6=0,0,($CI6-$CJ6-$CK6)*$CI$60*1/$C6) -> 8984.661324 | EL6: 0.9775 | EM6: 0.9785 | EN6: 0.9795 | EO6: 0.9805 | EP6: 0.9815 | EQ6: 0.9825 | ER6: 0.9835 | ES6: 0.9845 | ET6: 0.9855 | EU6: 0.9865 | EV6: 0.9875 | EW6: 0.9885 | EX6: 0.9895 | EY6: 0.9905 | EZ6: 0.9915 | FA6: 0.9925 | FB6: 0.9935 | FC6: 0.9945 | FD6: 0.9955 | FE6: 0.9965 | FF6: 0.9975 | FG6: 0.998 | FH6: =IF(EL6=0,0,($D6-$E6)*1/$C6)+IF(EM6=0,0,($G6-$H6-$I6)*$G$60*1/$C6)+IF(EN6=0,0,($K6-$L6-$M6)*$K$60*1/$C6)+IF(EO6=0,0,($O6-$P6-$Q6)*$O$60*1/$C6)+IF(EP6=0,0,($S6-$T6-$U6)*$S$60*1/$C6)+IF(EQ6=0,0,($W6-$X6-$Y6)*$W$60*1/$C6)+IF(ER6=0,0,($AA6-$AB6-$AC6)*$AA$60*1/$C6)+IF(ES6=0,0,($AE6-$AF6-$AG6)*$AE$60*1/$C6)+IF(ET6=0,0,($AI6-$AJ6-$AK6)*$AI$60*1/$C6)+IF(EU6=0,0,($AM6-$AN6-$AO6)*$AM$60*1/$C6)+IF(EV6=0,0,($AQ6-$AR6-$AS6)*$AQ$60*1/$C6)+IF(EW6=0,0,($AU6-$AV6-$AW6)*$AU$60*1/$C6)+IF(EX6=0,0,($AY6-$AZ6-$BA6)*$AY$60*1/$C6)+IF(EY6=0,0,($BC6-$BD6-$BE6)*$BC$60*1/$C6)+IF(EZ6=0,0,($BG6-$BH6-$BI6)*$BG$60*1/$C6)+IF(FA6=0,0,($BK6-$BL6-$BM6)*$BK$60*1/$C6)+IF(FB6=0,0,($BO6-$BP6-$BQ6)*$BO$60*1/$C6)+IF(FC6=0,0,($BS6-$BT6-$BU6)*$BS$60*1/$C6)+IF(FD6=0,0,($BW6-$BX6-$BY6)*$BW$60*1/$C6)+IF(FE6=0,0,($CA6-$CB6-$CC6)*$CA$60*1/$C6)+IF(FF6=0,0,($CE6-$CF6-$CG6)*$CE$60*1/$C6)+IF(FG6=0,0,($CI6-$CJ6-$CK6)*$CI$60*1/$C6) -> 8984.661324 | FI6: 0.9765 | FJ6: 0.9775 | FK6: 0.9785 | FL6: 0.9795 | FM6: 0.9805 | FN6: 0.9815 | FO6: 0.9825 | FP6: 0.9835 | FQ6: 0.9845 | FR6: 0.9855 | FS6: 0.9865 | FT6: 0.9875 | FU6: 0.9885 | FV6: 0.9895 | FW6: 0.9905 | FX6: 0.9915 | FY6: 0.9925 | FZ6: 0.9935 | GA6: 0.9945 | GB6: 0.9955 | GC6: 0.9965 | GD6: 0.997 | GE6: =IF(FI6=0,0,($D6-$E6)*1/$C6)+IF(FJ6=0,0,($G6-$H6-$I6)*$G$60*1/$C6)+IF(FK6=0,0,($K6-$L6-$M6)*$K$60*1/$C6)+IF(FL6=0,0,($O6-$P6-$Q6)*$O$60*1/$C6)+IF(FM6=0,0,($S6-$T6-$U6)*$S$60*1/$C6)+IF(FN6=0,0,($W6-$X6-$Y6)*$W$60*1/$C6)+IF(FO6=0,0,($AA6-$AB6-$AC6)*$AA$60*1/$C6)+IF(FP6=0,0,($AE6-$AF6-$AG6)*$AE$60*1/$C6)+IF(FQ6=0,0,($AI6-$AJ6-$AK6)*$AI$60*1/$C6)+IF(FR6=0,0,($AM6-$AN6-$AO6)*$AM$60*1/$C6)+IF(FS6=0,0,($AQ6-$AR6-$AS6)*$AQ$60*1/$C6)+IF(FT6=0,0,($AU6-$AV6-$AW6)*$AU$60*1/$C6)+IF(FU6=0,0,($AY6-$AZ6-$BA6)*$AY$60*1/$C6)+IF(FV6=0,0,($BC6-$BD6-$BE6)*$BC$60*1/$C6)+IF(FW6=0,0,($BG6-$BH6-$BI6)*$BG$60*1/$C6)+IF(FX6=0,0,($BK6-$BL6-$BM6)*$BK$60*1/$C6)+IF(FY6=0,0,($BO6-$BP6-$BQ6)*$BO$60*1/$C6)+IF(FZ6=0,0,($BS6-$BT6-$BU6)*$BS$60*1/$C6)+IF(GA6=0,0,($BW6-$BX6-$BY6)*$BW$60*1/$C6)+IF(GB6=0,0,($CA6-$CB6-$CC6)*$CA$60*1/$C6)+IF(GC6=0,0,($CE6-$CF6-$CG6)*$CE$60*1/$C6)+IF(GD6=0,0,($CI6-$CJ6-$CK6)*$CI$60*1/$C6) -> 8984.661324 | GF6: 0.9755 | GG6: 0.9765 | GH6: 0.9775 | GI6: 0.9785 | GJ6: 0.9795 | GK6: 0.9805 | GL6: 0.9815 | GM6: 0.9825 | GN6: 0.9835 | GO6: 0.9845 | GP6: 0.9855 | GQ6: 0.9865 | GR6: 0.9875 | GS6: 0.9885 | GT6: 0.9895 | GU6: 0.9905 | GV6: 0.9915 | GW6: 0.9925 | GX6: 0.9935 | GY6: 0.9945 | GZ6: 0.9955 | HA6: 0.996 | HB6: =IF(GF6=0,0,($D6-$E6)*1/$C6)+IF(GG6=0,0,($G6-$H6-$I6)*$G$60*1/$C6)+IF(GH6=0,0,($K6-$L6-$M6)*$K$60*1/$C6)+IF(GI6=0,0,($O6-$P6-$Q6)*$O$60*1/$C6)+IF(GJ6=0,0,($S6-$T6-$U6)*$S$60*1/$C6)+IF(GK6=0,0,($W6-$X6-$Y6)*$W$60*1/$C6)+IF(GL6=0,0,($AA6-$AB6-$AC6)*$AA$60*1/$C6)+IF(GM6=0,0,($AE6-$AF6-$AG6)*$AE$60*1/$C6)+IF(GN6=0,0,($AI6-$AJ6-$AK6)*$AI$60*1/$C6)+IF(GO6=0,0,($AM6-$AN6-$AO6)*$AM$60*1/$C6)+IF(GP6=0,0,($AQ6-$AR6-$AS6)*$AQ$60*1/$C6)+IF(GQ6=0,0,($AU6-$AV6-$AW6)*$AU$60*1/$C6)+IF(GR6=0,0,($AY6-$AZ6-$BA6)*$AY$60*1/$C6)+IF(GS6=0,0,($BC6-$BD6-$BE6)*$BC$60*1/$C6)+IF(GT6=0,0,($BG6-$BH6-$BI6)*$BG$60*1/$C6)+IF(GU6=0,0,($BK6-$BL6-$BM6)*$BK$60*1/$C6)+IF(GV6=0,0,($BO6-$BP6-$BQ6)*$BO$60*1/$C6)+IF(GW6=0,0,($BS6-$BT6-$BU6)*$BS$60*1/$C6)+IF(GX6=0,0,($BW6-$BX6-$BY6)*$BW$60*1/$C6)+IF(GY6=0,0,($CA6-$CB6-$CC6)*$CA$60*1/$C6)+IF(GZ6=0,0,($CE6-$CF6-$CG6)*$CE$60*1/$C6)+IF(HA6=0,0,($CI6-$CJ6-$CK6)*$CI$60*1/$C6) -> 8984.661324
B7: Edificios y mejoras | C7: 40 | D7: 16418089.17 | F7: 9218567.559 | G7: 2075393.48 | K7: 23435.23 | L7: 0 | O7: 274437.07 | S7: 191778.05 | W7: 72957.28 | X7: 0 | AA7: 457283 | AB7: 0 | AE7: 31620.1 | AF7: 0 | AI7: 549574 | AJ7: 0 | AM7: 0 | AN7: 0 | AQ7: 28087.59 | AR7: 0 | AU7: 632396.81 | AV7: 0 | AY7: 2591 | AZ7: 0 | BC7: 88437.89 | BD7: 0 | BG7: 1401464.95 | BH7: 0 | BK7: 1095856.12 | BL7: 0 | BO7: 1108659.02 | BS7: 303567.86 | BT7: 0 | BW7: 599385.02 | BX7: 0 | CA7: 548535.33 | CB7: 0 | CE7: 419068.17 | CF7: 0 | CI7: 426102.62 | CJ7: 0 | CM7: 1983.459538 | CN7: 0.04898845723 | CO7: 0.5125 | CP7: 0.5375 | CQ7: 0.5625 | CR7: 0.5875 | CS7: 0.6125 | CT7: 0.6375 | CU7: 0.6625 | CV7: 0.6875 | CW7: 0.7125 | CX7: 0.7375 | CY7: 0.7625 | CZ7: 0.7875 | DA7: 0.8125 | DB7: 0.8375 | DC7: 0.8625 | DD7: 0.8875 | DE7: 0.9125 | DF7: 0.9375 | DG7: 0.9625 | DH7: 0.9875 | DI7: 1 | DJ7: 635243.7549 | DK7: 25409750.2 | DL7: 0 | DM7: 7764781.257 | DN7: 635243.7549 | DO7: 0.02398845723 | DP7: 0.4875 | DQ7: 0.5125 | DR7: 0.5375 | DS7: 0.5625 | DT7: 0.5875 | DU7: 0.6125 | DV7: 0.6375 | DW7: 0.6625 | DX7: 0.6875 | DY7: 0.7125 | DZ7: 0.7375 | EA7: 0.7625 | EB7: 0.7875 | EC7: 0.8125 | ED7: 0.8375 | EE7: 0.8625 | EF7: 0.8875 | EG7: 0.9125 | EH7: 0.9375 | EI7: 0.9625 | EJ7: 0.975 | EK7: 635243.7549 | EL7: 0 | EM7: 0.4625 | EN7: 0.4875 | EO7: 0.5125 | EP7: 0.5375 | EQ7: 0.5625 | ER7: 0.5875 | ES7: 0.6125 | ET7: 0.6375 | EU7: 0.6625 | EV7: 0.6875 | EW7: 0.7125 | EX7: 0.7375 | EY7: 0.7625 | EZ7: 0.7875 | FA7: 0.8125 | FB7: 0.8375 | FC7: 0.8625 | FD7: 0.8875 | FE7: 0.9125 | FF7: 0.9375 | FG7: 0.95 | FH7: 224791.5257 | FI7: 0 | FJ7: 0.4375 | FK7: 0.4625 | FL7: 0.4875 | FM7: 0.5125 | FN7: 0.5375 | FO7: 0.5625 | FP7: 0.5875 | FQ7: 0.6125 | FR7: 0.6375 | FS7: 0.6625 | FT7: 0.6875 | FU7: 0.7125 | FV7: 0.7375 | FW7: 0.7625 | FX7: 0.7875 | FY7: 0.8125 | FZ7: 0.8375 | GA7: 0.8625 | GB7: 0.8875 | GC7: 0.9125 | GD7: 0.925 | GE7: 224791.5257 | GF7: 0 | GG7: 0.4125 | GH7: 0.4375 | GI7: 0.4625 | GJ7: 0.4875 | GK7: 0.5125 | GL7: 0.5375 | GM7: 0.5625 | GN7: 0.5875 | GO7: 0.6125 | GP7: 0.6375 | GQ7: 0.6625 | GR7: 0.6875 | GS7: 0.7125 | GT7: 0.7375 | GU7: 0.7625 | GV7: 0.7875 | GW7: 0.8125 | GX7: 0.8375 | GY7: 0.8625 | GZ7: 0.8875 | HA7: 0.9 | HB7: 224791.5257
B8: Mobiliario y equipo de oficina | C8: 7 | D8: 3605931.366 | F8: 2006491.854 | G8: 516686.54 | K8: 20337.78 | L8: 0 | O8: 50764.86 | S8: 12982.75 | W8: 29305.8 | X8: 0 | AA8: 178964.1 | AB8: 0 | AE8: 60471.6 | AF8: 0 | AI8: 6430 | AJ8: 0 | AM8: 0 | AN8: 0 | AQ8: 6797.9 | AR8: 0 | AU8: 237363.9 | AV8: 0 | AY8: 11942 | AZ8: 0 | BC8: 7900.75 | BD8: 0 | BG8: 3235.56 | BH8: 0 | BK8: 577966.28 | BL8: 0 | BO8: 35211.26 | BS8: 38824.43 | BT8: 0 | BW8: 111824.94 | BX8: 0 | CA8: 78035.99 | CB8: 0 | CE8: 109394.17 | CF8: 0 | CI8: 0 | CJ8: 0 | CM8: 1997.895094 | CN8: 0 | CO8: 0 | CP8: 0 | CQ8: 0 | CR8: 0 | CS8: 0 | CT8: 0 | CU8: 0 | CV8: 0 | CW8: 0 | CX8: 0 | CY8: 0 | CZ8: 0 | DA8: 0 | DB8: 0.07142857143 | DC8: 0.2142857143 | DD8: 0.3571428571 | DE8: 0.5 | DF8: 0.6428571429 | DG8: 0.7857142857 | DH8: 0.9285714286 | DI8: 1 | DJ8: 122219.6979 | DK8: 5393806.691 | DL8: 4538268.806 | DM8: 350985.457 | DN8: 122219.6979 | DO8: 0 | DP8: 0 | DQ8: 0 | DR8: 0 | DS8: 0 | DT8: 0 | DU8: 0 | DV8: 0 | DW8: 0 | DX8: 0 | DY8: 0 | DZ8: 0 | EA8: 0 | EB8: 0 | EC8: 0 | ED8: 0.07142857143 | EE8: 0.2142857143 | EF8: 0.3571428571 | EG8: 0.5 | EH8: 0.6428571429 | EI8: 0.7857142857 | EJ8: 0.8571428571 | EK8: 121787.1901 | EL8: 0 | EM8: 0 | EN8: 0 | EO8: 0 | EP8: 0 | EQ8: 0 | ER8: 0 | ES8: 0 | ET8: 0 | EU8: 0 | EV8: 0 | EW8: 0 | EX8: 0 | EY8: 0 | EZ8: 0 | FA8: 0 | FB8: 0.07142857143 | FC8: 0.2142857143 | FD8: 0.3571428571 | FE8: 0.5 | FF8: 0.6428571429 | FG8: 0.7142857143 | FH8: 47990.4421 | FI8: 0 | FJ8: 0 | FK8: 0 | FL8: 0 | FM8: 0 | FN8: 0 | FO8: 0 | FP8: 0 | FQ8: 0 | FR8: 0 | FS8: 0 | FT8: 0 | FU8: 0 | FV8: 0 | FW8: 0 | FX8: 0 | FY8: 0 | FZ8: 0.07142857143 | GA8: 0.2142857143 | GB8: 0.3571428571 | GC8: 0.5 | GD8: 0.5714285714 | GE8: 43463.2801 | GF8: 0 | GG8: 0 | GH8: 0 | GI8: 0 | GJ8: 0 | GK8: 0 | GL8: 0 | GM8: 0 | GN8: 0 | GO8: 0 | GP8: 0 | GQ8: 0 | GR8: 0 | GS8: 0 | GT8: 0 | GU8: 0 | GV8: 0 | GW8: 0 | GX8: 0.07142857143 | GY8: 0.2142857143 | GZ8: 0.3571428571 | HA8: 0.4285714286 | HB8: 38471.56767
B9: Equipo de computación | C9: 4 | D9: 4696061.247 | F9: 2614696.191 | G9: 217025.03 | K9: 154928.79 | L9: 0 | O9: 173538.072 | S9: 226869.12 | W9: 459584.46 | X9: 0 | AA9: 254650.3 | AB9: 0 | AE9: 77820.41 | AF9: 0 | AI9: 288251.0075 | AJ9: 0 | AM9: 76228.29 | AN9: 0 | AQ9: 133801.85 | AR9: 0 | AU9: 0 | AV9: 0 | AY9: 272670.61 | AZ9: 0 | BC9: 607915.41 | BD9: 0 | BG9: 419201.62 | BH9: 0 | BK9: 158413.68 | BL9: 0 | BO9: 220222.81 | BS9: 508097.66 | BT9: 0 | BW9: 462657.25 | BX9: 0 | CA9: 1059113.99 | CB9: 0 | CE9: 818983.25 | CF9: 0 | CI9: 1382046.54 | CJ9: 0 | CM9: 1999.22714 | CN9: 0 | CO9: 0 | CP9: 0 | CQ9: 0 | CR9: 0 | CS9: 0 | CT9: 0 | CU9: 0 | CV9: 0 | CW9: 0 | CX9: 0 | CY9: 0 | CZ9: 0 | DA9: 0 | DB9: 0 | DC9: 0 | DD9: 0 | DE9: 0.125 | DF9: 0.375 | DG9: 0.625 | DH9: 0.875 | DI9: 1 | DJ9: 951922.6064 | DK9: 11729538.84 | DL9: 7921848.418 | DM9: 2697806.225 | DN9: 951922.6064 | DO9: 0 | DP9: 0 | DQ9: 0 | DR9: 0 | DS9: 0 | DT9: 0 | DU9: 0 | DV9: 0 | DW9: 0 | DX9: 0 | DY9: 0 | DZ9: 0 | EA9: 0 | EB9: 0 | EC9: 0 | ED9: 0 | EE9: 0 | EF9: 0 | EG9: 0.125 | EH9: 0.375 | EI9: 0.625 | EJ9: 0.75 | EK9: 837600.6329 | EL9: 0 | EM9: 0 | EN9: 0 | EO9: 0 | EP9: 0 | EQ9: 0 | ER9: 0 | ES9: 0 | ET9: 0 | EU9: 0 | EV9: 0 | EW9: 0 | EX9: 0 | EY9: 0 | EZ9: 0 | FA9: 0 | FB9: 0 | FC9: 0 | FD9: 0 | FE9: 0.125 | FF9: 0.375 | FG9: 0.5 | FH9: 733532.3505 | FI9: 0 | FJ9: 0 | FK9: 0 | FL9: 0 | FM9: 0 | FN9: 0 | FO9: 0 | FP9: 0 | FQ9: 0 | FR9: 0 | FS9: 0 | FT9: 0 | FU9: 0 | FV9: 0 | FW9: 0 | FX9: 0 | FY9: 0 | FZ9: 0 | GA9: 0 | GB9: 0 | GC9: 0.125 | GD9: 0.25 | GE9: 495231.7028 | GF9: 0 | GG9: 0 | GH9: 0 | GI9: 0 | GJ9: 0 | GK9: 0 | GL9: 0 | GM9: 0 | GN9: 0 | GO9: 0 | GP9: 0 | GQ9: 0 | GR9: 0 | GS9: 0 | GT9: 0 | GU9: 0 | GV9: 0 | GW9: 0 | GX9: 0 | GY9: 0 | GZ9: 0 | HA9: 0 | HB9: 0
B10: Equipos de transporte y carga | C10: 5 | D10: 5798560.324 | F10: 3227551.952 | G10: 0 | K10: 0 | L10: 0 | O10: 0 | S10: 0 | W10: 405378.07 | X10: 0 | AA10: 0 | AB10: 0 | AE10: 149314.29 | AF10: 0 | AI10: 0 | AJ10: 0 | AM10: 0 | AN10: 0 | AQ10: 370753.65 | AR10: 0 | AU10: 578298.94 | AV10: 0 | AY10: 474988 | AZ10: 0 | BC10: 0 | BD10: 0 | BG10: 1163538.24 | BH10: 0 | BK10: 905277.61 | BL10: 0 | BO10: 143384.65 | BS10: 274014.63 | BT10: 0 | BW10: 236000 | BX10: 0 | CA10: 486595.98 | CB10: 0 | CE10: 91956.5 | CF10: 0 | CI10: 0 | CJ10: 0 | CM10: 1998.783063 | CN10: 0 | CO10: 0 | CP10: 0 | CQ10: 0 | CR10: 0 | CS10: 0 | CT10: 0 | CU10: 0 | CV10: 0 | CW10: 0 | CX10: 0 | CY10: 0 | CZ10: 0 | DA10: 0 | DB10: 0 | DC10: 0 | DD10: 0.1 | DE10: 0.3 | DF10: 0.5 | DG10: 0.7 | DH10: 0.9 | DI10: 1 | DJ10: 221739.2382 | DK10: 10463131.68 | DL10: 9354435.491 | DM10: 574098.6045 | DN10: 221739.2382 | DO10: 0 | DP10: 0 | DQ10: 0 | DR10: 0 | DS10: 0 | DT10: 0 | DU10: 0 | DV10: 0 | DW10: 0 | DX10: 0 | DY10: 0 | DZ10: 0 | EA10: 0 | EB10: 0 | EC10: 0 | ED10: 0 | EE10: 0 | EF10: 0.1 | EG10: 0.3 | EH10: 0.5 | EI10: 0.7 | EJ10: 0.8 | EK10: 195930.0012 | EL10: 0 | EM10: 0 | EN10: 0 | EO10: 0 | EP10: 0 | EQ10: 0 | ER10: 0 | ES10: 0 | ET10: 0 | EU10: 0 | EV10: 0 | EW10: 0 | EX10: 0 | EY10: 0 | EZ10: 0 | FA10: 0 | FB10: 0 | FC10: 0 | FD10: 0.1 | FE10: 0.3 | FF10: 0.5 | FG10: 0.6 | FH10: 146607.3678 | FI10: 0 | FJ10: 0 | FK10: 0 | FL10: 0 | FM10: 0 | FN10: 0 | FO10: 0 | FP10: 0 | FQ10: 0 | FR10: 0 | FS10: 0 | FT10: 0 | FU10: 0 | FV10: 0 | FW10: 0 | FX10: 0 | FY10: 0 | FZ10: 0 | GA10: 0 | GB10: 0.1 | GC10: 0.3 | GD10: 0.4 | GE10: 104139.4464 | GF10: 0 | GG10: 0 | GH10: 0 | GI10: 0 | GJ10: 0 | GK10: 0 | GL10: 0 | GM10: 0 | GN10: 0 | GO10: 0 | GP10: 0 | GQ10: 0 | GR10: 0 | GS10: 0 | GT10: 0 | GU10: 0 | GV10: 0 | GW10: 0 | GX10: 0 | GY10: 0 | GZ10: 0.1 | HA10: 0.2 | HB10: 16552.17
B11: Equipos de comunicaciones | C11: 8 | D11: 0 | F11: 0 | G11: 117405.06 | K11: 0 | L11: 0 | O11: 98287.80823 | S11: 182960.31 | W11: 6456.27 | X11: 0 | AA11: 0 | AB11: 0 | AE11: 0 | AF11: 0 | AI11: 110773.2465 | AJ11: 0 | AM11: 92773.35 | AN11: 0 | AQ11: 156532.67 | AR11: 0 | AU11: 105997.39 | AV11: 0 | AY11: 53332.92 | AZ11: 0 | BC11: 150723.88 | BD11: 0 | BG11: 60981.62 | BH11: 0 | BK11: 0 | BL11: 0 | BO11: 0 | BS11: 0 | BT11: 0 | BW11: 0 | BX11: 0 | CA11: 0 | CB11: 0 | CE11: 0 | CF11: 0 | CI11: 0 | CJ11: 0 | CM11: 0 | CN11: 0 | CO11: 0 | CP11: 0 | CQ11: 0 | CR11: 0 | CS11: 0 | CT11: 0 | CU11: 0 | CV11: 0 | CW11: 0 | CX11: 0 | CY11: 0 | CZ11: 0 | DA11: 0.0625 | DB11: 0.1875 | DC11: 0.3125 | DD11: 0.4375 | DE11: 0.5625 | DF11: 0.6875 | DG11: 0.8125 | DH11: 0.9375 | DI11: 1 | DJ11: 22491.93263 | DK11: 924093.7581 | DL11: 744158.2971 | DM11: 18378.62603 | DN11: 22491.93263 | DO11: 0 | DP11: 0 | DQ11: 0 | DR11: 0 | DS11: 0 | DT11: 0 | DU11: 0 | DV11: 0 | DW11: 0 | DX11: 0 | DY11: 0 | DZ11: 0 | EA11: 0 | EB11: 0 | EC11: 0.0625 | ED11: 0.1875 | EE11: 0.3125 | EF11: 0.4375 | EG11: 0.5625 | EH11: 0.6875 | EI11: 0.8125 | EJ11: 0.875 | EK11: 7132.659716 | EL11: 0 | EM11: 0 | EN11: 0 | EO11: 0 | EP11: 0 | EQ11: 0 | ER11: 0 | ES11: 0 | ET11: 0 | EU11: 0 | EV11: 0 | EW11: 0 | EX11: 0 | EY11: 0 | EZ11: 0 | FA11: 0.0625 | FB11: 0.1875 | FC11: 0.3125 | FD11: 0.4375 | FE11: 0.5625 | FF11: 0.6875 | FG11: 0.75 | FH11: 0 | FI11: 0 | FJ11: 0 | FK11: 0 | FL11: 0 | FM11: 0 | FN11: 0 | FO11: 0 | FP11: 0 | FQ11: 0 | FR11: 0 | FS11: 0 | FT11: 0 | FU11: 0 | FV11: 0 | FW11: 0 | FX11: 0 | FY11: 0.0625 | FZ11: 0.1875 | GA11: 0.3125 | GB11: 0.4375 | GC11: 0.5625 | GD11: 0.625 | GE11: 0 | GF11: 0 | GG11: 0 | GH11: 0 | GI11: 0 | GJ11: 0 | GK11: 0 | GL11: 0 | GM11: 0 | GN11: 0 | GO11: 0 | GP11: 0 | GQ11: 0 | GR11: 0 | GS11: 0 | GT11: 0 | GU11: 0 | GV11: 0 | GW11: 0.0625 | GX11: 0.1875 | GY11: 0.3125 | GZ11: 0.4375 | HA11: 0.5 | HB11: 0
B12: Otros equipos de uso general | C12: 17 | D12: 3671966.992 | F12: 2042944.214 | G12: 89880.83 | K12: 334921.35 | L12: 0 | O12: 128967.56 | S12: 170960.37 | W12: 501023.28 | X12: 0 | AA12: 294151.9 | AB12: 0 | AE12: 231400.88 | AF12: 0 | AI12: 79872.89 | AJ12: 0 | AM12: 0 | AN12: 0 | AQ12: 0 | AR12: 0 | AU12: 13823.33 | AV12: 0 | AY12: 0 | AZ12: 0 | BC12: 83034.83 | BD12: 0 | BG12: 46720.15 | BH12: 0 | BK12: 102771.54 | BL12: 0 | BO12: 3365 | BS12: 0 | BT12: 0 | BW12: 200341.37 | BX12: 0 | CA12: 178895.71 | CB12: 0 | CE12: 177074.79 | CF12: 0 | CI12: 0 | CJ12: 0 | CM12: 1993.45816 | CN12: 0 | CO12: 0 | CP12: 0 | CQ12: 0 | CR12: 0.02941176471 | CS12: 0.08823529412 | CT12: 0.1470588235 | CU12: 0.2058823529 | CV12: 0.2647058824 | CW12: 0.3235294118 | CX12: 0.3823529412 | CY12: 0.4411764706 | CZ12: 0.5 | DA12: 0.5588235294 | DB12: 0.6176470588 | DC12: 0.6764705882 | DD12: 0.7352941176 | DE12: 0.7941176471 | DF12: 0.8529411765 | DG12: 0.9117647059 | DH12: 0.9705882353 | DI12: 1 | DJ12: 104629.7409 | DK12: 5911349.184 | DL12: 4132643.589 | DM12: 726394.9934 | DN12: 104629.7409 | DO12: 0 | DP12: 0 | DQ12: 0 | DR12: 0 | DS12: 0 | DT12: 0.02941176471 | DU12: 0.08823529412 | DV12: 0.1470588235 | DW12: 0.2058823529 | DX12: 0.2647058824 | DY12: 0.3235294118 | DZ12: 0.3823529412 | EA12: 0.4411764706 | EB12: 0.5 | EC12: 0.5588235294 | ED12: 0.6176470588 | EE12: 0.6764705882 | EF12: 0.7352941176 | EG12: 0.7941176471 | EH12: 0.8529411765 | EI12: 0.9117647059 | EJ12: 0.9411764706 | EK12: 98595.84549 | EL12: 0 | EM12: 0 | EN12: 0 | EO12: 0 | EP12: 0 | EQ12: 0 | ER12: 0.02941176471 | ES12: 0.08823529412 | ET12: 0.1470588235 | EU12: 0.2058823529 | EV12: 0.2647058824 | EW12: 0.3235294118 | EX12: 0.3823529412 | EY12: 0.4411764706 | EZ12: 0.5 | FA12: 0.5588235294 | FB12: 0.6176470588 | FC12: 0.6764705882 | FD12: 0.7352941176 | FE12: 0.7941176471 | FF12: 0.8529411765 | FG12: 0.8823529412 | FH12: 72706.02268 | FI12: 0 | FJ12: 0 | FK12: 0 | FL12: 0 | FM12: 0 | FN12: 0 | FO12: 0 | FP12: 0.02941176471 | FQ12: 0.08823529412 | FR12: 0.1470588235 | FS12: 0.2058823529 | FT12: 0.2647058824 | FU12: 0.3235294118 | FV12: 0.3823529412 | FW12: 0.4411764706 | FX12: 0.5 | FY12: 0.5588235294 | FZ12: 0.6176470588 | GA12: 0.6764705882 | GB12: 0.7352941176 | GC12: 0.7941176471 | GD12: 0.8235294118 | GE12: 57980.75169 | GF12: 0 | GG12: 0 | GH12: 0 | GI12: 0 | GJ12: 0 | GK12: 0 | GL12: 0 | GM12: 0 | GN12: 0.02941176471 | GO12: 0.08823529412 | GP12: 0.1470588235 | GQ12: 0.2058823529 | GR12: 0.2647058824 | GS12: 0.3235294118 | GT12: 0.3823529412 | GU12: 0.4411764706 | GV12: 0.5 | GW12: 0.5588235294 | GX12: 0.6176470588 | GY12: 0.6764705882 | GZ12: 0.7352941176 | HA12: 0.7647058824 | HB12: 46047.12673
B13: TOTAL PROPIEDADES Y PLANTA | D13: =SUM(D5:D12) -> 52585618.15 | E13: =SUM(E5:E12) -> 0 | F13: 30043953.49 | G13: 3740622.43 | H13: 0 | I13: 0 | J13: 0 | K13: 808861.386 | L13: 0 | M13: 0 | N13: 0 | O13: 1276647.941 | P13: 0 | Q13: 0 | R13: 0 | S13: 1114308.6 | T13: 0 | U13: 0 | V13: 0 | W13: 2197174.61 | X13: 0 | Y13: 0 | Z13: 0 | AA13: 1429651.21 | AB13: 0 | AC13: 0 | AD13: 0 | AE13: 1118910.91 | AF13: 0 | AG13: 0 | AH13: 0 | AI13: 2765867.14 | AJ13: 0 | AK13: 0 | AL13: 0 | AM13: 524984.5 | AN13: 0 | AO13: 0 | AP13: 0 | AQ13: 1455482.09 | AR13: 0 | AS13: 0 | AT13: 0 | AU13: 1567880.37 | AV13: 0 | AW13: 0 | AX13: 0 | AY13: 1253316.15 | AZ13: 0 | BA13: 0 | BB13: 0 | BC13: 1627680.9 | BD13: 0 | BE13: 0 | BF13: 0 | BG13: 10786027.93 | BH13: 0 | BI13: 0 | BJ13: 0 | BK13: 6982533.23 | BL13: 0 | BM13: 0 | BN13: 0 | BO13: 6846070.74 | BP13: 0 | BQ13: =SUM(BQ5:BQ12) -> 0 | BR13: 0 | BS13: 4939082.38 | BT13: =SUM(BT5:BT12) -> 0 | BU13: 0 | BV13: 0 | BW13: 11082464.76 | BX13: =SUM(BX5:BX12) -> 0 | BY13: 0 | BZ13: 0 | CA13: 4202232.6 | CB13: =SUM(CB5:CB12) -> 0 | CC13: 0 | CD13: 0 | CE13: 3424150.27 | CF13: =SUM(CF5:CF12) -> 0 | CG13: 0 | CH13: 0 | CI13: =SUM(CI5:CI12) -> 1955614.37 | CJ13: =SUM(CJ5:CJ12) -> 0 | CK13: =SUM(CK5:CK12) -> 0 | CL13: =SUM(CL5:CL12) -> 0 | DJ13: =SUM(DJ5:DJ12) -> 5909187.437 | DK13: =SUM(DK5:DK12) -> 115676094.9 | DL13: =SUM(DL5:DL12) -> 58183294.64 | DM13: =SUM(DM5:DM12) -> 27259011.29 | DN13: =SUM(DN5:DN12) -> 5909187.437 | EK13: =SUM(EK5:EK12) -> 4888950.545 | FH13: =SUM(FH5:FH12) -> 2091006.065 | GE13: =SUM(GE5:GE12) -> 1374497.553 | HB13: =SUM(HB5:HB12) -> 334847.0514
B14: Alta tensión AT (230 y 115 Kv) | D14: 0 | F14: 0 | L14: 0 | S14: 0 | AM14: 0 | AN14: 0 | AQ14: 0 | AR14: 0 | AU14: 0 | AV14: 0 | AY14: 0 | AZ14: 0
B15: Líneas aéreas AT | C15: 30 | D15: 14258943.48 | F15: 8161634.987 | G15: 152319 | K15: 338129.06 | L15: 0 | O15: 0 | S15: 320245 | W15: 11341.38 | X15: 0 | AA15: 12304.695 | AB15: 0 | AE15: 29864.48 | AF15: 0 | AI15: 0 | AJ15: 0 | AM15: 116035.58 | AN15: 0 | AQ15: 1076464.81 | AR15: 0 | AU15: 0 | AV15: 0 | AY15: 0 | AZ15: 0 | BC15: 0 | BD15: 0 | BG15: 0 | BH15: 0 | BK15: 68791.2 | BL15: 0 | BO15: 0 | BS15: 0 | BT15: 0 | BW15: 7436186.73 | BX15: 0 | CA15: 0 | CB15: 0 | CE15: 0 | CF15: 0 | CI15: 0 | CJ15: 0 | CM15: =IF(D15=0,0,2001-(D15-F15)*C15/D15) -> 1988.171612 | CN15: =IF((1-($DJ$2-$CM15)/$C15)>0,(1-($DJ$2-$CM15)/$C15),0) -> 0 | CO15: =IF((1-($DJ$2-G$2)/$C15)>0,(1-($DJ$2-G$2)/$C15),0) -> 0.35 | CP15: =IF((1-($DJ$2-K$2)/$C15)>0,(1-($DJ$2-K$2)/$C15),0) -> 0.3833333333 | CQ15: =IF((1-($DJ$2-O$2)/$C15)>0,(1-($DJ$2-O$2)/$C15),0) -> 0.4166666667 | CR15: =IF((1-($DJ$2-S$2)/$C15)>0,(1-($DJ$2-S$2)/$C15),0) -> 0.45 | CS15: =IF((1-($DJ$2-W$2)/$C15)>0,(1-($DJ$2-W$2)/$C15),0) -> 0.4833333333 | CT15: =IF((1-($DJ$2-AA$2)/$C15)>0,(1-($DJ$2-AA$2)/$C15),0) -> 0.5166666667 | CU15: =IF((1-($DJ$2-AE$2)/$C15)>0,(1-($DJ$2-AE$2)/$C15),0) -> 0.55 | CV15: =IF((1-($DJ$2-AI$2)/$C15)>0,(1-($DJ$2-AI$2)/$C15),0) -> 0.5833333333 | CW15: =IF((1-($DJ$2-AM$2)/$C15)>0,(1-($DJ$2-AM$2)/$C15),0) -> 0.6166666667 | CX15: =IF((1-($DJ$2-AQ$2)/$C15)>0,(1-($DJ$2-AQ$2)/$C15),0) -> 0.65 | CY15: =IF((1-($DJ$2-AU$2)/$C15)>0,(1-($DJ$2-AU$2)/$C15),0) -> 0.6833333333 | CZ15: =IF((1-($DJ$2-AY$2)/$C15)>0,(1-($DJ$2-AY$2)/$C15),0) -> 0.7166666667 | DA15: =IF((1-($DJ$2-BC$2)/$C15)>0,(1-($DJ$2-BC$2)/$C15),0) -> 0.75 | DB15: =IF((1-($DJ$2-BG$2)/$C15)>0,(1-($DJ$2-BG$2)/$C15),0) -> 0.7833333333 | DC15: =IF((1-($DJ$2-BK$2)/$C15)>0,(1-($DJ$2-BK$2)/$C15),0) -> 0.8166666667 | DD15: =IF((1-($DJ$2-BO$2)/$C15)>0,(1-($DJ$2-BO$2)/$C15),0) -> 0.85 | DE15: =IF((1-($DJ$2-BS$2)/$C15)>0,(1-($DJ$2-BS$2)/$C15),0) -> 0.8833333333 | DF15: =IF((1-($DJ$2-BW$2)/$C15)>0,(1-($DJ$2-BW$2)/$C15),0) -> 0.9166666667 | DG15: =IF((1-($DJ$2-CA$2)/$C15)>0,(1-($DJ$2-CA$2)/$C15),0) -> 0.95 | DH15: =IF((1-($DJ$2-CE$2)/$C15)>0,(1-($DJ$2-CE$2)/$C15),0) -> 0.9833333333 | DI15: =IF((1-($DJ$2-CI$2)/$C15)>0,(1-($DJ$2-CI$2)/$C15),0) -> 1 | DJ15: =IF(CN15=0,0,($D15-$E15)*1/$C15)+IF(CO15=0,0,($G15-$H15-$I15)*$G$61*1/$C15)+IF(CP15=0,0,($K15-$L15-$M15)*$K$61*1/$C15)+IF(CQ15=0,0,($O15-$P15-$Q15)*$O$61*1/$C15)+IF(CR15=0,0,($S15-$T15-$U15)*$S$61*1/$C15)+IF(CS15=0,0,($W15-$X15-$Y15)*$W$61*1/$C15)+IF(CT15=0,0,($AA15-$AB15-$AC15)*$AA$61*1/$C15)+IF(CU15=0,0,($AE15-$AF15-$AG15)*$AE$61*1/$C15)+IF(CV15=0,0,($AI15-$AJ15-$AK15)*$AI$61*1/$C15)+IF(CW15=0,0,($AM15-$AN15-$AO15)*$AM$61*1/$C15)+IF(CX15=0,0,($AQ15-$AR15-$AS15)*$AQ$61*1/$C15)+IF(CY15=0,0,($AU15-$AV15-$AW15)*$AU$61*1/$C15)+IF(CZ15=0,0,($AY15-$AZ15-$BA15)*$AY$61*1/$C15)+IF(DA15=0,0,($BC15-$BD15-$BE15)*$BC$61*1/$C15)+IF(DB15=0,0,($BG15-$BH15-$BI15)*$BG$61*1/$C15)+IF(DC15=0,0,($BK15-$BL15-$BM15)*$BK$61*1/$C15)+IF(DD15=0,0,($BO15-$BP15-$BQ15)*$BO$61*1/$C15)+IF(DE15=0,0,($BS15-$BT15-$BU15)*$BS$61*1/$C15)+IF(DF15=0,0,($BW15-$BX15-$BY15)*$BW$61*1/$C15)+IF(DG15=0,0,($CA15-$CB15-$CC15)*$CA$61*1/$C15)+IF(DH15=0,0,($CE15-$CF15-$CG15)*$CE$61*1/$C15)+IF(DI15=0,0,($CI15-$CJ15-$CK15)*$CI$61*1/$C15) -> 280534.2583 | DK15: =D15-E15+(G15-H15-I15)*G$61+(K15-L15-M15)*K$61+(O15-P15-Q15)*O$61+(S15-T15-U15)*S$61+(W15-X15-Y15)*W$61+(AA15-AB15-AC15)*AA$61+(AE15-AF15-AG15)*AE$61+(AI15-AJ15-AK15)*AI$61+(AM15-AN15-AO15)*AM$61+(AQ15-AR15-AS15)*$AQ$61+(AU15-AV15-AW15)*$AU$61+(AY15-AZ15-BA15)*$AY$61+(BC15-BD15-BE15)*$BC$61+(BG15-BH15-BI15)*$BG$61+(BK15-BL15-BM15)*$BK$61+(BO15-BP15-BQ15)*$BO$61+(BS15-BT15-BU15)*$BS$61+(BW15-BX15-BY15)*$BW$61+(CA15-CB15-CC15)*$CA$61+(CE15-CF15-CG15)*$CE$61+(CI15-CJ15-CK15)*$CI$61 -> 22674971.23 | DL15: =IF(CN15=0,D15-E15,0)+IF(CO15=0,(G15-H15-I15)*G$61,0)+IF(CP15=0,(K15-L15-M15)*K$61,0)+IF(CQ15=0,(O15-P15-Q15)*O$61,0)+IF(CR15=0,(S15-T15-U15)*S$61,0)+IF(CS15=0,(W15-X15-Y15)*W$61,0)+IF(CT15=0,(AA15-AB15-AC15)*AA$61,0)+IF(CU15=0,(AE15-AF15-AG15)*AE$61,0)+IF(CV15=0,(AI15-AJ15-AK15)*AI$61,0)+IF(CW15=0,(AM15-AN15-AO15)*AM$61,0)+IF(CX15=0,(AQ15-AR15-AS15)*$AQ$61,0)+IF(CY15=0,(AU15-AV15-AW15)*$AU$61,0)+IF(CZ15=0,(AY15-AZ15-BA15)*$AY$61,0)++IF(DA15=0,(BC15-BD15-BE15)*$BC$61,0)+IF(DB15=0,(BG15-BH15-BI15)*$BG$61,0)+IF(DC15=0,(BK15-BL15-BM15)*$BK$61,0)+IF(DD15=0,(BO15-BP15-BQ15)*$BO$61,0)+IF(DE15=0,(BS15-BT15-BU15)*$BS$61,0)+IF(DF15=0,(BW15-BX15-BY15)*$BW$61,0)+IF(DG15=0,(CA15-CB15-CC15)*$CA$61,0)+IF(DH15=0,(CE15-CF15-CG15)*$CE$61,0)+IF(DI15=0,(CI15-CJ15-CK15)*$CI$61,0) -> 14258943.48 | DM15: =(D15-E15)*CN15+((G15-H15-(I15-J15))*G$61)*CO15+((K15-L15-(M15-N15))*K$61)*CP15+((O15-P15-(Q15-R15))*O$61)*CQ15+((S15-T15-(U15-V15))*S$61)*CR15+((W15-X15-(Y15-Z15))*W$61)*CS15+((AA15-AB15-(AC15-AD15))*AA$61)*CT15+((AE15-AF15-(AG15-AH15))*AE$61)*CU15+((AI15-AJ15-(AK15-AL15))*AI$61)*CV15+((AM15-AN15-(AO15-AP15))*$AM$61)*CW15+((AQ15-AR15-(AS15-AT15))*$AQ$61)*CX15+((AU15-AV15-(AW15-AX15))*$AU$61)*CY15+((AY15-AZ15-(BA15-BB15))*$AY$61)*CZ15+((BC15-BD15-(BE15-BF15))*$BC$61)*DA15+((BG15-BH15-(BI15-BJ15))*$BG$61)*DB15+((BK15-BL15-(BM15-BN15))*$BK$61)*DC15+((BO15-BP15-(BQ15-BR15))*$BO$61)*DD15+((BS15-BT15-(BU15-BV15))*$BS$61)*DE15+((BW15-BX15-(BY15-BZ15))*$BW$61)*DF15+((CA15-CB15-(CC15-CD15))*$CA$61)*DG15+((CE15-CF15-(CG15-CH15))*$CE$61)*DH15+((CI15-CJ15-(CK15-CL15))*$CI$61)*DI15 -> 7046541.052 | DN15: =(DK15-DL15)*1/C15 -> 280534.2583 | DO15: =IF((1-($EK$2-$CM15)/$C15)>0,(1-($EK$2-$CM15)/$C15),0) -> 0 | DP15: =IF((1-($EK$2-DP$2)/$C15)>0,(1-($EK$2-DP$2)/$C15),0) -> 0.3166666667 | DQ15: 0.35 | DR15: 0.3833333333 | DS15: 0.4166666667 | DT15: 0.45 | DU15: 0.4833333333 | DV15: 0.5166666667 | DW15: 0.55 | DX15: 0.5833333333 | DY15: 0.6166666667 | DZ15: =IF((1-($EK$2-DZ$2)/$C15)>0,(1-($EK$2-DZ$2)/$C15),0) -> 0.65 | EA15: 0.6833333333 | EB15: 0.7166666667 | EC15: 0.75 | ED15: 0.7833333333 | EE15: 0.8166666667 | EF15: 0.85 | EG15: 0.8833333333 | EH15: 0.9166666667 | EI15: 0.95 | EJ15: 0.9666666667 | EK15: =IF(DO15=0,0,($D15-$E15)*1/$C15)+IF(DP15=0,0,($G15-$H15-$I15)*$G$61*1/$C15)+IF(DQ15=0,0,($K15-$L15-$M15)*$K$61*1/$C15)+IF(DR15=0,0,($O15-$P15-$Q15)*$O$61*1/$C15)+IF(DS15=0,0,($S15-$T15-$U15)*$S$61*1/$C15)+IF(DT15=0,0,($W15-$X15-$Y15)*$W$61*1/$C15)+IF(DU15=0,0,($AA15-$AB15-$AC15)*$AA$61*1/$C15)+IF(DV15=0,0,($AE15-$AF15-$AG15)*$AE$61*1/$C15)+IF(DW15=0,0,($AI15-$AJ15-$AK15)*$AI$61*1/$C15)+IF(DX15=0,0,($AM15-$AN15-$AO15)*$AM$61*1/$C15)+IF(DY15=0,0,($AQ15-$AR15-$AS15)*$AQ$61*1/$C15)+IF(DZ15=0,0,($AU15-$AV15-$AW15)*$AU$61*1/$C15)+IF(EA15=0,0,($AY15-$AZ15-$BA15)*$AY$61*1/$C15)+IF(EB15=0,0,($BC15-$BD15-$BE15)*$BC$61*1/$C15)+IF(EC15=0,0,($BG15-$BH15-$BI15)*$BG$61*1/$C15)+IF(ED15=0,0,($BK15-$BL15-$BM15)*$BK$61*1/$C15)+IF(EE15=0,0,($BO15-$BP15-$BQ15)*$BO$61*1/$C15)+IF(EF15=0,0,($BS15-$BT15-$BU15)*$BS$61*1/$C15)+IF(EG15=0,0,($BW15-$BX15-$BY15)*$BW$61*1/$C15)+IF(EH15=0,0,($CA15-$CB15-$CC15)*$CA$61*1/$C15)+IF(EI15=0,0,($CE15-$CF15-$CG15)*$CE$61*1/$C15)+IF(EJ15=0,0,($CI15-$CJ15-$CK15)*$CI$61*1/$C15) -> 280534.2583 | EL15: =IF((1-($FH$2-$CM15)/$C15)>0,(1-($FH$2-$CM15)/$C15),0) -> 0 | EM15: =IF((1-($FH$2-EM$2)/$C15)>0,(1-($FH$2-EM$2)/$C15),0) -> 0.2833333333 | EN15: 0.3166666667 | EO15: 0.35 | EP15: 0.3833333333 | EQ15: 0.4166666667 | ER15: 0.45 | ES15: 0.4833333333 | ET15: 0.5166666667 | EU15: 0.55 | EV15: 0.5833333333 | EW15: =IF((1-($FH$2-EW$2)/$C15)>0,(1-($FH$2-EW$2)/$C15),0) -> 0.6166666667 | EX15: 0.65 | EY15: 0.6833333333 | EZ15: 0.7166666667 | FA15: 0.75 | FB15: 0.7833333333 | FC15: 0.8166666667 | FD15: 0.85 | FE15: 0.8833333333 | FF15: 0.9166666667 | FG15: 0.9333333333 | FH15: =IF(EL15=0,0,($D15-$E15)*1/$C15)+IF(EM15=0,0,($G15-$H15-$I15)*$G$61*1/$C15)+IF(EN15=0,0,($K15-$L15-$M15)*$K$61*1/$C15)+IF(EO15=0,0,($O15-$P15-$Q15)*$O$61*1/$C15)+IF(EP15=0,0,($S15-$T15-$U15)*$S$61*1/$C15)+IF(EQ15=0,0,($W15-$X15-$Y15)*$W$61*1/$C15)+IF(ER15=0,0,($AA15-$AB15-$AC15)*$AA$61*1/$C15)+IF(ES15=0,0,($AE15-$AF15-$AG15)*$AE$61*1/$C15)+IF(ET15=0,0,($AI15-$AJ15-$AK15)*$AI$61*1/$C15)+IF(EU15=0,0,($AM15-$AN15-$AO15)*$AM$61*1/$C15)+IF(EV15=0,0,($AQ15-$AR15-$AS15)*$AQ$61*1/$C15)+IF(EW15=0,0,($AU15-$AV15-$AW15)*$AU$61*1/$C15)+IF(EX15=0,0,($AY15-$AZ15-$BA15)*$AY$61*1/$C15)+IF(EY15=0,0,($BC15-$BD15-$BE15)*$BC$61*1/$C15)+IF(EZ15=0,0,($BG15-$BH15-$BI15)*$BG$61*1/$C15)+IF(FA15=0,0,($BK15-$BL15-$BM15)*$BK$61*1/$C15)+IF(FB15=0,0,($BO15-$BP15-$BQ15)*$BO$61*1/$C15)+IF(FC15=0,0,($BS15-$BT15-$BU15)*$BS$61*1/$C15)+IF(FD15=0,0,($BW15-$BX15-$BY15)*$BW$61*1/$C15)+IF(FE15=0,0,($CA15-$CB15-$CC15)*$CA$61*1/$C15)+IF(FF15=0,0,($CE15-$CF15-$CG15)*$CE$61*1/$C15)+IF(FG15=0,0,($CI15-$CJ15-$CK15)*$CI$61*1/$C15) -> 280534.2583 | FI15: =IF((1-($GE$2-$CM15)/$C15)>0,(1-($GE$2-$CM15)/$C15),0) -> 0 | FJ15: =IF((1-($GE$2-FJ$2)/$C15)>0,(1-($GE$2-FJ$2)/$C15),0) -> 0.25 | FK15: 0.2833333333 | FL15: 0.3166666667 | FM15: 0.35 | FN15: 0.3833333333 | FO15: 0.4166666667 | FP15: 0.45 | FQ15: 0.4833333333 | FR15: 0.5166666667 | FS15: 0.55 | FT15: =IF((1-($GE$2-FT$2)/$C15)>0,(1-($GE$2-FT$2)/$C15),0) -> 0.5833333333 | FU15: 0.6166666667 | FV15: 0.65 | FW15: 0.6833333333 | FX15: 0.7166666667 | FY15: 0.75 | FZ15: 0.7833333333 | GA15: 0.8166666667 | GB15: 0.85 | GC15: 0.8833333333 | GD15: 0.9 | GE15: =IF(FI15=0,0,($D15-$E15)*1/$C15)+IF(FJ15=0,0,($G15-$H15-$I15)*$G$61*1/$C15)+IF(FK15=0,0,($K15-$L15-$M15)*$K$61*1/$C15)+IF(FL15=0,0,($O15-$P15-$Q15)*$O$61*1/$C15)+IF(FM15=0,0,($S15-$T15-$U15)*$S$61*1/$C15)+IF(FN15=0,0,($W15-$X15-$Y15)*$W$61*1/$C15)+IF(FO15=0,0,($AA15-$AB15-$AC15)*$AA$61*1/$C15)+IF(FP15=0,0,($AE15-$AF15-$AG15)*$AE$61*1/$C15)+IF(FQ15=0,0,($AI15-$AJ15-$AK15)*$AI$61*1/$C15)+IF(FR15=0,0,($AM15-$AN15-$AO15)*$AM$61*1/$C15)+IF(FS15=0,0,($AQ15-$AR15-$AS15)*$AQ$61*1/$C15)+IF(FT15=0,0,($AU15-$AV15-$AW15)*$AU$61*1/$C15)+IF(FU15=0,0,($AY15-$AZ15-$BA15)*$AY$61*1/$C15)+IF(FV15=0,0,($BC15-$BD15-$BE15)*$BC$61*1/$C15)+IF(FW15=0,0,($BG15-$BH15-$BI15)*$BG$61*1/$C15)+IF(FX15=0,0,($BK15-$BL15-$BM15)*$BK$61*1/$C15)+IF(FY15=0,0,($BO15-$BP15-$BQ15)*$BO$61*1/$C15)+IF(FZ15=0,0,($BS15-$BT15-$BU15)*$BS$61*1/$C15)+IF(GA15=0,0,($BW15-$BX15-$BY15)*$BW$61*1/$C15)+IF(GB15=0,0,($CA15-$CB15-$CC15)*$CA$61*1/$C15)+IF(GC15=0,0,($CE15-$CF15-$CG15)*$CE$61*1/$C15)+IF(GD15=0,0,($CI15-$CJ15-$CK15)*$CI$61*1/$C15) -> 280534.2583 | GF15: =IF((1-($HB$2-$CM15)/$C15)>0,(1-($HB$2-$CM15)/$C15),0) -> 0 | GG15: =IF((1-($HB$2-GG$2)/$C15)>0,(1-($HB$2-GG$2)/$C15),0) -> 0.2166666667 | GH15: 0.25 | GI15: 0.2833333333 | GJ15: 0.3166666667 | GK15: 0.35 | GL15: 0.3833333333 | GM15: 0.4166666667 | GN15: 0.45 | GO15: 0.4833333333 | GP15: 0.5166666667 | GQ15: =IF((1-($HB$2-GQ$2)/$C15)>0,(1-($HB$2-GQ$2)/$C15),0) -> 0.55 | GR15: 0.5833333333 | GS15: 0.6166666667 | GT15: 0.65 | GU15: 0.6833333333 | GV15: 0.7166666667 | GW15: 0.75 | GX15: 0.7833333333 | GY15: 0.8166666667 | GZ15: 0.85 | HA15: 0.8666666667 | HB15: =IF(GF15=0,0,($D15-$E15)*1/$C15)+IF(GG15=0,0,($G15-$H15-$I15)*$G$61*1/$C15)+IF(GH15=0,0,($K15-$L15-$M15)*$K$61*1/$C15)+IF(GI15=0,0,($O15-$P15-$Q15)*$O$61*1/$C15)+IF(GJ15=0,0,($S15-$T15-$U15)*$S$61*1/$C15)+IF(GK15=0,0,($W15-$X15-$Y15)*$W$61*1/$C15)+IF(GL15=0,0,($AA15-$AB15-$AC15)*$AA$61*1/$C15)+IF(GM15=0,0,($AE15-$AF15-$AG15)*$AE$61*1/$C15)+IF(GN15=0,0,($AI15-$AJ15-$AK15)*$AI$61*1/$C15)+IF(GO15=0,0,($AM15-$AN15-$AO15)*$AM$61*1/$C15)+IF(GP15=0,0,($AQ15-$AR15-$AS15)*$AQ$61*1/$C15)+IF(GQ15=0,0,($AU15-$AV15-$AW15)*$AU$61*1/$C15)+IF(GR15=0,0,($AY15-$AZ15-$BA15)*$AY$61*1/$C15)+IF(GS15=0,0,($BC15-$BD15-$BE15)*$BC$61*1/$C15)+IF(GT15=0,0,($BG15-$BH15-$BI15)*$BG$61*1/$C15)+IF(GU15=0,0,($BK15-$BL15-$BM15)*$BK$61*1/$C15)+IF(GV15=0,0,($BO15-$BP15-$BQ15)*$BO$61*1/$C15)+IF(GW15=0,0,($BS15-$BT15-$BU15)*$BS$61*1/$C15)+IF(GX15=0,0,($BW15-$BX15-$BY15)*$BW$61*1/$C15)+IF(GY15=0,0,($CA15-$CB15-$CC15)*$CA$61*1/$C15)+IF(GZ15=0,0,($CE15-$CF15-$CG15)*$CE$61*1/$C15)+IF(HA15=0,0,($CI15-$CJ15-$CK15)*$CI$61*1/$C15) -> 280534.2583
B16: Líneas subterráneas AT | C16: 30 | D16: 0 | F16: 0 | G16: 0 | K16: 0 | L16: 0 | O16: 0 | S16: 2783529.55 | W16: 1604617.82 | X16: 0 | AA16: 0 | AB16: 0 | AE16: 2009540.01 | AF16: 0 | AI16: 0 | AJ16: 0 | AM16: 0 | AN16: 0 | AQ16: 0 | AR16: 0 | AU16: 0 | AV16: 0 | AY16: 865449.26 | AZ16: 0 | BC16: 0 | BD16: 0 | BG16: 0 | BH16: 0 | BK16: 0 | BL16: 0 | BO16: 0 | BS16: 0 | BT16: 0 | BW16: 10131388.35 | BX16: 0 | CA16: 0 | CB16: 0 | CE16: 0 | CF16: 0 | CI16: 4258041.81 | CJ16: 0 | CM16: =IF(D16=0,0,2001-(D16-F16)*C16/D16) -> 0 | CN16: =IF((1-($DJ$2-$CM16)/$C16)>0,(1-($DJ$2-$CM16)/$C16),0) -> 0 | CO16: =IF((1-($DJ$2-G$2)/$C16)>0,(1-($DJ$2-G$2)/$C16),0) -> 0.35 | CP16: =IF((1-($DJ$2-K$2)/$C16)>0,(1-($DJ$2-K$2)/$C16),0) -> 0.3833333333 | CQ16: =IF((1-($DJ$2-O$2)/$C16)>0,(1-($DJ$2-O$2)/$C16),0) -> 0.4166666667 | CR16: =IF((1-($DJ$2-S$2)/$C16)>0,(1-($DJ$2-S$2)/$C16),0) -> 0.45 | CS16: =IF((1-($DJ$2-W$2)/$C16)>0,(1-($DJ$2-W$2)/$C16),0) -> 0.4833333333 | CT16: =IF((1-($DJ$2-AA$2)/$C16)>0,(1-($DJ$2-AA$2)/$C16),0) -> 0.5166666667 | CU16: =IF((1-($DJ$2-AE$2)/$C16)>0,(1-($DJ$2-AE$2)/$C16),0) -> 0.55 | CV16: =IF((1-($DJ$2-AI$2)/$C16)>0,(1-($DJ$2-AI$2)/$C16),0) -> 0.5833333333 | CW16: =IF((1-($DJ$2-AM$2)/$C16)>0,(1-($DJ$2-AM$2)/$C16),0) -> 0.6166666667 | CX16: =IF((1-($DJ$2-AQ$2)/$C16)>0,(1-($DJ$2-AQ$2)/$C16),0) -> 0.65 | CY16: =IF((1-($DJ$2-AU$2)/$C16)>0,(1-($DJ$2-AU$2)/$C16),0) -> 0.6833333333 | CZ16: =IF((1-($DJ$2-AY$2)/$C16)>0,(1-($DJ$2-AY$2)/$C16),0) -> 0.7166666667 | DA16: =IF((1-($DJ$2-BC$2)/$C16)>0,(1-($DJ$2-BC$2)/$C16),0) -> 0.75 | DB16: =IF((1-($DJ$2-BG$2)/$C16)>0,(1-($DJ$2-BG$2)/$C16),0) -> 0.7833333333 | DC16: =IF((1-($DJ$2-BK$2)/$C16)>0,(1-($DJ$2-BK$2)/$C16),0) -> 0.8166666667 | DD16: =IF((1-($DJ$2-BO$2)/$C16)>0,(1-($DJ$2-BO$2)/$C16),0) -> 0.85 | DE16: =IF((1-($DJ$2-BS$2)/$C16)>0,(1-($DJ$2-BS$2)/$C16),0) -> 0.8833333333 | DF16: =IF((1-($DJ$2-BW$2)/$C16)>0,(1-($DJ$2-BW$2)/$C16),0) -> 0.9166666667 | DG16: =IF((1-($DJ$2-CA$2)/$C16)>0,(1-($DJ$2-CA$2)/$C16),0) -> 0.95 | DH16: =IF((1-($DJ$2-CE$2)/$C16)>0,(1-($DJ$2-CE$2)/$C16),0) -> 0.9833333333 | DI16: =IF((1-($DJ$2-CI$2)/$C16)>0,(1-($DJ$2-CI$2)/$C16),0) -> 1 | DJ16: =IF(CN16=0,0,($D16-$E16)*1/$C16)+IF(CO16=0,0,($G16-$H16-$I16)*$G$61*1/$C16)+IF(CP16=0,0,($K16-$L16-$M16)*$K$61*1/$C16)+IF(CQ16=0,0,($O16-$P16-$Q16)*$O$61*1/$C16)+IF(CR16=0,0,($S16-$T16-$U16)*$S$61*1/$C16)+IF(CS16=0,0,($W16-$X16-$Y16)*$W$61*1/$C16)+IF(CT16=0,0,($AA16-$AB16-$AC16)*$AA$61*1/$C16)+IF(CU16=0,0,($AE16-$AF16-$AG16)*$AE$61*1/$C16)+IF(CV16=0,0,($AI16-$AJ16-$AK16)*$AI$61*1/$C16)+IF(CW16=0,0,($AM16-$AN16-$AO16)*$AM$61*1/$C16)+IF(CX16=0,0,($AQ16-$AR16-$AS16)*$AQ$61*1/$C16)+IF(CY16=0,0,($AU16-$AV16-$AW16)*$AU$61*1/$C16)+IF(CZ16=0,0,($AY16-$AZ16-$BA16)*$AY$61*1/$C16)+IF(DA16=0,0,($BC16-$BD16-$BE16)*$BC$61*1/$C16)+IF(DB16=0,0,($BG16-$BH16-$BI16)*$BG$61*1/$C16)+IF(DC16=0,0,($BK16-$BL16-$BM16)*$BK$61*1/$C16)+IF(DD16=0,0,($BO16-$BP16-$BQ16)*$BO$61*1/$C16)+IF(DE16=0,0,($BS16-$BT16-$BU16)*$BS$61*1/$C16)+IF(DF16=0,0,($BW16-$BX16-$BY16)*$BW$61*1/$C16)+IF(DG16=0,0,($CA16-$CB16-$CC16)*$CA$61*1/$C16)+IF(DH16=0,0,($CE16-$CF16-$CG16)*$CE$61*1/$C16)+IF(DI16=0,0,($CI16-$CJ16-$CK16)*$CI$61*1/$C16) -> 634105.7683 | DK16: 19023173.05 | DL16: 0 | DM16: =(D16-E16)*CN16+((G16-H16-(I16-J16))*G$61)*CO16+((K16-L16-(M16-N16))*K$61)*CP16+((O16-P16-(Q16-R16))*O$61)*CQ16+((S16-T16-(U16-V16))*S$61)*CR16+((W16-X16-(Y16-Z16))*W$61)*CS16+((AA16-AB16-(AC16-AD16))*AA$61)*CT16+((AE16-AF16-(AG16-AH16))*AE$61)*CU16+((AI16-AJ16-(AK16-AL16))*AI$61)*CV16+((AM16-AN16-(AO16-AP16))*$AM$61)*CW16+((AQ16-AR16-(AS16-AT16))*$AQ$61)*CX16+((AU16-AV16-(AW16-AX16))*$AU$61)*CY16+((AY16-AZ16-(BA16-BB16))*$AY$61)*CZ16+((BC16-BD16-(BE16-BF16))*$BC$61)*DA16+((BG16-BH16-(BI16-BJ16))*$BG$61)*DB16+((BK16-BL16-(BM16-BN16))*$BK$61)*DC16+((BO16-BP16-(BQ16-BR16))*$BO$61)*DD16+((BS16-BT16-(BU16-BV16))*$BS$61)*DE16+((BW16-BX16-(BY16-BZ16))*$BW$61)*DF16+((CA16-CB16-(CC16-CD16))*$CA$61)*DG16+((CE16-CF16-(CG16-CH16))*$CE$61)*DH16+((CI16-CJ16-(CK16-CL16))*$CI$61)*DI16 -> 15249647.21 | DN16: =(DK16-DL16)*1/C16 -> 634105.7683 | DO16: =IF((1-($EK$2-$CM16)/$C16)>0,(1-($EK$2-$CM16)/$C16),0) -> 0 | DP16: 0.3166666667 | DQ16: 0.35 | DR16: 0.3833333333 | DS16: 0.4166666667 | DT16: 0.45 | DU16: 0.4833333333 | DV16: 0.5166666667 | DW16: 0.55 | DX16: 0.5833333333 | DY16: 0.6166666667 | DZ16: 0.65 | EA16: 0.6833333333 | EB16: 0.7166666667 | EC16: 0.75 | ED16: 0.7833333333 | EE16: 0.8166666667 | EF16: 0.85 | EG16: 0.8833333333 | EH16: 0.9166666667 | EI16: 0.95 | EJ16: 0.9666666667 | EK16: =IF(DO16=0,0,($D16-$E16)*1/$C16)+IF(DP16=0,0,($G16-$H16-$I16)*$G$61*1/$C16)+IF(DQ16=0,0,($K16-$L16-$M16)*$K$61*1/$C16)+IF(DR16=0,0,($O16-$P16-$Q16)*$O$61*1/$C16)+IF(DS16=0,0,($S16-$T16-$U16)*$S$61*1/$C16)+IF(DT16=0,0,($W16-$X16-$Y16)*$W$61*1/$C16)+IF(DU16=0,0,($AA16-$AB16-$AC16)*$AA$61*1/$C16)+IF(DV16=0,0,($AE16-$AF16-$AG16)*$AE$61*1/$C16)+IF(DW16=0,0,($AI16-$AJ16-$AK16)*$AI$61*1/$C16)+IF(DX16=0,0,($AM16-$AN16-$AO16)*$AM$61*1/$C16)+IF(DY16=0,0,($AQ16-$AR16-$AS16)*$AQ$61*1/$C16)+IF(DZ16=0,0,($AU16-$AV16-$AW16)*$AU$61*1/$C16)+IF(EA16=0,0,($AY16-$AZ16-$BA16)*$AY$61*1/$C16)+IF(EB16=0,0,($BC16-$BD16-$BE16)*$BC$61*1/$C16)+IF(EC16=0,0,($BG16-$BH16-$BI16)*$BG$61*1/$C16)+IF(ED16=0,0,($BK16-$BL16-$BM16)*$BK$61*1/$C16)+IF(EE16=0,0,($BO16-$BP16-$BQ16)*$BO$61*1/$C16)+IF(EF16=0,0,($BS16-$BT16-$BU16)*$BS$61*1/$C16)+IF(EG16=0,0,($BW16-$BX16-$BY16)*$BW$61*1/$C16)+IF(EH16=0,0,($CA16-$CB16-$CC16)*$CA$61*1/$C16)+IF(EI16=0,0,($CE16-$CF16-$CG16)*$CE$61*1/$C16)+IF(EJ16=0,0,($CI16-$CJ16-$CK16)*$CI$61*1/$C16) -> 634105.7683 | EL16: =IF((1-($FH$2-$CM16)/$C16)>0,(1-($FH$2-$CM16)/$C16),0) -> 0 | EM16: 0.2833333333 | EN16: 0.3166666667 | EO16: 0.35 | EP16: 0.3833333333 | EQ16: 0.4166666667 | ER16: 0.45 | ES16: 0.4833333333 | ET16: 0.5166666667 | EU16: 0.55 | EV16: 0.5833333333 | EW16: 0.6166666667 | EX16: 0.65 | EY16: 0.6833333333 | EZ16: 0.7166666667 | FA16: 0.75 | FB16: 0.7833333333 | FC16: 0.8166666667 | FD16: 0.85 | FE16: 0.8833333333 | FF16: 0.9166666667 | FG16: 0.9333333333 | FH16: =IF(EL16=0,0,($D16-$E16)*1/$C16)+IF(EM16=0,0,($G16-$H16-$I16)*$G$61*1/$C16)+IF(EN16=0,0,($K16-$L16-$M16)*$K$61*1/$C16)+IF(EO16=0,0,($O16-$P16-$Q16)*$O$61*1/$C16)+IF(EP16=0,0,($S16-$T16-$U16)*$S$61*1/$C16)+IF(EQ16=0,0,($W16-$X16-$Y16)*$W$61*1/$C16)+IF(ER16=0,0,($AA16-$AB16-$AC16)*$AA$61*1/$C16)+IF(ES16=0,0,($AE16-$AF16-$AG16)*$AE$61*1/$C16)+IF(ET16=0,0,($AI16-$AJ16-$AK16)*$AI$61*1/$C16)+IF(EU16=0,0,($AM16-$AN16-$AO16)*$AM$61*1/$C16)+IF(EV16=0,0,($AQ16-$AR16-$AS16)*$AQ$61*1/$C16)+IF(EW16=0,0,($AU16-$AV16-$AW16)*$AU$61*1/$C16)+IF(EX16=0,0,($AY16-$AZ16-$BA16)*$AY$61*1/$C16)+IF(EY16=0,0,($BC16-$BD16-$BE16)*$BC$61*1/$C16)+IF(EZ16=0,0,($BG16-$BH16-$BI16)*$BG$61*1/$C16)+IF(FA16=0,0,($BK16-$BL16-$BM16)*$BK$61*1/$C16)+IF(FB16=0,0,($BO16-$BP16-$BQ16)*$BO$61*1/$C16)+IF(FC16=0,0,($BS16-$BT16-$BU16)*$BS$61*1/$C16)+IF(FD16=0,0,($BW16-$BX16-$BY16)*$BW$61*1/$C16)+IF(FE16=0,0,($CA16-$CB16-$CC16)*$CA$61*1/$C16)+IF(FF16=0,0,($CE16-$CF16-$CG16)*$CE$61*1/$C16)+IF(FG16=0,0,($CI16-$CJ16-$CK16)*$CI$61*1/$C16) -> 634105.7683 | FI16: =IF((1-($GE$2-$CM16)/$C16)>0,(1-($GE$2-$CM16)/$C16),0) -> 0 | FJ16: 0.25 | FK16: 0.2833333333 | FL16: 0.3166666667 | FM16: 0.35 | FN16: 0.3833333333 | FO16: 0.4166666667 | FP16: 0.45 | FQ16: 0.4833333333 | FR16: 0.5166666667 | FS16: 0.55 | FT16: 0.5833333333 | FU16: 0.6166666667 | FV16: 0.65 | FW16: 0.6833333333 | FX16: 0.7166666667 | FY16: 0.75 | FZ16: 0.7833333333 | GA16: 0.8166666667 | GB16: 0.85 | GC16: 0.8833333333 | GD16: 0.9 | GE16: =IF(FI16=0,0,($D16-$E16)*1/$C16)+IF(FJ16=0,0,($G16-$H16-$I16)*$G$61*1/$C16)+IF(FK16=0,0,($K16-$L16-$M16)*$K$61*1/$C16)+IF(FL16=0,0,($O16-$P16-$Q16)*$O$61*1/$C16)+IF(FM16=0,0,($S16-$T16-$U16)*$S$61*1/$C16)+IF(FN16=0,0,($W16-$X16-$Y16)*$W$61*1/$C16)+IF(FO16=0,0,($AA16-$AB16-$AC16)*$AA$61*1/$C16)+IF(FP16=0,0,($AE16-$AF16-$AG16)*$AE$61*1/$C16)+IF(FQ16=0,0,($AI16-$AJ16-$AK16)*$AI$61*1/$C16)+IF(FR16=0,0,($AM16-$AN16-$AO16)*$AM$61*1/$C16)+IF(FS16=0,0,($AQ16-$AR16-$AS16)*$AQ$61*1/$C16)+IF(FT16=0,0,($AU16-$AV16-$AW16)*$AU$61*1/$C16)+IF(FU16=0,0,($AY16-$AZ16-$BA16)*$AY$61*1/$C16)+IF(FV16=0,0,($BC16-$BD16-$BE16)*$BC$61*1/$C16)+IF(FW16=0,0,($BG16-$BH16-$BI16)*$BG$61*1/$C16)+IF(FX16=0,0,($BK16-$BL16-$BM16)*$BK$61*1/$C16)+IF(FY16=0,0,($BO16-$BP16-$BQ16)*$BO$61*1/$C16)+IF(FZ16=0,0,($BS16-$BT16-$BU16)*$BS$61*1/$C16)+IF(GA16=0,0,($BW16-$BX16-$BY16)*$BW$61*1/$C16)+IF(GB16=0,0,($CA16-$CB16-$CC16)*$CA$61*1/$C16)+IF(GC16=0,0,($CE16-$CF16-$CG16)*$CE$61*1/$C16)+IF(GD16=0,0,($CI16-$CJ16-$CK16)*$CI$61*1/$C16) -> 634105.7683 | GF16: =IF((1-($HB$2-$CM16)/$C16)>0,(1-($HB$2-$CM16)/$C16),0) -> 0 | GG16: 0.2166666667 | GH16: 0.25 | GI16: 0.2833333333 | GJ16: 0.3166666667 | GK16: 0.35 | GL16: 0.3833333333 | GM16: 0.4166666667 | GN16: 0.45 | GO16: 0.4833333333 | GP16: 0.5166666667 | GQ16: 0.55 | GR16: 0.5833333333 | GS16: 0.6166666667 | GT16: 0.65 | GU16: 0.6833333333 | GV16: 0.7166666667 | GW16: 0.75 | GX16: 0.7833333333 | GY16: 0.8166666667 | GZ16: 0.85 | HA16: 0.8666666667 | HB16: =IF(GF16=0,0,($D16-$E16)*1/$C16)+IF(GG16=0,0,($G16-$H16-$I16)*$G$61*1/$C16)+IF(GH16=0,0,($K16-$L16-$M16)*$K$61*1/$C16)+IF(GI16=0,0,($O16-$P16-$Q16)*$O$61*1/$C16)+IF(GJ16=0,0,($S16-$T16-$U16)*$S$61*1/$C16)+IF(GK16=0,0,($W16-$X16-$Y16)*$W$61*1/$C16)+IF(GL16=0,0,($AA16-$AB16-$AC16)*$AA$61*1/$C16)+IF(GM16=0,0,($AE16-$AF16-$AG16)*$AE$61*1/$C16)+IF(GN16=0,0,($AI16-$AJ16-$AK16)*$AI$61*1/$C16)+IF(GO16=0,0,($AM16-$AN16-$AO16)*$AM$61*1/$C16)+IF(GP16=0,0,($AQ16-$AR16-$AS16)*$AQ$61*1/$C16)+IF(GQ16=0,0,($AU16-$AV16-$AW16)*$AU$61*1/$C16)+IF(GR16=0,0,($AY16-$AZ16-$BA16)*$AY$61*1/$C16)+IF(GS16=0,0,($BC16-$BD16-$BE16)*$BC$61*1/$C16)+IF(GT16=0,0,($BG16-$BH16-$BI16)*$BG$61*1/$C16)+IF(GU16=0,0,($BK16-$BL16-$BM16)*$BK$61*1/$C16)+IF(GV16=0,0,($BO16-$BP16-$BQ16)*$BO$61*1/$C16)+IF(GW16=0,0,($BS16-$BT16-$BU16)*$BS$61*1/$C16)+IF(GX16=0,0,($BW16-$BX16-$BY16)*$BW$61*1/$C16)+IF(GY16=0,0,($CA16-$CB16-$CC16)*$CA$61*1/$C16)+IF(GZ16=0,0,($CE16-$CF16-$CG16)*$CE$61*1/$C16)+IF(HA16=0,0,($CI16-$CJ16-$CK16)*$CI$61*1/$C16) -> 634105.7683
B17: Subestaciones AT / MT | C17: 30 | D17: 18156752.04 | F17: 10392690.24 | G17: 4326524.08 | K17: 157348.18 | L17: 0 | O17: 1381720.04 | S17: 6562191 | W17: 1779943 | X17: 0 | AA17: 0 | AB17: 0 | AE17: 166644.7334 | AF17: 0 | AI17: 0 | AJ17: 0 | AM17: 334932 | AN17: 0 | AQ17: 6198413.53 | AR17: 0 | AU17: 151071 | AV17: 0 | AY17: 4576000.19 | AZ17: 0 | BC17: 142571.36 | BD17: 0 | BG17: 627083.91 | BH17: 0 | BK17: 3314374 | BL17: 0 | BO17: 26484224.05 | BS17: 0 | BT17: 0 | BW17: 23784412.84 | BX17: 0 | CA17: 0 | CB17: 0 | CE17: 0 | CF17: 0 | CI17: 0 | CJ17: 0 | CM17: =IF(D17=0,0,2001-(D17-F17)*C17/D17) -> 1988.171612 | CN17: =IF((1-($DJ$2-$CM17)/$C17)>0,(1-($DJ$2-$CM17)/$C17),0) -> 0 | CO17: =IF((1-($DJ$2-G$2)/$C17)>0,(1-($DJ$2-G$2)/$C17),0) -> 0.35 | CP17: =IF((1-($DJ$2-K$2)/$C17)>0,(1-($DJ$2-K$2)/$C17),0) -> 0.3833333333 | CQ17: =IF((1-($DJ$2-O$2)/$C17)>0,(1-($DJ$2-O$2)/$C17),0) -> 0.4166666667 | CR17: =IF((1-($DJ$2-S$2)/$C17)>0,(1-($DJ$2-S$2)/$C17),0) -> 0.45 | CS17: =IF((1-($DJ$2-W$2)/$C17)>0,(1-($DJ$2-W$2)/$C17),0) -> 0.4833333333 | CT17: =IF((1-($DJ$2-AA$2)/$C17)>0,(1-($DJ$2-AA$2)/$C17),0) -> 0.5166666667 | CU17: =IF((1-($DJ$2-AE$2)/$C17)>0,(1-($DJ$2-AE$2)/$C17),0) -> 0.55 | CV17: =IF((1-($DJ$2-AI$2)/$C17)>0,(1-($DJ$2-AI$2)/$C17),0) -> 0.5833333333 | CW17: =IF((1-($DJ$2-AM$2)/$C17)>0,(1-($DJ$2-AM$2)/$C17),0) -> 0.6166666667 | CX17: =IF((1-($DJ$2-AQ$2)/$C17)>0,(1-($DJ$2-AQ$2)/$C17),0) -> 0.65 | CY17: =IF((1-($DJ$2-AU$2)/$C17)>0,(1-($DJ$2-AU$2)/$C17),0) -> 0.6833333333 | CZ17: =IF((1-($DJ$2-AY$2)/$C17)>0,(1-($DJ$2-AY$2)/$C17),0) -> 0.7166666667 | DA17: =IF((1-($DJ$2-BC$2)/$C17)>0,(1-($DJ$2-BC$2)/$C17),0) -> 0.75 | DB17: =IF((1-($DJ$2-BG$2)/$C17)>0,(1-($DJ$2-BG$2)/$C17),0) -> 0.7833333333 | DC17: =IF((1-($DJ$2-BK$2)/$C17)>0,(1-($DJ$2-BK$2)/$C17),0) -> 0.8166666667 | DD17: =IF((1-($DJ$2-BO$2)/$C17)>0,(1-($DJ$2-BO$2)/$C17),0) -> 0.85 | DE17: =IF((1-($DJ$2-BS$2)/$C17)>0,(1-($DJ$2-BS$2)/$C17),0) -> 0.8833333333 | DF17: =IF((1-($DJ$2-BW$2)/$C17)>0,(1-($DJ$2-BW$2)/$C17),0) -> 0.9166666667 | DG17: =IF((1-($DJ$2-CA$2)/$C17)>0,(1-($DJ$2-CA$2)/$C17),0) -> 0.95 | DH17: =IF((1-($DJ$2-CE$2)/$C17)>0,(1-($DJ$2-CE$2)/$C17),0) -> 0.9833333333 | DI17: =IF((1-($DJ$2-CI$2)/$C17)>0,(1-($DJ$2-CI$2)/$C17),0) -> 1 | DJ17: 2344061.827 | DK17: 88478606.85 | DL17: 18156752.04 | DM17: 53982375.59 | DN17: =(DK17-DL17)*1/C17 -> 2344061.827 | DO17: =IF((1-($EK$2-$CM17)/$C17)>0,(1-($EK$2-$CM17)/$C17),0) -> 0 | DP17: 0.3166666667 | DQ17: 0.35 | DR17: 0.3833333333 | DS17: 0.4166666667 | DT17: 0.45 | DU17: 0.4833333333 | DV17: 0.5166666667 | DW17: 0.55 | DX17: 0.5833333333 | DY17: 0.6166666667 | DZ17: 0.65 | EA17: 0.6833333333 | EB17: 0.7166666667 | EC17: 0.75 | ED17: 0.7833333333 | EE17: 0.8166666667 | EF17: 0.85 | EG17: 0.8833333333 | EH17: 0.9166666667 | EI17: 0.95 | EJ17: 0.9666666667 | EK17: 2344061.827 | EL17: =IF((1-($FH$2-$CM17)/$C17)>0,(1-($FH$2-$CM17)/$C17),0) -> 0 | EM17: 0.2833333333 | EN17: 0.3166666667 | EO17: 0.35 | EP17: 0.3833333333 | EQ17: 0.4166666667 | ER17: 0.45 | ES17: 0.4833333333 | ET17: 0.5166666667 | EU17: 0.55 | EV17: 0.5833333333 | EW17: 0.6166666667 | EX17: 0.65 | EY17: 0.6833333333 | EZ17: 0.7166666667 | FA17: 0.75 | FB17: 0.7833333333 | FC17: 0.8166666667 | FD17: 0.85 | FE17: 0.8833333333 | FF17: 0.9166666667 | FG17: 0.9333333333 | FH17: 2344061.827 | FI17: =IF((1-($GE$2-$CM17)/$C17)>0,(1-($GE$2-$CM17)/$C17),0) -> 0 | FJ17: 0.25 | FK17: 0.2833333333 | FL17: 0.3166666667 | FM17: 0.35 | FN17: 0.3833333333 | FO17: 0.4166666667 | FP17: 0.45 | FQ17: 0.4833333333 | FR17: 0.5166666667 | FS17: 0.55 | FT17: 0.5833333333 | FU17: 0.6166666667 | FV17: 0.65 | FW17: 0.6833333333 | FX17: 0.7166666667 | FY17: 0.75 | FZ17: 0.7833333333 | GA17: 0.8166666667 | GB17: 0.85 | GC17: 0.8833333333 | GD17: 0.9 | GE17: 2344061.827 | GF17: =IF((1-($HB$2-$CM17)/$C17)>0,(1-($HB$2-$CM17)/$C17),0) -> 0 | GG17: 0.2166666667 | GH17: 0.25 | GI17: 0.2833333333 | GJ17: 0.3166666667 | GK17: 0.35 | GL17: 0.3833333333 | GM17: 0.4166666667 | GN17: 0.45 | GO17: 0.4833333333 | GP17: 0.5166666667 | GQ17: 0.55 | GR17: 0.5833333333 | GS17: 0.6166666667 | GT17: 0.65 | GU17: 0.6833333333 | GV17: 0.7166666667 | GW17: 0.75 | GX17: 0.7833333333 | GY17: 0.8166666667 | GZ17: 0.85 | HA17: 0.8666666667 | HB17: 2344061.827
B18: Media tensión MT | D18: 0 | F18: 0 | L18: 0 | S18: 0 | AM18: 0 | AN18: 0 | AQ18: 0 | AR18: 0 | AU18: 0 | AV18: 0 | AY18: 0 | AZ18: 0 | BT18: 0 | DK18: 0 | DL18: 0
B19: Líneas aéreas de 34,5 kV | C19: 30 | D19: 45104668.05 | F19: 25817329.13 | G19: 2914508.15 | I19: 0 | K19: 3062464.14 | L19: 1808541 | O19: 1498368 | S19: 1733828 | W19: 1547007.83 | X19: 0 | AA19: 2952333.6 | AB19: 2113411.09 | AE19: 1377326.58 | AF19: 0 | AI19: 1034198.062 | AJ19: 0 | AM19: 1234757.036 | AN19: 0 | AQ19: 1681984.59 | AR19: 0 | AU19: 2780704.24 | AV19: 0 | AY19: 4280570.02 | AZ19: 0 | BC19: 3354499.77 | BD19: 0 | BG19: 5909381.01 | BH19: 0 | BK19: 6619649.3 | BL19: 0 | BO19: 4833550.55 | BP19: 118750.13 | BS19: 4797715.83 | BT19: 2055532.858 | BW19: 4806193.38 | BX19: 603046.7516 | CA19: 3077749.28 | CB19: 286168.8197 | CE19: 6323802.02 | CF19: 636787.3964 | CI19: 8058850.2 | CJ19: 0 | CM19: =IF(D19=0,0,2001-(D19-F19)*C19/D19) -> 1988.171612 | CN19: =IF((1-($DJ$2-$CM19)/$C19)>0,(1-($DJ$2-$CM19)/$C19),0) -> 0 | CO19: =IF((1-($DJ$2-G$2)/$C19)>0,(1-($DJ$2-G$2)/$C19),0) -> 0.35 | CP19: =IF((1-($DJ$2-K$2)/$C19)>0,(1-($DJ$2-K$2)/$C19),0) -> 0.3833333333 | CQ19: =IF((1-($DJ$2-O$2)/$C19)>0,(1-($DJ$2-O$2)/$C19),0) -> 0.4166666667 | CR19: =IF((1-($DJ$2-S$2)/$C19)>0,(1-($DJ$2-S$2)/$C19),0) -> 0.45 | CS19: =IF((1-($DJ$2-W$2)/$C19)>0,(1-($DJ$2-W$2)/$C19),0) -> 0.4833333333 | CT19: =IF((1-($DJ$2-AA$2)/$C19)>0,(1-($DJ$2-AA$2)/$C19),0) -> 0.5166666667 | CU19: =IF((1-($DJ$2-AE$2)/$C19)>0,(1-($DJ$2-AE$2)/$C19),0) -> 0.55 | CV19: =IF((1-($DJ$2-AI$2)/$C19)>0,(1-($DJ$2-AI$2)/$C19),0) -> 0.5833333333 | CW19: =IF((1-($DJ$2-AM$2)/$C19)>0,(1-($DJ$2-AM$2)/$C19),0) -> 0.6166666667 | CX19: =IF((1-($DJ$2-AQ$2)/$C19)>0,(1-($DJ$2-AQ$2)/$C19),0) -> 0.65 | CY19: =IF((1-($DJ$2-AU$2)/$C19)>0,(1-($DJ$2-AU$2)/$C19),0) -> 0.6833333333 | CZ19: =IF((1-($DJ$2-AY$2)/$C19)>0,(1-($DJ$2-AY$2)/$C19),0) -> 0.7166666667 | DA19: =IF((1-($DJ$2-BC$2)/$C19)>0,(1-($DJ$2-BC$2)/$C19),0) -> 0.75 | DB19: =IF((1-($DJ$2-BG$2)/$C19)>0,(1-($DJ$2-BG$2)/$C19),0) -> 0.7833333333 | DC19: =IF((1-($DJ$2-BK$2)/$C19)>0,(1-($DJ$2-BK$2)/$C19),0) -> 0.8166666667 | DD19: =IF((1-($DJ$2-BO$2)/$C19)>0,(1-($DJ$2-BO$2)/$C19),0) -> 0.85 | DE19: =IF((1-($DJ$2-BS$2)/$C19)>0,(1-($DJ$2-BS$2)/$C19),0) -> 0.8833333333 | DF19: =IF((1-($DJ$2-BW$2)/$C19)>0,(1-($DJ$2-BW$2)/$C19),0) -> 0.9166666667 | DG19: =IF((1-($DJ$2-CA$2)/$C19)>0,(1-($DJ$2-CA$2)/$C19),0) -> 0.95 | DH19: =IF((1-($DJ$2-CE$2)/$C19)>0,(1-($DJ$2-CE$2)/$C19),0) -> 0.9833333333 | DI19: =IF((1-($DJ$2-CI$2)/$C19)>0,(1-($DJ$2-CI$2)/$C19),0) -> 1 | DJ19: =IF(CN19=0,0,($D19-$E19)*1/$C19)+IF(CO19=0,0,($G19-$H19-$I19)*$G$61*1/$C19)+IF(CP19=0,0,($K19-$L19-$M19)*$K$61*1/$C19)+IF(CQ19=0,0,($O19-$P19-$Q19)*$O$61*1/$C19)+IF(CR19=0,0,($S19-$T19-$U19)*$S$61*1/$C19)+IF(CS19=0,0,($W19-$X19-$Y19)*$W$61*1/$C19)+IF(CT19=0,0,($AA19-$AB19-$AC19)*$AA$61*1/$C19)+IF(CU19=0,0,($AE19-$AF19-$AG19)*$AE$61*1/$C19)+IF(CV19=0,0,($AI19-$AJ19-$AK19)*$AI$61*1/$C19)+IF(CW19=0,0,($AM19-$AN19-$AO19)*$AM$61*1/$C19)+IF(CX19=0,0,($AQ19-$AR19-$AS19)*$AQ$61*1/$C19)+IF(CY19=0,0,($AU19-$AV19-$AW19)*$AU$61*1/$C19)+IF(CZ19=0,0,($AY19-$AZ19-$BA19)*$AY$61*1/$C19)+IF(DA19=0,0,($BC19-$BD19-$BE19)*$BC$61*1/$C19)+IF(DB19=0,0,($BG19-$BH19-$BI19)*$BG$61*1/$C19)+IF(DC19=0,0,($BK19-$BL19-$BM19)*$BK$61*1/$C19)+IF(DD19=0,0,($BO19-$BP19-$BQ19)*$BO$61*1/$C19)+IF(DE19=0,0,($BS19-$BT19-$BU19)*$BS$61*1/$C19)+IF(DF19=0,0,($BW19-$BX19-$BY19)*$BW$61*1/$C19)+IF(DG19=0,0,($CA19-$CB19-$CC19)*$CA$61*1/$C19)+IF(DH19=0,0,($CE19-$CF19-$CG19)*$CE$61*1/$C19)+IF(DI19=0,0,($CI19-$CJ19-$CK19)*$CI$61*1/$C19) -> 1927886.519 | DK19: 102941263.6 | DL19: 45104668.05 | DM19: =(D19-E19)*CN19+((G19-H19-(I19-J19))*G$61)*CO19+((K19-L19-(M19-N19))*K$61)*CP19+((O19-P19-(Q19-R19))*O$61)*CQ19+((S19-T19-(U19-V19))*S$61)*CR19+((W19-X19-(Y19-Z19))*W$61)*CS19+((AA19-AB19-(AC19-AD19))*AA$61)*CT19+((AE19-AF19-(AG19-AH19))*AE$61)*CU19+((AI19-AJ19-(AK19-AL19))*AI$61)*CV19+((AM19-AN19-(AO19-AP19))*$AM$61)*CW19+((AQ19-AR19-(AS19-AT19))*$AQ$61)*CX19+((AU19-AV19-(AW19-AX19))*$AU$61)*CY19+((AY19-AZ19-(BA19-BB19))*$AY$61)*CZ19+((BC19-BD19-(BE19-BF19))*$BC$61)*DA19+((BG19-BH19-(BI19-BJ19))*$BG$61)*DB19+((BK19-BL19-(BM19-BN19))*$BK$61)*DC19+((BO19-BP19-(BQ19-BR19))*$BO$61)*DD19+((BS19-BT19-(BU19-BV19))*$BS$61)*DE19+((BW19-BX19-(BY19-BZ19))*$BW$61)*DF19+((CA19-CB19-(CC19-CD19))*$CA$61)*DG19+((CE19-CF19-(CG19-CH19))*$CE$61)*DH19+((CI19-CJ19-(CK19-CL19))*$CI$61)*DI19 -> 45028712.52 | DN19: =(DK19-DL19)*1/C19 -> 1927886.519 | DO19: =IF((1-($EK$2-$CM19)/$C19)>0,(1-($EK$2-$CM19)/$C19),0) -> 0 | DP19: =IF((1-($EK$2-DP$2)/$C19)>0,(1-($EK$2-DP$2)/$C19),0) -> 0.3166666667 | DQ19: 0.35 | DR19: 0.3833333333 | DS19: 0.4166666667 | DT19: 0.45 | DU19: 0.4833333333 | DV19: 0.5166666667 | DW19: 0.55 | DX19: 0.5833333333 | DY19: 0.6166666667 | DZ19: =IF((1-($EK$2-DZ$2)/$C19)>0,(1-($EK$2-DZ$2)/$C19),0) -> 0.65 | EA19: 0.6833333333 | EB19: 0.7166666667 | EC19: 0.75 | ED19: 0.7833333333 | EE19: 0.8166666667 | EF19: 0.85 | EG19: 0.8833333333 | EH19: 0.9166666667 | EI19: 0.95 | EJ19: 0.9666666667 | EK19: =IF(DO19=0,0,($D19-$E19)*1/$C19)+IF(DP19=0,0,($G19-$H19-$I19)*$G$61*1/$C19)+IF(DQ19=0,0,($K19-$L19-$M19)*$K$61*1/$C19)+IF(DR19=0,0,($O19-$P19-$Q19)*$O$61*1/$C19)+IF(DS19=0,0,($S19-$T19-$U19)*$S$61*1/$C19)+IF(DT19=0,0,($W19-$X19-$Y19)*$W$61*1/$C19)+IF(DU19=0,0,($AA19-$AB19-$AC19)*$AA$61*1/$C19)+IF(DV19=0,0,($AE19-$AF19-$AG19)*$AE$61*1/$C19)+IF(DW19=0,0,($AI19-$AJ19-$AK19)*$AI$61*1/$C19)+IF(DX19=0,0,($AM19-$AN19-$AO19)*$AM$61*1/$C19)+IF(DY19=0,0,($AQ19-$AR19-$AS19)*$AQ$61*1/$C19)+IF(DZ19=0,0,($AU19-$AV19-$AW19)*$AU$61*1/$C19)+IF(EA19=0,0,($AY19-$AZ19-$BA19)*$AY$61*1/$C19)+IF(EB19=0,0,($BC19-$BD19-$BE19)*$BC$61*1/$C19)+IF(EC19=0,0,($BG19-$BH19-$BI19)*$BG$61*1/$C19)+IF(ED19=0,0,($BK19-$BL19-$BM19)*$BK$61*1/$C19)+IF(EE19=0,0,($BO19-$BP19-$BQ19)*$BO$61*1/$C19)+IF(EF19=0,0,($BS19-$BT19-$BU19)*$BS$61*1/$C19)+IF(EG19=0,0,($BW19-$BX19-$BY19)*$BW$61*1/$C19)+IF(EH19=0,0,($CA19-$CB19-$CC19)*$CA$61*1/$C19)+IF(EI19=0,0,($CE19-$CF19-$CG19)*$CE$61*1/$C19)+IF(EJ19=0,0,($CI19-$CJ19-$CK19)*$CI$61*1/$C19) -> 1927886.519 | EL19: =IF((1-($FH$2-$CM19)/$C19)>0,(1-($FH$2-$CM19)/$C19),0) -> 0 | EM19: =IF((1-($FH$2-EM$2)/$C19)>0,(1-($FH$2-EM$2)/$C19),0) -> 0.2833333333 | EN19: 0.3166666667 | EO19: 0.35 | EP19: 0.3833333333 | EQ19: 0.4166666667 | ER19: 0.45 | ES19: 0.4833333333 | ET19: 0.5166666667 | EU19: 0.55 | EV19: 0.5833333333 | EW19: =IF((1-($FH$2-EW$2)/$C19)>0,(1-($FH$2-EW$2)/$C19),0) -> 0.6166666667 | EX19: 0.65 | EY19: 0.6833333333 | EZ19: 0.7166666667 | FA19: 0.75 | FB19: 0.7833333333 | FC19: 0.8166666667 | FD19: 0.85 | FE19: 0.8833333333 | FF19: 0.9166666667 | FG19: 0.9333333333 | FH19: =IF(EL19=0,0,($D19-$E19)*1/$C19)+IF(EM19=0,0,($G19-$H19-$I19)*$G$61*1/$C19)+IF(EN19=0,0,($K19-$L19-$M19)*$K$61*1/$C19)+IF(EO19=0,0,($O19-$P19-$Q19)*$O$61*1/$C19)+IF(EP19=0,0,($S19-$T19-$U19)*$S$61*1/$C19)+IF(EQ19=0,0,($W19-$X19-$Y19)*$W$61*1/$C19)+IF(ER19=0,0,($AA19-$AB19-$AC19)*$AA$61*1/$C19)+IF(ES19=0,0,($AE19-$AF19-$AG19)*$AE$61*1/$C19)+IF(ET19=0,0,($AI19-$AJ19-$AK19)*$AI$61*1/$C19)+IF(EU19=0,0,($AM19-$AN19-$AO19)*$AM$61*1/$C19)+IF(EV19=0,0,($AQ19-$AR19-$AS19)*$AQ$61*1/$C19)+IF(EW19=0,0,($AU19-$AV19-$AW19)*$AU$61*1/$C19)+IF(EX19=0,0,($AY19-$AZ19-$BA19)*$AY$61*1/$C19)+IF(EY19=0,0,($BC19-$BD19-$BE19)*$BC$61*1/$C19)+IF(EZ19=0,0,($BG19-$BH19-$BI19)*$BG$61*1/$C19)+IF(FA19=0,0,($BK19-$BL19-$BM19)*$BK$61*1/$C19)+IF(FB19=0,0,($BO19-$BP19-$BQ19)*$BO$61*1/$C19)+IF(FC19=0,0,($BS19-$BT19-$BU19)*$BS$61*1/$C19)+IF(FD19=0,0,($BW19-$BX19-$BY19)*$BW$61*1/$C19)+IF(FE19=0,0,($CA19-$CB19-$CC19)*$CA$61*1/$C19)+IF(FF19=0,0,($CE19-$CF19-$CG19)*$CE$61*1/$C19)+IF(FG19=0,0,($CI19-$CJ19-$CK19)*$CI$61*1/$C19) -> 1927886.519 | FI19: =IF((1-($GE$2-$CM19)/$C19)>0,(1-($GE$2-$CM19)/$C19),0) -> 0 | FJ19: =IF((1-($GE$2-FJ$2)/$C19)>0,(1-($GE$2-FJ$2)/$C19),0) -> 0.25 | FK19: 0.2833333333 | FL19: 0.3166666667 | FM19: 0.35 | FN19: 0.3833333333 | FO19: 0.4166666667 | FP19: 0.45 | FQ19: 0.4833333333 | FR19: 0.5166666667 | FS19: 0.55 | FT19: =IF((1-($GE$2-FT$2)/$C19)>0,(1-($GE$2-FT$2)/$C19),0) -> 0.5833333333 | FU19: 0.6166666667 | FV19: 0.65 | FW19: 0.6833333333 | FX19: 0.7166666667 | FY19: 0.75 | FZ19: 0.7833333333 | GA19: 0.8166666667 | GB19: 0.85 | GC19: 0.8833333333 | GD19: 0.9 | GE19: =IF(FI19=0,0,($D19-$E19)*1/$C19)+IF(FJ19=0,0,($G19-$H19-$I19)*$G$61*1/$C19)+IF(FK19=0,0,($K19-$L19-$M19)*$K$61*1/$C19)+IF(FL19=0,0,($O19-$P19-$Q19)*$O$61*1/$C19)+IF(FM19=0,0,($S19-$T19-$U19)*$S$61*1/$C19)+IF(FN19=0,0,($W19-$X19-$Y19)*$W$61*1/$C19)+IF(FO19=0,0,($AA19-$AB19-$AC19)*$AA$61*1/$C19)+IF(FP19=0,0,($AE19-$AF19-$AG19)*$AE$61*1/$C19)+IF(FQ19=0,0,($AI19-$AJ19-$AK19)*$AI$61*1/$C19)+IF(FR19=0,0,($AM19-$AN19-$AO19)*$AM$61*1/$C19)+IF(FS19=0,0,($AQ19-$AR19-$AS19)*$AQ$61*1/$C19)+IF(FT19=0,0,($AU19-$AV19-$AW19)*$AU$61*1/$C19)+IF(FU19=0,0,($AY19-$AZ19-$BA19)*$AY$61*1/$C19)+IF(FV19=0,0,($BC19-$BD19-$BE19)*$BC$61*1/$C19)+IF(FW19=0,0,($BG19-$BH19-$BI19)*$BG$61*1/$C19)+IF(FX19=0,0,($BK19-$BL19-$BM19)*$BK$61*1/$C19)+IF(FY19=0,0,($BO19-$BP19-$BQ19)*$BO$61*1/$C19)+IF(FZ19=0,0,($BS19-$BT19-$BU19)*$BS$61*1/$C19)+IF(GA19=0,0,($BW19-$BX19-$BY19)*$BW$61*1/$C19)+IF(GB19=0,0,($CA19-$CB19-$CC19)*$CA$61*1/$C19)+IF(GC19=0,0,($CE19-$CF19-$CG19)*$CE$61*1/$C19)+IF(GD19=0,0,($CI19-$CJ19-$CK19)*$CI$61*1/$C19) -> 1927886.519 | GF19: =IF((1-($HB$2-$CM19)/$C19)>0,(1-($HB$2-$CM19)/$C19),0) -> 0 | GG19: =IF((1-($HB$2-GG$2)/$C19)>0,(1-($HB$2-GG$2)/$C19),0) -> 0.2166666667 | GH19: 0.25 | GI19: 0.2833333333 | GJ19: 0.3166666667 | GK19: 0.35 | GL19: 0.3833333333 | GM19: 0.4166666667 | GN19: 0.45 | GO19: 0.4833333333 | GP19: 0.5166666667 | GQ19: =IF((1-($HB$2-GQ$2)/$C19)>0,(1-($HB$2-GQ$2)/$C19),0) -> 0.55 | GR19: 0.5833333333 | GS19: 0.6166666667 | GT19: 0.65 | GU19: 0.6833333333 | GV19: 0.7166666667 | GW19: 0.75 | GX19: 0.7833333333 | GY19: 0.8166666667 | GZ19: 0.85 | HA19: 0.8666666667 | HB19: =IF(GF19=0,0,($D19-$E19)*1/$C19)+IF(GG19=0,0,($G19-$H19-$I19)*$G$61*1/$C19)+IF(GH19=0,0,($K19-$L19-$M19)*$K$61*1/$C19)+IF(GI19=0,0,($O19-$P19-$Q19)*$O$61*1/$C19)+IF(GJ19=0,0,($S19-$T19-$U19)*$S$61*1/$C19)+IF(GK19=0,0,($W19-$X19-$Y19)*$W$61*1/$C19)+IF(GL19=0,0,($AA19-$AB19-$AC19)*$AA$61*1/$C19)+IF(GM19=0,0,($AE19-$AF19-$AG19)*$AE$61*1/$C19)+IF(GN19=0,0,($AI19-$AJ19-$AK19)*$AI$61*1/$C19)+IF(GO19=0,0,($AM19-$AN19-$AO19)*$AM$61*1/$C19)+IF(GP19=0,0,($AQ19-$AR19-$AS19)*$AQ$61*1/$C19)+IF(GQ19=0,0,($AU19-$AV19-$AW19)*$AU$61*1/$C19)+IF(GR19=0,0,($AY19-$AZ19-$BA19)*$AY$61*1/$C19)+IF(GS19=0,0,($BC19-$BD19-$BE19)*$BC$61*1/$C19)+IF(GT19=0,0,($BG19-$BH19-$BI19)*$BG$61*1/$C19)+IF(GU19=0,0,($BK19-$BL19-$BM19)*$BK$61*1/$C19)+IF(GV19=0,0,($BO19-$BP19-$BQ19)*$BO$61*1/$C19)+IF(GW19=0,0,($BS19-$BT19-$BU19)*$BS$61*1/$C19)+IF(GX19=0,0,($BW19-$BX19-$BY19)*$BW$61*1/$C19)+IF(GY19=0,0,($CA19-$CB19-$CC19)*$CA$61*1/$C19)+IF(GZ19=0,0,($CE19-$CF19-$CG19)*$CE$61*1/$C19)+IF(HA19=0,0,($CI19-$CJ19-$CK19)*$CI$61*1/$C19) -> 1927886.519
A20: SISTEMA DE | B20: Líneas aéreas de 13,8 kV | C20: 30 | D20: 100883795.7 | F20: 57744581.01 | G20: 1741512.35 | K20: 2384819.88 | L20: 3414229 | O20: 2124392.57 | S20: 2093227 | W20: 1399144.93 | X20: 0 | AA20: 1584434.51 | AB20: 0 | AE20: 1996551.18 | AF20: 0 | AI20: 983938.8204 | AJ20: 0 | AM20: 1839009.653 | AN20: 0 | AQ20: 2262361.055 | AR20: 0 | AU20: 3050666.73 | AV20: 0 | AY20: 3331989.86 | AZ20: 0 | BC20: 4128251.36 | BD20: 530.95 | BG20: 6311478.26 | BH20: 0 | BK20: 4644619.17 | BL20: 0 | BO20: 12759446.23 | BP20: 96386.4 | BS20: 5705683.61 | BT20: 735802.572 | BW20: 4115472.98 | BX20: 798963.0786 | CA20: 5854286.54 | CB20: 1242203.851 | CE20: 6072353.75 | CF20: 137610.1895 | CI20: 3143272.7 | CJ20: 0 | CM20: 1988.171612 | CN20: 0 | CO20: 0.35 | CP20: 0.3833333333 | CQ20: 0.4166666667 | CR20: 0.45 | CS20: 0.4833333333 | CT20: 0.5166666667 | CU20: 0.55 | CV20: 0.5833333333 | CW20: 0.6166666667 | CX20: 0.65 | CY20: 0.6833333333 | CZ20: 0.7166666667 | DA20: 0.75 | DB20: 0.7833333333 | DC20: 0.8166666667 | DD20: 0.85 | DE20: 0.8833333333 | DF20: 0.9166666667 | DG20: 0.95 | DH20: 0.9833333333 | DI20: 1 | DJ20: 2067912.972 | DK20: 162921184.9 | DL20: 100883795.7 | DM20: =(D20-E20)*CN20+((G20-H20-(I20-J20))*G$61)*CO20+((K20-L20-(M20-N20))*K$61)*CP20+((O20-P20-(Q20-R20))*O$61)*CQ20+((S20-T20-(U20-V20))*S$61)*CR20+((W20-X20-(Y20-Z20))*W$61)*CS20+((AA20-AB20-(AC20-AD20))*AA$61)*CT20+((AE20-AF20-(AG20-AH20))*AE$61)*CU20+((AI20-AJ20-(AK20-AL20))*AI$61)*CV20+((AM20-AN20-(AO20-AP20))*$AM$61)*CW20+((AQ20-AR20-(AS20-AT20))*$AQ$61)*CX20+((AU20-AV20-(AW20-AX20))*$AU$61)*CY20+((AY20-AZ20-(BA20-BB20))*$AY$61)*CZ20+((BC20-BD20-(BE20-BF20))*$BC$61)*DA20+((BG20-BH20-(BI20-BJ20))*$BG$61)*DB20+((BK20-BL20-(BM20-BN20))*$BK$61)*DC20+((BO20-BP20-(BQ20-BR20))*$BO$61)*DD20+((BS20-BT20-(BU20-BV20))*$BS$61)*DE20+((BW20-BX20-(BY20-BZ20))*$BW$61)*DF20+((CA20-CB20-(CC20-CD20))*$CA$61)*DG20+((CE20-CF20-(CG20-CH20))*$CE$61)*DH20+((CI20-CJ20-(CK20-CL20))*$CI$61)*DI20 -> 48727554.08 | DN20: 2067912.972 | DO20: 0 | DP20: 0.3166666667 | DQ20: 0.35 | DR20: 0.3833333333 | DS20: 0.4166666667 | DT20: 0.45 | DU20: 0.4833333333 | DV20: 0.5166666667 | DW20: 0.55 | DX20: 0.5833333333 | DY20: 0.6166666667 | DZ20: 0.65 | EA20: 0.6833333333 | EB20: 0.7166666667 | EC20: 0.75 | ED20: 0.7833333333 | EE20: 0.8166666667 | EF20: 0.85 | EG20: 0.8833333333 | EH20: 0.9166666667 | EI20: 0.95 | EJ20: 0.9666666667 | EK20: 2067912.972 | EL20: 0 | EM20: 0.2833333333 | EN20: 0.3166666667 | EO20: 0.35 | EP20: 0.3833333333 | EQ20: 0.4166666667 | ER20: 0.45 | ES20: 0.4833333333 | ET20: 0.5166666667 | EU20: 0.55 | EV20: 0.5833333333 | EW20: 0.6166666667 | EX20: 0.65 | EY20: 0.6833333333 | EZ20: 0.7166666667 | FA20: 0.75 | FB20: 0.7833333333 | FC20: 0.8166666667 | FD20: 0.85 | FE20: 0.8833333333 | FF20: 0.9166666667 | FG20: 0.9333333333 | FH20: 2067912.972 | FI20: 0 | FJ20: 0.25 | FK20: 0.2833333333 | FL20: 0.3166666667 | FM20: 0.35 | FN20: 0.3833333333 | FO20: 0.4166666667 | FP20: 0.45 | FQ20: 0.4833333333 | FR20: 0.5166666667 | FS20: 0.55 | FT20: 0.5833333333 | FU20: 0.6166666667 | FV20: 0.65 | FW20: 0.6833333333 | FX20: 0.7166666667 | FY20: 0.75 | FZ20: 0.7833333333 | GA20: 0.8166666667 | GB20: 0.85 | GC20: 0.8833333333 | GD20: 0.9 | GE20: 2067912.972 | GF20: 0 | GG20: 0.2166666667 | GH20: 0.25 | GI20: 0.2833333333 | GJ20: 0.3166666667 | GK20: 0.35 | GL20: 0.3833333333 | GM20: 0.4166666667 | GN20: 0.45 | GO20: 0.4833333333 | GP20: 0.5166666667 | GQ20: 0.55 | GR20: 0.5833333333 | GS20: 0.6166666667 | GT20: 0.65 | GU20: 0.6833333333 | GV20: 0.7166666667 | GW20: 0.75 | GX20: 0.7833333333 | GY20: 0.8166666667 | GZ20: 0.85 | HA20: 0.8666666667 | HB20: 2067912.972
A21: DISTRIBUCION | B21: Líneas aéreas de otras tensiones | C21: 30 | D21: 10502599.28 | F21: 6011557.798 | G21: 0 | K21: 0 | L21: 0 | O21: 0 | S21: 1587005 | T21: 1587005 | W21: 0 | X21: 0 | AA21: 0 | AB21: 0 | AE21: 0 | AF21: 0 | AI21: 0 | AJ21: 0 | AM21: 0 | AN21: 0 | AQ21: 0 | AR21: 0 | AU21: 0 | AV21: 0 | AY21: 0 | AZ21: 0 | BC21: 0 | BD21: 0 | BG21: 0 | BH21: 0 | BK21: 0 | BL21: 0 | BO21: 0 | BP21: 0 | BS21: 0 | BT21: 0 | BW21: 0 | BX21: 0 | CA21: 0 | CB21: 0 | CE21: 0 | CF21: 0 | CI21: 0 | CJ21: 0 | CM21: 1988.171629 | CN21: 0 | CO21: 0.35 | CP21: 0.3833333333 | CQ21: 0.4166666667 | CR21: 0.45 | CS21: 0.4833333333 | CT21: 0.5166666667 | CU21: 0.55 | CV21: 0.5833333333 | CW21: 0.6166666667 | CX21: 0.65 | CY21: 0.6833333333 | CZ21: 0.7166666667 | DA21: 0.75 | DB21: 0.7833333333 | DC21: 0.8166666667 | DD21: 0.85 | DE21: 0.8833333333 | DF21: 0.9166666667 | DG21: 0.95 | DH21: 0.9833333333 | DI21: 1 | DJ21: 0 | DK21: 10502599.28 | DL21: 10502599.28 | DM21: 0 | DN21: 0 | DO21: 0 | DP21: 0.3166666667 | DQ21: 0.35 | DR21: 0.3833333333 | DS21: 0.4166666667 | DT21: 0.45 | DU21: 0.4833333333 | DV21: 0.5166666667 | DW21: 0.55 | DX21: 0.5833333333 | DY21: 0.6166666667 | DZ21: 0.65 | EA21: 0.6833333333 | EB21: 0.7166666667 | EC21: 0.75 | ED21: 0.7833333333 | EE21: 0.8166666667 | EF21: 0.85 | EG21: 0.8833333333 | EH21: 0.9166666667 | EI21: 0.95 | EJ21: 0.9666666667 | EK21: 0 | EL21: 0 | EM21: 0.2833333333 | EN21: 0.3166666667 | EO21: 0.35 | EP21: 0.3833333333 | EQ21: 0.4166666667 | ER21: 0.45 | ES21: 0.4833333333 | ET21: 0.5166666667 | EU21: 0.55 | EV21: 0.5833333333 | EW21: 0.6166666667 | EX21: 0.65 | EY21: 0.6833333333 | EZ21: 0.7166666667 | FA21: 0.75 | FB21: 0.7833333333 | FC21: 0.8166666667 | FD21: 0.85 | FE21: 0.8833333333 | FF21: 0.9166666667 | FG21: 0.9333333333 | FH21: 0 | FI21: 0 | FJ21: 0.25 | FK21: 0.2833333333 | FL21: 0.3166666667 | FM21: 0.35 | FN21: 0.3833333333 | FO21: 0.4166666667 | FP21: 0.45 | FQ21: 0.4833333333 | FR21: 0.5166666667 | FS21: 0.55 | FT21: 0.5833333333 | FU21: 0.6166666667 | FV21: 0.65 | FW21: 0.6833333333 | FX21: 0.7166666667 | FY21: 0.75 | FZ21: 0.7833333333 | GA21: 0.8166666667 | GB21: 0.85 | GC21: 0.8833333333 | GD21: 0.9 | GE21: 0 | GF21: 0 | GG21: 0.2166666667 | GH21: 0.25 | GI21: 0.2833333333 | GJ21: 0.3166666667 | GK21: 0.35 | GL21: 0.3833333333 | GM21: 0.4166666667 | GN21: 0.45 | GO21: 0.4833333333 | GP21: 0.5166666667 | GQ21: 0.55 | GR21: 0.5833333333 | GS21: 0.6166666667 | GT21: 0.65 | GU21: 0.6833333333 | GV21: 0.7166666667 | GW21: 0.75 | GX21: 0.7833333333 | GY21: 0.8166666667 | GZ21: 0.85 | HA21: 0.8666666667 | HB21: 0
B22: Líneas subterráneas de 34,5 kV | C22: 30 | D22: 0 | F22: 0 | G22: 8243.08 | K22: 107822.54 | L22: 0 | O22: 14342 | S22: 40902.2 | W22: 105842.357 | X22: 0 | AA22: 51925 | AB22: 0 | AE22: 329931.08 | AF22: 0 | AI22: 698785.9325 | AJ22: 0 | AM22: 703903.87 | AN22: 0 | AQ22: 1218864.87 | AR22: 0 | AU22: 1378168.08 | AV22: 0 | AY22: 2304144.9 | AZ22: 0 | BC22: 636574.14 | BD22: 0 | BG22: 1089814.49 | BH22: 0 | BK22: 2864804.4 | BL22: 0 | BO22: 3568242.03 | BP22: 0 | BS22: 5052388.86 | BT22: 534.1688639 | BW22: 4373991.28 | BX22: 123702.2916 | CA22: 1687195.05 | CB22: 0 | CE22: 1433187.02 | CF22: 31268.68981 | CI22: 1544444.68 | CJ22: 0 | CM22: 0 | CN22: 0 | CO22: 0.35 | CP22: 0.3833333333 | CQ22: 0.4166666667 | CR22: 0.45 | CS22: 0.4833333333 | CT22: 0.5166666667 | CU22: 0.55 | CV22: 0.5833333333 | CW22: 0.6166666667 | CX22: 0.65 | CY22: 0.6833333333 | CZ22: 0.7166666667 | DA22: 0.75 | DB22: 0.7833333333 | DC22: 0.8166666667 | DD22: 0.85 | DE22: 0.8833333333 | DF22: 0.9166666667 | DG22: 0.95 | DH22: 0.9833333333 | DI22: 1 | DJ22: 847196.8059 | DK22: 25415904.18 | DL22: 0 | DM22: 21170230.94 | DN22: 847196.8059 | DO22: 0 | DP22: 0.3166666667 | DQ22: 0.35 | DR22: 0.3833333333 | DS22: 0.4166666667 | DT22: 0.45 | DU22: 0.4833333333 | DV22: 0.5166666667 | DW22: 0.55 | DX22: 0.5833333333 | DY22: 0.6166666667 | DZ22: 0.65 | EA22: 0.6833333333 | EB22: 0.7166666667 | EC22: 0.75 | ED22: 0.7833333333 | EE22: 0.8166666667 | EF22: 0.85 | EG22: 0.8833333333 | EH22: 0.9166666667 | EI22: 0.95 | EJ22: 0.9666666667 | EK22: 847196.8059 | EL22: 0 | EM22: 0.2833333333 | EN22: 0.3166666667 | EO22: 0.35 | EP22: 0.3833333333 | EQ22: 0.4166666667 | ER22: 0.45 | ES22: 0.4833333333 | ET22: 0.5166666667 | EU22: 0.55 | EV22: 0.5833333333 | EW22: 0.6166666667 | EX22: 0.65 | EY22: 0.6833333333 | EZ22: 0.7166666667 | FA22: 0.75 | FB22: 0.7833333333 | FC22: 0.8166666667 | FD22: 0.85 | FE22: 0.8833333333 | FF22: 0.9166666667 | FG22: 0.9333333333 | FH22: 847196.8059 | FI22: 0 | FJ22: 0.25 | FK22: 0.2833333333 | FL22: 0.3166666667 | FM22: 0.35 | FN22: 0.3833333333 | FO22: 0.4166666667 | FP22: 0.45 | FQ22: 0.4833333333 | FR22: 0.5166666667 | FS22: 0.55 | FT22: 0.5833333333 | FU22: 0.6166666667 | FV22: 0.65 | FW22: 0.6833333333 | FX22: 0.7166666667 | FY22: 0.75 | FZ22: 0.7833333333 | GA22: 0.8166666667 | GB22: 0.85 | GC22: 0.8833333333 | GD22: 0.9 | GE22: 847196.8059 | GF22: 0 | GG22: 0.2166666667 | GH22: 0.25 | GI22: 0.2833333333 | GJ22: 0.3166666667 | GK22: 0.35 | GL22: 0.3833333333 | GM22: 0.4166666667 | GN22: 0.45 | GO22: 0.4833333333 | GP22: 0.5166666667 | GQ22: 0.55 | GR22: 0.5833333333 | GS22: 0.6166666667 | GT22: 0.65 | GU22: 0.6833333333 | GV22: 0.7166666667 | GW22: 0.75 | GX22: 0.7833333333 | GY22: 0.8166666667 | GZ22: 0.85 | HA22: 0.8666666667 | HB22: 847196.8059
B23: Líneas subterráneas de 13,8 kV | C23: 30 | D23: 0 | F23: 0 | G23: 1472247.99 | K23: 3838199.57 | L23: 0 | O23: 1377632.68 | S23: 2456072 | W23: 3090247.853 | X23: 0 | AA23: 3365313 | AB23: 0 | AE23: 3107834.99 | AF23: 0 | AI23: 4921819.294 | AJ23: 0 | AM23: 4251329 | AN23: 0 | AQ23: 3671640.23 | AR23: 0 | AU23: 7538643.9 | AV23: 0 | AY23: 6958840.28 | AZ23: 0 | BC23: 12170665.8 | BD23: 478353.08 | BG23: 5933814.64 | BH23: 0 | BK23: 5356550.3 | BL23: 0 | BO23: 5843959.26 | BP23: 406107.12 | BS23: 10054434.03 | BT23: 662756.1645 | BW23: 10425595.39 | BX23: 785332.7495 | CA23: 15796364.14 | CB23: 332188.9776 | CE23: 14610646.7 | CF23: 42531.55081 | CI23: 8026992.21 | CJ23: 0 | CM23: 0 | CN23: 0 | CO23: 0.35 | CP23: 0.3833333333 | CQ23: 0.4166666667 | CR23: 0.45 | CS23: 0.4833333333 | CT23: 0.5166666667 | CU23: 0.55 | CV23: 0.5833333333 | CW23: 0.6166666667 | CX23: 0.65 | CY23: 0.6833333333 | CZ23: 0.7166666667 | DA23: 0.75 | DB23: 0.7833333333 | DC23: 0.8166666667 | DD23: 0.85 | DE23: 0.8833333333 | DF23: 0.9166666667 | DG23: 0.95 | DH23: 0.9833333333 | DI23: 1 | DJ23: 3819690.439 | DK23: 114590713.2 | DL23: 0 | DM23: 90195799.12 | DN23: 3819690.439 | DO23: 0 | DP23: 0.3166666667 | DQ23: 0.35 | DR23: 0.3833333333 | DS23: 0.4166666667 | DT23: 0.45 | DU23: 0.4833333333 | DV23: 0.5166666667 | DW23: 0.55 | DX23: 0.5833333333 | DY23: 0.6166666667 | DZ23: 0.65 | EA23: 0.6833333333 | EB23: 0.7166666667 | EC23: 0.75 | ED23: 0.7833333333 | EE23: 0.8166666667 | EF23: 0.85 | EG23: 0.8833333333 | EH23: 0.9166666667 | EI23: 0.95 | EJ23: 0.9666666667 | EK23: 3819690.439 | EL23: 0 | EM23: 0.2833333333 | EN23: 0.3166666667 | EO23: 0.35 | EP23: 0.3833333333 | EQ23: 0.4166666667 | ER23: 0.45 | ES23: 0.4833333333 | ET23: 0.5166666667 | EU23: 0.55 | EV23: 0.5833333333 | EW23: 0.6166666667 | EX23: 0.65 | EY23: 0.6833333333 | EZ23: 0.7166666667 | FA23: 0.75 | FB23: 0.7833333333 | FC23: 0.8166666667 | FD23: 0.85 | FE23: 0.8833333333 | FF23: 0.9166666667 | FG23: 0.9333333333 | FH23: 3819690.439 | FI23: 0 | FJ23: 0.25 | FK23: 0.2833333333 | FL23: 0.3166666667 | FM23: 0.35 | FN23: 0.3833333333 | FO23: 0.4166666667 | FP23: 0.45 | FQ23: 0.4833333333 | FR23: 0.5166666667 | FS23: 0.55 | FT23: 0.5833333333 | FU23: 0.6166666667 | FV23: 0.65 | FW23: 0.6833333333 | FX23: 0.7166666667 | FY23: 0.75 | FZ23: 0.7833333333 | GA23: 0.8166666667 | GB23: 0.85 | GC23: 0.8833333333 | GD23: 0.9 | GE23: 3819690.439 | GF23: 0 | GG23: 0.2166666667 | GH23: 0.25 | GI23: 0.2833333333 | GJ23: 0.3166666667 | GK23: 0.35 | GL23: 0.3833333333 | GM23: 0.4166666667 | GN23: 0.45 | GO23: 0.4833333333 | GP23: 0.5166666667 | GQ23: 0.55 | GR23: 0.5833333333 | GS23: 0.6166666667 | GT23: 0.65 | GU23: 0.6833333333 | GV23: 0.7166666667 | GW23: 0.75 | GX23: 0.7833333333 | GY23: 0.8166666667 | GZ23: 0.85 | HA23: 0.8666666667 | HB23: 3819690.439
B24: Líneas subterráneas de otras tensiones | C24: 30 | D24: 0 | F24: 0 | G24: 0 | K24: 0 | L24: 0 | O24: 0 | S24: 0 | W24: 0 | X24: 0 | AA24: 0 | AB24: 0 | AE24: 0 | AF24: 0 | AI24: 0 | AJ24: 0 | AM24: 0 | AN24: 0 | AQ24: 0 | AR24: 0 | AU24: 0 | AV24: 0 | AY24: 0 | AZ24: 0 | BC24: 1366746.74 | BD24: 0 | BG24: 109.42 | BH24: 0 | BK24: 0 | BL24: 0 | BO24: 0 | BP24: 0 | BS24: 0 | BT24: 0 | BW24: 79492.33 | BX24: 0 | CA24: 143770.49 | CB24: 0 | CE24: 19786.24 | CF24: 0 | CI24: 0 | CJ24: 0 | CM24: 0 | CN24: 0 | CO24: 0.35 | CP24: 0.3833333333 | CQ24: 0.4166666667 | CR24: 0.45 | CS24: 0.4833333333 | CT24: 0.5166666667 | CU24: 0.55 | CV24: 0.5833333333 | CW24: 0.6166666667 | CX24: 0.65 | CY24: 0.6833333333 | CZ24: 0.7166666667 | DA24: 0.75 | DB24: 0.7833333333 | DC24: 0.8166666667 | DD24: 0.85 | DE24: 0.8833333333 | DF24: 0.9166666667 | DG24: 0.95 | DH24: 0.9833333333 | DI24: 1 | DJ24: 47663.08517 | DK24: 1429892.555 | DL24: 0 | DM24: 1113481.761 | DN24: 47663.08517 | DO24: 0 | DP24: 0.3166666667 | DQ24: 0.35 | DR24: 0.3833333333 | DS24: 0.4166666667 | DT24: 0.45 | DU24: 0.4833333333 | DV24: 0.5166666667 | DW24: 0.55 | DX24: 0.5833333333 | DY24: 0.6166666667 | DZ24: 0.65 | EA24: 0.6833333333 | EB24: 0.7166666667 | EC24: 0.75 | ED24: 0.7833333333 | EE24: 0.8166666667 | EF24: 0.85 | EG24: 0.8833333333 | EH24: 0.9166666667 | EI24: 0.95 | EJ24: 0.9666666667 | EK24: 47663.08517 | EL24: 0 | EM24: 0.2833333333 | EN24: 0.3166666667 | EO24: 0.35 | EP24: 0.3833333333 | EQ24: 0.4166666667 | ER24: 0.45 | ES24: 0.4833333333 | ET24: 0.5166666667 | EU24: 0.55 | EV24: 0.5833333333 | EW24: 0.6166666667 | EX24: 0.65 | EY24: 0.6833333333 | EZ24: 0.7166666667 | FA24: 0.75 | FB24: 0.7833333333 | FC24: 0.8166666667 | FD24: 0.85 | FE24: 0.8833333333 | FF24: 0.9166666667 | FG24: 0.9333333333 | FH24: 47663.08517 | FI24: 0 | FJ24: 0.25 | FK24: 0.2833333333 | FL24: 0.3166666667 | FM24: 0.35 | FN24: 0.3833333333 | FO24: 0.4166666667 | FP24: 0.45 | FQ24: 0.4833333333 | FR24: 0.5166666667 | FS24: 0.55 | FT24: 0.5833333333 | FU24: 0.6166666667 | FV24: 0.65 | FW24: 0.6833333333 | FX24: 0.7166666667 | FY24: 0.75 | FZ24: 0.7833333333 | GA24: 0.8166666667 | GB24: 0.85 | GC24: 0.8833333333 | GD24: 0.9 | GE24: 47663.08517 | GF24: 0 | GG24: 0.2166666667 | GH24: 0.25 | GI24: 0.2833333333 | GJ24: 0.3166666667 | GK24: 0.35 | GL24: 0.3833333333 | GM24: 0.4166666667 | GN24: 0.45 | GO24: 0.4833333333 | GP24: 0.5166666667 | GQ24: 0.55 | GR24: 0.5833333333 | GS24: 0.6166666667 | GT24: 0.65 | GU24: 0.6833333333 | GV24: 0.7166666667 | GW24: 0.75 | GX24: 0.7833333333 | GY24: 0.8166666667 | GZ24: 0.85 | HA24: 0.8666666667 | HB24: 47663.08517
B25: Subestaciones 34,5 kV / MT | C25: 30 | D25: 17407504.25 | F25: 9963827.377 | G25: 971291.34 | K25: 500978.81 | L25: 0 | O25: 82711.3 | S25: 196573.92 | W25: 85078 | X25: 0 | AA25: 359524 | AB25: 0 | AE25: 29930 | AF25: 0 | AI25: 134179.56 | AJ25: 0 | AM25: 90583 | AN25: 0 | AQ25: 171534.52 | AR25: 0 | AU25: 944923.23 | AV25: 0 | AY25: 3898824.7 | AZ25: 0 | BC25: 972435.57 | BD25: 0 | BG25: 1163308 | BH25: 0 | BK25: 30881.94 | BL25: 0 | BO25: 2187634 | BP25: 0 | BS25: 342347.92 | BT25: 0 | BW25: 67883.61 | BX25: 0 | CA25: 199439.7 | CB25: 0 | CE25: 831146.56 | CF25: 0 | CI25: 0 | CJ25: 0 | CM25: 1988.171607 | CN25: 0 | CO25: 0.35 | CP25: 0.3833333333 | CQ25: 0.4166666667 | CR25: 0.45 | CS25: 0.4833333333 | CT25: 0.5166666667 | CU25: 0.55 | CV25: 0.5833333333 | CW25: 0.6166666667 | CX25: 0.65 | CY25: 0.6833333333 | CZ25: 0.7166666667 | DA25: 0.75 | DB25: 0.7833333333 | DC25: 0.8166666667 | DD25: 0.85 | DE25: 0.8833333333 | DF25: 0.9166666667 | DG25: 0.95 | DH25: 0.9833333333 | DI25: 1 | DJ25: 381473.6744 | DK25: 28851714.48 | DL25: 17407504.25 | DM25: 8193106.369 | DN25: 381473.6744 | DO25: 0 | DP25: 0.3166666667 | DQ25: 0.35 | DR25: 0.3833333333 | DS25: 0.4166666667 | DT25: 0.45 | DU25: 0.4833333333 | DV25: 0.5166666667 | DW25: 0.55 | DX25: 0.5833333333 | DY25: 0.6166666667 | DZ25: 0.65 | EA25: 0.6833333333 | EB25: 0.7166666667 | EC25: 0.75 | ED25: 0.7833333333 | EE25: 0.8166666667 | EF25: 0.85 | EG25: 0.8833333333 | EH25: 0.9166666667 | EI25: 0.95 | EJ25: 0.9666666667 | EK25: 381473.6744 | EL25: 0 | EM25: 0.2833333333 | EN25: 0.3166666667 | EO25: 0.35 | EP25: 0.3833333333 | EQ25: 0.4166666667 | ER25: 0.45 | ES25: 0.4833333333 | ET25: 0.5166666667 | EU25: 0.55 | EV25: 0.5833333333 | EW25: 0.6166666667 | EX25: 0.65 | EY25: 0.6833333333 | EZ25: 0.7166666667 | FA25: 0.75 | FB25: 0.7833333333 | FC25: 0.8166666667 | FD25: 0.85 | FE25: 0.8833333333 | FF25: 0.9166666667 | FG25: 0.9333333333 | FH25: 381473.6744 | FI25: 0 | FJ25: 0.25 | FK25: 0.2833333333 | FL25: 0.3166666667 | FM25: 0.35 | FN25: 0.3833333333 | FO25: 0.4166666667 | FP25: 0.45 | FQ25: 0.4833333333 | FR25: 0.5166666667 | FS25: 0.55 | FT25: 0.5833333333 | FU25: 0.6166666667 | FV25: 0.65 | FW25: 0.6833333333 | FX25: 0.7166666667 | FY25: 0.75 | FZ25: 0.7833333333 | GA25: 0.8166666667 | GB25: 0.85 | GC25: 0.8833333333 | GD25: 0.9 | GE25: 381473.6744 | GF25: 0 | GG25: 0.2166666667 | GH25: 0.25 | GI25: 0.2833333333 | GJ25: 0.3166666667 | GK25: 0.35 | GL25: 0.3833333333 | GM25: 0.4166666667 | GN25: 0.45 | GO25: 0.4833333333 | GP25: 0.5166666667 | GQ25: 0.55 | GR25: 0.5833333333 | GS25: 0.6166666667 | GT25: 0.65 | GU25: 0.6833333333 | GV25: 0.7166666667 | GW25: 0.75 | GX25: 0.7833333333 | GY25: 0.8166666667 | GZ25: 0.85 | HA25: 0.8666666667 | HB25: 381473.6744
B26: Subestaciones 13,8 kV / MT | C26: 30 | D26: 0 | F26: 0 | G26: 0 | K26: 0 | L26: 0 | O26: 0 | S26: 0 | W26: 0 | X26: 0 | AA26: 0 | AB26: 0 | AE26: 0 | AF26: 0 | AI26: 0 | AJ26: 0 | AM26: 0 | AN26: 0 | AQ26: 0 | AR26: 0 | AU26: 0 | AV26: 0 | AY26: 0 | AZ26: 0 | BC26: 0 | BD26: 0 | BG26: 0 | BH26: 0 | BK26: 0 | BL26: 0 | BO26: 0 | BP26: 0 | BS26: 0 | BT26: 0 | BW26: 0 | BX26: 0 | CA26: 0 | CB26: 0 | CE26: 0 | CF26: 0 | CI26: 0 | CJ26: 0 | CM26: 0 | CN26: 0 | CO26: 0.35 | CP26: 0.3833333333 | CQ26: 0.4166666667 | CR26: 0.45 | CS26: 0.4833333333 | CT26: 0.5166666667 | CU26: 0.55 | CV26: 0.5833333333 | CW26: 0.6166666667 | CX26: 0.65 | CY26: 0.6833333333 | CZ26: 0.7166666667 | DA26: 0.75 | DB26: 0.7833333333 | DC26: 0.8166666667 | DD26: 0.85 | DE26: 0.8833333333 | DF26: 0.9166666667 | DG26: 0.95 | DH26: 0.9833333333 | DI26: 1 | DJ26: 0 | DK26: 0 | DL26: 0 | DM26: 0 | DN26: 0 | DO26: 0 | DP26: 0.3166666667 | DQ26: 0.35 | DR26: 0.3833333333 | DS26: 0.4166666667 | DT26: 0.45 | DU26: 0.4833333333 | DV26: 0.5166666667 | DW26: 0.55 | DX26: 0.5833333333 | DY26: 0.6166666667 | DZ26: 0.65 | EA26: 0.6833333333 | EB26: 0.7166666667 | EC26: 0.75 | ED26: 0.7833333333 | EE26: 0.8166666667 | EF26: 0.85 | EG26: 0.8833333333 | EH26: 0.9166666667 | EI26: 0.95 | EJ26: 0.9666666667 | EK26: 0 | EL26: 0 | EM26: 0.2833333333 | EN26: 0.3166666667 | EO26: 0.35 | EP26: 0.3833333333 | EQ26: 0.4166666667 | ER26: 0.45 | ES26: 0.4833333333 | ET26: 0.5166666667 | EU26: 0.55 | EV26: 0.5833333333 | EW26: 0.6166666667 | EX26: 0.65 | EY26: 0.6833333333 | EZ26: 0.7166666667 | FA26: 0.75 | FB26: 0.7833333333 | FC26: 0.8166666667 | FD26: 0.85 | FE26: 0.8833333333 | FF26: 0.9166666667 | FG26: 0.9333333333 | FH26: 0 | FI26: 0 | FJ26: 0.25 | FK26: 0.2833333333 | FL26: 0.3166666667 | FM26: 0.35 | FN26: 0.3833333333 | FO26: 0.4166666667 | FP26: 0.45 | FQ26: 0.4833333333 | FR26: 0.5166666667 | FS26: 0.55 | FT26: 0.5833333333 | FU26: 0.6166666667 | FV26: 0.65 | FW26: 0.6833333333 | FX26: 0.7166666667 | FY26: 0.75 | FZ26: 0.7833333333 | GA26: 0.8166666667 | GB26: 0.85 | GC26: 0.8833333333 | GD26: 0.9 | GE26: 0 | GF26: 0 | GG26: 0.2166666667 | GH26: 0.25 | GI26: 0.2833333333 | GJ26: 0.3166666667 | GK26: 0.35 | GL26: 0.3833333333 | GM26: 0.4166666667 | GN26: 0.45 | GO26: 0.4833333333 | GP26: 0.5166666667 | GQ26: 0.55 | GR26: 0.5833333333 | GS26: 0.6166666667 | GT26: 0.65 | GU26: 0.6833333333 | GV26: 0.7166666667 | GW26: 0.75 | GX26: 0.7833333333 | GY26: 0.8166666667 | GZ26: 0.85 | HA26: 0.8666666667 | HB26: 0
B27: Otras subestaciones MT/MT | C27: 30 | D27: 436488.8419 | F27: 249840.5726 | G27: 0 | K27: 0 | L27: 0 | O27: 0 | S27: 0 | W27: 0 | X27: 0 | AA27: 0 | AB27: 0 | AE27: 39584.84 | AF27: 0 | AI27: 0 | AJ27: 0 | AM27: 0 | AN27: 0 | AQ27: 0 | AR27: 0 | AU27: 0 | AV27: 0 | AY27: 0 | AZ27: 0 | BC27: 4801158.07 | BD27: 178855.01 | BG27: 4337045.64 | BH27: 0 | BK27: 2628149.1 | BL27: 0 | BO27: 0 | BP27: 0 | BS27: 0 | BT27: 0 | BW27: 0 | BX27: 0 | CA27: 0 | CB27: 0 | CE27: 0 | CF27: 0 | CI27: 0 | CJ27: 0 | CM27: 1988.171612 | CN27: 0 | CO27: 0.35 | CP27: 0.3833333333 | CQ27: 0.4166666667 | CR27: 0.45 | CS27: 0.4833333333 | CT27: 0.5166666667 | CU27: 0.55 | CV27: 0.5833333333 | CW27: 0.6166666667 | CX27: 0.65 | CY27: 0.6833333333 | CZ27: 0.7166666667 | DA27: 0.75 | DB27: 0.7833333333 | DC27: 0.8166666667 | DD27: 0.85 | DE27: 0.8833333333 | DF27: 0.9166666667 | DG27: 0.95 | DH27: 0.9833333333 | DI27: 1 | DJ27: 340436.2583 | DK27: 10649576.59 | DL27: 436488.8419 | DM27: 7932710.332 | DN27: 340436.2583 | DO27: 0 | DP27: 0.3166666667 | DQ27: 0.35 | DR27: 0.3833333333 | DS27: 0.4166666667 | DT27: 0.45 | DU27: 0.4833333333 | DV27: 0.5166666667 | DW27: 0.55 | DX27: 0.5833333333 | DY27: 0.6166666667 | DZ27: 0.65 | EA27: 0.6833333333 | EB27: 0.7166666667 | EC27: 0.75 | ED27: 0.7833333333 | EE27: 0.8166666667 | EF27: 0.85 | EG27: 0.8833333333 | EH27: 0.9166666667 | EI27: 0.95 | EJ27: 0.9666666667 | EK27: 340436.2583 | EL27: 0 | EM27: 0.2833333333 | EN27: 0.3166666667 | EO27: 0.35 | EP27: 0.3833333333 | EQ27: 0.4166666667 | ER27: 0.45 | ES27: 0.4833333333 | ET27: 0.5166666667 | EU27: 0.55 | EV27: 0.5833333333 | EW27: 0.6166666667 | EX27: 0.65 | EY27: 0.6833333333 | EZ27: 0.7166666667 | FA27: 0.75 | FB27: 0.7833333333 | FC27: 0.8166666667 | FD27: 0.85 | FE27: 0.8833333333 | FF27: 0.9166666667 | FG27: 0.9333333333 | FH27: 340436.2583 | FI27: 0 | FJ27: 0.25 | FK27: 0.2833333333 | FL27: 0.3166666667 | FM27: 0.35 | FN27: 0.3833333333 | FO27: 0.4166666667 | FP27: 0.45 | FQ27: 0.4833333333 | FR27: 0.5166666667 | FS27: 0.55 | FT27: 0.5833333333 | FU27: 0.6166666667 | FV27: 0.65 | FW27: 0.6833333333 | FX27: 0.7166666667 | FY27: 0.75 | FZ27: 0.7833333333 | GA27: 0.8166666667 | GB27: 0.85 | GC27: 0.8833333333 | GD27: 0.9 | GE27: 340436.2583 | GF27: 0 | GG27: 0.2166666667 | GH27: 0.25 | GI27: 0.2833333333 | GJ27: 0.3166666667 | GK27: 0.35 | GL27: 0.3833333333 | GM27: 0.4166666667 | GN27: 0.45 | GO27: 0.4833333333 | GP27: 0.5166666667 | GQ27: 0.55 | GR27: 0.5833333333 | GS27: 0.6166666667 | GT27: 0.65 | GU27: 0.6833333333 | GV27: 0.7166666667 | GW27: 0.75 | GX27: 0.7833333333 | GY27: 0.8166666667 | GZ27: 0.85 | HA27: 0.8666666667 | HB27: 340436.2583
B28: Centros de reflexión MT | C28: 30 | D28: 0 | F28: 0 | G28: 0 | K28: 0 | L28: 0 | O28: 138983.5 | S28: 0 | W28: 0 | X28: 0 | AA28: 0 | AB28: 0 | AE28: 0 | AF28: 0 | AI28: 0 | AJ28: 0 | AM28: 309329.035 | AN28: 0 | AQ28: 0 | AR28: 0 | AU28: 292858.75 | AV28: 0 | AY28: 875696.712 | AZ28: 0 | BS28: 0 | BT28: 202180.9464 | BW28: 0 | BX28: 495991.9107 | CA28: 0 | CB28: 0 | CE28: 0 | CF28: 0 | CI28: 0 | CJ28: 0 | CM28: 0 | CN28: 0 | CO28: 0.35 | CP28: 0.3833333333 | CQ28: 0.4166666667 | CR28: 0.45 | CS28: 0.4833333333 | CT28: 0.5166666667 | CU28: 0.55 | CV28: 0.5833333333 | CW28: 0.6166666667 | CX28: 0.65 | CY28: 0.6833333333 | CZ28: 0.7166666667 | DA28: 0.75 | DB28: 0.7833333333 | DC28: 0.8166666667 | DD28: 0.85 | DE28: 0.8833333333 | DF28: 0.9166666667 | DG28: 0.95 | DH28: 0.9833333333 | DI28: 1 | DJ28: 23816.51633 | DK28: 714495.4898 | DL28: 0 | DM28: 328133.497 | DN28: 23816.51633 | DO28: 0 | DP28: 0.3166666667 | DQ28: 0.35 | DR28: 0.3833333333 | DS28: 0.4166666667 | DT28: 0.45 | DU28: 0.4833333333 | DV28: 0.5166666667 | DW28: 0.55 | DX28: 0.5833333333 | DY28: 0.6166666667 | DZ28: 0.65 | EA28: 0.6833333333 | EB28: 0.7166666667 | EC28: 0.75 | ED28: 0.7833333333 | EE28: 0.8166666667 | EF28: 0.85 | EG28: 0.8833333333 | EH28: 0.9166666667 | EI28: 0.95 | EJ28: 0.9666666667 | EK28: 23816.51633 | EL28: 0 | EM28: 0.2833333333 | EN28: 0.3166666667 | EO28: 0.35 | EP28: 0.3833333333 | EQ28: 0.4166666667 | ER28: 0.45 | ES28: 0.4833333333 | ET28: 0.5166666667 | EU28: 0.55 | EV28: 0.5833333333 | EW28: 0.6166666667 | EX28: 0.65 | EY28: 0.6833333333 | EZ28: 0.7166666667 | FA28: 0.75 | FB28: 0.7833333333 | FC28: 0.8166666667 | FD28: 0.85 | FE28: 0.8833333333 | FF28: 0.9166666667 | FG28: 0.9333333333 | FH28: 23816.51633 | FI28: 0 | FJ28: 0.25 | FK28: 0.2833333333 | FL28: 0.3166666667 | FM28: 0.35 | FN28: 0.3833333333 | FO28: 0.4166666667 | FP28: 0.45 | FQ28: 0.4833333333 | FR28: 0.5166666667 | FS28: 0.55 | FT28: 0.5833333333 | FU28: 0.6166666667 | FV28: 0.65 | FW28: 0.6833333333 | FX28: 0.7166666667 | FY28: 0.75 | FZ28: 0.7833333333 | GA28: 0.8166666667 | GB28: 0.85 | GC28: 0.8833333333 | GD28: 0.9 | GE28: 23816.51633 | GF28: 0 | GG28: 0.2166666667 | GH28: 0.25 | GI28: 0.2833333333 | GJ28: 0.3166666667 | GK28: 0.35 | GL28: 0.3833333333 | GM28: 0.4166666667 | GN28: 0.45 | GO28: 0.4833333333 | GP28: 0.5166666667 | GQ28: 0.55 | GR28: 0.5833333333 | GS28: 0.6166666667 | GT28: 0.65 | GU28: 0.6833333333 | GV28: 0.7166666667 | GW28: 0.75 | GX28: 0.7833333333 | GY28: 0.8166666667 | GZ28: 0.85 | HA28: 0.8666666667 | HB28: 23816.51633
B29: Centro de transformación 34,5 kV / BT | C29: 30 | D29: 10062100.12 | F29: 5759416.081 | G29: 400749 | K29: 818396.9 | L29: 136692 | O29: 223453 | S29: 454292 | W29: 544331.815 | X29: 0 | AA29: 1616820.73 | AB29: 603831.73 | AE29: 1594911.08 | AF29: 0 | AI29: 1445245.85 | AJ29: 0 | AM29: 1265176.236 | AN29: 0 | AQ29: 3057222.647 | AR29: 0 | AU29: 3302899.73 | AV29: 0 | AY29: 3337520.68 | AZ29: 0 | BC29: 4378428.3 | BD29: 0 | BG29: 6700401.28 | BH29: 0 | BK29: 6078098.32 | BL29: 0 | BO29: 6512836.6 | BP29: 10265.34 | BS29: 7164632.41 | BT29: 259528.8353 | BW29: 6312171.27 | BX29: 57799.79087 | CA29: 6104989.42 | CB29: 50286.75717 | CE29: 6757482.31 | CF29: 101452.5505 | CI29: 3797933.68 | CJ29: 0 | CM29: 1988.171612 | CN29: 0 | CO29: 0.35 | CP29: 0.3833333333 | CQ29: 0.4166666667 | CR29: 0.45 | CS29: 0.4833333333 | CT29: 0.5166666667 | CU29: 0.55 | CV29: 0.5833333333 | CW29: 0.6166666667 | CX29: 0.65 | CY29: 0.6833333333 | CZ29: 0.7166666667 | DA29: 0.75 | DB29: 0.7833333333 | DC29: 0.8166666667 | DD29: 0.85 | DE29: 0.8833333333 | DF29: 0.9166666667 | DG29: 0.95 | DH29: 0.9833333333 | DI29: 1 | DJ29: 2059429.196 | DK29: 71844976 | DL29: 10062100.12 | DM29: 50464381.92 | DN29: 2059429.196 | DO29: 0 | DP29: 0.3166666667 | DQ29: 0.35 | DR29: 0.3833333333 | DS29: 0.4166666667 | DT29: 0.45 | DU29: 0.4833333333 | DV29: 0.5166666667 | DW29: 0.55 | DX29: 0.5833333333 | DY29: 0.6166666667 | DZ29: 0.65 | EA29: 0.6833333333 | EB29: 0.7166666667 | EC29: 0.75 | ED29: 0.7833333333 | EE29: 0.8166666667 | EF29: 0.85 | EG29: 0.8833333333 | EH29: 0.9166666667 | EI29: 0.95 | EJ29: 0.9666666667 | EK29: 2059429.196 | EL29: 0 | EM29: 0.2833333333 | EN29: 0.3166666667 | EO29: 0.35 | EP29: 0.3833333333 | EQ29: 0.4166666667 | ER29: 0.45 | ES29: 0.4833333333 | ET29: 0.5166666667 | EU29: 0.55 | EV29: 0.5833333333 | EW29: 0.6166666667 | EX29: 0.65 | EY29: 0.6833333333 | EZ29: 0.7166666667 | FA29: 0.75 | FB29: 0.7833333333 | FC29: 0.8166666667 | FD29: 0.85 | FE29: 0.8833333333 | FF29: 0.9166666667 | FG29: 0.9333333333 | FH29: 2059429.196 | FI29: 0 | FJ29: 0.25 | FK29: 0.2833333333 | FL29: 0.3166666667 | FM29: 0.35 | FN29: 0.3833333333 | FO29: 0.4166666667 | FP29: 0.45 | FQ29: 0.4833333333 | FR29: 0.5166666667 | FS29: 0.55 | FT29: 0.5833333333 | FU29: 0.6166666667 | FV29: 0.65 | FW29: 0.6833333333 | FX29: 0.7166666667 | FY29: 0.75 | FZ29: 0.7833333333 | GA29: 0.8166666667 | GB29: 0.85 | GC29: 0.8833333333 | GD29: 0.9 | GE29: 2059429.196 | GF29: 0 | GG29: 0.2166666667 | GH29: 0.25 | GI29: 0.2833333333 | GJ29: 0.3166666667 | GK29: 0.35 | GL29: 0.3833333333 | GM29: 0.4166666667 | GN29: 0.45 | GO29: 0.4833333333 | GP29: 0.5166666667 | GQ29: 0.55 | GR29: 0.5833333333 | GS29: 0.6166666667 | GT29: 0.65 | GU29: 0.6833333333 | GV29: 0.7166666667 | GW29: 0.75 | GX29: 0.7833333333 | GY29: 0.8166666667 | GZ29: 0.85 | HA29: 0.8666666667 | HB29: 2059429.196
B30: Centro de transformación 13,8 kV / BT | C30: 30 | D30: 29511992.58 | F30: 16892281.14 | G30: 1379418 | K30: 1651456.33 | L30: 516726 | O30: 1200043 | S30: 1565519 | W30: 1349434.165 | X30: 0 | AA30: 2810332.85 | AB30: 0 | AE30: 4510685.64 | AF30: 0 | AI30: 3312431.64 | AJ30: 0 | AM30: 3983743.602 | AN30: 0 | AQ30: 6428941.772 | AR30: 0 | AU30: 7718895.345 | AV30: 0 | AY30: 6685412.69 | AZ30: 0 | BC30: 10332631.54 | BD30: 224171.67 | BG30: 7443701.39 | BH30: 0 | BK30: 9935701.33 | BL30: 0 | BO30: 8287640.25 | BP30: 159587.02 | BS30: 11694439.14 | BT30: 417592.4012 | BW30: 7877132.85 | BX30: 147396.0136 | CA30: 9079675.39 | CB30: 187944.5514 | CE30: 8452079.58 | CF30: 38574.33528 | CI30: 5586690.35 | CJ30: 0 | CM30: 1988.17161 | CN30: 0 | CO30: 0.35 | CP30: 0.3833333333 | CQ30: 0.4166666667 | CR30: 0.45 | CS30: 0.4833333333 | CT30: 0.5166666667 | CU30: 0.55 | CV30: 0.5833333333 | CW30: 0.6166666667 | CX30: 0.65 | CY30: 0.6833333333 | CZ30: 0.7166666667 | DA30: 0.75 | DB30: 0.7833333333 | DC30: 0.8166666667 | DD30: 0.85 | DE30: 0.8833333333 | DF30: 0.9166666667 | DG30: 0.95 | DH30: 0.9833333333 | DI30: 1 | DJ30: 3471551.525 | DK30: 133658538.3 | DL30: 29511992.58 | DM30: 81344730.73 | DN30: 3471551.525 | DO30: 0 | DP30: 0.3166666667 | DQ30: 0.35 | DR30: 0.3833333333 | DS30: 0.4166666667 | DT30: 0.45 | DU30: 0.4833333333 | DV30: 0.5166666667 | DW30: 0.55 | DX30: 0.5833333333 | DY30: 0.6166666667 | DZ30: 0.65 | EA30: 0.6833333333 | EB30: 0.7166666667 | EC30: 0.75 | ED30: 0.7833333333 | EE30: 0.8166666667 | EF30: 0.85 | EG30: 0.8833333333 | EH30: 0.9166666667 | EI30: 0.95 | EJ30: 0.9666666667 | EK30: 3471551.525 | EL30: 0 | EM30: 0.2833333333 | EN30: 0.3166666667 | EO30: 0.35 | EP30: 0.3833333333 | EQ30: 0.4166666667 | ER30: 0.45 | ES30: 0.4833333333 | ET30: 0.5166666667 | EU30: 0.55 | EV30: 0.5833333333 | EW30: 0.6166666667 | EX30: 0.65 | EY30: 0.6833333333 | EZ30: 0.7166666667 | FA30: 0.75 | FB30: 0.7833333333 | FC30: 0.8166666667 | FD30: 0.85 | FE30: 0.8833333333 | FF30: 0.9166666667 | FG30: 0.9333333333 | FH30: 3471551.525 | FI30: 0 | FJ30: 0.25 | FK30: 0.2833333333 | FL30: 0.3166666667 | FM30: 0.35 | FN30: 0.3833333333 | FO30: 0.4166666667 | FP30: 0.45 | FQ30: 0.4833333333 | FR30: 0.5166666667 | FS30: 0.55 | FT30: 0.5833333333 | FU30: 0.6166666667 | FV30: 0.65 | FW30: 0.6833333333 | FX30: 0.7166666667 | FY30: 0.75 | FZ30: 0.7833333333 | GA30: 0.8166666667 | GB30: 0.85 | GC30: 0.8833333333 | GD30: 0.9 | GE30: 3471551.525 | GF30: 0 | GG30: 0.2166666667 | GH30: 0.25 | GI30: 0.2833333333 | GJ30: 0.3166666667 | GK30: 0.35 | GL30: 0.3833333333 | GM30: 0.4166666667 | GN30: 0.45 | GO30: 0.4833333333 | GP30: 0.5166666667 | GQ30: 0.55 | GR30: 0.5833333333 | GS30: 0.6166666667 | GT30: 0.65 | GU30: 0.6833333333 | GV30: 0.7166666667 | GW30: 0.75 | GX30: 0.7833333333 | GY30: 0.8166666667 | GZ30: 0.85 | HA30: 0.8666666667 | HB30: 3471551.525
B31: Otros centros de transformación MT/BT | C31: 30 | D31: 0 | F31: 0 | G31: 0 | K31: 0 | L31: 0 | O31: 0 | S31: 396751 | T31: 396751 | W31: 0 | X31: 0 | AA31: 0 | AB31: 0 | AE31: 0 | AF31: 0 | AI31: 0 | AJ31: 0 | AM31: 0 | AN31: 0 | AQ31: 0 | AR31: 0 | AU31: 0 | AV31: 0 | AY31: 0 | AZ31: 0 | BC31: 749962.31 | BD31: 0 | BG31: 1047835.45 | BH31: 0 | BK31: 1262504.47 | BL31: 0 | BO31: 742045.51 | BP31: 4581.63 | BS31: 862098.46 | BT31: 0 | BW31: 622906.74 | BX31: 0 | CA31: 1094301.52 | CB31: 4071.105996 | CE31: 1175224.78 | CF31: 36410.04423 | CI31: 0 | CJ31: 0 | CM31: 0 | CN31: 0 | CO31: 0.35 | CP31: 0.3833333333 | CQ31: 0.4166666667 | CR31: 0.45 | CS31: 0.4833333333 | CT31: 0.5166666667 | CU31: 0.55 | CV31: 0.5833333333 | CW31: 0.6166666667 | CX31: 0.65 | CY31: 0.6833333333 | CZ31: 0.7166666667 | DA31: 0.75 | DB31: 0.7833333333 | DC31: 0.8166666667 | DD31: 0.85 | DE31: 0.8833333333 | DF31: 0.9166666667 | DG31: 0.95 | DH31: 0.9833333333 | DI31: 1 | DJ31: 220673.714 | DK31: 6620211.419 | DL31: 0 | DM31: 5754765.604 | DN31: 220673.714 | DO31: 0 | DP31: 0.3166666667 | DQ31: 0.35 | DR31: 0.3833333333 | DS31: 0.4166666667 | DT31: 0.45 | DU31: 0.4833333333 | DV31: 0.5166666667 | DW31: 0.55 | DX31: 0.5833333333 | DY31: 0.6166666667 | DZ31: 0.65 | EA31: 0.6833333333 | EB31: 0.7166666667 | EC31: 0.75 | ED31: 0.7833333333 | EE31: 0.8166666667 | EF31: 0.85 | EG31: 0.8833333333 | EH31: 0.9166666667 | EI31: 0.95 | EJ31: 0.9666666667 | EK31: 220673.714 | EL31: 0 | EM31: 0.2833333333 | EN31: 0.3166666667 | EO31: 0.35 | EP31: 0.3833333333 | EQ31: 0.4166666667 | ER31: 0.45 | ES31: 0.4833333333 | ET31: 0.5166666667 | EU31: 0.55 | EV31: 0.5833333333 | EW31: 0.6166666667 | EX31: 0.65 | EY31: 0.6833333333 | EZ31: 0.7166666667 | FA31: 0.75 | FB31: 0.7833333333 | FC31: 0.8166666667 | FD31: 0.85 | FE31: 0.8833333333 | FF31: 0.9166666667 | FG31: 0.9333333333 | FH31: 220673.714 | FI31: 0 | FJ31: 0.25 | FK31: 0.2833333333 | FL31: 0.3166666667 | FM31: 0.35 | FN31: 0.3833333333 | FO31: 0.4166666667 | FP31: 0.45 | FQ31: 0.4833333333 | FR31: 0.5166666667 | FS31: 0.55 | FT31: 0.5833333333 | FU31: 0.6166666667 | FV31: 0.65 | FW31: 0.6833333333 | FX31: 0.7166666667 | FY31: 0.75 | FZ31: 0.7833333333 | GA31: 0.8166666667 | GB31: 0.85 | GC31: 0.8833333333 | GD31: 0.9 | GE31: 220673.714 | GF31: 0 | GG31: 0.2166666667 | GH31: 0.25 | GI31: 0.2833333333 | GJ31: 0.3166666667 | GK31: 0.35 | GL31: 0.3833333333 | GM31: 0.4166666667 | GN31: 0.45 | GO31: 0.4833333333 | GP31: 0.5166666667 | GQ31: 0.55 | GR31: 0.5833333333 | GS31: 0.6166666667 | GT31: 0.65 | GU31: 0.6833333333 | GV31: 0.7166666667 | GW31: 0.75 | GX31: 0.7833333333 | GY31: 0.8166666667 | GZ31: 0.85 | HA31: 0.8666666667 | HB31: 220673.714
B32: Baja tensión BT (<600V) | D32: 0 | F32: 0 | L32: 0 | S32: 0 | AM32: 0 | AN32: 0 | AQ32: 0 | AR32: 0 | AU32: 0 | AV32: 0 | AY32: 0 | AZ32: 0 | BT32: 0 | CI32: 0 | CJ32: 0 | DK32: 0 | DL32: 0
B33: Líneas aéreas BT | C33: 30 | D33: 0 | F33: 0 | G33: 1285072.88 | K33: 2072771.05 | L33: 258363 | O33: 1886503.04 | S33: 1463480 | W33: 2939631.76 | X33: 0 | AA33: 3301608.87 | AB33: 301915.87 | AE33: 3871083 | AF33: 0 | AI33: 2328610.45 | AJ33: 0 | AM33: 2976594.569 | AN33: 0 | AQ33: 3633577.27 | AR33: 0 | AU33: 3837750.66 | AV33: 0 | AY33: 5075299.85 | AZ33: 0 | BC33: 4519863.3 | BD33: 0 | BG33: 7753684.51 | BH33: 0 | BK33: 7915446.48 | BL33: 0 | BO33: 6046004.58 | BP33: 41910.94 | BS33: 7454917.98 | BT33: 842144.3322 | BW33: 8528034.99 | BX33: 657058.8576 | CA33: 8851450.39 | CB33: 714173.1647 | CE33: 7813332.44 | CF33: 297807.7251 | CI33: 5004491.52 | CJ33: 0 | CM33: =IF(D33=0,0,2001-(D33-F33)*C33/D33) -> 0 | CN33: =IF((1-($DJ$2-$CM33)/$C33)>0,(1-($DJ$2-$CM33)/$C33),0) -> 0 | CO33: =IF((1-($DJ$2-G$2)/$C33)>0,(1-($DJ$2-G$2)/$C33),0) -> 0.35 | CP33: =IF((1-($DJ$2-K$2)/$C33)>0,(1-($DJ$2-K$2)/$C33),0) -> 0.3833333333 | CQ33: =IF((1-($DJ$2-O$2)/$C33)>0,(1-($DJ$2-O$2)/$C33),0) -> 0.4166666667 | CR33: =IF((1-($DJ$2-S$2)/$C33)>0,(1-($DJ$2-S$2)/$C33),0) -> 0.45 | CS33: =IF((1-($DJ$2-W$2)/$C33)>0,(1-($DJ$2-W$2)/$C33),0) -> 0.4833333333 | CT33: =IF((1-($DJ$2-AA$2)/$C33)>0,(1-($DJ$2-AA$2)/$C33),0) -> 0.5166666667 | CU33: =IF((1-($DJ$2-AE$2)/$C33)>0,(1-($DJ$2-AE$2)/$C33),0) -> 0.55 | CV33: =IF((1-($DJ$2-AI$2)/$C33)>0,(1-($DJ$2-AI$2)/$C33),0) -> 0.5833333333 | CW33: =IF((1-($DJ$2-AM$2)/$C33)>0,(1-($DJ$2-AM$2)/$C33),0) -> 0.6166666667 | CX33: =IF((1-($DJ$2-AQ$2)/$C33)>0,(1-($DJ$2-AQ$2)/$C33),0) -> 0.65 | CY33: =IF((1-($DJ$2-AU$2)/$C33)>0,(1-($DJ$2-AU$2)/$C33),0) -> 0.6833333333 | CZ33: =IF((1-($DJ$2-AY$2)/$C33)>0,(1-($DJ$2-AY$2)/$C33),0) -> 0.7166666667 | DA33: =IF((1-($DJ$2-BC$2)/$C33)>0,(1-($DJ$2-BC$2)/$C33),0) -> 0.75 | DB33: =IF((1-($DJ$2-BG$2)/$C33)>0,(1-($DJ$2-BG$2)/$C33),0) -> 0.7833333333 | DC33: =IF((1-($DJ$2-BK$2)/$C33)>0,(1-($DJ$2-BK$2)/$C33),0) -> 0.8166666667 | DD33: =IF((1-($DJ$2-BO$2)/$C33)>0,(1-($DJ$2-BO$2)/$C33),0) -> 0.85 | DE33: =IF((1-($DJ$2-BS$2)/$C33)>0,(1-($DJ$2-BS$2)/$C33),0) -> 0.8833333333 | DF33: =IF((1-($DJ$2-BW$2)/$C33)>0,(1-($DJ$2-BW$2)/$C33),0) -> 0.9166666667 | DG33: =IF((1-($DJ$2-CA$2)/$C33)>0,(1-($DJ$2-CA$2)/$C33),0) -> 0.95 | DH33: =IF((1-($DJ$2-CE$2)/$C33)>0,(1-($DJ$2-CE$2)/$C33),0) -> 0.9833333333 | DI33: =IF((1-($DJ$2-CI$2)/$C33)>0,(1-($DJ$2-CI$2)/$C33),0) -> 1 | DJ33: =IF(CN33=0,0,($D33-$E33)*1/$C33)+IF(CO33=0,0,($G33-$H33-$I33)*$G$61*1/$C33)+IF(CP33=0,0,($K33-$L33-$M33)*$K$61*1/$C33)+IF(CQ33=0,0,($O33-$P33-$Q33)*$O$61*1/$C33)+IF(CR33=0,0,($S33-$T33-$U33)*$S$61*1/$C33)+IF(CS33=0,0,($W33-$X33-$Y33)*$W$61*1/$C33)+IF(CT33=0,0,($AA33-$AB33-$AC33)*$AA$61*1/$C33)+IF(CU33=0,0,($AE33-$AF33-$AG33)*$AE$61*1/$C33)+IF(CV33=0,0,($AI33-$AJ33-$AK33)*$AI$61*1/$C33)+IF(CW33=0,0,($AM33-$AN33-$AO33)*$AM$61*1/$C33)+IF(CX33=0,0,($AQ33-$AR33-$AS33)*$AQ$61*1/$C33)+IF(CY33=0,0,($AU33-$AV33-$AW33)*$AU$61*1/$C33)+IF(CZ33=0,0,($AY33-$AZ33-$BA33)*$AY$61*1/$C33)+IF(DA33=0,0,($BC33-$BD33-$BE33)*$BC$61*1/$C33)+IF(DB33=0,0,($BG33-$BH33-$BI33)*$BG$61*1/$C33)+IF(DC33=0,0,($BK33-$BL33-$BM33)*$BK$61*1/$C33)+IF(DD33=0,0,($BO33-$BP33-$BQ33)*$BO$61*1/$C33)+IF(DE33=0,0,($BS33-$BT33-$BU33)*$BS$61*1/$C33)+IF(DF33=0,0,($BW33-$BX33-$BY33)*$BW$61*1/$C33)+IF(DG33=0,0,($CA33-$CB33-$CC33)*$CA$61*1/$C33)+IF(DH33=0,0,($CE33-$CF33-$CG33)*$CE$61*1/$C33)+IF(DI33=0,0,($CI33-$CJ33-$CK33)*$CI$61*1/$C33) -> 2769778.305 | DK33: 83093349.15 | DL33: 0 | DM33: =(D33-E33)*CN33+((G33-H33-(I33-J33))*G$61)*CO33+((K33-L33-(M33-N33))*K$61)*CP33+((O33-P33-(Q33-R33))*O$61)*CQ33+((S33-T33-(U33-V33))*S$61)*CR33+((W33-X33-(Y33-Z33))*W$61)*CS33+((AA33-AB33-(AC33-AD33))*AA$61)*CT33+((AE33-AF33-(AG33-AH33))*AE$61)*CU33+((AI33-AJ33-(AK33-AL33))*AI$61)*CV33+((AM33-AN33-(AO33-AP33))*$AM$61)*CW33+((AQ33-AR33-(AS33-AT33))*$AQ$61)*CX33+((AU33-AV33-(AW33-AX33))*$AU$61)*CY33+((AY33-AZ33-(BA33-BB33))*$AY$61)*CZ33+((BC33-BD33-(BE33-BF33))*$BC$61)*DA33+((BG33-BH33-(BI33-BJ33))*$BG$61)*DB33+((BK33-BL33-(BM33-BN33))*$BK$61)*DC33+((BO33-BP33-(BQ33-BR33))*$BO$61)*DD33+((BS33-BT33-(BU33-BV33))*$BS$61)*DE33+((BW33-BX33-(BY33-BZ33))*$BW$61)*DF33+((CA33-CB33-(CC33-CD33))*$CA$61)*DG33+((CE33-CF33-(CG33-CH33))*$CE$61)*DH33+((CI33-CJ33-(CK33-CL33))*$CI$61)*DI33 -> 64390721.36 | DN33: =(DK33-DL33)*1/C33 -> 2769778.305 | DO33: =IF((1-($EK$2-$CM33)/$C33)>0,(1-($EK$2-$CM33)/$C33),0) -> 0 | DP33: =IF((1-($EK$2-DP$2)/$C33)>0,(1-($EK$2-DP$2)/$C33),0) -> 0.3166666667 | DQ33: 0.35 | DR33: 0.3833333333 | DS33: 0.4166666667 | DT33: 0.45 | DU33: 0.4833333333 | DV33: 0.5166666667 | DW33: 0.55 | DX33: 0.5833333333 | DY33: 0.6166666667 | DZ33: =IF((1-($EK$2-DZ$2)/$C33)>0,(1-($EK$2-DZ$2)/$C33),0) -> 0.65 | EA33: 0.6833333333 | EB33: 0.7166666667 | EC33: 0.75 | ED33: 0.7833333333 | EE33: 0.8166666667 | EF33: 0.85 | EG33: 0.8833333333 | EH33: 0.9166666667 | EI33: 0.95 | EJ33: 0.9666666667 | EK33: =IF(DO33=0,0,($D33-$E33)*1/$C33)+IF(DP33=0,0,($G33-$H33-$I33)*$G$61*1/$C33)+IF(DQ33=0,0,($K33-$L33-$M33)*$K$61*1/$C33)+IF(DR33=0,0,($O33-$P33-$Q33)*$O$61*1/$C33)+IF(DS33=0,0,($S33-$T33-$U33)*$S$61*1/$C33)+IF(DT33=0,0,($W33-$X33-$Y33)*$W$61*1/$C33)+IF(DU33=0,0,($AA33-$AB33-$AC33)*$AA$61*1/$C33)+IF(DV33=0,0,($AE33-$AF33-$AG33)*$AE$61*1/$C33)+IF(DW33=0,0,($AI33-$AJ33-$AK33)*$AI$61*1/$C33)+IF(DX33=0,0,($AM33-$AN33-$AO33)*$AM$61*1/$C33)+IF(DY33=0,0,($AQ33-$AR33-$AS33)*$AQ$61*1/$C33)+IF(DZ33=0,0,($AU33-$AV33-$AW33)*$AU$61*1/$C33)+IF(EA33=0,0,($AY33-$AZ33-$BA33)*$AY$61*1/$C33)+IF(EB33=0,0,($BC33-$BD33-$BE33)*$BC$61*1/$C33)+IF(EC33=0,0,($BG33-$BH33-$BI33)*$BG$61*1/$C33)+IF(ED33=0,0,($BK33-$BL33-$BM33)*$BK$61*1/$C33)+IF(EE33=0,0,($BO33-$BP33-$BQ33)*$BO$61*1/$C33)+IF(EF33=0,0,($BS33-$BT33-$BU33)*$BS$61*1/$C33)+IF(EG33=0,0,($BW33-$BX33-$BY33)*$BW$61*1/$C33)+IF(EH33=0,0,($CA33-$CB33-$CC33)*$CA$61*1/$C33)+IF(EI33=0,0,($CE33-$CF33-$CG33)*$CE$61*1/$C33)+IF(EJ33=0,0,($CI33-$CJ33-$CK33)*$CI$61*1/$C33) -> 2769778.305 | EL33: =IF((1-($FH$2-$CM33)/$C33)>0,(1-($FH$2-$CM33)/$C33),0) -> 0 | EM33: =IF((1-($FH$2-EM$2)/$C33)>0,(1-($FH$2-EM$2)/$C33),0) -> 0.2833333333 | EN33: 0.3166666667 | EO33: 0.35 | EP33: 0.3833333333 | EQ33: 0.4166666667 | ER33: 0.45 | ES33: 0.4833333333 | ET33: 0.5166666667 | EU33: 0.55 | EV33: 0.5833333333 | EW33: =IF((1-($FH$2-EW$2)/$C33)>0,(1-($FH$2-EW$2)/$C33),0) -> 0.6166666667 | EX33: 0.65 | EY33: 0.6833333333 | EZ33: 0.7166666667 | FA33: 0.75 | FB33: 0.7833333333 | FC33: 0.8166666667 | FD33: 0.85 | FE33: 0.8833333333 | FF33: 0.9166666667 | FG33: 0.9333333333 | FH33: =IF(EL33=0,0,($D33-$E33)*1/$C33)+IF(EM33=0,0,($G33-$H33-$I33)*$G$61*1/$C33)+IF(EN33=0,0,($K33-$L33-$M33)*$K$61*1/$C33)+IF(EO33=0,0,($O33-$P33-$Q33)*$O$61*1/$C33)+IF(EP33=0,0,($S33-$T33-$U33)*$S$61*1/$C33)+IF(EQ33=0,0,($W33-$X33-$Y33)*$W$61*1/$C33)+IF(ER33=0,0,($AA33-$AB33-$AC33)*$AA$61*1/$C33)+IF(ES33=0,0,($AE33-$AF33-$AG33)*$AE$61*1/$C33)+IF(ET33=0,0,($AI33-$AJ33-$AK33)*$AI$61*1/$C33)+IF(EU33=0,0,($AM33-$AN33-$AO33)*$AM$61*1/$C33)+IF(EV33=0,0,($AQ33-$AR33-$AS33)*$AQ$61*1/$C33)+IF(EW33=0,0,($AU33-$AV33-$AW33)*$AU$61*1/$C33)+IF(EX33=0,0,($AY33-$AZ33-$BA33)*$AY$61*1/$C33)+IF(EY33=0,0,($BC33-$BD33-$BE33)*$BC$61*1/$C33)+IF(EZ33=0,0,($BG33-$BH33-$BI33)*$BG$61*1/$C33)+IF(FA33=0,0,($BK33-$BL33-$BM33)*$BK$61*1/$C33)+IF(FB33=0,0,($BO33-$BP33-$BQ33)*$BO$61*1/$C33)+IF(FC33=0,0,($BS33-$BT33-$BU33)*$BS$61*1/$C33)+IF(FD33=0,0,($BW33-$BX33-$BY33)*$BW$61*1/$C33)+IF(FE33=0,0,($CA33-$CB33-$CC33)*$CA$61*1/$C33)+IF(FF33=0,0,($CE33-$CF33-$CG33)*$CE$61*1/$C33)+IF(FG33=0,0,($CI33-$CJ33-$CK33)*$CI$61*1/$C33) -> 2769778.305 | FI33: =IF((1-($GE$2-$CM33)/$C33)>0,(1-($GE$2-$CM33)/$C33),0) -> 0 | FJ33: =IF((1-($GE$2-FJ$2)/$C33)>0,(1-($GE$2-FJ$2)/$C33),0) -> 0.25 | FK33: 0.2833333333 | FL33: 0.3166666667 | FM33: 0.35 | FN33: 0.3833333333 | FO33: 0.4166666667 | FP33: 0.45 | FQ33: 0.4833333333 | FR33: 0.5166666667 | FS33: 0.55 | FT33: =IF((1-($GE$2-FT$2)/$C33)>0,(1-($GE$2-FT$2)/$C33),0) -> 0.5833333333 | FU33: 0.6166666667 | FV33: 0.65 | FW33: 0.6833333333 | FX33: 0.7166666667 | FY33: 0.75 | FZ33: 0.7833333333 | GA33: 0.8166666667 | GB33: 0.85 | GC33: 0.8833333333 | GD33: 0.9 | GE33: =IF(FI33=0,0,($D33-$E33)*1/$C33)+IF(FJ33=0,0,($G33-$H33-$I33)*$G$61*1/$C33)+IF(FK33=0,0,($K33-$L33-$M33)*$K$61*1/$C33)+IF(FL33=0,0,($O33-$P33-$Q33)*$O$61*1/$C33)+IF(FM33=0,0,($S33-$T33-$U33)*$S$61*1/$C33)+IF(FN33=0,0,($W33-$X33-$Y33)*$W$61*1/$C33)+IF(FO33=0,0,($AA33-$AB33-$AC33)*$AA$61*1/$C33)+IF(FP33=0,0,($AE33-$AF33-$AG33)*$AE$61*1/$C33)+IF(FQ33=0,0,($AI33-$AJ33-$AK33)*$AI$61*1/$C33)+IF(FR33=0,0,($AM33-$AN33-$AO33)*$AM$61*1/$C33)+IF(FS33=0,0,($AQ33-$AR33-$AS33)*$AQ$61*1/$C33)+IF(FT33=0,0,($AU33-$AV33-$AW33)*$AU$61*1/$C33)+IF(FU33=0,0,($AY33-$AZ33-$BA33)*$AY$61*1/$C33)+IF(FV33=0,0,($BC33-$BD33-$BE33)*$BC$61*1/$C33)+IF(FW33=0,0,($BG33-$BH33-$BI33)*$BG$61*1/$C33)+IF(FX33=0,0,($BK33-$BL33-$BM33)*$BK$61*1/$C33)+IF(FY33=0,0,($BO33-$BP33-$BQ33)*$BO$61*1/$C33)+IF(FZ33=0,0,($BS33-$BT33-$BU33)*$BS$61*1/$C33)+IF(GA33=0,0,($BW33-$BX33-$BY33)*$BW$61*1/$C33)+IF(GB33=0,0,($CA33-$CB33-$CC33)*$CA$61*1/$C33)+IF(GC33=0,0,($CE33-$CF33-$CG33)*$CE$61*1/$C33)+IF(GD33=0,0,($CI33-$CJ33-$CK33)*$CI$61*1/$C33) -> 2769778.305 | GF33: =IF((1-($HB$2-$CM33)/$C33)>0,(1-($HB$2-$CM33)/$C33),0) -> 0 | GG33: =IF((1-($HB$2-GG$2)/$C33)>0,(1-($HB$2-GG$2)/$C33),0) -> 0.2166666667 | GH33: 0.25 | GI33: 0.2833333333 | GJ33: 0.3166666667 | GK33: 0.35 | GL33: 0.3833333333 | GM33: 0.4166666667 | GN33: 0.45 | GO33: 0.4833333333 | GP33: 0.5166666667 | GQ33: =IF((1-($HB$2-GQ$2)/$C33)>0,(1-($HB$2-GQ$2)/$C33),0) -> 0.55 | GR33: 0.5833333333 | GS33: 0.6166666667 | GT33: 0.65 | GU33: 0.6833333333 | GV33: 0.7166666667 | GW33: 0.75 | GX33: 0.7833333333 | GY33: 0.8166666667 | GZ33: 0.85 | HA33: 0.8666666667 | HB33: =IF(GF33=0,0,($D33-$E33)*1/$C33)+IF(GG33=0,0,($G33-$H33-$I33)*$G$61*1/$C33)+IF(GH33=0,0,($K33-$L33-$M33)*$K$61*1/$C33)+IF(GI33=0,0,($O33-$P33-$Q33)*$O$61*1/$C33)+IF(GJ33=0,0,($S33-$T33-$U33)*$S$61*1/$C33)+IF(GK33=0,0,($W33-$X33-$Y33)*$W$61*1/$C33)+IF(GL33=0,0,($AA33-$AB33-$AC33)*$AA$61*1/$C33)+IF(GM33=0,0,($AE33-$AF33-$AG33)*$AE$61*1/$C33)+IF(GN33=0,0,($AI33-$AJ33-$AK33)*$AI$61*1/$C33)+IF(GO33=0,0,($AM33-$AN33-$AO33)*$AM$61*1/$C33)+IF(GP33=0,0,($AQ33-$AR33-$AS33)*$AQ$61*1/$C33)+IF(GQ33=0,0,($AU33-$AV33-$AW33)*$AU$61*1/$C33)+IF(GR33=0,0,($AY33-$AZ33-$BA33)*$AY$61*1/$C33)+IF(GS33=0,0,($BC33-$BD33-$BE33)*$BC$61*1/$C33)+IF(GT33=0,0,($BG33-$BH33-$BI33)*$BG$61*1/$C33)+IF(GU33=0,0,($BK33-$BL33-$BM33)*$BK$61*1/$C33)+IF(GV33=0,0,($BO33-$BP33-$BQ33)*$BO$61*1/$C33)+IF(GW33=0,0,($BS33-$BT33-$BU33)*$BS$61*1/$C33)+IF(GX33=0,0,($BW33-$BX33-$BY33)*$BW$61*1/$C33)+IF(GY33=0,0,($CA33-$CB33-$CC33)*$CA$61*1/$C33)+IF(GZ33=0,0,($CE33-$CF33-$CG33)*$CE$61*1/$C33)+IF(HA33=0,0,($CI33-$CJ33-$CK33)*$CI$61*1/$C33) -> 2769778.305
B34: Líneas subterráneas BT | C34: 30 | D34: 0 | F34: 0 | G34: 437850.63 | K34: 671324.49 | L34: 0 | O34: 960384 | S34: 940637.82 | W34: 621948.79 | X34: 0 | AA34: 883748 | AB34: 0 | AE34: 1005264.78 | AF34: 0 | AI34: 1338430.16 | AJ34: 0 | AM34: 1400445.46 | AN34: 0 | AQ34: 1803654.99 | AR34: 0 | AU34: 2325298.21 | AV34: 0 | AY34: 2988468.23 | AZ34: 0 | BC34: 6726124.57 | BD34: 421352.73 | BG34: 6440848.23 | BH34: 0 | BK34: 7550418.71 | BL34: 0 | BO34: 12172967.75 | BP34: 170935.55 | BS34: 15362864.81 | BT34: 110117.0592 | BW34: 6122679.59 | BX34: 115933.4003 | CA34: 9077366.42 | CB34: 409336.6337 | CE34: 10530544.03 | CF34: 96772.74159 | CI34: 5022760.45 | CJ34: 0 | CM34: =IF(D34=0,0,2001-(D34-F34)*C34/D34) -> 0 | CN34: =IF((1-($DJ$2-$CM34)/$C34)>0,(1-($DJ$2-$CM34)/$C34),0) -> 0 | CO34: =IF((1-($DJ$2-G$2)/$C34)>0,(1-($DJ$2-G$2)/$C34),0) -> 0.35 | CP34: =IF((1-($DJ$2-K$2)/$C34)>0,(1-($DJ$2-K$2)/$C34),0) -> 0.3833333333 | CQ34: =IF((1-($DJ$2-O$2)/$C34)>0,(1-($DJ$2-O$2)/$C34),0) -> 0.4166666667 | CR34: =IF((1-($DJ$2-S$2)/$C34)>0,(1-($DJ$2-S$2)/$C34),0) -> 0.45 | CS34: =IF((1-($DJ$2-W$2)/$C34)>0,(1-($DJ$2-W$2)/$C34),0) -> 0.4833333333 | CT34: =IF((1-($DJ$2-AA$2)/$C34)>0,(1-($DJ$2-AA$2)/$C34),0) -> 0.5166666667 | CU34: =IF((1-($DJ$2-AE$2)/$C34)>0,(1-($DJ$2-AE$2)/$C34),0) -> 0.55 | CV34: =IF((1-($DJ$2-AI$2)/$C34)>0,(1-($DJ$2-AI$2)/$C34),0) -> 0.5833333333 | CW34: =IF((1-($DJ$2-AM$2)/$C34)>0,(1-($DJ$2-AM$2)/$C34),0) -> 0.6166666667 | CX34: =IF((1-($DJ$2-AQ$2)/$C34)>0,(1-($DJ$2-AQ$2)/$C34),0) -> 0.65 | CY34: =IF((1-($DJ$2-AU$2)/$C34)>0,(1-($DJ$2-AU$2)/$C34),0) -> 0.6833333333 | CZ34: =IF((1-($DJ$2-AY$2)/$C34)>0,(1-($DJ$2-AY$2)/$C34),0) -> 0.7166666667 | DA34: =IF((1-($DJ$2-BC$2)/$C34)>0,(1-($DJ$2-BC$2)/$C34),0) -> 0.75 | DB34: =IF((1-($DJ$2-BG$2)/$C34)>0,(1-($DJ$2-BG$2)/$C34),0) -> 0.7833333333 | DC34: =IF((1-($DJ$2-BK$2)/$C34)>0,(1-($DJ$2-BK$2)/$C34),0) -> 0.8166666667 | DD34: =IF((1-($DJ$2-BO$2)/$C34)>0,(1-($DJ$2-BO$2)/$C34),0) -> 0.85 | DE34: =IF((1-($DJ$2-BS$2)/$C34)>0,(1-($DJ$2-BS$2)/$C34),0) -> 0.8833333333 | DF34: =IF((1-($DJ$2-BW$2)/$C34)>0,(1-($DJ$2-BW$2)/$C34),0) -> 0.9166666667 | DG34: =IF((1-($DJ$2-CA$2)/$C34)>0,(1-($DJ$2-CA$2)/$C34),0) -> 0.95 | DH34: =IF((1-($DJ$2-CE$2)/$C34)>0,(1-($DJ$2-CE$2)/$C34),0) -> 0.9833333333 | DI34: =IF((1-($DJ$2-CI$2)/$C34)>0,(1-($DJ$2-CI$2)/$C34),0) -> 1 | DJ34: 2723295.886 | DK34: 81698876.57 | DL34: 0 | DM34: 68376739.16 | DN34: =(DK34-DL34)*1/C34 -> 2723295.886 | DO34: =IF((1-($EK$2-$CM34)/$C34)>0,(1-($EK$2-$CM34)/$C34),0) -> 0 | DP34: 0.3166666667 | DQ34: 0.35 | DR34: 0.3833333333 | DS34: 0.4166666667 | DT34: 0.45 | DU34: 0.4833333333 | DV34: 0.5166666667 | DW34: 0.55 | DX34: 0.5833333333 | DY34: 0.6166666667 | DZ34: 0.65 | EA34: 0.6833333333 | EB34: 0.7166666667 | EC34: 0.75 | ED34: 0.7833333333 | EE34: 0.8166666667 | EF34: 0.85 | EG34: 0.8833333333 | EH34: 0.9166666667 | EI34: 0.95 | EJ34: 0.9666666667 | EK34: 2723295.886 | EL34: =IF((1-($FH$2-$CM34)/$C34)>0,(1-($FH$2-$CM34)/$C34),0) -> 0 | EM34: 0.2833333333 | EN34: 0.3166666667 | EO34: 0.35 | EP34: 0.3833333333 | EQ34: 0.4166666667 | ER34: 0.45 | ES34: 0.4833333333 | ET34: 0.5166666667 | EU34: 0.55 | EV34: 0.5833333333 | EW34: 0.6166666667 | EX34: 0.65 | EY34: 0.6833333333 | EZ34: 0.7166666667 | FA34: 0.75 | FB34: 0.7833333333 | FC34: 0.8166666667 | FD34: 0.85 | FE34: 0.8833333333 | FF34: 0.9166666667 | FG34: 0.9333333333 | FH34: 2723295.886 | FI34: =IF((1-($GE$2-$CM34)/$C34)>0,(1-($GE$2-$CM34)/$C34),0) -> 0 | FJ34: 0.25 | FK34: 0.2833333333 | FL34: 0.3166666667 | FM34: 0.35 | FN34: 0.3833333333 | FO34: 0.4166666667 | FP34: 0.45 | FQ34: 0.4833333333 | FR34: 0.5166666667 | FS34: 0.55 | FT34: 0.5833333333 | FU34: 0.6166666667 | FV34: 0.65 | FW34: 0.6833333333 | FX34: 0.7166666667 | FY34: 0.75 | FZ34: 0.7833333333 | GA34: 0.8166666667 | GB34: 0.85 | GC34: 0.8833333333 | GD34: 0.9 | GE34: 2723295.886 | GF34: =IF((1-($HB$2-$CM34)/$C34)>0,(1-($HB$2-$CM34)/$C34),0) -> 0 | GG34: 0.2166666667 | GH34: 0.25 | GI34: 0.2833333333 | GJ34: 0.3166666667 | GK34: 0.35 | GL34: 0.3833333333 | GM34: 0.4166666667 | GN34: 0.45 | GO34: 0.4833333333 | GP34: 0.5166666667 | GQ34: 0.55 | GR34: 0.5833333333 | GS34: 0.6166666667 | GT34: 0.65 | GU34: 0.6833333333 | GV34: 0.7166666667 | GW34: 0.75 | GX34: 0.7833333333 | GY34: 0.8166666667 | GZ34: 0.85 | HA34: 0.8666666667 | HB34: 2723295.886
B35: Acometidas BT | C35: 30 | D35: 24778308.94 | F35: 14182783.76 | G35: 231683.19 | K35: 387938.67 | L35: 0 | O35: 598221.71 | S35: 460185 | W35: 626007 | X35: 0 | AA35: 527992 | AB35: 0 | AE35: 730660 | AF35: 0 | AI35: 876711.11 | AJ35: 0 | AM35: 1228086.06 | AN35: 0 | AQ35: 1413598.51 | AR35: 0 | AU35: 1243931.51 | AV35: 0 | AY35: 1164225.13 | AZ35: 0 | BC35: 1525975.59 | BD35: 0 | BG35: 1352225.08 | BH35: 0 | BK35: 1120259.75 | BL35: 0 | BO35: 924034.12 | BP35: 0 | BS35: 844285.58 | BT35: 0 | BW35: 949135.52 | BX35: 0 | CA35: 468567.95 | CB35: 0 | CE35: 949135.52 | CF35: 0 | CI35: 362809.7 | CJ35: 0 | CM35: =IF(D35=0,0,2001-(D35-F35)*C35/D35) -> 1988.171612 | CN35: =IF((1-($DJ$2-$CM35)/$C35)>0,(1-($DJ$2-$CM35)/$C35),0) -> 0 | CO35: =IF((1-($DJ$2-G$2)/$C35)>0,(1-($DJ$2-G$2)/$C35),0) -> 0.35 | CP35: =IF((1-($DJ$2-K$2)/$C35)>0,(1-($DJ$2-K$2)/$C35),0) -> 0.3833333333 | CQ35: =IF((1-($DJ$2-O$2)/$C35)>0,(1-($DJ$2-O$2)/$C35),0) -> 0.4166666667 | CR35: =IF((1-($DJ$2-S$2)/$C35)>0,(1-($DJ$2-S$2)/$C35),0) -> 0.45 | CS35: =IF((1-($DJ$2-W$2)/$C35)>0,(1-($DJ$2-W$2)/$C35),0) -> 0.4833333333 | CT35: =IF((1-($DJ$2-AA$2)/$C35)>0,(1-($DJ$2-AA$2)/$C35),0) -> 0.5166666667 | CU35: =IF((1-($DJ$2-AE$2)/$C35)>0,(1-($DJ$2-AE$2)/$C35),0) -> 0.55 | CV35: =IF((1-($DJ$2-AI$2)/$C35)>0,(1-($DJ$2-AI$2)/$C35),0) -> 0.5833333333 | CW35: =IF((1-($DJ$2-AM$2)/$C35)>0,(1-($DJ$2-AM$2)/$C35),0) -> 0.6166666667 | CX35: =IF((1-($DJ$2-AQ$2)/$C35)>0,(1-($DJ$2-AQ$2)/$C35),0) -> 0.65 | CY35: =IF((1-($DJ$2-AU$2)/$C35)>0,(1-($DJ$2-AU$2)/$C35),0) -> 0.6833333333 | CZ35: =IF((1-($DJ$2-AY$2)/$C35)>0,(1-($DJ$2-AY$2)/$C35),0) -> 0.7166666667 | DA35: =IF((1-($DJ$2-BC$2)/$C35)>0,(1-($DJ$2-BC$2)/$C35),0) -> 0.75 | DB35: =IF((1-($DJ$2-BG$2)/$C35)>0,(1-($DJ$2-BG$2)/$C35),0) -> 0.7833333333 | DC35: =IF((1-($DJ$2-BK$2)/$C35)>0,(1-($DJ$2-BK$2)/$C35),0) -> 0.8166666667 | DD35: =IF((1-($DJ$2-BO$2)/$C35)>0,(1-($DJ$2-BO$2)/$C35),0) -> 0.85 | DE35: =IF((1-($DJ$2-BS$2)/$C35)>0,(1-($DJ$2-BS$2)/$C35),0) -> 0.8833333333 | DF35: =IF((1-($DJ$2-BW$2)/$C35)>0,(1-($DJ$2-BW$2)/$C35),0) -> 0.9166666667 | DG35: =IF((1-($DJ$2-CA$2)/$C35)>0,(1-($DJ$2-CA$2)/$C35),0) -> 0.95 | DH35: =IF((1-($DJ$2-CE$2)/$C35)>0,(1-($DJ$2-CE$2)/$C35),0) -> 0.9833333333 | DI35: =IF((1-($DJ$2-CI$2)/$C35)>0,(1-($DJ$2-CI$2)/$C35),0) -> 1 | DJ35: 517283.026 | DK35: 40296799.72 | DL35: 24778308.94 | DM35: 11079243.21 | DN35: =(DK35-DL35)*1/C35 -> 517283.026 | DO35: =IF((1-($EK$2-$CM35)/$C35)>0,(1-($EK$2-$CM35)/$C35),0) -> 0 | DP35: 0.3166666667 | DQ35: 0.35 | DR35: 0.3833333333 | DS35: 0.4166666667 | DT35: 0.45 | DU35: 0.4833333333 | DV35: 0.5166666667 | DW35: 0.55 | DX35: 0.5833333333 | DY35: 0.6166666667 | DZ35: 0.65 | EA35: 0.6833333333 | EB35: 0.7166666667 | EC35: 0.75 | ED35: 0.7833333333 | EE35: 0.8166666667 | EF35: 0.85 | EG35: 0.8833333333 | EH35: 0.9166666667 | EI35: 0.95 | EJ35: 0.9666666667 | EK35: 517283.026 | EL35: =IF((1-($FH$2-$CM35)/$C35)>0,(1-($FH$2-$CM35)/$C35),0) -> 0 | EM35: 0.2833333333 | EN35: 0.3166666667 | EO35: 0.35 | EP35: 0.3833333333 | EQ35: 0.4166666667 | ER35: 0.45 | ES35: 0.4833333333 | ET35: 0.5166666667 | EU35: 0.55 | EV35: 0.5833333333 | EW35: 0.6166666667 | EX35: 0.65 | EY35: 0.6833333333 | EZ35: 0.7166666667 | FA35: 0.75 | FB35: 0.7833333333 | FC35: 0.8166666667 | FD35: 0.85 | FE35: 0.8833333333 | FF35: 0.9166666667 | FG35: 0.9333333333 | FH35: 517283.026 | FI35: =IF((1-($GE$2-$CM35)/$C35)>0,(1-($GE$2-$CM35)/$C35),0) -> 0 | FJ35: 0.25 | FK35: 0.2833333333 | FL35: 0.3166666667 | FM35: 0.35 | FN35: 0.3833333333 | FO35: 0.4166666667 | FP35: 0.45 | FQ35: 0.4833333333 | FR35: 0.5166666667 | FS35: 0.55 | FT35: 0.5833333333 | FU35: 0.6166666667 | FV35: 0.65 | FW35: 0.6833333333 | FX35: 0.7166666667 | FY35: 0.75 | FZ35: 0.7833333333 | GA35: 0.8166666667 | GB35: 0.85 | GC35: 0.8833333333 | GD35: 0.9 | GE35: 517283.026 | GF35: =IF((1-($HB$2-$CM35)/$C35)>0,(1-($HB$2-$CM35)/$C35),0) -> 0 | GG35: 0.2166666667 | GH35: 0.25 | GI35: 0.2833333333 | GJ35: 0.3166666667 | GK35: 0.35 | GL35: 0.3833333333 | GM35: 0.4166666667 | GN35: 0.45 | GO35: 0.4833333333 | GP35: 0.5166666667 | GQ35: 0.55 | GR35: 0.5833333333 | GS35: 0.6166666667 | GT35: 0.65 | GU35: 0.6833333333 | GV35: 0.7166666667 | GW35: 0.75 | GX35: 0.7833333333 | GY35: 0.8166666667 | GZ35: 0.85 | HA35: 0.8666666667 | HB35: 517283.026
B36: Otros equipos del sistema de distribución | D36: 0 | F36: 0 | L36: 0 | S36: 0 | AM36: 0 | AN36: 0 | AQ36: 0 | AR36: 0 | AU36: 0 | AV36: 0 | AY36: 0 | AZ36: 0 | BS36: 0 | BT36: 0 | BW36: 0 | BX36: 0 | CA36: 0 | CB36: 0 | CE36: 0 | CF36: 0 | CI36: 0 | CJ36: 0 | DK36: 0 | DL36: 0
B37: Otros equipos del sistema de Distribución | C37: 10 | D37: 0 | F37: 0 | G37: 0 | K37: 0 | L37: 0 | O37: 0 | S37: 0 | W37: 0 | X37: 0 | AA37: 0 | AB37: 0 | AE37: 111989 | AF37: 0 | AI37: 0 | AJ37: 0 | AM37: 0 | AN37: 0 | AQ37: 0 | AR37: 0 | AU37: 229985 | AV37: 0 | AY37: 0 | AZ37: 0 | BC37: 0 | BD37: 0 | BG37: 34579 | BH37: 0 | BK37: 0 | BL37: 0 | BO37: 0 | BS37: 0 | BT37: 0 | BW37: 0 | BX37: 0 | CA37: 0 | CB37: 0 | CE37: 0 | CF37: 0 | CI37: 0 | CJ37: 0 | CM37: =IF(D37=0,0,2001-(D37-F37)*C37/D37) -> 0 | CN37: =IF((1-($DJ$2-$CM37)/$C37)>0,(1-($DJ$2-$CM37)/$C37),0) -> 0 | CO37: =IF((1-($DJ$2-G$2)/$C37)>0,(1-($DJ$2-G$2)/$C37),0) -> 0 | CP37: =IF((1-($DJ$2-K$2)/$C37)>0,(1-($DJ$2-K$2)/$C37),0) -> 0 | CQ37: =IF((1-($DJ$2-O$2)/$C37)>0,(1-($DJ$2-O$2)/$C37),0) -> 0 | CR37: =IF((1-($DJ$2-S$2)/$C37)>0,(1-($DJ$2-S$2)/$C37),0) -> 0 | CS37: =IF((1-($DJ$2-W$2)/$C37)>0,(1-($DJ$2-W$2)/$C37),0) -> 0 | CT37: =IF((1-($DJ$2-AA$2)/$C37)>0,(1-($DJ$2-AA$2)/$C37),0) -> 0 | CU37: =IF((1-($DJ$2-AE$2)/$C37)>0,(1-($DJ$2-AE$2)/$C37),0) -> 0 | CV37: =IF((1-($DJ$2-AI$2)/$C37)>0,(1-($DJ$2-AI$2)/$C37),0) -> 0 | CW37: =IF((1-($DJ$2-AM$2)/$C37)>0,(1-($DJ$2-AM$2)/$C37),0) -> 0 | CX37: =IF((1-($DJ$2-AQ$2)/$C37)>0,(1-($DJ$2-AQ$2)/$C37),0) -> 0 | CY37: =IF((1-($DJ$2-AU$2)/$C37)>0,(1-($DJ$2-AU$2)/$C37),0) -> 0.05 | CZ37: =IF((1-($DJ$2-AY$2)/$C37)>0,(1-($DJ$2-AY$2)/$C37),0) -> 0.15 | DA37: =IF((1-($DJ$2-BC$2)/$C37)>0,(1-($DJ$2-BC$2)/$C37),0) -> 0.25 | DB37: =IF((1-($DJ$2-BG$2)/$C37)>0,(1-($DJ$2-BG$2)/$C37),0) -> 0.35 | DC37: =IF((1-($DJ$2-BK$2)/$C37)>0,(1-($DJ$2-BK$2)/$C37),0) -> 0.45 | DD37: =IF((1-($DJ$2-BO$2)/$C37)>0,(1-($DJ$2-BO$2)/$C37),0) -> 0.55 | DE37: =IF((1-($DJ$2-BS$2)/$C37)>0,(1-($DJ$2-BS$2)/$C37),0) -> 0.65 | DF37: =IF((1-($DJ$2-BW$2)/$C37)>0,(1-($DJ$2-BW$2)/$C37),0) -> 0.75 | DG37: =IF((1-($DJ$2-CA$2)/$C37)>0,(1-($DJ$2-CA$2)/$C37),0) -> 0.85 | DH37: =IF((1-($DJ$2-CE$2)/$C37)>0,(1-($DJ$2-CE$2)/$C37),0) -> 0.95 | DI37: =IF((1-($DJ$2-CI$2)/$C37)>0,(1-($DJ$2-CI$2)/$C37),0) -> 1 | DJ37: =IF(CN37=0,0,($D37-$E37)*1/$C37)+IF(CO37=0,0,($G37-$H37-$I37)*$G$61*1/$C37)+IF(CP37=0,0,($K37-$L37-$M37)*$K$61*1/$C37)+IF(CQ37=0,0,($O37-$P37-$Q37)*$O$61*1/$C37)+IF(CR37=0,0,($S37-$T37-$U37)*$S$61*1/$C37)+IF(CS37=0,0,($W37-$X37-$Y37)*$W$61*1/$C37)+IF(CT37=0,0,($AA37-$AB37-$AC37)*$AA$61*1/$C37)+IF(CU37=0,0,($AE37-$AF37-$AG37)*$AE$61*1/$C37)+IF(CV37=0,0,($AI37-$AJ37-$AK37)*$AI$61*1/$C37)+IF(CW37=0,0,($AM37-$AN37-$AO37)*$AM$61*1/$C37)+IF(CX37=0,0,($AQ37-$AR37-$AS37)*$AQ$61*1/$C37)+IF(CY37=0,0,($AU37-$AV37-$AW37)*$AU$61*1/$C37)+IF(CZ37=0,0,($AY37-$AZ37-$BA37)*$AY$61*1/$C37)+IF(DA37=0,0,($BC37-$BD37-$BE37)*$BC$61*1/$C37)+IF(DB37=0,0,($BG37-$BH37-$BI37)*$BG$61*1/$C37)+IF(DC37=0,0,($BK37-$BL37-$BM37)*$BK$61*1/$C37)+IF(DD37=0,0,($BO37-$BP37-$BQ37)*$BO$61*1/$C37)+IF(DE37=0,0,($BS37-$BT37-$BU37)*$BS$61*1/$C37)+IF(DF37=0,0,($BW37-$BX37-$BY37)*$BW$61*1/$C37)+IF(DG37=0,0,($CA37-$CB37-$CC37)*$CA$61*1/$C37)+IF(DH37=0,0,($CE37-$CF37-$CG37)*$CE$61*1/$C37)+IF(DI37=0,0,($CI37-$CJ37-$CK37)*$CI$61*1/$C37) -> 21838.68407 | DK37: 314170.8526 | DL37: 95784.01192 | DM37: =(D37-E37)*CN37+((G37-H37-(I37-J37))*G$61)*CO37+((K37-L37-(M37-N37))*K$61)*CP37+((O37-P37-(Q37-R37))*O$61)*CQ37+((S37-T37-(U37-V37))*S$61)*CR37+((W37-X37-(Y37-Z37))*W$61)*CS37+((AA37-AB37-(AC37-AD37))*AA$61)*CT37+((AE37-AF37-(AG37-AH37))*AE$61)*CU37+((AI37-AJ37-(AK37-AL37))*AI$61)*CV37+((AM37-AN37-(AO37-AP37))*$AM$61)*CW37+((AQ37-AR37-(AS37-AT37))*$AQ$61)*CX37+((AU37-AV37-(AW37-AX37))*$AU$61)*CY37+((AY37-AZ37-(BA37-BB37))*$AY$61)*CZ37+((BC37-BD37-(BE37-BF37))*$BC$61)*DA37+((BG37-BH37-(BI37-BJ37))*$BG$61)*DB37+((BK37-BL37-(BM37-BN37))*$BK$61)*DC37+((BO37-BP37-(BQ37-BR37))*$BO$61)*DD37+((BS37-BT37-(BU37-BV37))*$BS$61)*DE37+((BW37-BX37-(BY37-BZ37))*$BW$61)*DF37+((CA37-CB37-(CC37-CD37))*$CA$61)*DG37+((CE37-CF37-(CG37-CH37))*$CE$61)*DH37+((CI37-CJ37-(CK37-CL37))*$CI$61)*DI37 -> 19877.91642 | DN37: =(DK37-DL37)*1/C37 -> 21838.68407 | DO37: =IF((1-($EK$2-$CM37)/$C37)>0,(1-($EK$2-$CM37)/$C37),0) -> 0 | DP37: =IF((1-($EK$2-DP$2)/$C37)>0,(1-($EK$2-DP$2)/$C37),0) -> 0 | DQ37: 0 | DR37: 0 | DS37: 0 | DT37: 0 | DU37: 0 | DV37: 0 | DW37: 0 | DX37: 0 | DY37: 0 | DZ37: =IF((1-($EK$2-DZ$2)/$C37)>0,(1-($EK$2-DZ$2)/$C37),0) -> 0 | EA37: 0.05 | EB37: 0.15 | EC37: 0.25 | ED37: 0.35 | EE37: 0.45 | EF37: 0.55 | EG37: 0.65 | EH37: 0.75 | EI37: 0.85 | EJ37: 0.9 | EK37: =IF(DO37=0,0,($D37-$E37)*1/$C37)+IF(DP37=0,0,($G37-$H37-$I37)*$G$61*1/$C37)+IF(DQ37=0,0,($K37-$L37-$M37)*$K$61*1/$C37)+IF(DR37=0,0,($O37-$P37-$Q37)*$O$61*1/$C37)+IF(DS37=0,0,($S37-$T37-$U37)*$S$61*1/$C37)+IF(DT37=0,0,($W37-$X37-$Y37)*$W$61*1/$C37)+IF(DU37=0,0,($AA37-$AB37-$AC37)*$AA$61*1/$C37)+IF(DV37=0,0,($AE37-$AF37-$AG37)*$AE$61*1/$C37)+IF(DW37=0,0,($AI37-$AJ37-$AK37)*$AI$61*1/$C37)+IF(DX37=0,0,($AM37-$AN37-$AO37)*$AM$61*1/$C37)+IF(DY37=0,0,($AQ37-$AR37-$AS37)*$AQ$61*1/$C37)+IF(DZ37=0,0,($AU37-$AV37-$AW37)*$AU$61*1/$C37)+IF(EA37=0,0,($AY37-$AZ37-$BA37)*$AY$61*1/$C37)+IF(EB37=0,0,($BC37-$BD37-$BE37)*$BC$61*1/$C37)+IF(EC37=0,0,($BG37-$BH37-$BI37)*$BG$61*1/$C37)+IF(ED37=0,0,($BK37-$BL37-$BM37)*$BK$61*1/$C37)+IF(EE37=0,0,($BO37-$BP37-$BQ37)*$BO$61*1/$C37)+IF(EF37=0,0,($BS37-$BT37-$BU37)*$BS$61*1/$C37)+IF(EG37=0,0,($BW37-$BX37-$BY37)*$BW$61*1/$C37)+IF(EH37=0,0,($CA37-$CB37-$CC37)*$CA$61*1/$C37)+IF(EI37=0,0,($CE37-$CF37-$CG37)*$CE$61*1/$C37)+IF(EJ37=0,0,($CI37-$CJ37-$CK37)*$CI$61*1/$C37) -> 2986.191463 | EL37: =IF((1-($FH$2-$CM37)/$C37)>0,(1-($FH$2-$CM37)/$C37),0) -> 0 | EM37: =IF((1-($FH$2-EM$2)/$C37)>0,(1-($FH$2-EM$2)/$C37),0) -> 0 | EN37: 0 | EO37: 0 | EP37: 0 | EQ37: 0 | ER37: 0 | ES37: 0 | ET37: 0 | EU37: 0 | EV37: 0 | EW37: =IF((1-($FH$2-EW$2)/$C37)>0,(1-($FH$2-EW$2)/$C37),0) -> 0 | EX37: 0 | EY37: 0.05 | EZ37: 0.15 | FA37: 0.25 | FB37: 0.35 | FC37: 0.45 | FD37: 0.55 | FE37: 0.65 | FF37: 0.75 | FG37: 0.8 | FH37: =IF(EL37=0,0,($D37-$E37)*1/$C37)+IF(EM37=0,0,($G37-$H37-$I37)*$G$61*1/$C37)+IF(EN37=0,0,($K37-$L37-$M37)*$K$61*1/$C37)+IF(EO37=0,0,($O37-$P37-$Q37)*$O$61*1/$C37)+IF(EP37=0,0,($S37-$T37-$U37)*$S$61*1/$C37)+IF(EQ37=0,0,($W37-$X37-$Y37)*$W$61*1/$C37)+IF(ER37=0,0,($AA37-$AB37-$AC37)*$AA$61*1/$C37)+IF(ES37=0,0,($AE37-$AF37-$AG37)*$AE$61*1/$C37)+IF(ET37=0,0,($AI37-$AJ37-$AK37)*$AI$61*1/$C37)+IF(EU37=0,0,($AM37-$AN37-$AO37)*$AM$61*1/$C37)+IF(EV37=0,0,($AQ37-$AR37-$AS37)*$AQ$61*1/$C37)+IF(EW37=0,0,($AU37-$AV37-$AW37)*$AU$61*1/$C37)+IF(EX37=0,0,($AY37-$AZ37-$BA37)*$AY$61*1/$C37)+IF(EY37=0,0,($BC37-$BD37-$BE37)*$BC$61*1/$C37)+IF(EZ37=0,0,($BG37-$BH37-$BI37)*$BG$61*1/$C37)+IF(FA37=0,0,($BK37-$BL37-$BM37)*$BK$61*1/$C37)+IF(FB37=0,0,($BO37-$BP37-$BQ37)*$BO$61*1/$C37)+IF(FC37=0,0,($BS37-$BT37-$BU37)*$BS$61*1/$C37)+IF(FD37=0,0,($BW37-$BX37-$BY37)*$BW$61*1/$C37)+IF(FE37=0,0,($CA37-$CB37-$CC37)*$CA$61*1/$C37)+IF(FF37=0,0,($CE37-$CF37-$CG37)*$CE$61*1/$C37)+IF(FG37=0,0,($CI37-$CJ37-$CK37)*$CI$61*1/$C37) -> 2986.191463 | FI37: =IF((1-($GE$2-$CM37)/$C37)>0,(1-($GE$2-$CM37)/$C37),0) -> 0 | FJ37: =IF((1-($GE$2-FJ$2)/$C37)>0,(1-($GE$2-FJ$2)/$C37),0) -> 0 | FK37: 0 | FL37: 0 | FM37: 0 | FN37: 0 | FO37: 0 | FP37: 0 | FQ37: 0 | FR37: 0 | FS37: 0 | FT37: =IF((1-($GE$2-FT$2)/$C37)>0,(1-($GE$2-FT$2)/$C37),0) -> 0 | FU37: 0 | FV37: 0 | FW37: 0.05 | FX37: 0.15 | FY37: 0.25 | FZ37: 0.35 | GA37: 0.45 | GB37: 0.55 | GC37: 0.65 | GD37: 0.7 | GE37: =IF(FI37=0,0,($D37-$E37)*1/$C37)+IF(FJ37=0,0,($G37-$H37-$I37)*$G$61*1/$C37)+IF(FK37=0,0,($K37-$L37-$M37)*$K$61*1/$C37)+IF(FL37=0,0,($O37-$P37-$Q37)*$O$61*1/$C37)+IF(FM37=0,0,($S37-$T37-$U37)*$S$61*1/$C37)+IF(FN37=0,0,($W37-$X37-$Y37)*$W$61*1/$C37)+IF(FO37=0,0,($AA37-$AB37-$AC37)*$AA$61*1/$C37)+IF(FP37=0,0,($AE37-$AF37-$AG37)*$AE$61*1/$C37)+IF(FQ37=0,0,($AI37-$AJ37-$AK37)*$AI$61*1/$C37)+IF(FR37=0,0,($AM37-$AN37-$AO37)*$AM$61*1/$C37)+IF(FS37=0,0,($AQ37-$AR37-$AS37)*$AQ$61*1/$C37)+IF(FT37=0,0,($AU37-$AV37-$AW37)*$AU$61*1/$C37)+IF(FU37=0,0,($AY37-$AZ37-$BA37)*$AY$61*1/$C37)+IF(FV37=0,0,($BC37-$BD37-$BE37)*$BC$61*1/$C37)+IF(FW37=0,0,($BG37-$BH37-$BI37)*$BG$61*1/$C37)+IF(FX37=0,0,($BK37-$BL37-$BM37)*$BK$61*1/$C37)+IF(FY37=0,0,($BO37-$BP37-$BQ37)*$BO$61*1/$C37)+IF(FZ37=0,0,($BS37-$BT37-$BU37)*$BS$61*1/$C37)+IF(GA37=0,0,($BW37-$BX37-$BY37)*$BW$61*1/$C37)+IF(GB37=0,0,($CA37-$CB37-$CC37)*$CA$61*1/$C37)+IF(GC37=0,0,($CE37-$CF37-$CG37)*$CE$61*1/$C37)+IF(GD37=0,0,($CI37-$CJ37-$CK37)*$CI$61*1/$C37) -> 2986.191463 | GF37: =IF((1-($HB$2-$CM37)/$C37)>0,(1-($HB$2-$CM37)/$C37),0) -> 0 | GG37: =IF((1-($HB$2-GG$2)/$C37)>0,(1-($HB$2-GG$2)/$C37),0) -> 0 | GH37: 0 | GI37: 0 | GJ37: 0 | GK37: 0 | GL37: 0 | GM37: 0 | GN37: 0 | GO37: 0 | GP37: 0 | GQ37: =IF((1-($HB$2-GQ$2)/$C37)>0,(1-($HB$2-GQ$2)/$C37),0) -> 0 | GR37: 0 | GS37: 0 | GT37: 0 | GU37: 0.05 | GV37: 0.15 | GW37: 0.25 | GX37: 0.35 | GY37: 0.45 | GZ37: 0.55 | HA37: 0.6 | HB37: =IF(GF37=0,0,($D37-$E37)*1/$C37)+IF(GG37=0,0,($G37-$H37-$I37)*$G$61*1/$C37)+IF(GH37=0,0,($K37-$L37-$M37)*$K$61*1/$C37)+IF(GI37=0,0,($O37-$P37-$Q37)*$O$61*1/$C37)+IF(GJ37=0,0,($S37-$T37-$U37)*$S$61*1/$C37)+IF(GK37=0,0,($W37-$X37-$Y37)*$W$61*1/$C37)+IF(GL37=0,0,($AA37-$AB37-$AC37)*$AA$61*1/$C37)+IF(GM37=0,0,($AE37-$AF37-$AG37)*$AE$61*1/$C37)+IF(GN37=0,0,($AI37-$AJ37-$AK37)*$AI$61*1/$C37)+IF(GO37=0,0,($AM37-$AN37-$AO37)*$AM$61*1/$C37)+IF(GP37=0,0,($AQ37-$AR37-$AS37)*$AQ$61*1/$C37)+IF(GQ37=0,0,($AU37-$AV37-$AW37)*$AU$61*1/$C37)+IF(GR37=0,0,($AY37-$AZ37-$BA37)*$AY$61*1/$C37)+IF(GS37=0,0,($BC37-$BD37-$BE37)*$BC$61*1/$C37)+IF(GT37=0,0,($BG37-$BH37-$BI37)*$BG$61*1/$C37)+IF(GU37=0,0,($BK37-$BL37-$BM37)*$BK$61*1/$C37)+IF(GV37=0,0,($BO37-$BP37-$BQ37)*$BO$61*1/$C37)+IF(GW37=0,0,($BS37-$BT37-$BU37)*$BS$61*1/$C37)+IF(GX37=0,0,($BW37-$BX37-$BY37)*$BW$61*1/$C37)+IF(GY37=0,0,($CA37-$CB37-$CC37)*$CA$61*1/$C37)+IF(GZ37=0,0,($CE37-$CF37-$CG37)*$CE$61*1/$C37)+IF(HA37=0,0,($CI37-$CJ37-$CK37)*$CI$61*1/$C37) -> 0
B38: Equipos de transporte y carga | C38: 5 | D38: 0 | F38: 0 | G38: 0 | K38: 0 | L38: 0 | O38: 0 | S38: 0 | W38: 0 | X38: 0 | AA38: 0 | AB38: 0 | AE38: 0 | AF38: 0 | AI38: 0 | AJ38: 0 | AM38: 0 | AN38: 0 | AQ38: 0 | AR38: 0 | AU38: 0 | AV38: 0 | AY38: 133705.86 | AZ38: 0 | CI38: 0 | CJ38: 0 | CM38: 0 | CN38: 0 | CO38: 0 | CP38: 0 | CQ38: 0 | CR38: 0 | CS38: 0 | CT38: 0 | CU38: 0 | CV38: 0 | CW38: 0 | CX38: 0 | CY38: 0 | CZ38: 0 | DA38: 0 | DB38: 0 | DC38: 0 | DD38: 0.1 | DE38: 0.3 | DF38: 0.5 | DG38: 0.7 | DH38: 0.9 | DI38: 1 | DJ38: 0 | DK38: 112490.5775 | DL38: 112490.5775 | DM38: 0 | DN38: 0 | DO38: 0 | DP38: 0 | DQ38: 0 | DR38: 0 | DS38: 0 | DT38: 0 | DU38: 0 | DV38: 0 | DW38: 0 | DX38: 0 | DY38: 0 | DZ38: 0 | EA38: 0 | EB38: 0 | EC38: 0 | ED38: 0 | EE38: 0 | EF38: 0.1 | EG38: 0.3 | EH38: 0.5 | EI38: 0.7 | EJ38: 0.8 | EK38: 0 | EL38: 0 | EM38: 0 | EN38: 0 | EO38: 0 | EP38: 0 | EQ38: 0 | ER38: 0 | ES38: 0 | ET38: 0 | EU38: 0 | EV38: 0 | EW38: 0 | EX38: 0 | EY38: 0 | EZ38: 0 | FA38: 0 | FB38: 0 | FC38: 0 | FD38: 0.1 | FE38: 0.3 | FF38: 0.5 | FG38: 0.6 | FH38: 0 | FI38: 0 | FJ38: 0 | FK38: 0 | FL38: 0 | FM38: 0 | FN38: 0 | FO38: 0 | FP38: 0 | FQ38: 0 | FR38: 0 | FS38: 0 | FT38: 0 | FU38: 0 | FV38: 0 | FW38: 0 | FX38: 0 | FY38: 0 | FZ38: 0 | GA38: 0 | GB38: 0.1 | GC38: 0.3 | GD38: 0.4 | GE38: 0 | GF38: 0 | GG38: 0 | GH38: 0 | GI38: 0 | GJ38: 0 | GK38: 0 | GL38: 0 | GM38: 0 | GN38: 0 | GO38: 0 | GP38: 0 | GQ38: 0 | GR38: 0 | GS38: 0 | GT38: 0 | GU38: 0 | GV38: 0 | GW38: 0 | GX38: 0 | GY38: 0 | GZ38: 0.1 | HA38: 0.2 | HB38: 0
B39: Terrenos | C39: 1000 | D39: 0 | F39: 0 | G39: 0 | K39: 0 | L39: 0 | O39: 0 | S39: 0 | W39: 0 | X39: 0 | AA39: 0 | AB39: 0 | AE39: 0 | AF39: 0 | AI39: 0 | AJ39: 0 | AM39: 0 | AN39: 0 | AQ39: 0 | AR39: 0 | AU39: 0 | AV39: 0 | AY39: 0 | AZ39: 0 | CI39: 0 | CJ39: 0 | CM39: 0 | CN39: 0 | CO39: 0.9805 | CP39: 0.9815 | CQ39: 0.9825 | CR39: 0.9835 | CS39: 0.9845 | CT39: 0.9855 | CU39: 0.9865 | CV39: 0.9875 | CW39: 0.9885 | CX39: 0.9895 | CY39: 0.9905 | CZ39: 0.9915 | DA39: 0.9925 | DB39: 0.9935 | DC39: 0.9945 | DD39: 0.9955 | DE39: 0.9965 | DF39: 0.9975 | DG39: 0.9985 | DH39: 0.9995 | DI39: 1 | DJ39: 0 | DK39: 0 | DL39: 0 | DM39: 0 | DN39: 0 | DO39: 0 | DP39: 0.9795 | DQ39: 0.9805 | DR39: 0.9815 | DS39: 0.9825 | DT39: 0.9835 | DU39: 0.9845 | DV39: 0.9855 | DW39: 0.9865 | DX39: 0.9875 | DY39: 0.9885 | DZ39: 0.9895 | EA39: 0.9905 | EB39: 0.9915 | EC39: 0.9925 | ED39: 0.9935 | EE39: 0.9945 | EF39: 0.9955 | EG39: 0.9965 | EH39: 0.9975 | EI39: 0.9985 | EJ39: 0.999 | EK39: 0 | EL39: 0 | EM39: 0.9785 | EN39: 0.9795 | EO39: 0.9805 | EP39: 0.9815 | EQ39: 0.9825 | ER39: 0.9835 | ES39: 0.9845 | ET39: 0.9855 | EU39: 0.9865 | EV39: 0.9875 | EW39: 0.9885 | EX39: 0.9895 | EY39: 0.9905 | EZ39: 0.9915 | FA39: 0.9925 | FB39: 0.9935 | FC39: 0.9945 | FD39: 0.9955 | FE39: 0.9965 | FF39: 0.9975 | FG39: 0.998 | FH39: 0 | FI39: 0 | FJ39: 0.9775 | FK39: 0.9785 | FL39: 0.9795 | FM39: 0.9805 | FN39: 0.9815 | FO39: 0.9825 | FP39: 0.9835 | FQ39: 0.9845 | FR39: 0.9855 | FS39: 0.9865 | FT39: 0.9875 | FU39: 0.9885 | FV39: 0.9895 | FW39: 0.9905 | FX39: 0.9915 | FY39: 0.9925 | FZ39: 0.9935 | GA39: 0.9945 | GB39: 0.9955 | GC39: 0.9965 | GD39: 0.997 | GE39: 0 | GF39: 0 | GG39: 0.9765 | GH39: 0.9775 | GI39: 0.9785 | GJ39: 0.9795 | GK39: 0.9805 | GL39: 0.9815 | GM39: 0.9825 | GN39: 0.9835 | GO39: 0.9845 | GP39: 0.9855 | GQ39: 0.9865 | GR39: 0.9875 | GS39: 0.9885 | GT39: 0.9895 | GU39: 0.9905 | GV39: 0.9915 | GW39: 0.9925 | GX39: 0.9935 | GY39: 0.9945 | GZ39: 0.9955 | HA39: 0.996 | HB39: 0
B40: Edificios y mejoras | C40: 40 | D40: 0 | F40: 0 | G40: 0 | K40: 0 | L40: 0 | O40: 0 | S40: 0 | W40: 0 | X40: 0 | AA40: 0 | AB40: 0 | AE40: 0 | AF40: 0 | AI40: 0 | AJ40: 0 | AM40: 0 | AN40: 0 | AQ40: 0 | AR40: 0 | AU40: 0 | AV40: 0 | AY40: 0 | AZ40: 0 | CM40: 0 | CN40: 0 | CO40: 0.5125 | CP40: 0.5375 | CQ40: 0.5625 | CR40: 0.5875 | CS40: 0.6125 | CT40: 0.6375 | CU40: 0.6625 | CV40: 0.6875 | CW40: 0.7125 | CX40: 0.7375 | CY40: 0.7625 | CZ40: 0.7875 | DA40: 0.8125 | DB40: 0.8375 | DC40: 0.8625 | DD40: 0.8875 | DE40: 0.9125 | DF40: 0.9375 | DG40: 0.9625 | DH40: 0.9875 | DI40: 1 | DJ40: 0 | DK40: 0 | DL40: 0 | DM40: 0 | DN40: 0 | DO40: 0 | DP40: 0.4875 | DQ40: 0.5125 | DR40: 0.5375 | DS40: 0.5625 | DT40: 0.5875 | DU40: 0.6125 | DV40: 0.6375 | DW40: 0.6625 | DX40: 0.6875 | DY40: 0.7125 | DZ40: 0.7375 | EA40: 0.7625 | EB40: 0.7875 | EC40: 0.8125 | ED40: 0.8375 | EE40: 0.8625 | EF40: 0.8875 | EG40: 0.9125 | EH40: 0.9375 | EI40: 0.9625 | EJ40: 0.975 | EK40: 0 | EL40: 0 | EM40: 0.4625 | EN40: 0.4875 | EO40: 0.5125 | EP40: 0.5375 | EQ40: 0.5625 | ER40: 0.5875 | ES40: 0.6125 | ET40: 0.6375 | EU40: 0.6625 | EV40: 0.6875 | EW40: 0.7125 | EX40: 0.7375 | EY40: 0.7625 | EZ40: 0.7875 | FA40: 0.8125 | FB40: 0.8375 | FC40: 0.8625 | FD40: 0.8875 | FE40: 0.9125 | FF40: 0.9375 | FG40: 0.95 | FH40: 0 | FI40: 0 | FJ40: 0.4375 | FK40: 0.4625 | FL40: 0.4875 | FM40: 0.5125 | FN40: 0.5375 | FO40: 0.5625 | FP40: 0.5875 | FQ40: 0.6125 | FR40: 0.6375 | FS40: 0.6625 | FT40: 0.6875 | FU40: 0.7125 | FV40: 0.7375 | FW40: 0.7625 | FX40: 0.7875 | FY40: 0.8125 | FZ40: 0.8375 | GA40: 0.8625 | GB40: 0.8875 | GC40: 0.9125 | GD40: 0.925 | GE40: 0 | GF40: 0 | GG40: 0.4125 | GH40: 0.4375 | GI40: 0.4625 | GJ40: 0.4875 | GK40: 0.5125 | GL40: 0.5375 | GM40: 0.5625 | GN40: 0.5875 | GO40: 0.6125 | GP40: 0.6375 | GQ40: 0.6625 | GR40: 0.6875 | GS40: 0.7125 | GT40: 0.7375 | GU40: 0.7625 | GV40: 0.7875 | GW40: 0.8125 | GX40: 0.8375 | GY40: 0.8625 | GZ40: 0.8875 | HA40: 0.9 | HB40: 0
B41: Despachos de maniobra y SCADA | C41: 10 | D41: 4033267.434 | F41: 2307950.33 | G41: 167172.85 | K41: 59988.72 | L41: 0 | O41: 138768.94 | S41: 107394 | W41: 96549 | X41: 0 | AA41: 375159 | AB41: 0 | AE41: 299121 | AF41: 0 | AI41: 231902.89 | AJ41: 62404.32 | AM41: 243375.604 | AN41: 0 | AQ41: 102709.38 | AR41: 0 | AU41: 237649.92 | AV41: 0 | AY41: 133705.86 | AZ41: 0 | BC41: 27834.38 | BD41: 0 | BG41: 178367 | BH41: 0 | BK41: 246443.27 | BL41: 0 | BO41: 6825683.33 | BS41: 3577794.55 | BT41: 0 | BW41: 4586165.25 | BX41: 0 | CA41: 5577527.64 | CB41: 0 | CE41: 6545516.38 | CF41: 0 | CI41: 0 | CJ41: 0 | CM41: 1996.722284 | CN41: 0 | CO41: 0 | CP41: 0 | CQ41: 0 | CR41: 0 | CS41: 0 | CT41: 0 | CU41: 0 | CV41: 0 | CW41: 0 | CX41: 0 | CY41: 0.05 | CZ41: 0.15 | DA41: 0.25 | DB41: 0.35 | DC41: 0.45 | DD41: 0.55 | DE41: 0.65 | DF41: 0.75 | DG41: 0.85 | DH41: 0.95 | DI41: 1 | DJ41: 2466633.916 | DK41: 30201277.42 | DL41: 5534938.259 | DM41: 18269052.21 | DN41: 2466633.916 | DO41: 0 | DP41: 0 | DQ41: 0 | DR41: 0 | DS41: 0 | DT41: 0 | DU41: 0 | DV41: 0 | DW41: 0 | DX41: 0 | DY41: 0 | DZ41: 0 | EA41: 0.05 | EB41: 0.15 | EC41: 0.25 | ED41: 0.35 | EE41: 0.45 | EF41: 0.55 | EG41: 0.65 | EH41: 0.75 | EI41: 0.85 | EJ41: 0.9 | EK41: 2447153.11 | EL41: 0 | EM41: 0 | EN41: 0 | EO41: 0 | EP41: 0 | EQ41: 0 | ER41: 0 | ES41: 0 | ET41: 0 | EU41: 0 | EV41: 0 | EW41: 0 | EX41: 0 | EY41: 0.05 | EZ41: 0.15 | FA41: 0.25 | FB41: 0.35 | FC41: 0.45 | FD41: 0.55 | FE41: 0.65 | FF41: 0.75 | FG41: 0.8 | FH41: 2435904.052 | FI41: 0 | FJ41: 0 | FK41: 0 | FL41: 0 | FM41: 0 | FN41: 0 | FO41: 0 | FP41: 0 | FQ41: 0 | FR41: 0 | FS41: 0 | FT41: 0 | FU41: 0 | FV41: 0 | FW41: 0.05 | FX41: 0.15 | FY41: 0.25 | FZ41: 0.35 | GA41: 0.45 | GB41: 0.55 | GC41: 0.65 | GD41: 0.7 | GE41: 2433428.184 | GF41: 0 | GG41: 0 | GH41: 0 | GI41: 0 | GJ41: 0 | GK41: 0 | GL41: 0 | GM41: 0 | GN41: 0 | GO41: 0 | GP41: 0 | GQ41: 0 | GR41: 0 | GS41: 0 | GT41: 0 | GU41: 0.05 | GV41: 0.15 | GW41: 0.25 | GX41: 0.35 | GY41: 0.45 | GZ41: 0.55 | HA41: 0.6 | HB41: 2418024.673
B42: Equipos de medición y control de la calidad del suministro | C42: 22 | D42: 0 | F42: 0 | G42: 0 | K42: 0 | L42: 0 | O42: 0 | S42: 0 | W42: 34591 | X42: 0 | AA42: 50860 | AB42: 0 | AE42: 0 | AF42: 0 | AI42: 650763.39 | AJ42: 107188.24 | AM42: 0 | AN42: 0 | AQ42: 12397.44 | AR42: 0 | AU42: 0 | AV42: 0 | AY42: 208769.04 | AZ42: 0 | BC42: 0 | BD42: 0 | BG42: 665465.83 | BH42: 0 | BK42: 278103.82 | BL42: 0 | BO42: 661403.88 | BS42: 0 | BT42: 0 | BW42: 1660524.15 | BX42: 0 | CA42: 841332.53 | CB42: 0 | CE42: 945627.69 | CF42: 0 | CI42: 0 | CJ42: 0 | CM42: 0 | CN42: 0 | CO42: 0.1136363636 | CP42: 0.1590909091 | CQ42: 0.2045454545 | CR42: 0.25 | CS42: 0.2954545455 | CT42: 0.3409090909 | CU42: 0.3863636364 | CV42: 0.4318181818 | CW42: 0.4772727273 | CX42: 0.5227272727 | CY42: 0.5681818182 | CZ42: 0.6136363636 | DA42: 0.6590909091 | DB42: 0.7045454545 | DC42: 0.75 | DD42: 0.7954545455 | DE42: 0.8409090909 | DF42: 0.8863636364 | DG42: 0.9318181818 | DH42: 0.9772727273 | DI42: 1 | DJ42: 235332.5782 | DK42: 5177316.721 | DL42: 0 | DM42: 4199479.925 | DN42: 235332.5782 | DO42: 0 | DP42: 0.06818181818 | DQ42: 0.1136363636 | DR42: 0.1590909091 | DS42: 0.2045454545 | DT42: 0.25 | DU42: 0.2954545455 | DV42: 0.3409090909 | DW42: 0.3863636364 | DX42: 0.4318181818 | DY42: 0.4772727273 | DZ42: 0.5227272727 | EA42: 0.5681818182 | EB42: 0.6136363636 | EC42: 0.6590909091 | ED42: 0.7045454545 | EE42: 0.75 | EF42: 0.7954545455 | EG42: 0.8409090909 | EH42: 0.8863636364 | EI42: 0.9318181818 | EJ42: 0.9545454545 | EK42: 235332.5782 | EL42: 0 | EM42: 0.02272727273 | EN42: 0.06818181818 | EO42: 0.1136363636 | EP42: 0.1590909091 | EQ42: 0.2045454545 | ER42: 0.25 | ES42: 0.2954545455 | ET42: 0.3409090909 | EU42: 0.3863636364 | EV42: 0.4318181818 | EW42: 0.4772727273 | EX42: 0.5227272727 | EY42: 0.5681818182 | EZ42: 0.6136363636 | FA42: 0.6590909091 | FB42: 0.7045454545 | FC42: 0.75 | FD42: 0.7954545455 | FE42: 0.8409090909 | FF42: 0.8863636364 | FG42: 0.9090909091 | FH42: 235332.5782 | FI42: 0 | FJ42: 0 | FK42: 0.02272727273 | FL42: 0.06818181818 | FM42: 0.1136363636 | FN42: 0.1590909091 | FO42: 0.2045454545 | FP42: 0.25 | FQ42: 0.2954545455 | FR42: 0.3409090909 | FS42: 0.3863636364 | FT42: 0.4318181818 | FU42: 0.4772727273 | FV42: 0.5227272727 | FW42: 0.5681818182 | FX42: 0.6136363636 | FY42: 0.6590909091 | FZ42: 0.7045454545 | GA42: 0.75 | GB42: 0.7954545455 | GC42: 0.8409090909 | GD42: 0.8636363636 | GE42: 235332.5782 | GF42: 0 | GG42: 0 | GH42: 0 | GI42: 0.02272727273 | GJ42: 0.06818181818 | GK42: 0.1136363636 | GL42: 0.1590909091 | GM42: 0.2045454545 | GN42: 0.25 | GO42: 0.2954545455 | GP42: 0.3409090909 | GQ42: 0.3863636364 | GR42: 0.4318181818 | GS42: 0.4772727273 | GT42: 0.5227272727 | GU42: 0.5681818182 | GV42: 0.6136363636 | GW42: 0.6590909091 | GX42: 0.7045454545 | GY42: 0.75 | GZ42: 0.7954545455 | HA42: 0.8181818182 | HB42: 235332.5782
B43: Equipos de computación | C43: 4 | D43: 0 | F43: 0 | G43: 0 | K43: 0 | L43: 0 | O43: 0 | S43: 0 | W43: 0 | X43: 0 | AA43: 0 | AB43: 0 | AE43: 0 | AF43: 0 | AI43: 0 | AJ43: 0 | AM43: 0 | AN43: 0 | AQ43: 0 | AR43: 0 | AU43: 0 | AV43: 0 | AY43: 0 | AZ43: 0 | CI43: 0 | CJ43: 0 | CM43: 0 | CN43: 0 | CO43: 0 | CP43: 0 | CQ43: 0 | CR43: 0 | CS43: 0 | CT43: 0 | CU43: 0 | CV43: 0 | CW43: 0 | CX43: 0 | CY43: 0 | CZ43: 0 | DA43: 0 | DB43: 0 | DC43: 0 | DD43: 0 | DE43: 0.125 | DF43: 0.375 | DG43: 0.625 | DH43: 0.875 | DI43: 1 | DJ43: 0 | DK43: 0 | DL43: 0 | DM43: 0 | DN43: 0 | DO43: 0 | DP43: 0 | DQ43: 0 | DR43: 0 | DS43: 0 | DT43: 0 | DU43: 0 | DV43: 0 | DW43: 0 | DX43: 0 | DY43: 0 | DZ43: 0 | EA43: 0 | EB43: 0 | EC43: 0 | ED43: 0 | EE43: 0 | EF43: 0 | EG43: 0.125 | EH43: 0.375 | EI43: 0.625 | EJ43: 0.75 | EK43: 0 | EL43: 0 | EM43: 0 | EN43: 0 | EO43: 0 | EP43: 0 | EQ43: 0 | ER43: 0 | ES43: 0 | ET43: 0 | EU43: 0 | EV43: 0 | EW43: 0 | EX43: 0 | EY43: 0 | EZ43: 0 | FA43: 0 | FB43: 0 | FC43: 0 | FD43: 0 | FE43: 0.125 | FF43: 0.375 | FG43: 0.5 | FH43: 0 | FI43: 0 | FJ43: 0 | FK43: 0 | FL43: 0 | FM43: 0 | FN43: 0 | FO43: 0 | FP43: 0 | FQ43: 0 | FR43: 0 | FS43: 0 | FT43: 0 | FU43: 0 | FV43: 0 | FW43: 0 | FX43: 0 | FY43: 0 | FZ43: 0 | GA43: 0 | GB43: 0 | GC43: 0.125 | GD43: 0.25 | GE43: 0 | GF43: 0 | GG43: 0 | GH43: 0 | GI43: 0 | GJ43: 0 | GK43: 0 | GL43: 0 | GM43: 0 | GN43: 0 | GO43: 0 | GP43: 0 | GQ43: 0 | GR43: 0 | GS43: 0 | GT43: 0 | GU43: 0 | GV43: 0 | GW43: 0 | GX43: 0 | GY43: 0 | GZ43: 0 | HA43: 0 | HB43: 0
B44: Equipos de comunicaciones | C44: 8 | D44: 0 | F44: 0 | G44: 557960.6689 | K44: 574507.0262 | L44: 0 | O44: 109706.7478 | S44: 0 | W44: 157954.37 | X44: 0 | AA44: 286847.365 | AB44: 0 | AE44: 217452.49 | AF44: 0 | AI44: 0 | AJ44: 0 | AM44: 0 | AN44: 0 | AQ44: 0 | AR44: 0 | AU44: 0 | AV44: 0 | AY44: 0 | AZ44: 0 | CI44: 0 | CJ44: 0 | CM44: 0 | CN44: 0 | CO44: 0 | CP44: 0 | CQ44: 0 | CR44: 0 | CS44: 0 | CT44: 0 | CU44: 0 | CV44: 0 | CW44: 0 | CX44: 0 | CY44: 0 | CZ44: 0 | DA44: 0.0625 | DB44: 0.1875 | DC44: 0.3125 | DD44: 0.4375 | DE44: 0.5625 | DF44: 0.6875 | DG44: 0.8125 | DH44: 0.9375 | DI44: 1 | DJ44: 0 | DK44: 1649404.078 | DL44: 1649404.078 | DM44: 0 | DN44: 0 | DO44: 0 | DP44: 0 | DQ44: 0 | DR44: 0 | DS44: 0 | DT44: 0 | DU44: 0 | DV44: 0 | DW44: 0 | DX44: 0 | DY44: 0 | DZ44: 0 | EA44: 0 | EB44: 0 | EC44: 0.0625 | ED44: 0.1875 | EE44: 0.3125 | EF44: 0.4375 | EG44: 0.5625 | EH44: 0.6875 | EI44: 0.8125 | EJ44: 0.875 | EK44: 0 | EL44: 0 | EM44: 0 | EN44: 0 | EO44: 0 | EP44: 0 | EQ44: 0 | ER44: 0 | ES44: 0 | ET44: 0 | EU44: 0 | EV44: 0 | EW44: 0 | EX44: 0 | EY44: 0 | EZ44: 0 | FA44: 0.0625 | FB44: 0.1875 | FC44: 0.3125 | FD44: 0.4375 | FE44: 0.5625 | FF44: 0.6875 | FG44: 0.75 | FH44: 0 | FI44: 0 | FJ44: 0 | FK44: 0 | FL44: 0 | FM44: 0 | FN44: 0 | FO44: 0 | FP44: 0 | FQ44: 0 | FR44: 0 | FS44: 0 | FT44: 0 | FU44: 0 | FV44: 0 | FW44: 0 | FX44: 0 | FY44: 0.0625 | FZ44: 0.1875 | GA44: 0.3125 | GB44: 0.4375 | GC44: 0.5625 | GD44: 0.625 | GE44: 0 | GF44: 0 | GG44: 0 | GH44: 0 | GI44: 0 | GJ44: 0 | GK44: 0 | GL44: 0 | GM44: 0 | GN44: 0 | GO44: 0 | GP44: 0 | GQ44: 0 | GR44: 0 | GS44: 0 | GT44: 0 | GU44: 0 | GV44: 0 | GW44: 0.0625 | GX44: 0.1875 | GY44: 0.3125 | GZ44: 0.4375 | HA44: 0.5 | HB44: 0
B45: TOTAL SISTEMA DE DISTRIBUCIÓN | D45: =SUM(D14:D44) -> 275136420.7 | E45: =SUM(E14:E44) -> 0 | F45: 157483892.4 | G45: 16046553.21 | H45: 0 | I45: 0 | J45: 0 | K45: 16626145.37 | L45: 6134551 | M45: 0 | N45: 0 | O45: 11735230.53 | P45: 0 | Q45: 0 | R45: 0 | S45: 23161832.49 | T45: 1983756 | U45: 0 | V45: 0 | W45: 15993671.07 | X45: 0 | Y45: 0 | Z45: 0 | AA45: 18179203.62 | AB45: 3019158.69 | AC45: 0 | AD45: 0 | AE45: 21428374.88 | AF45: 0 | AG45: 0 | AH45: 0 | AI45: 17957017.16 | AJ45: 169592.56 | AK45: 0 | AL45: 0 | AM45: 19977300.71 | AN45: 0 | AO45: 0 | AP45: 0 | AQ45: 32733365.61 | AR45: 0 | AS45: 0 | AT45: 0 | AU45: 35033446.31 | AV45: 0 | AW45: 0 | AX45: 0 | AY45: 46818623.26 | AZ45: 0 | BA45: 0 | BB45: 0 | BC45: 55833722.8 | BD45: 1303263.44 | BE45: 0 | BF45: 0 | BG45: 56989143.14 | BH45: 0 | BI45: 0 | BJ45: 0 | BK45: 59914795.56 | BL45: 0 | BM45: 0 | BN45: 0 | BO45: 97849672.14 | BP45: 1008524.13 | BQ45: =SUM(BQ14:BQ44) -> 0 | BR45: 0 | BS45: 72913603.18 | BT45: =SUM(BT14:BT44) -> 5286189.338 | BU45: 0 | BV45: 0 | BW45: 101879367.2 | BX45: =SUM(BX14:BX44) -> 3785224.844 | BY45: 0 | BZ45: 0 | CA45: 67854016.46 | CB45: =SUM(CB14:CB44) -> 3226373.861 | CC45: 0 | CD45: 0 | CE45: 72459865.02 | CF45: =SUM(CF14:CF44) -> 1419215.223 | CG45: 0 | CH45: 0 | CI45: =SUM(CI14:CI44) -> 44806287.3 | CJ45: =SUM(CJ14:CJ44) -> 0 | CK45: =SUM(CK14:CK44) -> 0 | CL45: =SUM(CL14:CL44) -> 0 | DJ45: =SUM(DJ14:DJ44) -> 27200594.95 | DK45: =SUM(DK14:DK44) -> 1042861506 | DL45: =SUM(DL14:DL44) -> 278495770.2 | DM45: =SUM(DM14:DM44) -> 602867284.5 | DN45: =SUM(DN14:DN44) -> 27200594.95 | EK45: =SUM(EK14:EK44) -> 27162261.65 | FH45: =SUM(FH14:FH44) -> 27151012.6 | GE45: =SUM(GE14:GE44) -> 27148536.73 | HB45: =SUM(HB14:HB44) -> 27130147.03
A46: ALUMBRADO PÚBLICO | B46: Lámparas, accesorios y postes de alumbrado público | C46: 22 | D46: 7205098.617 | F46: 3981273.073 | G46: 774562.58 | K46: 1965026.04 | L46: 727082 | O46: 1191692.04 | S46: 1316103.04 | W46: 686879.94 | X46: 0 | AA46: 668315.16 | AB46: 0 | AE46: 892642.38 | AF46: 0 | AI46: 454090.55 | AJ46: 0 | AM46: 553944 | AN46: 0 | AQ46: 1972355.669 | AR46: 0 | AU46: 3621094.83 | AV46: 0 | AY46: 3377058.99 | AZ46: 0 | BC46: 3404296.68 | BD46: 131148.37 | BG46: 4772008.97 | BK46: 3252026.82 | BL46: 0 | BO46: 4886811.27 | BS46: 3406767.82 | BT46: 0 | BW46: 1855696.04 | BX46: 0 | CA46: 2559277.73 | CB46: 0 | CE46: 1639903.02 | CF46: 0 | CI46: 1127377.92 | CJ46: 0 | CM46: =IF(D46=0,0,2001-(D46-F46)*C46/D46) -> 1991.156393 | CN46: =IF((1-($DJ$2-$CM46)/$C46)>0,(1-($DJ$2-$CM46)/$C46),0) -> 0 | CO46: =IF((1-($DJ$2-G$2)/$C46)>0,(1-($DJ$2-G$2)/$C46),0) -> 0.1136363636 | CP46: =IF((1-($DJ$2-K$2)/$C46)>0,(1-($DJ$2-K$2)/$C46),0) -> 0.1590909091 | CQ46: =IF((1-($DJ$2-O$2)/$C46)>0,(1-($DJ$2-O$2)/$C46),0) -> 0.2045454545 | CR46: =IF((1-($DJ$2-S$2)/$C46)>0,(1-($DJ$2-S$2)/$C46),0) -> 0.25 | CS46: =IF((1-($DJ$2-W$2)/$C46)>0,(1-($DJ$2-W$2)/$C46),0) -> 0.2954545455 | CT46: =IF((1-($DJ$2-AA$2)/$C46)>0,(1-($DJ$2-AA$2)/$C46),0) -> 0.3409090909 | CU46: =IF((1-($DJ$2-AE$2)/$C46)>0,(1-($DJ$2-AE$2)/$C46),0) -> 0.3863636364 | CV46: =IF((1-($DJ$2-AI$2)/$C46)>0,(1-($DJ$2-AI$2)/$C46),0) -> 0.4318181818 | CW46: =IF((1-($DJ$2-AM$2)/$C46)>0,(1-($DJ$2-AM$2)/$C46),0) -> 0.4772727273 | CX46: =IF((1-($DJ$2-AQ$2)/$C46)>0,(1-($DJ$2-AQ$2)/$C46),0) -> 0.5227272727 | CY46: =IF((1-($DJ$2-AU$2)/$C46)>0,(1-($DJ$2-AU$2)/$C46),0) -> 0.5681818182 | CZ46: =IF((1-($DJ$2-AY$2)/$C46)>0,(1-($DJ$2-AY$2)/$C46),0) -> 0.6136363636 | DA46: =IF((1-($DJ$2-BC$2)/$C46)>0,(1-($DJ$2-BC$2)/$C46),0) -> 0.6590909091 | DB46: =IF((1-($DJ$2-BG$2)/$C46)>0,(1-($DJ$2-BG$2)/$C46),0) -> 0.7045454545 | DC46: =IF((1-($DJ$2-BK$2)/$C46)>0,(1-($DJ$2-BK$2)/$C46),0) -> 0.75 | DD46: =IF((1-($DJ$2-BO$2)/$C46)>0,(1-($DJ$2-BO$2)/$C46),0) -> 0.7954545455 | DE46: =IF((1-($DJ$2-BS$2)/$C46)>0,(1-($DJ$2-BS$2)/$C46),0) -> 0.8409090909 | DF46: =IF((1-($DJ$2-BW$2)/$C46)>0,(1-($DJ$2-BW$2)/$C46),0) -> 0.8863636364 | DG46: =IF((1-($DJ$2-CA$2)/$C46)>0,(1-($DJ$2-CA$2)/$C46),0) -> 0.9318181818 | DH46: =IF((1-($DJ$2-CE$2)/$C46)>0,(1-($DJ$2-CE$2)/$C46),0) -> 0.9772727273 | DI46: =IF((1-($DJ$2-CI$2)/$C46)>0,(1-($DJ$2-CI$2)/$C46),0) -> 1 | DJ46: =IF(CN46=0,0,($D46-$E46)*1/$C46)+IF(CO46=0,0,($G46-$H46-$I46)*$G$62*1/$C46)+IF(CP46=0,0,($K46-$L46-$M46)*$K$62*1/$C46)+IF(CQ46=0,0,($O46-$P46-$Q46)*$O$62*1/$C46)+IF(CR46=0,0,($S46-$T46-$U46)*$S$62*1/$C46)+IF(CS46=0,0,($W46-$X46-$Y46)*$W$62*1/$C46)+IF(CT46=0,0,($AA46-$AB46-$AC46)*$AA$62*1/$C46)+IF(CU46=0,0,($AE46-$AF46-$AG46)*$AE$62*1/$C46)+IF(CV46=0,0,($AI46-$AJ46-$AK46)*$AI$62*1/$C46)+IF(CW46=0,0,($AM46-$AN46-$AO46)*$AM$62*1/$C46)+IF(CX46=0,0,($AQ46-$AR46-$AS46)*$AQ$62*1/$C46)+IF(CY46=0,0,($AU46-$AV46-$AW46)*$AU$62*1/$C46)+IF(CZ46=0,0,($AY46-$AZ46-$BA46)*$AY$62*1/$C46)+IF(DA46=0,0,($BC46-$BD46-$BE46)*$BC$62*1/$C46)+IF(DB46=0,0,($BG46-$BH46-$BI46)*$BG$62*1/$C46)+IF(DC46=0,0,($BK46-$BL46-$BM46)*$BK$62*1/$C46)+IF(DD46=0,0,($BO46-$BP46-$BQ46)*$BO$62*1/$C46)+IF(DE46=0,0,($BS46-$BT46-$BU46)*$BS$62*1/$C46)+IF(DF46=0,0,($BW46-$BX46-$BY46)*$BW$62*1/$C46)+IF(DG46=0,0,($CA46-$CB46-$CC46)*$CA$62*1/$C46)+IF(DH46=0,0,($CE46-$CF46-$CG46)*$CE$62*1/$C46)+IF(DI46=0,0,($CI46-$CJ46-$CK46)*$CI$62*1/$C46) -> 1846647.504 | DK46: =D46-E46+(G46-H46-I46)*G$62+(K46-L46-M46)*K$62+(O46-P46-Q46)*O$62+(S46-T46-U46)*S$62+(W46-X46-Y46)*W$62+(AA46-AB46-AC46)*AA$62+(AE46-AF46-AG46)*AE$62+(AI46-AJ46-AK46)*AI$62+(AM46-AN46-AO46)*AM$62+(AQ46-AR46-AS46)*$AQ$62+(AU46-AV46-AW46)*$AU$62+(AY46-AZ46-BA46)*$AY$62+(BC46-BD46-BE46)*$BC$62+(BG46-BH46-BI46)*$BG$62+(BK46-BL46-BM46)*$BK$62+(BO46-BP46-BQ46)*$BO$62+(BS46-BT46-BU46)*$BS$62+(BW46-BX46-BY46)*$BW$62+(CA46-CB46-CC46)*$CA$62+(CE46-CF46-CG46)*$CE$62+(CI46-CJ46-CK46)*$CI$62 -> 47831343.7 | DL46: =IF(CN46=0,D46-E46,0)+IF(CO46=0,(G46-H46-I46)*G$62,0)+IF(CP46=0,(K46-L46-M46)*K$62,0)+IF(CQ46=0,(O46-P46-Q46)*O$62,0)+IF(CR46=0,(S46-T46-U46)*S$62,0)+IF(CS46=0,(W46-X46-Y46)*W$62,0)+IF(CT46=0,(AA46-AB46-AC46)*AA$62,0)+IF(CU46=0,(AE46-AF46-AG46)*AE$62,0)+IF(CV46=0,(AI46-AJ46-AK46)*AI$62,0)+IF(CW46=0,(AM46-AN46-AO46)*AM$62,0)+IF(CX46=0,(AQ46-AR46-AS46)*$AQ$62,0)+IF(CY46=0,(AU46-AV46-AW46)*$AU$62,0)+IF(CZ46=0,(AY46-AZ46-BA46)*$AY$62,0)++IF(DA46=0,(BC46-BD46-BE46)*$BC$62,0)+IF(DB46=0,(BG46-BH46-BI46)*$BG$62,0)+IF(DC46=0,(BK46-BL46-BM46)*$BK$62,0)+IF(DD46=0,(BO46-BP46-BQ46)*$BO$62,0)+IF(DE46=0,(BS46-BT46-BU46)*$BS$62,0)+IF(DF46=0,(BW46-BX46-BY46)*$BW$62,0)+IF(DG46=0,(CA46-CB46-CC46)*$CA$62,0)+IF(DH46=0,(CE46-CF46-CG46)*$CE$62,0)+IF(DI46=0,(CI46-CJ46-CK46)*$CI$62,0) -> 7205098.617 | DM46: =(D46-E46)*CN46+((G46-H46-(I46-J46))*G$62)*CO46+((K46-L46-(M46-N46))*K$62)*CP46+((O46-P46-(Q46-R46))*O$62)*CQ46+((S46-T46-(U46-V46))*S$62)*CR46+((W46-X46-(Y46-Z46))*W$62)*CS46+((AA46-AB46-(AC46-AD46))*AA$62)*CT46+((AE46-AF46-(AG46-AH46))*AE$62)*CU46+((AI46-AJ46-(AK46-AL46))*AI$62)*CV46+((AM46-AN46-(AO46-AP46))*$AM$62)*CW46+((AQ46-AR46-(AS46-AT46))*$AQ$62)*CX46+((AU46-AV46-(AW46-AX46))*$AU$62)*CY46+((AY46-AZ46-(BA46-BB46))*$AY$62)*CZ46+((BC46-BD46-(BE46-BF46))*$BC$62)*DA46+((BG46-BH46-(BI46-BJ46))*$BG$62)*DB46+((BK46-BL46-(BM46-BN46))*$BK$62)*DC46+((BO46-BP46-(BQ46-BR46))*$BO$62)*DD46+((BS46-BT46-(BU46-BV46))*$BS$62)*DE46+((BW46-BX46-(BY46-BZ46))*$BW$62)*DF46+((CA46-CB46-(CC46-CD46))*$CA$62)*DG46+((CE46-CF46-(CG46-CH46))*$CE$62)*DH46+((CI46-CJ46-(CK46-CL46))*$CI$62)*DI46 -> 26499910.15 | DN46: =(DK46-DL46)*1/C46 -> 1846647.504 | DO46: =IF((1-($EK$2-$CM46)/$C46)>0,(1-($EK$2-$CM46)/$C46),0) -> 0 | DP46: =IF((1-($EK$2-DP$2)/$C46)>0,(1-($EK$2-DP$2)/$C46),0) -> 0.06818181818 | DQ46: 0.1136363636 | DR46: 0.1590909091 | DS46: 0.2045454545 | DT46: 0.25 | DU46: 0.2954545455 | DV46: 0.3409090909 | DW46: 0.3863636364 | DX46: 0.4318181818 | DY46: 0.4772727273 | DZ46: 0.5227272727 | EA46: 0.5681818182 | EB46: 0.6136363636 | EC46: 0.6590909091 | ED46: 0.7045454545 | EE46: 0.75 | EF46: 0.7954545455 | EG46: 0.8409090909 | EH46: 0.8863636364 | EI46: 0.9318181818 | EJ46: 0.9545454545 | EK46: =IF(DO46=0,0,($D46-$E46)*1/$C46)+IF(DP46=0,0,($G46-$H46-$I46)*$G$62*1/$C46)+IF(DQ46=0,0,($K46-$L46-$M46)*$K$62*1/$C46)+IF(DR46=0,0,($O46-$P46-$Q46)*$O$62*1/$C46)+IF(DS46=0,0,($S46-$T46-$U46)*$S$62*1/$C46)+IF(DT46=0,0,($W46-$X46-$Y46)*$W$62*1/$C46)+IF(DU46=0,0,($AA46-$AB46-$AC46)*$AA$62*1/$C46)+IF(DV46=0,0,($AE46-$AF46-$AG46)*$AE$62*1/$C46)+IF(DW46=0,0,($AI46-$AJ46-$AK46)*$AI$62*1/$C46)+IF(DX46=0,0,($AM46-$AN46-$AO46)*$AM$62*1/$C46)+IF(DY46=0,0,($AQ46-$AR46-$AS46)*$AQ$62*1/$C46)+IF(DZ46=0,0,($AU46-$AV46-$AW46)*$AU$62*1/$C46)+IF(EA46=0,0,($AY46-$AZ46-$BA46)*$AY$62*1/$C46)+IF(EB46=0,0,($BC46-$BD46-$BE46)*$BC$62*1/$C46)+IF(EC46=0,0,($BG46-$BH46-$BI46)*$BG$62*1/$C46)+IF(ED46=0,0,($BK46-$BL46-$BM46)*$BK$62*1/$C46)+IF(EE46=0,0,($BO46-$BP46-$BQ46)*$BO$62*1/$C46)+IF(EF46=0,0,($BS46-$BT46-$BU46)*$BS$62*1/$C46)+IF(EG46=0,0,($BW46-$BX46-$BY46)*$BW$62*1/$C46)+IF(EH46=0,0,($CA46-$CB46-$CC46)*$CA$62*1/$C46)+IF(EI46=0,0,($CE46-$CF46-$CG46)*$CE$62*1/$C46)+IF(EJ46=0,0,($CI46-$CJ46-$CK46)*$CI$62*1/$C46) -> 1846647.504 | EL46: =IF((1-($FH$2-$CM46)/$C46)>0,(1-($FH$2-$CM46)/$C46),0) -> 0 | EM46: =IF((1-($FH$2-EM$2)/$C46)>0,(1-($FH$2-EM$2)/$C46),0) -> 0.02272727273 | EN46: 0.06818181818 | EO46: 0.1136363636 | EP46: 0.1590909091 | EQ46: 0.2045454545 | ER46: 0.25 | ES46: 0.2954545455 | ET46: 0.3409090909 | EU46: 0.3863636364 | EV46: 0.4318181818 | EW46: 0.4772727273 | EX46: 0.5227272727 | EY46: 0.5681818182 | EZ46: 0.6136363636 | FA46: 0.6590909091 | FB46: 0.7045454545 | FC46: 0.75 | FD46: 0.7954545455 | FE46: 0.8409090909 | FF46: 0.8863636364 | FG46: 0.9090909091 | FH46: =IF(EL46=0,0,($D46-$E46)*1/$C46)+IF(EM46=0,0,($G46-$H46-$I46)*$G$62*1/$C46)+IF(EN46=0,0,($K46-$L46-$M46)*$K$62*1/$C46)+IF(EO46=0,0,($O46-$P46-$Q46)*$O$62*1/$C46)+IF(EP46=0,0,($S46-$T46-$U46)*$S$62*1/$C46)+IF(EQ46=0,0,($W46-$X46-$Y46)*$W$62*1/$C46)+IF(ER46=0,0,($AA46-$AB46-$AC46)*$AA$62*1/$C46)+IF(ES46=0,0,($AE46-$AF46-$AG46)*$AE$62*1/$C46)+IF(ET46=0,0,($AI46-$AJ46-$AK46)*$AI$62*1/$C46)+IF(EU46=0,0,($AM46-$AN46-$AO46)*$AM$62*1/$C46)+IF(EV46=0,0,($AQ46-$AR46-$AS46)*$AQ$62*1/$C46)+IF(EW46=0,0,($AU46-$AV46-$AW46)*$AU$62*1/$C46)+IF(EX46=0,0,($AY46-$AZ46-$BA46)*$AY$62*1/$C46)+IF(EY46=0,0,($BC46-$BD46-$BE46)*$BC$62*1/$C46)+IF(EZ46=0,0,($BG46-$BH46-$BI46)*$BG$62*1/$C46)+IF(FA46=0,0,($BK46-$BL46-$BM46)*$BK$62*1/$C46)+IF(FB46=0,0,($BO46-$BP46-$BQ46)*$BO$62*1/$C46)+IF(FC46=0,0,($BS46-$BT46-$BU46)*$BS$62*1/$C46)+IF(FD46=0,0,($BW46-$BX46-$BY46)*$BW$62*1/$C46)+IF(FE46=0,0,($CA46-$CB46-$CC46)*$CA$62*1/$C46)+IF(FF46=0,0,($CE46-$CF46-$CG46)*$CE$62*1/$C46)+IF(FG46=0,0,($CI46-$CJ46-$CK46)*$CI$62*1/$C46) -> 1846647.504 | FI46: =IF((1-($GE$2-$CM46)/$C46)>0,(1-($GE$2-$CM46)/$C46),0) -> 0 | FJ46: =IF((1-($GE$2-FJ$2)/$C46)>0,(1-($GE$2-FJ$2)/$C46),0) -> 0 | FK46: 0.02272727273 | FL46: 0.06818181818 | FM46: 0.1136363636 | FN46: 0.1590909091 | FO46: 0.2045454545 | FP46: 0.25 | FQ46: 0.2954545455 | FR46: 0.3409090909 | FS46: 0.3863636364 | FT46: 0.4318181818 | FU46: 0.4772727273 | FV46: 0.5227272727 | FW46: 0.5681818182 | FX46: 0.6136363636 | FY46: 0.6590909091 | FZ46: 0.7045454545 | GA46: 0.75 | GB46: 0.7954545455 | GC46: 0.8409090909 | GD46: 0.8636363636 | GE46: =IF(FI46=0,0,($D46-$E46)*1/$C46)+IF(FJ46=0,0,($G46-$H46-$I46)*$G$62*1/$C46)+IF(FK46=0,0,($K46-$L46-$M46)*$K$62*1/$C46)+IF(FL46=0,0,($O46-$P46-$Q46)*$O$62*1/$C46)+IF(FM46=0,0,($S46-$T46-$U46)*$S$62*1/$C46)+IF(FN46=0,0,($W46-$X46-$Y46)*$W$62*1/$C46)+IF(FO46=0,0,($AA46-$AB46-$AC46)*$AA$62*1/$C46)+IF(FP46=0,0,($AE46-$AF46-$AG46)*$AE$62*1/$C46)+IF(FQ46=0,0,($AI46-$AJ46-$AK46)*$AI$62*1/$C46)+IF(FR46=0,0,($AM46-$AN46-$AO46)*$AM$62*1/$C46)+IF(FS46=0,0,($AQ46-$AR46-$AS46)*$AQ$62*1/$C46)+IF(FT46=0,0,($AU46-$AV46-$AW46)*$AU$62*1/$C46)+IF(FU46=0,0,($AY46-$AZ46-$BA46)*$AY$62*1/$C46)+IF(FV46=0,0,($BC46-$BD46-$BE46)*$BC$62*1/$C46)+IF(FW46=0,0,($BG46-$BH46-$BI46)*$BG$62*1/$C46)+IF(FX46=0,0,($BK46-$BL46-$BM46)*$BK$62*1/$C46)+IF(FY46=0,0,($BO46-$BP46-$BQ46)*$BO$62*1/$C46)+IF(FZ46=0,0,($BS46-$BT46-$BU46)*$BS$62*1/$C46)+IF(GA46=0,0,($BW46-$BX46-$BY46)*$BW$62*1/$C46)+IF(GB46=0,0,($CA46-$CB46-$CC46)*$CA$62*1/$C46)+IF(GC46=0,0,($CE46-$CF46-$CG46)*$CE$62*1/$C46)+IF(GD46=0,0,($CI46-$CJ46-$CK46)*$CI$62*1/$C46) -> 1811440.114 | GF46: =IF((1-($HB$2-$CM46)/$C46)>0,(1-($HB$2-$CM46)/$C46),0) -> 0 | GG46: =IF((1-($HB$2-GG$2)/$C46)>0,(1-($HB$2-GG$2)/$C46),0) -> 0 | GH46: 0 | GI46: 0.02272727273 | GJ46: 0.06818181818 | GK46: 0.1136363636 | GL46: 0.1590909091 | GM46: 0.2045454545 | GN46: 0.25 | GO46: 0.2954545455 | GP46: 0.3409090909 | GQ46: 0.3863636364 | GR46: 0.4318181818 | GS46: 0.4772727273 | GT46: 0.5227272727 | GU46: 0.5681818182 | GV46: 0.6136363636 | GW46: 0.6590909091 | GX46: 0.7045454545 | GY46: 0.75 | GZ46: 0.7954545455 | HA46: 0.8181818182 | HB46: =IF(GF46=0,0,($D46-$E46)*1/$C46)+IF(GG46=0,0,($G46-$H46-$I46)*$G$62*1/$C46)+IF(GH46=0,0,($K46-$L46-$M46)*$K$62*1/$C46)+IF(GI46=0,0,($O46-$P46-$Q46)*$O$62*1/$C46)+IF(GJ46=0,0,($S46-$T46-$U46)*$S$62*1/$C46)+IF(GK46=0,0,($W46-$X46-$Y46)*$W$62*1/$C46)+IF(GL46=0,0,($AA46-$AB46-$AC46)*$AA$62*1/$C46)+IF(GM46=0,0,($AE46-$AF46-$AG46)*$AE$62*1/$C46)+IF(GN46=0,0,($AI46-$AJ46-$AK46)*$AI$62*1/$C46)+IF(GO46=0,0,($AM46-$AN46-$AO46)*$AM$62*1/$C46)+IF(GP46=0,0,($AQ46-$AR46-$AS46)*$AQ$62*1/$C46)+IF(GQ46=0,0,($AU46-$AV46-$AW46)*$AU$62*1/$C46)+IF(GR46=0,0,($AY46-$AZ46-$BA46)*$AY$62*1/$C46)+IF(GS46=0,0,($BC46-$BD46-$BE46)*$BC$62*1/$C46)+IF(GT46=0,0,($BG46-$BH46-$BI46)*$BG$62*1/$C46)+IF(GU46=0,0,($BK46-$BL46-$BM46)*$BK$62*1/$C46)+IF(GV46=0,0,($BO46-$BP46-$BQ46)*$BO$62*1/$C46)+IF(GW46=0,0,($BS46-$BT46-$BU46)*$BS$62*1/$C46)+IF(GX46=0,0,($BW46-$BX46-$BY46)*$BW$62*1/$C46)+IF(GY46=0,0,($CA46-$CB46-$CC46)*$CA$62*1/$C46)+IF(GZ46=0,0,($CE46-$CF46-$CG46)*$CE$62*1/$C46)+IF(HA46=0,0,($CI46-$CJ46-$CK46)*$CI$62*1/$C46) -> 1755169.93
B47: TOTAL ALUMBRADO PÚBLICO | D47: =D46 -> 7205098.617 | E47: 0 | F47: 3981273.073 | G47: 774562.58 | H47: 0 | I47: 0 | J47: 0 | K47: 1965026.04 | L47: 727082 | M47: 0 | N47: 0 | O47: 1191692.04 | P47: 0 | Q47: 0 | R47: 0 | S47: 1316103.04 | T47: 0 | U47: 0 | V47: 0 | W47: 686879.94 | X47: 0 | Y47: 0 | Z47: 0 | AA47: 668315.16 | AB47: 0 | AC47: 0 | AD47: 0 | AE47: 892642.38 | AF47: 0 | AG47: 0 | AH47: 0 | AI47: 454090.55 | AJ47: 0 | AK47: 0 | AL47: 0 | AM47: 553944 | AN47: 0 | AO47: 0 | AP47: 0 | AQ47: 1972355.669 | AR47: 0 | AS47: 0 | AT47: 0 | AU47: 3621094.83 | AV47: 0 | AW47: 0 | AX47: 0 | AY47: 3377058.99 | AZ47: 0 | BA47: 0 | BB47: 0 | BC47: 3404296.68 | BD47: 131148.37 | BE47: 0 | BF47: 0 | BG47: 4772008.97 | BH47: 0 | BI47: 0 | BJ47: 0 | BK47: 3252026.82 | BL47: 0 | BM47: 0 | BN47: 0 | BO47: 4886811.27 | BP47: =BP46 -> 0 | BQ47: 0 | BR47: 0 | BS47: 3406767.82 | BT47: 0 | BU47: 0 | BV47: 0 | BW47: 1855696.04 | BX47: 0 | BY47: 0 | BZ47: 0 | CA47: 2559277.73 | CB47: 0 | CC47: 0 | CD47: 0 | CE47: 1639903.02 | CF47: 0 | CG47: 0 | CH47: 0 | CI47: =CI46 -> 1127377.92 | CJ47: =CJ46 -> 0 | CK47: =CK46 -> 0 | CL47: =CL46 -> 0 | DJ47: =DJ46 -> 1846647.504 | DK47: =DK46 -> 47831343.7 | DL47: =DL46 -> 7205098.617 | DM47: =DM46 -> 26499910.15 | DN47: =DN46 -> 1846647.504 | EK47: =EK46 -> 1846647.504 | FH47: =FH46 -> 1846647.504 | GE47: =GE46 -> 1811440.114 | HB47: =HB46 -> 1755169.93
A48: COMERCIALIZACIÓN | B48: Activos intangibles (software) | C48: 4 | D48: 0 | F48: 0 | G48: 0 | K48: 0 | L48: 0 | O48: 0 | S48: 0 | W48: 0 | X48: 0 | AA48: 0 | AB48: 0 | AE48: 0 | AF48: 0 | AI48: 0 | AJ48: 0 | AM48: 0 | AN48: 0 | AQ48: 0 | AR48: 0 | AU48: 0 | AV48: 0 | AY48: 0 | AZ48: 0 | CI48: 0 | CM48: =IF(D48=0,0,2001-(D48-F48)*C48/D48) -> 0 | CN48: =IF((1-($DJ$2-$CM48)/$C48)>0,(1-($DJ$2-$CM48)/$C48),0) -> 0 | CO48: =IF((1-($DJ$2-G$2)/$C48)>0,(1-($DJ$2-G$2)/$C48),0) -> 0 | CP48: =IF((1-($DJ$2-K$2)/$C48)>0,(1-($DJ$2-K$2)/$C48),0) -> 0 | CQ48: =IF((1-($DJ$2-O$2)/$C48)>0,(1-($DJ$2-O$2)/$C48),0) -> 0 | CR48: =IF((1-($DJ$2-S$2)/$C48)>0,(1-($DJ$2-S$2)/$C48),0) -> 0 | CS48: =IF((1-($DJ$2-W$2)/$C48)>0,(1-($DJ$2-W$2)/$C48),0) -> 0 | CT48: =IF((1-($DJ$2-AA$2)/$C48)>0,(1-($DJ$2-AA$2)/$C48),0) -> 0 | CU48: =IF((1-($DJ$2-AE$2)/$C48)>0,(1-($DJ$2-AE$2)/$C48),0) -> 0 | CV48: =IF((1-($DJ$2-AI$2)/$C48)>0,(1-($DJ$2-AI$2)/$C48),0) -> 0 | CW48: =IF((1-($DJ$2-AM$2)/$C48)>0,(1-($DJ$2-AM$2)/$C48),0) -> 0 | CX48: =IF((1-($DJ$2-AQ$2)/$C48)>0,(1-($DJ$2-AQ$2)/$C48),0) -> 0 | CY48: =IF((1-($DJ$2-AU$2)/$C48)>0,(1-($DJ$2-AU$2)/$C48),0) -> 0 | CZ48: =IF((1-($DJ$2-AY$2)/$C48)>0,(1-($DJ$2-AY$2)/$C48),0) -> 0 | DA48: =IF((1-($DJ$2-BC$2)/$C48)>0,(1-($DJ$2-BC$2)/$C48),0) -> 0 | DB48: =IF((1-($DJ$2-BG$2)/$C48)>0,(1-($DJ$2-BG$2)/$C48),0) -> 0 | DC48: =IF((1-($DJ$2-BK$2)/$C48)>0,(1-($DJ$2-BK$2)/$C48),0) -> 0 | DD48: =IF((1-($DJ$2-BO$2)/$C48)>0,(1-($DJ$2-BO$2)/$C48),0) -> 0 | DE48: =IF((1-($DJ$2-BS$2)/$C48)>0,(1-($DJ$2-BS$2)/$C48),0) -> 0.125 | DF48: =IF((1-($DJ$2-BW$2)/$C48)>0,(1-($DJ$2-BW$2)/$C48),0) -> 0.375 | DG48: =IF((1-($DJ$2-CA$2)/$C48)>0,(1-($DJ$2-CA$2)/$C48),0) -> 0.625 | DH48: =IF((1-($DJ$2-CE$2)/$C48)>0,(1-($DJ$2-CE$2)/$C48),0) -> 0.875 | DI48: =IF((1-($DJ$2-CI$2)/$C48)>0,(1-($DJ$2-CI$2)/$C48),0) -> 1 | DJ48: =IF(CN48=0,0,($D48-$E48)*1/$C48)+IF(CO48=0,0,($G48-$H48-$I48)*$G$63*1/$C48)+IF(CP48=0,0,($K48-$L48-$M48)*$K$63*1/$C48)+IF(CQ48=0,0,($O48-$P48-$Q48)*$O$63*1/$C48)+IF(CR48=0,0,($S48-$T48-$U48)*$S$63*1/$C48)+IF(CS48=0,0,($W48-$X48-$Y48)*$W$63*1/$C48)+IF(CT48=0,0,($AA48-$AB48-$AC48)*$AA$63*1/$C48)+IF(CU48=0,0,($AE48-$AF48-$AG48)*$AE$63*1/$C48)+IF(CV48=0,0,($AI48-$AJ48-$AK48)*$AI$63*1/$C48)+IF(CW48=0,0,($AM48-$AN48-$AO48)*$AM$63*1/$C48)+IF(CX48=0,0,($AQ48-$AR48-$AS48)*$AQ$63*1/$C48)+IF(CY48=0,0,($AU48-$AV48-$AW48)*$AU$63*1/$C48)+IF(CZ48=0,0,($AY48-$AZ48-$BA48)*$AY$63*1/$C48)+IF(DA48=0,0,($BC48-$BD48-$BE48)*$BC$63*1/$C48)+IF(DB48=0,0,($BG48-$BH48-$BI48)*$BG$63*1/$C48)+IF(DC48=0,0,($BK48-$BL48-$BM48)*$BK$63*1/$C48)+IF(DD48=0,0,($BO48-$BP48-$BQ48)*$BO$63*1/$C48)+IF(DE48=0,0,($BS48-$BT48-$BU48)*$BS$63*1/$C48)+IF(DF48=0,0,($BW48-$BX48-$BY48)*$BW$63*1/$C48)+IF(DG48=0,0,($CA48-$CB48-$CC48)*$CA$63*1/$C48)+IF(DH48=0,0,($CE48-$CF48-$CG48)*$CE$63*1/$C48)+IF(DI48=0,0,($CI48-$CJ48-$CK48)*$CI$63*1/$C48) -> 0 | DK48: =D48-E48+(G48-H48-I48)*G$63+(K48-L48-M48)*K$63+(O48-P48-Q48)*O$63+(S48-T48-U48)*S$63+(W48-X48-Y48)*W$63+(AA48-AB48-AC48)*AA$63+(AE48-AF48-AG48)*AE$63+(AI48-AJ48-AK48)*AI$63+(AM48-AN48-AO48)*AM$63+(AQ48-AR48-AS48)*$AQ$63+(AU48-AV48-AW48)*$AU$63+(AY48-AZ48-BA48)*$AY$63+(BC48-BD48-BE48)*$BC$63+(BG48-BH48-BI48)*$BG$63+(BK48-BL48-BM48)*$BK$63+(BO48-BP48-BQ48)*$BO$63+(BS48-BT48-BU48)*$BS$63+(BW48-BX48-BY48)*$BW$63+(CA48-CB48-CC48)*$CA$63+(CE48-CF48-CG48)*$CE$63+(CI48-CJ48-CK48)*$CI$63 -> 0 | DL48: =IF(CN48=0,D48-E48,0)+IF(CO48=0,(G48-H48-I48)*G$63,0)+IF(CP48=0,(K48-L48-M48)*K$63,0)+IF(CQ48=0,(O48-P48-Q48)*O$63,0)+IF(CR48=0,(S48-T48-U48)*S$63,0)+IF(CS48=0,(W48-X48-Y48)*W$63,0)+IF(CT48=0,(AA48-AB48-AC48)*AA$63,0)+IF(CU48=0,(AE48-AF48-AG48)*AE$63,0)+IF(CV48=0,(AI48-AJ48-AK48)*AI$63,0)+IF(CW48=0,(AM48-AN48-AO48)*AM$63,0)+IF(CX48=0,(AQ48-AR48-AS48)*$AQ$63,0)+IF(CY48=0,(AU48-AV48-AW48)*$AU$63,0)+IF(CZ48=0,(AY48-AZ48-BA48)*$AY$63,0)++IF(DA48=0,(BC48-BD48-BE48)*$BC$63,0)+IF(DB48=0,(BG48-BH48-BI48)*$BG$63,0)+IF(DC48=0,(BK48-BL48-BM48)*$BK$63,0)+IF(DD48=0,(BO48-BP48-BQ48)*$BO$63,0)+IF(DE48=0,(BS48-BT48-BU48)*$BS$63,0)+IF(DF48=0,(BW48-BX48-BY48)*$BW$63,0)+IF(DG48=0,(CA48-CB48-CC48)*$CA$63,0)+IF(DH48=0,(CE48-CF48-CG48)*$CE$63,0)+IF(DI48=0,(CI48-CJ48-CK48)*$CI$63,0) -> 0 | DM48: =(D48-E48)*CN48+((G48-H48-(I48-J48))*G$63)*CO48+((K48-L48-(M48-N48))*K$63)*CP48+((O48-P48-(Q48-R48))*O$63)*CQ48+((S48-T48-(U48-V48))*S$63)*CR48+((W48-X48-(Y48-Z48))*W$63)*CS48+((AA48-AB48-(AC48-AD48))*AA$63)*CT48+((AE48-AF48-(AG48-AH48))*AE$63)*CU48+((AI48-AJ48-(AK48-AL48))*AI$63)*CV48+((AM48-AN48-(AO48-AP48))*$AM$63)*CW48+((AQ48-AR48-(AS48-AT48))*$AQ$63)*CX48+((AU48-AV48-(AW48-AX48))*$AU$63)*CY48+((AY48-AZ48-(BA48-BB48))*$AY$63)*CZ48+((BC48-BD48-(BE48-BF48))*$BC$63)*DA48+((BG48-BH48-(BI48-BJ48))*$BG$63)*DB48+((BK48-BL48-(BM48-BN48))*$BK$63)*DC48+((BO48-BP48-(BQ48-BR48))*$BO$63)*DD48+((BS48-BT48-(BU48-BV48))*$BS$63)*DE48+((BW48-BX48-(BY48-BZ48))*$BW$63)*DF48+((CA48-CB48-(CC48-CD48))*$CA$63)*DG48+((CE48-CF48-(CG48-CH48))*$CE$63)*DH48+((CI48-CJ48-(CK48-CL48))*$CI$63)*DI48 -> 0 | DN48: =(DK48-DL48)*1/C48 -> 0 | DO48: =IF((1-($EK$2-$CM48)/$C48)>0,(1-($EK$2-$CM48)/$C48),0) -> 0 | DP48: =IF((1-($EK$2-DP$2)/$C48)>0,(1-($EK$2-DP$2)/$C48),0) -> 0 | DQ48: 0 | DR48: 0 | DS48: 0 | DT48: 0 | DU48: 0 | DV48: 0 | DW48: 0 | DX48: 0 | DY48: 0 | DZ48: =IF((1-($EK$2-DZ$2)/$C48)>0,(1-($EK$2-DZ$2)/$C48),0) -> 0 | EA48: 0 | EB48: 0 | EC48: 0 | ED48: 0 | EE48: 0 | EF48: 0 | EG48: 0.125 | EH48: 0.375 | EI48: 0.625 | EJ48: 0.75 | EK48: =IF(DO48=0,0,($D48-$E48)*1/$C48)+IF(DP48=0,0,($G48-$H48-$I48)*$G$63*1/$C48)+IF(DQ48=0,0,($K48-$L48-$M48)*$K$63*1/$C48)+IF(DR48=0,0,($O48-$P48-$Q48)*$O$63*1/$C48)+IF(DS48=0,0,($S48-$T48-$U48)*$S$63*1/$C48)+IF(DT48=0,0,($W48-$X48-$Y48)*$W$63*1/$C48)+IF(DU48=0,0,($AA48-$AB48-$AC48)*$AA$63*1/$C48)+IF(DV48=0,0,($AE48-$AF48-$AG48)*$AE$63*1/$C48)+IF(DW48=0,0,($AI48-$AJ48-$AK48)*$AI$63*1/$C48)+IF(DX48=0,0,($AM48-$AN48-$AO48)*$AM$63*1/$C48)+IF(DY48=0,0,($AQ48-$AR48-$AS48)*$AQ$63*1/$C48)+IF(DZ48=0,0,($AU48-$AV48-$AW48)*$AU$63*1/$C48)+IF(EA48=0,0,($AY48-$AZ48-$BA48)*$AY$63*1/$C48)+IF(EB48=0,0,($BC48-$BD48-$BE48)*$BC$63*1/$C48)+IF(EC48=0,0,($BG48-$BH48-$BI48)*$BG$63*1/$C48)+IF(ED48=0,0,($BK48-$BL48-$BM48)*$BK$63*1/$C48)+IF(EE48=0,0,($BO48-$BP48-$BQ48)*$BO$63*1/$C48)+IF(EF48=0,0,($BS48-$BT48-$BU48)*$BS$63*1/$C48)+IF(EG48=0,0,($BW48-$BX48-$BY48)*$BW$63*1/$C48)+IF(EH48=0,0,($CA48-$CB48-$CC48)*$CA$63*1/$C48)+IF(EI48=0,0,($CE48-$CF48-$CG48)*$CE$63*1/$C48)+IF(EJ48=0,0,($CI48-$CJ48-$CK48)*$CI$63*1/$C48) -> 0 | EL48: =IF((1-($FH$2-$CM48)/$C48)>0,(1-($FH$2-$CM48)/$C48),0) -> 0 | EM48: =IF((1-($FH$2-EM$2)/$C48)>0,(1-($FH$2-EM$2)/$C48),0) -> 0 | EN48: 0 | EO48: 0 | EP48: 0 | EQ48: 0 | ER48: 0 | ES48: 0 | ET48: 0 | EU48: 0 | EV48: 0 | EW48: =IF((1-($FH$2-EW$2)/$C48)>0,(1-($FH$2-EW$2)/$C48),0) -> 0 | EX48: 0 | EY48: 0 | EZ48: 0 | FA48: 0 | FB48: 0 | FC48: 0 | FD48: 0 | FE48: 0.125 | FF48: 0.375 | FG48: 0.5 | FH48: =IF(EL48=0,0,($D48-$E48)*1/$C48)+IF(EM48=0,0,($G48-$H48-$I48)*$G$63*1/$C48)+IF(EN48=0,0,($K48-$L48-$M48)*$K$63*1/$C48)+IF(EO48=0,0,($O48-$P48-$Q48)*$O$63*1/$C48)+IF(EP48=0,0,($S48-$T48-$U48)*$S$63*1/$C48)+IF(EQ48=0,0,($W48-$X48-$Y48)*$W$63*1/$C48)+IF(ER48=0,0,($AA48-$AB48-$AC48)*$AA$63*1/$C48)+IF(ES48=0,0,($AE48-$AF48-$AG48)*$AE$63*1/$C48)+IF(ET48=0,0,($AI48-$AJ48-$AK48)*$AI$63*1/$C48)+IF(EU48=0,0,($AM48-$AN48-$AO48)*$AM$63*1/$C48)+IF(EV48=0,0,($AQ48-$AR48-$AS48)*$AQ$63*1/$C48)+IF(EW48=0,0,($AU48-$AV48-$AW48)*$AU$63*1/$C48)+IF(EX48=0,0,($AY48-$AZ48-$BA48)*$AY$63*1/$C48)+IF(EY48=0,0,($BC48-$BD48-$BE48)*$BC$63*1/$C48)+IF(EZ48=0,0,($BG48-$BH48-$BI48)*$BG$63*1/$C48)+IF(FA48=0,0,($BK48-$BL48-$BM48)*$BK$63*1/$C48)+IF(FB48=0,0,($BO48-$BP48-$BQ48)*$BO$63*1/$C48)+IF(FC48=0,0,($BS48-$BT48-$BU48)*$BS$63*1/$C48)+IF(FD48=0,0,($BW48-$BX48-$BY48)*$BW$63*1/$C48)+IF(FE48=0,0,($CA48-$CB48-$CC48)*$CA$63*1/$C48)+IF(FF48=0,0,($CE48-$CF48-$CG48)*$CE$63*1/$C48)+IF(FG48=0,0,($CI48-$CJ48-$CK48)*$CI$63*1/$C48) -> 0 | FI48: =IF((1-($GE$2-$CM48)/$C48)>0,(1-($GE$2-$CM48)/$C48),0) -> 0 | FJ48: =IF((1-($GE$2-FJ$2)/$C48)>0,(1-($GE$2-FJ$2)/$C48),0) -> 0 | FK48: 0 | FL48: 0 | FM48: 0 | FN48: 0 | FO48: 0 | FP48: 0 | FQ48: 0 | FR48: 0 | FS48: 0 | FT48: =IF((1-($GE$2-FT$2)/$C48)>0,(1-($GE$2-FT$2)/$C48),0) -> 0 | FU48: 0 | FV48: 0 | FW48: 0 | FX48: 0 | FY48: 0 | FZ48: 0 | GA48: 0 | GB48: 0 | GC48: 0.125 | GD48: 0.25 | GE48: =IF(FI48=0,0,($D48-$E48)*1/$C48)+IF(FJ48=0,0,($G48-$H48-$I48)*$G$63*1/$C48)+IF(FK48=0,0,($K48-$L48-$M48)*$K$63*1/$C48)+IF(FL48=0,0,($O48-$P48-$Q48)*$O$63*1/$C48)+IF(FM48=0,0,($S48-$T48-$U48)*$S$63*1/$C48)+IF(FN48=0,0,($W48-$X48-$Y48)*$W$63*1/$C48)+IF(FO48=0,0,($AA48-$AB48-$AC48)*$AA$63*1/$C48)+IF(FP48=0,0,($AE48-$AF48-$AG48)*$AE$63*1/$C48)+IF(FQ48=0,0,($AI48-$AJ48-$AK48)*$AI$63*1/$C48)+IF(FR48=0,0,($AM48-$AN48-$AO48)*$AM$63*1/$C48)+IF(FS48=0,0,($AQ48-$AR48-$AS48)*$AQ$63*1/$C48)+IF(FT48=0,0,($AU48-$AV48-$AW48)*$AU$63*1/$C48)+IF(FU48=0,0,($AY48-$AZ48-$BA48)*$AY$63*1/$C48)+IF(FV48=0,0,($BC48-$BD48-$BE48)*$BC$63*1/$C48)+IF(FW48=0,0,($BG48-$BH48-$BI48)*$BG$63*1/$C48)+IF(FX48=0,0,($BK48-$BL48-$BM48)*$BK$63*1/$C48)+IF(FY48=0,0,($BO48-$BP48-$BQ48)*$BO$63*1/$C48)+IF(FZ48=0,0,($BS48-$BT48-$BU48)*$BS$63*1/$C48)+IF(GA48=0,0,($BW48-$BX48-$BY48)*$BW$63*1/$C48)+IF(GB48=0,0,($CA48-$CB48-$CC48)*$CA$63*1/$C48)+IF(GC48=0,0,($CE48-$CF48-$CG48)*$CE$63*1/$C48)+IF(GD48=0,0,($CI48-$CJ48-$CK48)*$CI$63*1/$C48) -> 0 | GF48: =IF((1-($HB$2-$CM48)/$C48)>0,(1-($HB$2-$CM48)/$C48),0) -> 0 | GG48: =IF((1-($HB$2-GG$2)/$C48)>0,(1-($HB$2-GG$2)/$C48),0) -> 0 | GH48: 0 | GI48: 0 | GJ48: 0 | GK48: 0 | GL48: 0 | GM48: 0 | GN48: 0 | GO48: 0 | GP48: 0 | GQ48: =IF((1-($HB$2-GQ$2)/$C48)>0,(1-($HB$2-GQ$2)/$C48),0) -> 0 | GR48: 0 | GS48: 0 | GT48: 0 | GU48: 0 | GV48: 0 | GW48: 0 | GX48: 0 | GY48: 0 | GZ48: 0 | HA48: 0 | HB48: =IF(GF48=0,0,($D48-$E48)*1/$C48)+IF(GG48=0,0,($G48-$H48-$I48)*$G$63*1/$C48)+IF(GH48=0,0,($K48-$L48-$M48)*$K$63*1/$C48)+IF(GI48=0,0,($O48-$P48-$Q48)*$O$63*1/$C48)+IF(GJ48=0,0,($S48-$T48-$U48)*$S$63*1/$C48)+IF(GK48=0,0,($W48-$X48-$Y48)*$W$63*1/$C48)+IF(GL48=0,0,($AA48-$AB48-$AC48)*$AA$63*1/$C48)+IF(GM48=0,0,($AE48-$AF48-$AG48)*$AE$63*1/$C48)+IF(GN48=0,0,($AI48-$AJ48-$AK48)*$AI$63*1/$C48)+IF(GO48=0,0,($AM48-$AN48-$AO48)*$AM$63*1/$C48)+IF(GP48=0,0,($AQ48-$AR48-$AS48)*$AQ$63*1/$C48)+IF(GQ48=0,0,($AU48-$AV48-$AW48)*$AU$63*1/$C48)+IF(GR48=0,0,($AY48-$AZ48-$BA48)*$AY$63*1/$C48)+IF(GS48=0,0,($BC48-$BD48-$BE48)*$BC$63*1/$C48)+IF(GT48=0,0,($BG48-$BH48-$BI48)*$BG$63*1/$C48)+IF(GU48=0,0,($BK48-$BL48-$BM48)*$BK$63*1/$C48)+IF(GV48=0,0,($BO48-$BP48-$BQ48)*$BO$63*1/$C48)+IF(GW48=0,0,($BS48-$BT48-$BU48)*$BS$63*1/$C48)+IF(GX48=0,0,($BW48-$BX48-$BY48)*$BW$63*1/$C48)+IF(GY48=0,0,($CA48-$CB48-$CC48)*$CA$63*1/$C48)+IF(GZ48=0,0,($CE48-$CF48-$CG48)*$CE$63*1/$C48)+IF(HA48=0,0,($CI48-$CJ48-$CK48)*$CI$63*1/$C48) -> 0
B49: Terrenos | C49: 1000 | D49: 3359.980469 | F49: 3360 | G49: 0 | K49: 0 | L49: 0 | O49: 0 | S49: 0 | W49: 0 | X49: 0 | AA49: 0 | AB49: 0 | AE49: 0 | AF49: 0 | AI49: 0 | AJ49: 0 | AM49: 0 | AN49: 0 | AQ49: 0 | AR49: 0 | AU49: 0 | AV49: 0 | AY49: 0 | AZ49: 0 | CI49: 0 | CM49: 2001.005813 | CN49: 0.9795058129 | CO49: 0.9805 | CP49: 0.9815 | CQ49: 0.9825 | CR49: 0.9835 | CS49: 0.9845 | CT49: 0.9855 | CU49: 0.9865 | CV49: 0.9875 | CW49: 0.9885 | CX49: 0.9895 | CY49: 0.9905 | CZ49: 0.9915 | DA49: 0.9925 | DB49: 0.9935 | DC49: 0.9945 | DD49: 0.9955 | DE49: 0.9965 | DF49: 0.9975 | DG49: 0.9985 | DH49: 0.9995 | DI49: 1 | DJ49: =IF(CN49=0,0,($D49-$E49)*1/$C49)+IF(CO49=0,0,($G49-$H49-$I49)*$G$63*1/$C49)+IF(CP49=0,0,($K49-$L49-$M49)*$K$63*1/$C49)+IF(CQ49=0,0,($O49-$P49-$Q49)*$O$63*1/$C49)+IF(CR49=0,0,($S49-$T49-$U49)*$S$63*1/$C49)+IF(CS49=0,0,($W49-$X49-$Y49)*$W$63*1/$C49)+IF(CT49=0,0,($AA49-$AB49-$AC49)*$AA$63*1/$C49)+IF(CU49=0,0,($AE49-$AF49-$AG49)*$AE$63*1/$C49)+IF(CV49=0,0,($AI49-$AJ49-$AK49)*$AI$63*1/$C49)+IF(CW49=0,0,($AM49-$AN49-$AO49)*$AM$63*1/$C49)+IF(CX49=0,0,($AQ49-$AR49-$AS49)*$AQ$63*1/$C49)+IF(CY49=0,0,($AU49-$AV49-$AW49)*$AU$63*1/$C49)+IF(CZ49=0,0,($AY49-$AZ49-$BA49)*$AY$63*1/$C49)+IF(DA49=0,0,($BC49-$BD49-$BE49)*$BC$63*1/$C49)+IF(DB49=0,0,($BG49-$BH49-$BI49)*$BG$63*1/$C49)+IF(DC49=0,0,($BK49-$BL49-$BM49)*$BK$63*1/$C49)+IF(DD49=0,0,($BO49-$BP49-$BQ49)*$BO$63*1/$C49)+IF(DE49=0,0,($BS49-$BT49-$BU49)*$BS$63*1/$C49)+IF(DF49=0,0,($BW49-$BX49-$BY49)*$BW$63*1/$C49)+IF(DG49=0,0,($CA49-$CB49-$CC49)*$CA$63*1/$C49)+IF(DH49=0,0,($CE49-$CF49-$CG49)*$CE$63*1/$C49)+IF(DI49=0,0,($CI49-$CJ49-$CK49)*$CI$63*1/$C49) -> 3.359980469 | DK49: 3359.980469 | DL49: 0 | DM49: =(D49-E49)*CN49+((G49-H49-(I49-J49))*G$63)*CO49+((K49-L49-(M49-N49))*K$63)*CP49+((O49-P49-(Q49-R49))*O$63)*CQ49+((S49-T49-(U49-V49))*S$63)*CR49+((W49-X49-(Y49-Z49))*W$63)*CS49+((AA49-AB49-(AC49-AD49))*AA$63)*CT49+((AE49-AF49-(AG49-AH49))*AE$63)*CU49+((AI49-AJ49-(AK49-AL49))*AI$63)*CV49+((AM49-AN49-(AO49-AP49))*$AM$63)*CW49+((AQ49-AR49-(AS49-AT49))*$AQ$63)*CX49+((AU49-AV49-(AW49-AX49))*$AU$63)*CY49+((AY49-AZ49-(BA49-BB49))*$AY$63)*CZ49+((BC49-BD49-(BE49-BF49))*$BC$63)*DA49+((BG49-BH49-(BI49-BJ49))*$BG$63)*DB49+((BK49-BL49-(BM49-BN49))*$BK$63)*DC49+((BO49-BP49-(BQ49-BR49))*$BO$63)*DD49+((BS49-BT49-(BU49-BV49))*$BS$63)*DE49+((BW49-BX49-(BY49-BZ49))*$BW$63)*DF49+((CA49-CB49-(CC49-CD49))*$CA$63)*DG49+((CE49-CF49-(CG49-CH49))*$CE$63)*DH49+((CI49-CJ49-(CK49-CL49))*$CI$63)*DI49 -> 3291.1204 | DN49: 3.359980469 | DO49: 0.9785058129 | DP49: 0.9795 | DQ49: 0.9805 | DR49: 0.9815 | DS49: 0.9825 | DT49: 0.9835 | DU49: 0.9845 | DV49: 0.9855 | DW49: 0.9865 | DX49: 0.9875 | DY49: 0.9885 | DZ49: 0.9895 | EA49: 0.9905 | EB49: 0.9915 | EC49: 0.9925 | ED49: 0.9935 | EE49: 0.9945 | EF49: 0.9955 | EG49: 0.9965 | EH49: 0.9975 | EI49: 0.9985 | EJ49: 0.999 | EK49: =IF(DO49=0,0,($D49-$E49)*1/$C49)+IF(DP49=0,0,($G49-$H49-$I49)*$G$63*1/$C49)+IF(DQ49=0,0,($K49-$L49-$M49)*$K$63*1/$C49)+IF(DR49=0,0,($O49-$P49-$Q49)*$O$63*1/$C49)+IF(DS49=0,0,($S49-$T49-$U49)*$S$63*1/$C49)+IF(DT49=0,0,($W49-$X49-$Y49)*$W$63*1/$C49)+IF(DU49=0,0,($AA49-$AB49-$AC49)*$AA$63*1/$C49)+IF(DV49=0,0,($AE49-$AF49-$AG49)*$AE$63*1/$C49)+IF(DW49=0,0,($AI49-$AJ49-$AK49)*$AI$63*1/$C49)+IF(DX49=0,0,($AM49-$AN49-$AO49)*$AM$63*1/$C49)+IF(DY49=0,0,($AQ49-$AR49-$AS49)*$AQ$63*1/$C49)+IF(DZ49=0,0,($AU49-$AV49-$AW49)*$AU$63*1/$C49)+IF(EA49=0,0,($AY49-$AZ49-$BA49)*$AY$63*1/$C49)+IF(EB49=0,0,($BC49-$BD49-$BE49)*$BC$63*1/$C49)+IF(EC49=0,0,($BG49-$BH49-$BI49)*$BG$63*1/$C49)+IF(ED49=0,0,($BK49-$BL49-$BM49)*$BK$63*1/$C49)+IF(EE49=0,0,($BO49-$BP49-$BQ49)*$BO$63*1/$C49)+IF(EF49=0,0,($BS49-$BT49-$BU49)*$BS$63*1/$C49)+IF(EG49=0,0,($BW49-$BX49-$BY49)*$BW$63*1/$C49)+IF(EH49=0,0,($CA49-$CB49-$CC49)*$CA$63*1/$C49)+IF(EI49=0,0,($CE49-$CF49-$CG49)*$CE$63*1/$C49)+IF(EJ49=0,0,($CI49-$CJ49-$CK49)*$CI$63*1/$C49) -> 3.359980469 | EL49: 0.9775058129 | EM49: 0.9785 | EN49: 0.9795 | EO49: 0.9805 | EP49: 0.9815 | EQ49: 0.9825 | ER49: 0.9835 | ES49: 0.9845 | ET49: 0.9855 | EU49: 0.9865 | EV49: 0.9875 | EW49: 0.9885 | EX49: 0.9895 | EY49: 0.9905 | EZ49: 0.9915 | FA49: 0.9925 | FB49: 0.9935 | FC49: 0.9945 | FD49: 0.9955 | FE49: 0.9965 | FF49: 0.9975 | FG49: 0.998 | FH49: =IF(EL49=0,0,($D49-$E49)*1/$C49)+IF(EM49=0,0,($G49-$H49-$I49)*$G$63*1/$C49)+IF(EN49=0,0,($K49-$L49-$M49)*$K$63*1/$C49)+IF(EO49=0,0,($O49-$P49-$Q49)*$O$63*1/$C49)+IF(EP49=0,0,($S49-$T49-$U49)*$S$63*1/$C49)+IF(EQ49=0,0,($W49-$X49-$Y49)*$W$63*1/$C49)+IF(ER49=0,0,($AA49-$AB49-$AC49)*$AA$63*1/$C49)+IF(ES49=0,0,($AE49-$AF49-$AG49)*$AE$63*1/$C49)+IF(ET49=0,0,($AI49-$AJ49-$AK49)*$AI$63*1/$C49)+IF(EU49=0,0,($AM49-$AN49-$AO49)*$AM$63*1/$C49)+IF(EV49=0,0,($AQ49-$AR49-$AS49)*$AQ$63*1/$C49)+IF(EW49=0,0,($AU49-$AV49-$AW49)*$AU$63*1/$C49)+IF(EX49=0,0,($AY49-$AZ49-$BA49)*$AY$63*1/$C49)+IF(EY49=0,0,($BC49-$BD49-$BE49)*$BC$63*1/$C49)+IF(EZ49=0,0,($BG49-$BH49-$BI49)*$BG$63*1/$C49)+IF(FA49=0,0,($BK49-$BL49-$BM49)*$BK$63*1/$C49)+IF(FB49=0,0,($BO49-$BP49-$BQ49)*$BO$63*1/$C49)+IF(FC49=0,0,($BS49-$BT49-$BU49)*$BS$63*1/$C49)+IF(FD49=0,0,($BW49-$BX49-$BY49)*$BW$63*1/$C49)+IF(FE49=0,0,($CA49-$CB49-$CC49)*$CA$63*1/$C49)+IF(FF49=0,0,($CE49-$CF49-$CG49)*$CE$63*1/$C49)+IF(FG49=0,0,($CI49-$CJ49-$CK49)*$CI$63*1/$C49) -> 3.359980469 | FI49: 0.9765058129 | FJ49: 0.9775 | FK49: 0.9785 | FL49: 0.9795 | FM49: 0.9805 | FN49: 0.9815 | FO49: 0.9825 | FP49: 0.9835 | FQ49: 0.9845 | FR49: 0.9855 | FS49: 0.9865 | FT49: 0.9875 | FU49: 0.9885 | FV49: 0.9895 | FW49: 0.9905 | FX49: 0.9915 | FY49: 0.9925 | FZ49: 0.9935 | GA49: 0.9945 | GB49: 0.9955 | GC49: 0.9965 | GD49: 0.997 | GE49: =IF(FI49=0,0,($D49-$E49)*1/$C49)+IF(FJ49=0,0,($G49-$H49-$I49)*$G$63*1/$C49)+IF(FK49=0,0,($K49-$L49-$M49)*$K$63*1/$C49)+IF(FL49=0,0,($O49-$P49-$Q49)*$O$63*1/$C49)+IF(FM49=0,0,($S49-$T49-$U49)*$S$63*1/$C49)+IF(FN49=0,0,($W49-$X49-$Y49)*$W$63*1/$C49)+IF(FO49=0,0,($AA49-$AB49-$AC49)*$AA$63*1/$C49)+IF(FP49=0,0,($AE49-$AF49-$AG49)*$AE$63*1/$C49)+IF(FQ49=0,0,($AI49-$AJ49-$AK49)*$AI$63*1/$C49)+IF(FR49=0,0,($AM49-$AN49-$AO49)*$AM$63*1/$C49)+IF(FS49=0,0,($AQ49-$AR49-$AS49)*$AQ$63*1/$C49)+IF(FT49=0,0,($AU49-$AV49-$AW49)*$AU$63*1/$C49)+IF(FU49=0,0,($AY49-$AZ49-$BA49)*$AY$63*1/$C49)+IF(FV49=0,0,($BC49-$BD49-$BE49)*$BC$63*1/$C49)+IF(FW49=0,0,($BG49-$BH49-$BI49)*$BG$63*1/$C49)+IF(FX49=0,0,($BK49-$BL49-$BM49)*$BK$63*1/$C49)+IF(FY49=0,0,($BO49-$BP49-$BQ49)*$BO$63*1/$C49)+IF(FZ49=0,0,($BS49-$BT49-$BU49)*$BS$63*1/$C49)+IF(GA49=0,0,($BW49-$BX49-$BY49)*$BW$63*1/$C49)+IF(GB49=0,0,($CA49-$CB49-$CC49)*$CA$63*1/$C49)+IF(GC49=0,0,($CE49-$CF49-$CG49)*$CE$63*1/$C49)+IF(GD49=0,0,($CI49-$CJ49-$CK49)*$CI$63*1/$C49) -> 3.359980469 | GF49: 0.9755058129 | GG49: 0.9765 | GH49: 0.9775 | GI49: 0.9785 | GJ49: 0.9795 | GK49: 0.9805 | GL49: 0.9815 | GM49: 0.9825 | GN49: 0.9835 | GO49: 0.9845 | GP49: 0.9855 | GQ49: 0.9865 | GR49: 0.9875 | GS49: 0.9885 | GT49: 0.9895 | GU49: 0.9905 | GV49: 0.9915 | GW49: 0.9925 | GX49: 0.9935 | GY49: 0.9945 | GZ49: 0.9955 | HA49: 0.996 | HB49: =IF(GF49=0,0,($D49-$E49)*1/$C49)+IF(GG49=0,0,($G49-$H49-$I49)*$G$63*1/$C49)+IF(GH49=0,0,($K49-$L49-$M49)*$K$63*1/$C49)+IF(GI49=0,0,($O49-$P49-$Q49)*$O$63*1/$C49)+IF(GJ49=0,0,($S49-$T49-$U49)*$S$63*1/$C49)+IF(GK49=0,0,($W49-$X49-$Y49)*$W$63*1/$C49)+IF(GL49=0,0,($AA49-$AB49-$AC49)*$AA$63*1/$C49)+IF(GM49=0,0,($AE49-$AF49-$AG49)*$AE$63*1/$C49)+IF(GN49=0,0,($AI49-$AJ49-$AK49)*$AI$63*1/$C49)+IF(GO49=0,0,($AM49-$AN49-$AO49)*$AM$63*1/$C49)+IF(GP49=0,0,($AQ49-$AR49-$AS49)*$AQ$63*1/$C49)+IF(GQ49=0,0,($AU49-$AV49-$AW49)*$AU$63*1/$C49)+IF(GR49=0,0,($AY49-$AZ49-$BA49)*$AY$63*1/$C49)+IF(GS49=0,0,($BC49-$BD49-$BE49)*$BC$63*1/$C49)+IF(GT49=0,0,($BG49-$BH49-$BI49)*$BG$63*1/$C49)+IF(GU49=0,0,($BK49-$BL49-$BM49)*$BK$63*1/$C49)+IF(GV49=0,0,($BO49-$BP49-$BQ49)*$BO$63*1/$C49)+IF(GW49=0,0,($BS49-$BT49-$BU49)*$BS$63*1/$C49)+IF(GX49=0,0,($BW49-$BX49-$BY49)*$BW$63*1/$C49)+IF(GY49=0,0,($CA49-$CB49-$CC49)*$CA$63*1/$C49)+IF(GZ49=0,0,($CE49-$CF49-$CG49)*$CE$63*1/$C49)+IF(HA49=0,0,($CI49-$CJ49-$CK49)*$CI$63*1/$C49) -> 3.359980469
B50: Edificios y mejoras | C50: 40 | D50: 1789555.43 | F50: 1078896.611 | G50: 2935.52 | K50: 0 | L50: 0 | O50: 0 | S50: 0 | W50: 0 | X50: 0 | AA50: 427343.3 | AB50: 0 | AE50: 0 | AF50: 0 | AI50: 0 | AJ50: 0 | AM50: 0 | AN50: 0 | AQ50: 0 | AR50: 0 | AU50: 0 | AV50: 0 | AY50: 0 | AZ50: 0 | CM50: 1985.115411 | CN50: 0.09038527122 | CO50: 0.5125 | CP50: 0.5375 | CQ50: 0.5625 | CR50: 0.5875 | CS50: 0.6125 | CT50: 0.6375 | CU50: 0.6625 | CV50: 0.6875 | CW50: 0.7125 | CX50: 0.7375 | CY50: 0.7625 | CZ50: 0.7875 | DA50: 0.8125 | DB50: 0.8375 | DC50: 0.8625 | DD50: 0.8875 | DE50: 0.9125 | DF50: 0.9375 | DG50: 0.9625 | DH50: 0.9875 | DI50: 1 | DJ50: 52477.76201 | DK50: 2099110.481 | DL50: 0 | DM50: 358753.0202 | DN50: 52477.76201 | DO50: 0.06538527122 | DP50: 0.4875 | DQ50: 0.5125 | DR50: 0.5375 | DS50: 0.5625 | DT50: 0.5875 | DU50: 0.6125 | DV50: 0.6375 | DW50: 0.6625 | DX50: 0.6875 | DY50: 0.7125 | DZ50: 0.7375 | EA50: 0.7625 | EB50: 0.7875 | EC50: 0.8125 | ED50: 0.8375 | EE50: 0.8625 | EF50: 0.8875 | EG50: 0.9125 | EH50: 0.9375 | EI50: 0.9625 | EJ50: 0.975 | EK50: 52477.76201 | EL50: 0.04038527122 | EM50: 0.4625 | EN50: 0.4875 | EO50: 0.5125 | EP50: 0.5375 | EQ50: 0.5625 | ER50: 0.5875 | ES50: 0.6125 | ET50: 0.6375 | EU50: 0.6625 | EV50: 0.6875 | EW50: 0.7125 | EX50: 0.7375 | EY50: 0.7625 | EZ50: 0.7875 | FA50: 0.8125 | FB50: 0.8375 | FC50: 0.8625 | FD50: 0.8875 | FE50: 0.9125 | FF50: 0.9375 | FG50: 0.95 | FH50: 52477.76201 | FI50: 0.01538527122 | FJ50: 0.4375 | FK50: 0.4625 | FL50: 0.4875 | FM50: 0.5125 | FN50: 0.5375 | FO50: 0.5625 | FP50: 0.5875 | FQ50: 0.6125 | FR50: 0.6375 | FS50: 0.6625 | FT50: 0.6875 | FU50: 0.7125 | FV50: 0.7375 | FW50: 0.7625 | FX50: 0.7875 | FY50: 0.8125 | FZ50: 0.8375 | GA50: 0.8625 | GB50: 0.8875 | GC50: 0.9125 | GD50: 0.925 | GE50: 52477.76201 | GF50: 0 | GG50: 0.4125 | GH50: 0.4375 | GI50: 0.4625 | GJ50: 0.4875 | GK50: 0.5125 | GL50: 0.5375 | GM50: 0.5625 | GN50: 0.5875 | GO50: 0.6125 | GP50: 0.6375 | GQ50: 0.6625 | GR50: 0.6875 | GS50: 0.7125 | GT50: 0.7375 | GU50: 0.7625 | GV50: 0.7875 | GW50: 0.8125 | GX50: 0.8375 | GY50: 0.8625 | GZ50: 0.8875 | HA50: 0.9 | HB50: 7738.876262
B51: Sistema de medidores y accesorios | C51: 22 | D51: 26297065.7 | F51: 15052101.52 | G51: 1405286.87 | K51: 1845035.27 | L51: 0 | O51: 1528257.69 | S51: 1585438.52 | W51: 2332967.07 | X51: 0 | AA51: 1940524.29 | AB51: 0 | AE51: 2451346.14 | AF51: 0 | AI51: 2357328.01 | AJ51: 0 | AM51: 2372370 | AN51: 0 | AQ51: 2526316.83 | AR51: 0 | AU51: 2378895.18 | AV51: 0 | AY51: 3399815.24 | AZ51: 0 | BC51: 3619240.12 | BD51: 0 | BG51: 4682938.91 | BK51: 4008701.25 | BL51: 0 | BO51: 4686893.08 | BS51: 5644772.99 | BT51: 0 | BW51: 5653839.14 | BX51: 0 | CA51: 6088282.19 | CB51: 0 | CE51: 4726464.37 | CF51: 0 | CI51: 2345758.65 | CJ51: 0 | CM51: 1991.592516 | CN51: 0 | CO51: 0.1136363636 | CP51: 0.1590909091 | CQ51: 0.2045454545 | CR51: 0.25 | CS51: 0.2954545455 | CT51: 0.3409090909 | CU51: 0.3863636364 | CV51: 0.4318181818 | CW51: 0.4772727273 | CX51: 0.5227272727 | CY51: 0.5681818182 | CZ51: 0.6136363636 | DA51: 0.6590909091 | DB51: 0.7045454545 | DC51: 0.75 | DD51: 0.7954545455 | DE51: 0.8409090909 | DF51: 0.8863636364 | DG51: 0.9318181818 | DH51: 0.9772727273 | DI51: 1 | DJ51: 2626586.362 | DK51: 84081965.67 | DL51: 26297065.7 | DM51: 39424504.29 | DN51: 2626586.362 | DO51: 0 | DP51: 0.06818181818 | DQ51: 0.1136363636 | DR51: 0.1590909091 | DS51: 0.2045454545 | DT51: 0.25 | DU51: 0.2954545455 | DV51: 0.3409090909 | DW51: 0.3863636364 | DX51: 0.4318181818 | DY51: 0.4772727273 | DZ51: 0.5227272727 | EA51: 0.5681818182 | EB51: 0.6136363636 | EC51: 0.6590909091 | ED51: 0.7045454545 | EE51: 0.75 | EF51: 0.7954545455 | EG51: 0.8409090909 | EH51: 0.8863636364 | EI51: 0.9318181818 | EJ51: 0.9545454545 | EK51: 2626586.362 | EL51: 0 | EM51: 0.02272727273 | EN51: 0.06818181818 | EO51: 0.1136363636 | EP51: 0.1590909091 | EQ51: 0.2045454545 | ER51: 0.25 | ES51: 0.2954545455 | ET51: 0.3409090909 | EU51: 0.3863636364 | EV51: 0.4318181818 | EW51: 0.4772727273 | EX51: 0.5227272727 | EY51: 0.5681818182 | EZ51: 0.6136363636 | FA51: 0.6590909091 | FB51: 0.7045454545 | FC51: 0.75 | FD51: 0.7954545455 | FE51: 0.8409090909 | FF51: 0.8863636364 | FG51: 0.9090909091 | FH51: 2626586.362 | FI51: 0 | FJ51: 0 | FK51: 0.02272727273 | FL51: 0.06818181818 | FM51: 0.1136363636 | FN51: 0.1590909091 | FO51: 0.2045454545 | FP51: 0.25 | FQ51: 0.2954545455 | FR51: 0.3409090909 | FS51: 0.3863636364 | FT51: 0.4318181818 | FU51: 0.4772727273 | FV51: 0.5227272727 | FW51: 0.5681818182 | FX51: 0.6136363636 | FY51: 0.6590909091 | FZ51: 0.7045454545 | GA51: 0.75 | GB51: 0.7954545455 | GC51: 0.8409090909 | GD51: 0.8636363636 | GE51: 2567786.297 | GF51: 0 | GG51: 0 | GH51: 0 | GI51: 0.02272727273 | GJ51: 0.06818181818 | GK51: 0.1136363636 | GL51: 0.1590909091 | GM51: 0.2045454545 | GN51: 0.25 | GO51: 0.2954545455 | GP51: 0.3409090909 | GQ51: 0.3863636364 | GR51: 0.4318181818 | GS51: 0.4772727273 | GT51: 0.5227272727 | GU51: 0.5681818182 | GV51: 0.6136363636 | GW51: 0.6590909091 | GX51: 0.7045454545 | GY51: 0.75 | GZ51: 0.7954545455 | HA51: 0.8181818182 | HB51: 2491775.899
B52: Equipos de medida SMEC | C52: 22 | D52: 0 | F52: 0 | G52: 0 | K52: 0 | L52: 0 | O52: 0 | S52: 0 | W52: 0 | X52: 0 | AA52: 0 | AB52: 0 | AE52: 0 | AF52: 0 | AI52: 0 | AJ52: 0 | AM52: 0 | AN52: 0 | AQ52: 0 | AR52: 0 | AU52: 0 | AV52: 0 | AY52: 0 | AZ52: 0 | BC52: 0 | BD52: 0 | BG52: 0 | BK52: 0 | BL52: 0 | BO52: 0 | BS52: 0 | BT52: 0 | BW52: 0 | BX52: 0 | CA52: 0 | CB52: 0 | CE52: 0 | CF52: 0 | CI52: 0 | CJ52: 0 | CM52: 0 | CN52: 0 | CO52: 0.1136363636 | CP52: 0.1590909091 | CQ52: 0.2045454545 | CR52: 0.25 | CS52: 0.2954545455 | CT52: 0.3409090909 | CU52: 0.3863636364 | CV52: 0.4318181818 | CW52: 0.4772727273 | CX52: 0.5227272727 | CY52: 0.5681818182 | CZ52: 0.6136363636 | DA52: 0.6590909091 | DB52: 0.7045454545 | DC52: 0.75 | DD52: 0.7954545455 | DE52: 0.8409090909 | DF52: 0.8863636364 | DG52: 0.9318181818 | DH52: 0.9772727273 | DI52: 1 | DJ52: 0 | DK52: 0 | DL52: 0 | DM52: 0 | DN52: 0 | DO52: 0 | DP52: 0.06818181818 | DQ52: 0.1136363636 | DR52: 0.1590909091 | DS52: 0.2045454545 | DT52: 0.25 | DU52: 0.2954545455 | DV52: 0.3409090909 | DW52: 0.3863636364 | DX52: 0.4318181818 | DY52: 0.4772727273 | DZ52: 0.5227272727 | EA52: 0.5681818182 | EB52: 0.6136363636 | EC52: 0.6590909091 | ED52: 0.7045454545 | EE52: 0.75 | EF52: 0.7954545455 | EG52: 0.8409090909 | EH52: 0.8863636364 | EI52: 0.9318181818 | EJ52: 0.9545454545 | EK52: 0 | EL52: 0 | EM52: 0.02272727273 | EN52: 0.06818181818 | EO52: 0.1136363636 | EP52: 0.1590909091 | EQ52: 0.2045454545 | ER52: 0.25 | ES52: 0.2954545455 | ET52: 0.3409090909 | EU52: 0.3863636364 | EV52: 0.4318181818 | EW52: 0.4772727273 | EX52: 0.5227272727 | EY52: 0.5681818182 | EZ52: 0.6136363636 | FA52: 0.6590909091 | FB52: 0.7045454545 | FC52: 0.75 | FD52: 0.7954545455 | FE52: 0.8409090909 | FF52: 0.8863636364 | FG52: 0.9090909091 | FH52: 0 | FI52: 0 | FJ52: 0 | FK52: 0.02272727273 | FL52: 0.06818181818 | FM52: 0.1136363636 | FN52: 0.1590909091 | FO52: 0.2045454545 | FP52: 0.25 | FQ52: 0.2954545455 | FR52: 0.3409090909 | FS52: 0.3863636364 | FT52: 0.4318181818 | FU52: 0.4772727273 | FV52: 0.5227272727 | FW52: 0.5681818182 | FX52: 0.6136363636 | FY52: 0.6590909091 | FZ52: 0.7045454545 | GA52: 0.75 | GB52: 0.7954545455 | GC52: 0.8409090909 | GD52: 0.8636363636 | GE52: 0 | GF52: 0 | GG52: 0 | GH52: 0 | GI52: 0.02272727273 | GJ52: 0.06818181818 | GK52: 0.1136363636 | GL52: 0.1590909091 | GM52: 0.2045454545 | GN52: 0.25 | GO52: 0.2954545455 | GP52: 0.3409090909 | GQ52: 0.3863636364 | GR52: 0.4318181818 | GS52: 0.4772727273 | GT52: 0.5227272727 | GU52: 0.5681818182 | GV52: 0.6136363636 | GW52: 0.6590909091 | GX52: 0.7045454545 | GY52: 0.75 | GZ52: 0.7954545455 | HA52: 0.8181818182 | HB52: 0
B53: Mobiliario y equipo de oficina | C53: 7 | D53: 271822.5642 | F53: 155581.0221 | G53: 21233 | K53: 0 | L53: 0 | O53: 0 | S53: 0 | W53: 0 | X53: 0 | AA53: 0 | AB53: 0 | AE53: 0 | AF53: 0 | AI53: 0 | AJ53: 0 | AM53: 0 | AN53: 0 | AQ53: 0 | AR53: 0 | AU53: 0 | AV53: 0 | AY53: 0 | AZ53: 0 | CI53: 0 | CJ53: 0 | CM53: 1998.006537 | CN53: 0 | CO53: 0 | CP53: 0 | CQ53: 0 | CR53: 0 | CS53: 0 | CT53: 0 | CU53: 0 | CV53: 0 | CW53: 0 | CX53: 0 | CY53: 0 | CZ53: 0 | DA53: 0 | DB53: 0.07142857143 | DC53: 0.2142857143 | DD53: 0.3571428571 | DE53: 0.5 | DF53: 0.6428571429 | DG53: 0.7857142857 | DH53: 0.9285714286 | DI53: 1 | DJ53: 0 | DK53: 291368.0676 | DL53: 291368.0676 | DM53: 0 | DN53: 0 | DO53: 0 | DP53: 0 | DQ53: 0 | DR53: 0 | DS53: 0 | DT53: 0 | DU53: 0 | DV53: 0 | DW53: 0 | DX53: 0 | DY53: 0 | DZ53: 0 | EA53: 0 | EB53: 0 | EC53: 0 | ED53: 0.07142857143 | EE53: 0.2142857143 | EF53: 0.3571428571 | EG53: 0.5 | EH53: 0.6428571429 | EI53: 0.7857142857 | EJ53: 0.8571428571 | EK53: 0 | EL53: 0 | EM53: 0 | EN53: 0 | EO53: 0 | EP53: 0 | EQ53: 0 | ER53: 0 | ES53: 0 | ET53: 0 | EU53: 0 | EV53: 0 | EW53: 0 | EX53: 0 | EY53: 0 | EZ53: 0 | FA53: 0 | FB53: 0.07142857143 | FC53: 0.2142857143 | FD53: 0.3571428571 | FE53: 0.5 | FF53: 0.6428571429 | FG53: 0.7142857143 | FH53: 0 | FI53: 0 | FJ53: 0 | FK53: 0 | FL53: 0 | FM53: 0 | FN53: 0 | FO53: 0 | FP53: 0 | FQ53: 0 | FR53: 0 | FS53: 0 | FT53: 0 | FU53: 0 | FV53: 0 | FW53: 0 | FX53: 0 | FY53: 0 | FZ53: 0.07142857143 | GA53: 0.2142857143 | GB53: 0.3571428571 | GC53: 0.5 | GD53: 0.5714285714 | GE53: 0 | GF53: 0 | GG53: 0 | GH53: 0 | GI53: 0 | GJ53: 0 | GK53: 0 | GL53: 0 | GM53: 0 | GN53: 0 | GO53: 0 | GP53: 0 | GQ53: 0 | GR53: 0 | GS53: 0 | GT53: 0 | GU53: 0 | GV53: 0 | GW53: 0 | GX53: 0.07142857143 | GY53: 0.2142857143 | GZ53: 0.3571428571 | HA53: 0.4285714286 | HB53: 0
B54: Equipo de computación | C54: 4 | D54: 524338.0136 | F54: 300131.0044 | G54: 0 | K54: 0 | L54: 0 | O54: 0 | S54: 0 | W54: 0 | X54: 0 | AA54: 0 | AB54: 0 | AE54: 0 | AF54: 0 | AI54: 0 | AJ54: 0 | AM54: 0 | AN54: 0 | AQ54: 0 | AR54: 0 | AU54: 0 | AV54: 0 | AY54: 0 | AZ54: 0 | CM54: 1999.289599 | CN54: 0 | CO54: 0 | CP54: 0 | CQ54: 0 | CR54: 0 | CS54: 0 | CT54: 0 | CU54: 0 | CV54: 0 | CW54: 0 | CX54: 0 | CY54: 0 | CZ54: 0 | DA54: 0 | DB54: 0 | DC54: 0 | DD54: 0 | DE54: 0.125 | DF54: 0.375 | DG54: 0.625 | DH54: 0.875 | DI54: 1 | DJ54: 0 | DK54: 524338.0136 | DL54: 524338.0136 | DM54: 0 | DN54: 0 | DO54: 0 | DP54: 0 | DQ54: 0 | DR54: 0 | DS54: 0 | DT54: 0 | DU54: 0 | DV54: 0 | DW54: 0 | DX54: 0 | DY54: 0 | DZ54: 0 | EA54: 0 | EB54: 0 | EC54: 0 | ED54: 0 | EE54: 0 | EF54: 0 | EG54: 0.125 | EH54: 0.375 | EI54: 0.625 | EJ54: 0.75 | EK54: 0 | EL54: 0 | EM54: 0 | EN54: 0 | EO54: 0 | EP54: 0 | EQ54: 0 | ER54: 0 | ES54: 0 | ET54: 0 | EU54: 0 | EV54: 0 | EW54: 0 | EX54: 0 | EY54: 0 | EZ54: 0 | FA54: 0 | FB54: 0 | FC54: 0 | FD54: 0 | FE54: 0.125 | FF54: 0.375 | FG54: 0.5 | FH54: 0 | FI54: 0 | FJ54: 0 | FK54: 0 | FL54: 0 | FM54: 0 | FN54: 0 | FO54: 0 | FP54: 0 | FQ54: 0 | FR54: 0 | FS54: 0 | FT54: 0 | FU54: 0 | FV54: 0 | FW54: 0 | FX54: 0 | FY54: 0 | FZ54: 0 | GA54: 0 | GB54: 0 | GC54: 0.125 | GD54: 0.25 | GE54: 0 | GF54: 0 | GG54: 0 | GH54: 0 | GI54: 0 | GJ54: 0 | GK54: 0 | GL54: 0 | GM54: 0 | GN54: 0 | GO54: 0 | GP54: 0 | GQ54: 0 | GR54: 0 | GS54: 0 | GT54: 0 | GU54: 0 | GV54: 0 | GW54: 0 | GX54: 0 | GY54: 0 | GZ54: 0 | HA54: 0 | HB54: 0
B55: Equipos de transporte y carga | C55: 5 | D55: 0 | F55: 0 | G55: 0 | K55: 0 | L55: 0 | O55: 0 | S55: 0 | W55: 0 | X55: 0 | AA55: 0 | AB55: 0 | AE55: 0 | AF55: 0 | AI55: 0 | AJ55: 0 | AM55: 0 | AN55: 0 | AQ55: 0 | AR55: 0 | AU55: 0 | AV55: 0 | AY55: 0 | AZ55: 0 | CI55: 0 | CJ55: 0 | CM55: 0 | CN55: 0 | CO55: 0 | CP55: 0 | CQ55: 0 | CR55: 0 | CS55: 0 | CT55: 0 | CU55: 0 | CV55: 0 | CW55: 0 | CX55: 0 | CY55: 0 | CZ55: 0 | DA55: 0 | DB55: 0 | DC55: 0 | DD55: 0.1 | DE55: 0.3 | DF55: 0.5 | DG55: 0.7 | DH55: 0.9 | DI55: 1 | DJ55: 0 | DK55: 0 | DL55: 0 | DM55: 0 | DN55: 0 | DO55: 0 | DP55: 0 | DQ55: 0 | DR55: 0 | DS55: 0 | DT55: 0 | DU55: 0 | DV55: 0 | DW55: 0 | DX55: 0 | DY55: 0 | DZ55: 0 | EA55: 0 | EB55: 0 | EC55: 0 | ED55: 0 | EE55: 0 | EF55: 0.1 | EG55: 0.3 | EH55: 0.5 | EI55: 0.7 | EJ55: 0.8 | EK55: 0 | EL55: 0 | EM55: 0 | EN55: 0 | EO55: 0 | EP55: 0 | EQ55: 0 | ER55: 0 | ES55: 0 | ET55: 0 | EU55: 0 | EV55: 0 | EW55: 0 | EX55: 0 | EY55: 0 | EZ55: 0 | FA55: 0 | FB55: 0 | FC55: 0 | FD55: 0.1 | FE55: 0.3 | FF55: 0.5 | FG55: 0.6 | FH55: 0 | FI55: 0 | FJ55: 0 | FK55: 0 | FL55: 0 | FM55: 0 | FN55: 0 | FO55: 0 | FP55: 0 | FQ55: 0 | FR55: 0 | FS55: 0 | FT55: 0 | FU55: 0 | FV55: 0 | FW55: 0 | FX55: 0 | FY55: 0 | FZ55: 0 | GA55: 0 | GB55: 0.1 | GC55: 0.3 | GD55: 0.4 | GE55: 0 | GF55: 0 | GG55: 0 | GH55: 0 | GI55: 0 | GJ55: 0 | GK55: 0 | GL55: 0 | GM55: 0 | GN55: 0 | GO55: 0 | GP55: 0 | GQ55: 0 | GR55: 0 | GS55: 0 | GT55: 0 | GU55: 0 | GV55: 0 | GW55: 0 | GX55: 0 | GY55: 0 | GZ55: 0.1 | HA55: 0.2 | HB55: 0
B56: Equipos de comunicaciones | C56: 8 | D56: 0 | F56: 0 | G56: 0 | K56: 0 | L56: 0 | O56: 0 | S56: 0 | W56: 0 | X56: 0 | AA56: 0 | AB56: 0 | AE56: 0 | AF56: 0 | AI56: 0 | AJ56: 0 | AM56: 0 | AN56: 0 | AQ56: 0 | AR56: 0 | AU56: 0 | AV56: 0 | AY56: 0 | AZ56: 0 | CI56: 0 | CJ56: 0 | CM56: 0 | CN56: 0 | CO56: 0 | CP56: 0 | CQ56: 0 | CR56: 0 | CS56: 0 | CT56: 0 | CU56: 0 | CV56: 0 | CW56: 0 | CX56: 0 | CY56: 0 | CZ56: 0 | DA56: 0.0625 | DB56: 0.1875 | DC56: 0.3125 | DD56: 0.4375 | DE56: 0.5625 | DF56: 0.6875 | DG56: 0.8125 | DH56: 0.9375 | DI56: 1 | DJ56: 0 | DK56: 0 | DL56: 0 | DM56: 0 | DN56: 0 | DO56: 0 | DP56: 0 | DQ56: 0 | DR56: 0 | DS56: 0 | DT56: 0 | DU56: 0 | DV56: 0 | DW56: 0 | DX56: 0 | DY56: 0 | DZ56: 0 | EA56: 0 | EB56: 0 | EC56: 0.0625 | ED56: 0.1875 | EE56: 0.3125 | EF56: 0.4375 | EG56: 0.5625 | EH56: 0.6875 | EI56: 0.8125 | EJ56: 0.875 | EK56: 0 | EL56: 0 | EM56: 0 | EN56: 0 | EO56: 0 | EP56: 0 | EQ56: 0 | ER56: 0 | ES56: 0 | ET56: 0 | EU56: 0 | EV56: 0 | EW56: 0 | EX56: 0 | EY56: 0 | EZ56: 0 | FA56: 0.0625 | FB56: 0.1875 | FC56: 0.3125 | FD56: 0.4375 | FE56: 0.5625 | FF56: 0.6875 | FG56: 0.75 | FH56: 0 | FI56: 0 | FJ56: 0 | FK56: 0 | FL56: 0 | FM56: 0 | FN56: 0 | FO56: 0 | FP56: 0 | FQ56: 0 | FR56: 0 | FS56: 0 | FT56: 0 | FU56: 0 | FV56: 0 | FW56: 0 | FX56: 0 | FY56: 0.0625 | FZ56: 0.1875 | GA56: 0.3125 | GB56: 0.4375 | GC56: 0.5625 | GD56: 0.625 | GE56: 0 | GF56: 0 | GG56: 0 | GH56: 0 | GI56: 0 | GJ56: 0 | GK56: 0 | GL56: 0 | GM56: 0 | GN56: 0 | GO56: 0 | GP56: 0 | GQ56: 0 | GR56: 0 | GS56: 0 | GT56: 0 | GU56: 0 | GV56: 0 | GW56: 0.0625 | GX56: 0.1875 | GY56: 0.3125 | GZ56: 0.4375 | HA56: 0.5 | HB56: 0
B57: Otros equipos del sistema de comercialización | C57: 17 | D57: 1434140.86 | F57: 820883.6958 | G57: 0 | K57: 0 | L57: 0 | O57: 0 | S57: 0 | W57: 0 | X57: 0 | AA57: 0 | AB57: 0 | AE57: 0 | AF57: 0 | AI57: 0 | AJ57: 0 | AM57: 0 | AN57: 0 | AQ57: 0 | AR57: 0 | AU57: 0 | AV57: 0 | AY57: 140059.97 | AZ57: 0 | BC57: 96346.01 | BD57: 0 | BG57: 21487.85 | BK57: 0 | BL57: 0 | BO57: 0 | BS57: 272457.37 | BT57: 0 | BW57: 342960 | BX57: 0 | CA57: 35080.33 | CB57: 0 | CE57: 576424 | CF57: 0 | CI57: 0 | CJ57: 0 | CM57: 1993.73058 | CN57: 0 | CO57: 0 | CP57: 0 | CQ57: 0 | CR57: 0.02941176471 | CS57: 0.08823529412 | CT57: 0.1470588235 | CU57: 0.2058823529 | CV57: 0.2647058824 | CW57: 0.3235294118 | CX57: 0.3823529412 | CY57: 0.4411764706 | CZ57: 0.5 | DA57: 0.5588235294 | DB57: 0.6176470588 | DC57: 0.6764705882 | DD57: 0.7352941176 | DE57: 0.7941176471 | DF57: 0.8529411765 | DG57: 0.9117647059 | DH57: 0.9705882353 | DI57: 1 | DJ57: 77783.99882 | DK57: 2756468.84 | DL57: 1434140.86 | DM57: 1106734.024 | DN57: 77783.99882 | DO57: 0 | DP57: 0 | DQ57: 0 | DR57: 0 | DS57: 0 | DT57: 0.02941176471 | DU57: 0.08823529412 | DV57: 0.1470588235 | DW57: 0.2058823529 | DX57: 0.2647058824 | DY57: 0.3235294118 | DZ57: 0.3823529412 | EA57: 0.4411764706 | EB57: 0.5 | EC57: 0.5588235294 | ED57: 0.6176470588 | EE57: 0.6764705882 | EF57: 0.7352941176 | EG57: 0.7941176471 | EH57: 0.8529411765 | EI57: 0.9117647059 | EJ57: 0.9411764706 | EK57: 77783.99882 | EL57: 0 | EM57: 0 | EN57: 0 | EO57: 0 | EP57: 0 | EQ57: 0 | ER57: 0.02941176471 | ES57: 0.08823529412 | ET57: 0.1470588235 | EU57: 0.2058823529 | EV57: 0.2647058824 | EW57: 0.3235294118 | EX57: 0.3823529412 | EY57: 0.4411764706 | EZ57: 0.5 | FA57: 0.5588235294 | FB57: 0.6176470588 | FC57: 0.6764705882 | FD57: 0.7352941176 | FE57: 0.7941176471 | FF57: 0.8529411765 | FG57: 0.8823529412 | FH57: 77783.99882 | FI57: 0 | FJ57: 0 | FK57: 0 | FL57: 0 | FM57: 0 | FN57: 0 | FO57: 0 | FP57: 0.02941176471 | FQ57: 0.08823529412 | FR57: 0.1470588235 | FS57: 0.2058823529 | FT57: 0.2647058824 | FU57: 0.3235294118 | FV57: 0.3823529412 | FW57: 0.4411764706 | FX57: 0.5 | FY57: 0.5588235294 | FZ57: 0.6176470588 | GA57: 0.6764705882 | GB57: 0.7352941176 | GC57: 0.7941176471 | GD57: 0.8235294118 | GE57: 77783.99882 | GF57: 0 | GG57: 0 | GH57: 0 | GI57: 0 | GJ57: 0 | GK57: 0 | GL57: 0 | GM57: 0 | GN57: 0.02941176471 | GO57: 0.08823529412 | GP57: 0.1470588235 | GQ57: 0.2058823529 | GR57: 0.2647058824 | GS57: 0.3235294118 | GT57: 0.3823529412 | GU57: 0.4411764706 | GV57: 0.5 | GW57: 0.5588235294 | GX57: 0.6176470588 | GY57: 0.6764705882 | GZ57: 0.7352941176 | HA57: 0.7647058824 | HB57: 77783.99882
B58: TOTAL SISTEMA DE COMERCIALIZACIÓN | D58: =SUM(D48:D57) -> 30320282.55 | E58: =SUM(E48:E57) -> 0 | F58: 17410953.86 | G58: 1429455.39 | H58: 0 | I58: 0 | J58: 0 | K58: 1845035.27 | L58: 0 | M58: 0 | N58: 0 | O58: 1528257.69 | P58: 0 | Q58: 0 | R58: 0 | S58: 1585438.52 | T58: 0 | U58: 0 | V58: 0 | W58: 2332967.07 | X58: 0 | Y58: 0 | Z58: 0 | AA58: 2367867.59 | AB58: 0 | AC58: 0 | AD58: 0 | AE58: 2451346.14 | AF58: 0 | AG58: 0 | AH58: 0 | AI58: 2357328.01 | AJ58: 0 | AK58: 0 | AL58: 0 | AM58: 2372370 | AN58: 0 | AO58: 0 | AP58: 0 | AQ58: 2526316.83 | AR58: 0 | AS58: 0 | AT58: 0 | AU58: 2378895.18 | AV58: 0 | AW58: 0 | AX58: 0 | AY58: 3539875.21 | AZ58: 0 | BA58: 0 | BB58: 0 | BC58: 3715586.13 | BD58: 0 | BE58: 0 | BF58: 0 | BG58: 4704426.76 | BH58: 0 | BI58: 0 | BJ58: 0 | BK58: 4008701.25 | BL58: 0 | BM58: 0 | BN58: 0 | BO58: 4686893.08 | BP58: 0 | BQ58: =SUM(BQ48:BQ57) -> 0 | BR58: 0 | BS58: 5917230.36 | BT58: 0 | BU58: 0 | BV58: 0 | BW58: 5996799.14 | BX58: 0 | BY58: 0 | BZ58: 0 | CA58: 6123362.52 | CB58: 0 | CC58: 0 | CD58: 0 | CE58: 5302888.37 | CF58: 0 | CG58: 0 | CH58: 0 | CI58: =SUM(CI48:CI57) -> 2345758.65 | CJ58: =SUM(CJ48:CJ57) -> 0 | CK58: =SUM(CK48:CK57) -> 0 | CL58: =SUM(CL48:CL57) -> 0 | DJ58: =SUM(DJ48:DJ57) -> 2756851.483 | DK58: =SUM(DK48:DK57) -> 89756611.06 | DL58: =SUM(DL48:DL57) -> 28546912.64 | DM58: =SUM(DM48:DM57) -> 40893282.45 | DN58: =SUM(DN48:DN57) -> 2756851.483 | EK58: =SUM(EK48:EK57) -> 2756851.483 | FH58: =SUM(FH48:FH57) -> 2756851.483 | GE58: =SUM(GE48:GE57) -> 2698051.418 | HB58: =SUM(HB48:HB57) -> 2577302.134
B59: TOTAL PROPIEDADES Y PLANTA + SISTEMA DE DISTRIBUCIÓN + ALUMBRADO PÚBLICO + COMERCIALIZACIÓN | D59: =D13+D45+D47+D58 -> 365247420.1 | E59: 0 | F59: 208920072.8 | G59: 21991193.61 | H59: 0 | I59: 0 | J59: 0 | K59: 21245068.06 | L59: 6861633 | M59: 0 | N59: 0 | O59: 15731828.2 | P59: 0 | Q59: 0 | R59: 0 | S59: 27177682.65 | T59: 1983756 | U59: 0 | V59: 0 | W59: 21210692.69 | X59: 0 | Y59: 0 | Z59: 0 | AA59: 22645037.58 | AB59: 3019158.69 | AC59: 0 | AD59: 0 | AE59: 25891274.31 | AF59: 0 | AG59: 0 | AH59: 0 | AI59: 23534302.86 | AJ59: 169592.56 | AK59: 0 | AL59: 0 | AM59: 23428599.21 | AN59: 0 | AO59: 0 | AP59: 0 | AQ59: 38687520.2 | AR59: 0 | AS59: 0 | AT59: 0 | AU59: 42601316.69 | AV59: 0 | AW59: 0 | AX59: 0 | AY59: 54988873.61 | AZ59: 0 | BA59: 0 | BB59: 0 | BC59: 64581286.51 | BD59: 1434411.81 | BE59: 0 | BF59: 0 | BG59: 77251606.8 | BH59: 0 | BI59: 0 | BJ59: 0 | BK59: 74158056.86 | BL59: 0 | BM59: 0 | BN59: 0 | BO59: 114269447.2 | BP59: =BP13+BP45+BP47+BP58 -> 1008524.13 | BQ59: 0 | BR59: 0 | BS59: 87176683.74 | BT59: 5286189.338 | BU59: 0 | BV59: 0 | BW59: 120814327.2 | BX59: 3785224.844 | BY59: 0 | BZ59: 0 | CA59: 80738889.31 | CB59: 3226373.861 | CC59: 0 | CD59: 0 | CE59: 82826806.68 | CF59: 1419215.223 | CG59: 0 | CH59: 0 | CI59: =CI13+CI45+CI47+CI58 -> 50235038.24 | CJ59: =CJ13+CJ45+CJ47+CJ58 -> 0 | CK59: =CK13+CK45+CK47+CK58 -> 0 | CL59: =CL13+CL45+CL47+CL58 -> 0 | DJ59: =DJ13+DJ45+DJ47+DJ58 -> 37713281.38 | DK59: =DK13+DK45+DK47+DK58 -> 1296125556 | DL59: =DL13+DL45+DL47+DL58 -> 372431076.1 | DM59: =DM13+DM45+DM47+DM58 -> 697519488.4 | DN59: =DN13+DN45+DN47+DN58 -> 37713281.38 | EK59: =EK13+EK45+EK47+EK58 -> 36654711.19 | FH59: =FH13+FH45+FH47+FH58 -> 33845517.65 | GE59: =GE13+GE45+GE47+GE58 -> 33032525.81 | HB59: =HB13+HB45+HB47+HB58 -> 31797466.14
A60: COEFICIENTE DE EFICIENCIA | B60: PROPIEDADES Y PLANTA | D60: 1 | G60: 0.9050653124 | K60: 0.8551272715 | O60: 0.7205548102 | S60: 0.6 | W60: 0.8784561622 | AA60: 0.8510215534 | AE60: 0.8767106865 | AI60: 0.8467329245 | AM60: 1 | AN60: 0 | AO60: 0 | AP60: 0 | AQ60: 0.9492863426 | AR60: 0 | AS60: 0 | AT60: 0 | AU60: 0.5966549348 | AV60: 0 | AW60: 0 | AX60: 0 | AY60: 0.9979326844 | BC60: 0.8152270448 | BG60: 0.9357127234 | BK60: 0.8937843848 | BO60: 0.9 | BS60: 0.9 | BW60: 0.8997440971 | CA60: 0.9 | CE60: 0.9 | CI60: 0.9
B61: SISTEMA DE DISTRIBUCIÓN | D61: 1 | G61: 0.8725864004 | K61: 0.8676925522 | O61: 0.8298852493 | S61: 0.8782798245 | W61: 0.8498214964 | AA61: 0.8812210021 | AE61: 0.8552983947 | AI61: 0.8649005287 | AM61: 0.7733575902 | AN61: 0 | AO61: 0 | AP61: 0 | AQ61: 0.8856166245 | AR61: 0 | AS61: 0 | AT61: 0 | AU61: 0.819727052 | AV61: 0 | AW61: 0 | AX61: 0 | AY61: 0.8413287006 | BC61: 0.8894999202 | BG61: 0.8635852578 | BK61: 0.8836195854 | BO61: 0.8891397517 | BS61: 0.8874438788 | BW61: 0.8819813143 | CA61: 0.8801615883 | CE61: 0.8806591258 | CI61: 0.9
B62: ALUMBRADO PÚBLICO | D62: 1 | G62: 1 | K62: 1 | O62: 1 | S62: 1 | W62: 0.92 | AA62: 0.92 | AE62: 0.92 | AI62: 0.92 | AM62: 1 | AN62: 0 | AO62: 0 | AP62: 0 | AQ62: 1 | AR62: 0 | AS62: 0 | AT62: 0 | AU62: 1 | AV62: 0 | AW62: 0 | AX62: 0 | AY62: 1 | BC62: 0.9 | BG62: 0.9 | BK62: 0.9 | BO62: 0.9 | BS62: 0.9 | BW62: 0.9 | CA62: 0.9 | CE62: 0.9 | CI62: 0.9 | DK62: 0 | DL62: 0 | DM62: 0
B63: SISTEMA DE COMERCIALIZACIÓN | D63: 1 | G63: 0.9205248147 | K63: 0.9063397265 | O63: 0.9365173657 | S63: 0.6 | W63: 0.7 | AA63: 0.7180476012 | AE63: 0.7 | AI63: 0.7 | AM63: 0.7864926738 | AN63: 0 | AO63: 0 | AP63: 0 | AQ63: 0.8882526196 | AR63: 0 | AS63: 0 | AT63: 0 | AU63: 0.8 | AV63: 0 | AW63: 0 | AX63: 0 | AY63: 0.8 | BC63: 0.9 | BG63: 0.9 | BK63: 0.9 | BO63: 0.9 | BS63: 0.9 | BW63: 0.9 | CA63: 0.9 | CE63: 0.9 | CI63: 0.9
BS65: 0 | BT65: 0 | BW65: 0 | BX65: 0 | CA65: 0 | CB65: 0 | CE65: 0 | CF65: 0 | CI65: 0 | CJ65: 0
B67: Base de Capital | C67: Jul 2021 - Jun 2022 | D67: Jul 2021 - Jun 2023 | E67: Jul 2021 - Jun 2024 | F67: Jul 2021 - Jun 2025 | G67: Jul 2021 - Jun 2026
B68: BCD | C68: =DK45+DK13*(DK45/SUM(DK45,DK58)) -> 1149370615 | D68: =C68 -> 1149370615 | E68: =D68 -> 1149370615 | F68: 1149370615 | G68: 1149370615
B69: BCAP | C69: =DK47 -> 47831343.7 | D69: =C69 -> 47831343.7 | E69: 47831343.7 | F69: 47831343.7 | G69: 47831343.7
B70: BCC | C70: =DK58+DK13*(DK58/SUM(DK45,DK58)) -> 98923596.91 | D70: 98923596.91 | E70: 98923596.91 | F70: 98923596.91 | G70: 98923596.91
B71: Total BC | C71: =SUM(C68:C70) -> 1296125556 | D71: =SUM(D68:D70) -> 1296125556 | E71: 1296125556 | F71: 1296125556 | G71: 1296125556
B72: BCDtd | C72: =DL45+DL13*(DL45/SUM(DL45,DL58)) -> 331269545.2
B73: BCAPtd | C73: =DL47 -> 7205098.617
B74: BCCtd | C74: =DL58+DL13*(DL58/SUM(DL45,DL58)) -> 33956432.3
B75: Total BCtd | C75: =SUM(C72:C74) -> 372431076.1 | D75: =SUM(D72:D74) -> 0 | E75: 0 | F75: 0 | G75: 0
B76: BCDN | C76: =DM45+DM13*(DM45/SUM(DM45,DM58)) -> 628394735.2
B77: BCNAP | C77: =DM47 -> 26499910.15
B78: BCNC | C78: =DM58+DM13*(DM58/SUM(DM45,DM58)) -> 42624843.08
B79: Total BCN | C79: =SUM(C76:C78) -> 697519488.4 | D79: =SUM(D76:D78) -> 0 | E79: 0 | F79: 0 | G79: 0
B80: Depreciación D | C80: =DJ45+DJ13*(DJ45/SUM(DJ45,DJ58)) -> 32565985.97 | D80: =EK45+EK13*(EK45/SUM(EK45,EK58)) -> 31600727.24 | E80: =FH45+FH13*(FH45/SUM(FH45,FH58)) -> 29049273.6 | F80: =GE45+GE13*(GE45/SUM(GE45,GE58)) -> 28398783.39 | G80: =HB45+HB13*(HB45/SUM(HB45,HB58)) -> 27435944.06
B81: Depreciación AP | C81: =DJ47 -> 1846647.504 | D81: =EK47 -> 1846647.504 | E81: =FH47 -> 1846647.504 | F81: =GE47 -> 1811440.114 | G81: =HB47 -> 1755169.93
B82: Depreciación C | C82: =DJ58+DJ13*(DJ58/SUM(DJ45,DJ58)) -> 3300647.904 | D82: =EK58+EK13*(EK58/SUM(EK45,EK58)) -> 3207336.446 | E82: =FH58+FH13*(FH58/SUM(FH45,FH58)) -> 2949596.547 | F82: =GE58+GE13*(GE58/SUM(GE45,GE58)) -> 2822302.306 | G82: =HB58+HB13*(HB58/SUM(HB45,HB58)) -> 2606352.155
B83: Total Depreciación | C83: =SUM(C80:C82) -> 37713281.38 | D83: =SUM(D80:D82) -> 36654711.19 | E83: 33845517.65 | F83: 33032525.81 | G83: 31797466.14
B84: % Depreciación s/BC D | C84: =C80/(C68-C72) -> 0.03980680036
B85: % Depreciación s/BC AP | C85: =C81/(C69-C73) -> 0.04545454545
B86: % Depreciación s/BC C | C86: 0.0508048631
B87: % Total Depreciación | C87: 0.04082873959
B88: Check BC | C88: =C71-DK59 -> 0
B89: Check BCN | C89: =C79-DM59 -> 0
B90: Check Depreciación | C90: =C83-DJ59 -> 0 | D90: =D83-EK59 -> 0 | E90: =E83-FH59 -> 0 | F90: =F83-GE59 -> 0 | G90: =G83-HB59 -> 0

Sheet PERDIDAS y OTROS
B2: EDEMET
B4: PERDIDAS Y OTROS DATOS
B6: CONCEPTO | D6: UNIDADES | E6: =ACTIVOS!G7 -> JUL22/ JUN23 | F6: =ACTIVOS!H7 -> JUL23 / JUN24 | G6: =ACTIVOS!I7 -> JUL24 / JUN25 | H6: =ACTIVOS!J7 -> JUL25/ JUN26
B8: Costo Monómico en Mercado Mayorista | C8: CMM | D8: Balboas/MWh | E8: 136.1530181 | F8: 131.9155505 | G8: 142.8787854 | H8: 146.3228593
B9: Pérdidas | C9: PD% | D9: % | E9: =+'Costos y Pérdidas Eficientes'!N85 -> 0.07641566736 | F9: =+'Costos y Pérdidas Eficientes'!O85 -> 0.07641072536 | G9: =+'Costos y Pérdidas Eficientes'!P85 -> 0.07640578369 | H9: =+'Costos y Pérdidas Eficientes'!Q85 -> 0.07640084233
B10: Pérdidas No Técnicas en Zonas Rojas (PNT) | C10: PD% | D10: % | E10: 0.0139 | F10: =E10 -> 0.0139 | G10: =F10 -> 0.0139 | H10: 0.0139
B11: Depreciaciones Activos de Distribución | C11: DEP% | D11: % | E11: ='BC y Dep'!C84 -> 0.03980680036 | F11: =+E11 -> 0.03980680036 | G11: =+F11 -> 0.03980680036 | H11: 0.03980680036
B12: Depreciaciones Activos de Comercialización | C12: DEP% | D12: % | E12: ='BC y Dep'!C86 -> 0.0508048631 | F12: =+E12 -> 0.0508048631 | G12: 0.0508048631 | H12: 0.0508048631
B13: Depreciaciones Activos de AP | C13: DEP% | D13: % | E13: ='BC y Dep'!C85 -> 0.04545454545 | F13: 0.04545454545 | G13: 0.04545454545 | H13: 0.04545454545
B14: Operación y Mantenimiento de AP | C14: O&Malum | D14: Miles de Balboas | E14: =ALUMPU!D11 -> 1277.729906 | F14: =ALUMPU!E11 -> 1344.690886 | G14: =ALUMPU!F11 -> 1433.968739 | H14: =ALUMPU!G11 -> 1523.239684

Sheet RETORNO
B1: EDEMET
B2: RETORNO SOBRE CAPITAL DISTRIBUCION
B4: Componentes | D4: Formula | E4: Características | F4: Caso Alto | G4: Caso Medio | H4: Caso Bajo
B5: Tasa Libre de Riesgo en USD | C5: rf | E5: Caso Alto: Rendimiento del UST20, Caso Medio: Rendimiento del UST30 y Caso Bajo: Rendimiento del UST10 - Promedio último año | F5: 2.3475 | G5: 2.295 | H5: 1.9325
B6: Adicional por riesgo local en USD | C6: rc | E6: EMBI+ Panamá - Promedio último año | F6: 2.046666667 | G6: =F6 -> 2.046666667 | H6: =F6 -> 2.046666667
B7: Beta sin apalancamiento [adimensional] | C7: βUSA unl | E7: Beta (Value Line) de utilities eléctricas de US | F7: 0.6 | G7: =F7 -> 0.6 | H7: =F7 -> 0.6
B8: Beta ajustado por apalancamiento [adimensional] | C8: βUSA lev | D8: βUSA unl*[1+(1-t)*D/E] | E8: Beta ajustado por el apalancamiento | F8: =+(F7*((1+(1-(F18/100))*(F24/(1-F24))))) -> 1.02 | G8: =+(G7*((1+(1-(G18/100))*(G24/(1-G24))))) -> 1.131000815 | H8: =+(H7*((1+(1-(H18/100))*(H24/(1-H24))))) -> 1.131000815
B9: Premio por riesgo | C9: pm | D9: rm-rf | E9: Estimado sobre el mercado de EUA como spread entre el rendimiento del UST Bond y el rendimiento del S&P500. Casos Alto y Medio promedio 1928 - 2021. Caso Bajo promedio 1972 - 2021 - [%] | F9: 6.710096191 | G9: =F9 -> 6.710096191 | H9: 5.465070637
B11: Costo Nominal del Capital Propio después de impuestos, en USD | C11: re | D11: rf+rc+β*pm | E11: Aplicación CAPM [%] | F11: =(F5+F6+F8*F9) -> 11.23846478 | G11: =(G5+G6+G8*G9) -> 11.93079093 | H11: =(H5+H6+H8*H9) -> 10.16016601
B13: Componentes | D13: Formula | E13: Características | F13: Caso Alto | G13: =G4 -> Caso Medio | H13: Caso Bajo
B14: =+B5 -> Tasa Libre de Riesgo en USD | C14: rf | E14: =+E5 -> Caso Alto: Rendimiento del UST20, Caso Medio: Rendimiento del UST30 y Caso Bajo: Rendimiento del UST10 - Promedio último año | F14: 2.3475 | G14: 2.295 | H14: =H5 -> 1.9325
B15: =+B6 -> Adicional por riesgo local en USD | C15: rc | E15: EMBI+ Panamá - Promedio último año | F15: 2.046666667 | G15: 2.046666667 | H15: =F15 -> 2.046666667
B16: Adicional por riesgo crediticio | C16: rs | E16: Spread Calificación BBB y Baa2 Caso Alto: Estimación a 30 años. Casos medio y bajo estimación Damodaran 10 años | F16: 1.76 | G16: 1.76 | H16: 1.76
B17: Costo Nominal de la Deuda antes de impuestos , en USD | C17: rd | D17: rF + rC + rS | E17: Resultado [%] | F17: =F14+F15+F16 -> 6.154166667 | G17: =G14+G15+G16 -> 6.101666667 | H17: =H14+H15+H16 -> 5.739166667
B18: Tasa impositiva | C18: t | E18: Alícuota Impuesto a las Ganancias [%] | F18: 30 | G18: 30 | H18: =F18 -> 30
B19: Costo Nominal de la Deuda después de impuestos, en USD | C19: r'd | D19: rd*(1-t) | E19: Resultado [%] | F19: =(F17)*(1-F18/100) -> 4.307916667 | G19: =(G17)*(1-G18/100) -> 4.271166667 | H19: =(H17)*(1-H18/100) -> 4.017416667
B21: Componentes | D21: Formula | E21: Características | F21: Caso Alto | G21: =G13 -> Caso Medio | H21: Caso Bajo
B22: Costo Nominal del Capital Propio después de impuestos , en USD | C22: re | D22: rF+rL+βL*rM | E22: Aplicación CAPM [%] | F22: =+F11 -> 11.23846478 | G22: =+G11 -> 11.93079093 | H22: =+H11 -> 10.16016601
B23: Costo Nominal de la Deuda después de impuestos , en USD | C23: r'd | D23: rd*(1-t) | E23: Resultado [%] | F23: =+F19 -> 4.307916667 | G23: =+G19 -> 4.271166667 | H23: =+H19 -> 4.017416667
B24: Estructura de capital | C24: WD | D24: D/(D+E) | E24: Casos Alto y Medio: IMP de transmisión del período 2017-2021, Caso Bajo: Promedio paises | F24: 0.5 | G24: 0.55836 | H24: 0.55836
B25: Costo Nominal del Capital después de impuestos, en USD | C25: WACC | D25: rE*(1-WD)+rD'*WD | E25: Aplicación WACC [%] | F25: =F19*F24+(1-F24)*F11 -> 7.773190724 | G25: =G19*G24+(1-G24)*G11 -> 7.653963126 | H25: =H19*H24+(1-H24)*H11 -> 6.730300488
B27: Componentes | D27: Formula | E27: Características | F27: Caso Alto | G27: =G21 -> Caso Medio | H27: Caso Bajo
B28: Costo Nominal del Capital después de impuestos, en USD | C28: WACC | D28: re*(1-Wd)+rd'*Wd | E28: Aplicación WACC [%] | F28: =+F25 -> 7.773190724 | G28: =+G25 -> 7.653963126 | H28: =+H25 -> 6.730300488
B29: Inflación en USD | C29: πUSA | E29: Casos Alto y Medio: Spread del rendimientos de los bonos del tesoro de EUA no indexados e indexados (UST y TIPS) a 30 años - Promedio mensual - último año. Caso Medio: Crecimiento interanual promedio inflación estimada FMI 2022 - 2026 | F29: 2.341666667 | G29: =F29 -> 2.341666667 | H29: 3.357360764
B30: Prima por Riesgo Cambiario | C30: PRC | E30: Diferencia entre el dólar futuro (ROFEX) y el observado - [%] | F30: =#REF!*100*0 ->  | G30: =#REF!*100*0 ->  | H30: =#REF!*100*0 -> 
B31: Costo Real del Capital antes de impuestos | C31: WACCR | D31: [WACC/(1-t)-πEUA]/(1+πEUA) | E31: Resultado fórmula WACC - [%] | F31: =(((F28/100)/(1-(F18/100))-(F29/100))/(1+(F29/100)))*100 -> 8.562388904 | G31: =(((G28/100)/(1-(G18/100))-(G29/100))/(1+(G29/100)))*100 -> 8.395960951 | H31: 6.054096362
B36: RETORNO SOBRE CAPITAL DISTRIBUCION
B38: A. RESOLUCIÓN ASEP
B40: TASA DE RENTABILIDAD PARA IMP | D40: 0.088
B42: B. REFERENCIAL
B44: WACC REAL ANTES. IMPUESTOS | D44: =F31/100 -> 0.08562388904
B45: WACC REAL ANTES. IMPUESTOS | D45: =G31/100 -> 0.08395960951
B46: WACC REAL ANTES. IMPUESTOS BAJO | D46: =H31/100 -> 0.06054096362

Sheet Archivos de Referencia
A1: Concepto | B1: Hoja | C1: Celdas Relacionadas | D1: Archivo Referencia
A2: Cantidad Luminarias AP | B2: ALUMPU | C2: D24 | D2: Luminarias EDEMET.xlsx
A3: Costoss AP | B3: ALUMPU | C3: D30:G30 | D3: [Informe Regulatorio Ingreso_Gto EDEMET 2018 vFinal.xlsx]ERa'!$C$27. Mismo archivo para años 2019 a 2021
A4: Demanda | B4: Demanda | C4: Varias Celdas | D4: PROY DDA.xlsx
A5: Ajuste Activos no Regulados | B5: Activos | C5: E9:E16 | D5: Modelo ENSA Jul22_Jun26_Costos1.xlsm
A6: Ingresos No Regulados | B6: Activos | C6: D23:F23 | D6: EDEMET NATURGY- DSAN 1619.xlsx
A7: Coheficientes de Eficiencia | B7: BC y Dep | C7: Varias Celdas | D7: AA_EDEMET Actualizado 2022_a.xls
A8: ATR y AE | B8: BC y Dep | C8: Varias Celdas | D8: Resumen Inv y Trans ATR y AE.xlsx
A9: Costos de la Energía Mercado Mayorista | B9: Pérdidas y Otros | C9: E8:H8 | D9: Monomicos G+T actualizados con valores del 5-6-23.xlsx
A10: Tasa de Retorno | B10: Retorno | C10: D44:D46 | D10: Calculo_WACC_ Jun_22_Final.xlsx
